Workbook

Sheet 292 Club
A1: State Qualifiers (ctrl+q)
A2: School | B2: Name | C2: Score
A3: =IF(C3=0,0,IF(C3>291,TEAMS!$AC$1,0)) -> CV | B3: =IF(C3=0,0,IF(C3>291,TEAMS!$AC$2,0)) -> Evans, Lucy (11) | C3: =IF(TEAMS!AC$3=0,0,IF(TEAMS!AC$3>291,TEAMS!AC$3,0)) -> 295 | D3: 1
A4: =IF(C4=0,0,IF(C4>291,TEAMS!$AC$916,0)) -> 0 | B4: =IF(C4=0,0,IF(C4>291,TEAMS!AE$917,0)) -> 0 | C4: =IF(TEAMS!AE$918=0,0,IF(TEAMS!AE$918>291,TEAMS!AE$918,0)) -> 0 | D4: 2
A5: =IF(C5=0,0,IF(C5>291,TEAMS!$AC$1,0)) -> 0 | B5: =IF(C5=0,0,IF(C5>291,TEAMS!$AD$2,0)) -> 0 | C5: =IF(TEAMS!$AD$3=0,0,IF(TEAMS!$AD$3>291,TEAMS!$AD$3,0)) -> 0 | D5: 3
A6: =IF(C6=0,0,IF(C6>291,TEAMS!$AC$62,0)) -> 0 | B6: =IF(C6=0,0,IF(C6>291,TEAMS!AC63,0)) -> 0 | C6: =IF(TEAMS!AC64=0,0,IF(TEAMS!AC64>291,TEAMS!AC64,0)) -> 0 | D6: 4
A7: =IF(C7=0,0,IF(C7>291,TEAMS!$AC$62,0)) -> 0 | B7: =IF(C7=0,0,IF(C7>291,TEAMS!AE63,0)) -> 0 | C7: =IF(TEAMS!AE64=0,0,IF(TEAMS!AE64>291,TEAMS!AE64,0)) -> 0 | D7: 5
A8: =IF(C8=0,0,IF(C8>291,TEAMS!$AC$245,0)) -> 0 | B8: =IF(C8=0,0,IF(C8>291,TEAMS!$AC$246,0)) -> 0 | C8: =IF(TEAMS!AC$247=0,0,IF(TEAMS!AC$247>291,TEAMS!AC$247,0)) -> 0 | D8: 6
A9: =IF(C9=0,0,IF(C9>291,TEAMS!$AC$916,0)) -> 0 | B9: =IF(C9=0,0,IF(C9>291,TEAMS!AE$917,0)) -> 0 | C9: =IF(TEAMS!AE$918=0,0,IF(TEAMS!AE$918>291,TEAMS!AE$918,0)) -> 0 | D9: 7
A10: =IF(C10=0,0,IF(C10>291,TEAMS!$AC$245,0)) -> 0 | B10: =IF(C10=0,0,IF(C10>291,TEAMS!$AF$246,0)) -> 0 | C10: =IF(TEAMS!AF$247=0,0,IF(TEAMS!AF$247>291,TEAMS!AF$247,0)) -> 0 | D10: 8
A11: =IF(C11=0,0,IF(C11>291,TEAMS!$AC$916,0)) -> 0 | B11: =IF(C11=0,0,IF(C11>291,TEAMS!AC$917,0)) -> 0 | C11: =IF(TEAMS!AC$918=0,0,IF(TEAMS!AC$918>291,TEAMS!AC$918,0)) -> 0 | D11: 9
A12: =IF(C12=0,0,IF(C12>291,TEAMS!$AC$916,0)) -> 0 | B12: =IF(C12=0,0,IF(C12>291,TEAMS!AD$917,0)) -> 0 | C12: =IF(TEAMS!AD$918=0,0,IF(TEAMS!AD$918>291,TEAMS!AD$918,0)) -> 0 | D12: 10
A13: =IF(C13=0,0,IF(C13>291,TEAMS!$AC$611,0)) -> 0 | B13: =IF(C13=0,0,IF(C13>291,TEAMS!AC$612,0)) -> 0 | C13: =IF(TEAMS!AC$613=0,0,IF(TEAMS!AC$613>291,TEAMS!AC$613,0)) -> 0 | D13: 11
A14: =IF(C14=0,0,IF(C14>291,TEAMS!$AC$245,0)) -> 0 | B14: =IF(C14=0,0,IF(C14>291,TEAMS!$AG$246,0)) -> 0 | C14: =IF(TEAMS!AG$247=0,0,IF(TEAMS!AG$247>291,TEAMS!AG$247,0)) -> 0 | D14: 12
A15: =IF(C15=0,0,IF(C15>291,TEAMS!$AC$611,0)) -> 0 | B15: =IF(C15=0,0,IF(C15>291,TEAMS!AD$612,0)) -> 0 | C15: =IF(TEAMS!AD$613=0,0,IF(TEAMS!AD$613>291,TEAMS!AD$613,0)) -> 0 | D15: 13
A16: =IF(C16=0,0,IF(C16>291,TEAMS!AC428,0)) -> 0 | B16: =IF(C16=0,0,IF(C16>291,TEAMS!AC429,0)) -> 0 | C16: =IF(TEAMS!AC430=0,0,IF(TEAMS!AC430>291,TEAMS!AC430,0)) -> 0 | D16: 14
A17: =IF(C17=0,0,IF(C17>291,TEAMS!$AC$672,0)) -> 0 | B17: =IF(C17=0,0,IF(C17>291,TEAMS!AE$673,0)) -> 0 | C17: =IF(TEAMS!AE$674=0,0,IF(TEAMS!AE$674>291,TEAMS!AE$674,0)) -> 0 | D17: 15
A18: =IF(C18=0,0,IF(C18>291,TEAMS!$AC$672,0)) -> 0 | B18: =IF(C18=0,0,IF(C18>291,TEAMS!AF$673,0)) -> 0 | C18: =IF(TEAMS!AF$674=0,0,IF(TEAMS!AF$674>291,TEAMS!AF$674,0)) -> 0 | D18: 16
A19: =IF(C19=0,0,IF(C19>291,TEAMS!$AC$184,0)) -> 0 | B19: =IF(C19=0,0,IF(C19>291,TEAMS!AD185,0)) -> 0 | C19: =IF(TEAMS!AD186=0,0,IF(TEAMS!AD186>291,TEAMS!AD186,0)) -> 0 | D19: 17
A20: =IF(C20=0,0,IF(C20>291,TEAMS!$AC$672,0)) -> 0 | B20: =IF(C20=0,0,IF(C20>291,TEAMS!AC$673,0)) -> 0 | C20: =IF(TEAMS!AC$674=0,0,IF(TEAMS!AC$674>291,TEAMS!AC$674,0)) -> 0 | D20: 18
A21: =IF(C21=0,0,IF(C21>291,TEAMS!$AC$977,0)) -> 0 | B21: =IF(C21=0,0,IF(C21>291,TEAMS!$AC$978,0)) -> 0 | C21: =IF(TEAMS!AC$979=0,0,IF(TEAMS!AC$979>291,TEAMS!AC$979,0)) -> 0 | D21: 19
A22: =IF(C22=0,0,IF(C22>291,TEAMS!$AC$184,0)) -> 0 | B22: =IF(C22=0,0,IF(C22>291,TEAMS!AC205,0)) -> 0 | C22: =IF(TEAMS!AC206=0,0,IF(TEAMS!AC206>291,TEAMS!AC206,0)) -> 0 | D22: 20
A23: =IF(C23=0,0,IF(C23>291,TEAMS!$AC$733,0)) -> 0 | B23: =IF(C23=0,0,IF(C23>291,TEAMS!AD$734,0)) -> 0 | C23: =IF(TEAMS!AD$735=0,0,IF(TEAMS!AD$735>291,TEAMS!AD$735,0)) -> 0 | D23: 21
A24: =IF(C24=0,0,IF(C24>291,TEAMS!$AC$672,0)) -> 0 | B24: =IF(C24=0,0,IF(C24>291,TEAMS!AD$673,0)) -> 0 | C24: =IF(TEAMS!AD$674=0,0,IF(TEAMS!AD$674>291,TEAMS!AD$674,0)) -> 0 | D24: 22
A25: =IF(C25=0,0,IF(C25>291,TEAMS!$AC$977,0)) -> 0 | B25: =IF(C25=0,0,IF(C25>291,TEAMS!$AF$978,0)) -> 0 | C25: =IF(TEAMS!AF$979=0,0,IF(TEAMS!AF$979>291,TEAMS!AF$979,0)) -> 0 | D25: 23
A26: =IF(C26=0,0,IF(C26>291,TEAMS!$AC$977,0)) -> 0 | B26: =IF(C26=0,0,IF(C26>291,TEAMS!$AG$978,0)) -> 0 | C26: =IF(TEAMS!AG$979=0,0,IF(TEAMS!AG$979>291,TEAMS!AG$979,0)) -> 0 | D26: 24
A27: =IF(C27=0,0,IF(C27>291,TEAMS!$AC$977,0)) -> 0 | B27: =IF(C27=0,0,IF(C27>291,TEAMS!$AD$978,0)) -> 0 | C27: =IF(TEAMS!AD$979=0,0,IF(TEAMS!AD$979>291,TEAMS!AD$979,0)) -> 0 | D27: 25
A28: =IF(C28=0,0,IF(C28>291,TEAMS!$AC$184,0)) -> 0 | B28: =IF(C28=0,0,IF(C28>291,TEAMS!AE185,0)) -> 0 | C28: =IF(TEAMS!AE186=0,0,IF(TEAMS!AE186>291,TEAMS!AE186,0)) -> 0 | D28: 26
A29: =IF(C29=0,0,IF(C29>291,TEAMS!$AC$672,0)) -> 0 | B29: =IF(C29=0,0,IF(C29>291,TEAMS!AF$693,0)) -> 0 | C29: =IF(TEAMS!AF$694=0,0,IF(TEAMS!AF$694>291,TEAMS!AF$694,0)) -> 0 | D29: 27
A30: =IF(C30=0,0,IF(C30>291,TEAMS!$AC$184,0)) -> 0 | B30: =IF(C30=0,0,IF(C30>291,TEAMS!AC185,0)) -> 0 | C30: =IF(TEAMS!AC186=0,0,IF(TEAMS!AC186>291,TEAMS!AC186,0)) -> 0 | D30: 28
A31: =IF(C31=0,0,IF(C31>291,TEAMS!$AC$733,0)) -> 0 | B31: =IF(C31=0,0,IF(C31>291,TEAMS!AE$734,0)) -> 0 | C31: =IF(TEAMS!AE$735=0,0,IF(TEAMS!AE$735>291,TEAMS!AE$735,0)) -> 0 | D31: 29
A32: =IF(C32=0,0,IF(C32>291,TEAMS!$AC$672,0)) -> 0 | B32: =IF(C32=0,0,IF(C32>291,TEAMS!AG$673,0)) -> 0 | C32: =IF(TEAMS!AG$674=0,0,IF(TEAMS!AG$674>291,TEAMS!AG$674,0)) -> 0 | D32: 30
A33: =IF(C33=0,0,IF(C33>291,TEAMS!$AC$794,0)) -> 0 | B33: =IF(C33=0,0,IF(C33>291,TEAMS!AE$795,0)) -> 0 | C33: =IF(TEAMS!AE$796=0,0,IF(TEAMS!AE$796>291,TEAMS!AE$796,0)) -> 0 | D33: 31
A34: =IF(C34=0,0,IF(C34>291,TEAMS!$AC$1,0)) -> 0 | B34: =IF(C34=0,0,IF(C34>291,TEAMS!$AE$2,0)) -> 0 | C34: =IF(TEAMS!$AE$3=0,0,IF(TEAMS!$AE$3>291,TEAMS!$AE$3,0)) -> 0 | D34: 32
A35: =IF(C35=0,0,IF(C35>291,TEAMS!$AC$1,0)) -> 0 | B35: =IF(C35=0,0,IF(C35>291,TEAMS!$AF$2,0)) -> 0 | C35: =IF(TEAMS!$AF$3=0,0,IF(TEAMS!$AF$3>291,TEAMS!$AF$3,0)) -> 0 | D35: 33
A36: =IF(C36=0,0,IF(C36>291,TEAMS!$AC$1,0)) -> 0 | B36: =IF(C36=0,0,IF(C36>291,TEAMS!$AG$2,0)) -> 0 | C36: =IF(TEAMS!$AG$3=0,0,IF(TEAMS!$AG$3>291,TEAMS!$AG$3,0)) -> 0 | D36: 34
A37: =IF(C37=0,0,IF(C37>291,TEAMS!$AC$21,0)) -> 0 | B37: =IF(C37=0,0,IF(C37>291,TEAMS!$AC$22,0)) -> 0 | C37: =IF(TEAMS!$AC$23=0,0,IF(TEAMS!$AC$23>291,TEAMS!$AC$23,0)) -> 0 | D37: 35
A38: =IF(C38=0,0,IF(C38>291,TEAMS!$AC$21,0)) -> 0 | B38: =IF(C38=0,0,IF(C38>291,TEAMS!$AD$22,0)) -> 0 | C38: =IF(TEAMS!$AD$23=0,0,IF(TEAMS!$AD$23>291,TEAMS!$AD$23,0)) -> 0 | D38: 36
A39: =IF(C39=0,0,IF(C39>291,TEAMS!$AC$21,0)) -> 0 | B39: =IF(C39=0,0,IF(C39>291,TEAMS!$AE$22,0)) -> 0 | C39: =IF(TEAMS!$AE$23=0,0,IF(TEAMS!$AE$23>291,TEAMS!$AE$23,0)) -> 0 | D39: 37
A40: =IF(C40=0,0,IF(C40>291,TEAMS!$AC$21,0)) -> 0 | B40: =IF(C40=0,0,IF(C40>291,TEAMS!$AF$22,0)) -> 0 | C40: =IF(TEAMS!$AF$23=0,0,IF(TEAMS!$AF$23>291,TEAMS!$AF$23,0)) -> 0 | D40: 38
A41: =IF(C41=0,0,IF(C41>291,TEAMS!$AC$41,0)) -> 0 | B41: =IF(C41=0,0,IF(C41>291,TEAMS!$AG$22,0)) -> 0 | C41: =IF(TEAMS!$AG$23=0,0,IF(TEAMS!$AG$23>291,TEAMS!$AG$23,0)) -> 0 | D41: 39
A42: =IF(C42=0,0,IF(C42>291,TEAMS!$AC$41,0)) -> 0 | B42: =IF(C42=0,0,IF(C42>291,TEAMS!$AC$42,0)) -> 0 | C42: =IF(TEAMS!$AC$43=0,0,IF(TEAMS!$AC$43>291,TEAMS!$AC$43,0)) -> 0 | D42: 40
A43: =IF(C43=0,0,IF(C43>291,TEAMS!$AC$41,0)) -> 0 | B43: =IF(C43=0,0,IF(C43>291,TEAMS!$AD$42,0)) -> 0 | C43: =IF(TEAMS!$AD$43=0,0,IF(TEAMS!$AD$43>291,TEAMS!$AD$43,0)) -> 0 | D43: 41
A44: =IF(C44=0,0,IF(C44>291,TEAMS!$AC$41,0)) -> 0 | B44: =IF(C44=0,0,IF(C44>291,TEAMS!$AE$42,0)) -> 0 | C44: =IF(TEAMS!$AE$43=0,0,IF(TEAMS!$AE$43>291,TEAMS!$AE$43,0)) -> 0 | D44: 42
A45: =IF(C45=0,0,IF(C45>291,TEAMS!$AC$41,0)) -> 0 | B45: =IF(C45=0,0,IF(C45>291,TEAMS!$AF$42,0)) -> 0 | C45: =IF(TEAMS!$AF$43=0,0,IF(TEAMS!$AF$43>291,TEAMS!$AF$43,0)) -> 0 | D45: 43
A46: =IF(C46=0,0,IF(C46>291,TEAMS!$AC$41,0)) -> 0 | B46: =IF(C46=0,0,IF(C46>291,TEAMS!$AG$42,0)) -> 0 | C46: =IF(TEAMS!$AG$43=0,0,IF(TEAMS!$AG$43>291,TEAMS!$AG$43,0)) -> 0 | D46: 44
A47: =IF(C47=0,0,IF(C47>291,TEAMS!$AC$62,0)) -> 0 | B47: =IF(C47=0,0,IF(C47>291,TEAMS!AD63,0)) -> 0 | C47: =IF(TEAMS!AD64=0,0,IF(TEAMS!AD64>291,TEAMS!AD64,0)) -> 0 | D47: 45
A48: =IF(C48=0,0,IF(C48>291,TEAMS!$AC$62,0)) -> 0 | B48: =IF(C48=0,0,IF(C48>291,TEAMS!AF63,0)) -> 0 | C48: =IF(TEAMS!AF64=0,0,IF(TEAMS!AF64>291,TEAMS!AF64,0)) -> 0 | D48: 46
A49: =IF(C49=0,0,IF(C49>291,TEAMS!AC62,0)) -> 0 | B49: =IF(C49=0,0,IF(C49>291,TEAMS!AG63,0)) -> 0 | C49: =IF(TEAMS!AG64=0,0,IF(TEAMS!AG64>291,TEAMS!AG64,0)) -> 0 | D49: 47
A50: =IF(C50=0,0,IF(C50>291,TEAMS!$AC$62,0)) -> 0 | B50: =IF(C50=0,0,IF(C50>291,TEAMS!AC83,0)) -> 0 | C50: =IF(TEAMS!AC84=0,0,IF(TEAMS!AC84>291,TEAMS!AC84,0)) -> 0 | D50: 48
A51: =IF(C51=0,0,IF(C51>291,TEAMS!$AC$62,0)) -> 0 | B51: =IF(C51=0,0,IF(C51>291,TEAMS!AD83,0)) -> 0 | C51: =IF(TEAMS!AD84=0,0,IF(TEAMS!AD84>291,TEAMS!AD84,0)) -> 0 | D51: 49
A52: =IF(C52=0,0,IF(C52>291,TEAMS!$AC$62,0)) -> 0 | B52: =IF(C52=0,0,IF(C52>291,TEAMS!AE83,0)) -> 0 | C52: =IF(TEAMS!AE84=0,0,IF(TEAMS!AE84>291,TEAMS!AE84,0)) -> 0 | D52: 50
A53: =IF(C53=0,0,IF(C53>291,TEAMS!$AC$62,0)) -> 0 | B53: =IF(C53=0,0,IF(C53>291,TEAMS!AF83,0)) -> 0 | C53: =IF(TEAMS!AF84=0,0,IF(TEAMS!AF84>291,TEAMS!AF84,0)) -> 0 | D53: 51
A54: =IF(C54=0,0,IF(C54>291,TEAMS!$AC$62,0)) -> 0 | B54: =IF(C54=0,0,IF(C54>291,TEAMS!AG83,0)) -> 0 | C54: =IF(TEAMS!AG84=0,0,IF(TEAMS!AG84>291,TEAMS!AG84,0)) -> 0 | D54: 52
A55: =IF(C55=0,0,IF(C55>291,TEAMS!$AC$102,0)) -> 0 | B55: =IF(C55=0,0,IF(C55>291,TEAMS!$AC$103,0)) -> 0 | C55: =IF(TEAMS!AC$104=0,0,IF(TEAMS!AC$104>291,TEAMS!AC$104,0)) -> 0 | D55: 53
A56: =IF(C56=0,0,IF(C56>291,TEAMS!$AC$102,0)) -> 0 | B56: =IF(C56=0,0,IF(C56>291,TEAMS!$AD$103,0)) -> 0 | C56: =IF(TEAMS!AD$104=0,0,IF(TEAMS!AD$104>291,TEAMS!AD$104,0)) -> 0 | D56: 54
A57: =IF(C57=0,0,IF(C57>291,TEAMS!$AC$102,0)) -> 0 | B57: =IF(C57=0,0,IF(C57>291,TEAMS!$AE$103,0)) -> 0 | C57: =IF(TEAMS!AE$104=0,0,IF(TEAMS!AE$104>291,TEAMS!AE$104,0)) -> 0 | D57: 55
A58: =IF(C58=0,0,IF(C58>291,TEAMS!$AC$102,0)) -> 0 | B58: =IF(C58=0,0,IF(C58>291,TEAMS!$AF$103,0)) -> 0 | C58: =IF(TEAMS!AF$104=0,0,IF(TEAMS!AF$104>291,TEAMS!AF$104,0)) -> 0 | D58: 56
A59: =IF(C59=0,0,IF(C59>291,TEAMS!$AC$102,0)) -> 0 | B59: =IF(C59=0,0,IF(C59>291,TEAMS!$AG$103,0)) -> 0 | C59: =IF(TEAMS!AG$104=0,0,IF(TEAMS!AG$104>291,TEAMS!AG$104,0)) -> 0 | D59: 57
A60: =IF(C60=0,0,IF(C60>291,TEAMS!$AC$123,0)) -> 0 | B60: =IF(C60=0,0,IF(C60>291,TEAMS!$AC$124,0)) -> 0 | C60: =IF(TEAMS!$AC$125=0,0,IF(TEAMS!$AC$125>291,TEAMS!$AC$125,0)) -> 0 | D60: 58
A61: =IF(C61=0,0,IF(C61>291,TEAMS!$AC$123,0)) -> 0 | B61: =IF(C61=0,0,IF(C61>291,TEAMS!$AD$124,0)) -> 0 | C61: =IF(TEAMS!$AD$125=0,0,IF(TEAMS!$AD$125>291,TEAMS!$AD$125,0)) -> 0 | D61: 59
A62: =IF(C62=0,0,IF(C62>291,TEAMS!$AC$123,0)) -> 0 | B62: =IF(C62=0,0,IF(C62>291,TEAMS!$AE$124,0)) -> 0 | C62: =IF(TEAMS!$AE$125=0,0,IF(TEAMS!$AE$125>291,TEAMS!$AE$125,0)) -> 0 | D62: 60
A63: =IF(C63=0,0,IF(C63>291,TEAMS!$AC$123,0)) -> 0 | B63: =IF(C63=0,0,IF(C63>291,TEAMS!$AF$124,0)) -> 0 | C63: =IF(TEAMS!$AF$125=0,0,IF(TEAMS!$AF$125>291,TEAMS!$AF$125,0)) -> 0 | D63: 61
A64: =IF(C64=0,0,IF(C64>291,TEAMS!$AC$123,0)) -> 0 | B64: =IF(C64=0,0,IF(C64>291,TEAMS!$AG$124,0)) -> 0 | C64: =IF(TEAMS!$AG$125=0,0,IF(TEAMS!$AG$125>291,TEAMS!$AG$125,0)) -> 0 | D64: 62
A65: =IF(C65=0,0,IF(C65>291,TEAMS!$AC$143,0)) -> 0 | B65: =IF(C65=0,0,IF(C65>291,TEAMS!$AC$144,0)) -> 0 | C65: =IF(TEAMS!$AC$145=0,0,IF(TEAMS!$AC$145>291,TEAMS!$AC$145,0)) -> 0 | D65: 63
A66: =IF(C66=0,0,IF(C66>291,TEAMS!$AC$143,0)) -> 0 | B66: =IF(C66=0,0,IF(C66>291,TEAMS!$AD$144,0)) -> 0 | C66: =IF(TEAMS!$AD$145=0,0,IF(TEAMS!$AD$145>291,TEAMS!$AD$145,0)) -> 0 | D66: 64
A67: =IF(C67=0,0,IF(C67>291,TEAMS!$AC$143,0)) -> 0 | B67: =IF(C67=0,0,IF(C67>291,TEAMS!$AE$144,0)) -> 0 | C67: =IF(TEAMS!$AE$145=0,0,IF(TEAMS!$AE$145>291,TEAMS!$AE$145,0)) -> 0 | D67: 65
A68: =IF(C68=0,0,IF(C68>291,TEAMS!$AC$143,0)) -> 0 | B68: =IF(C68=0,0,IF(C68>291,TEAMS!$AF$144,0)) -> 0 | C68: =IF(TEAMS!$AF$145=0,0,IF(TEAMS!$AF$145>291,TEAMS!$AF$145,0)) -> 0 | D68: 66
A69: =IF(C69=0,0,IF(C69>291,TEAMS!$AC$143,0)) -> 0 | B69: =IF(C69=0,0,IF(C69>291,TEAMS!$AG$144,0)) -> 0 | C69: =IF(TEAMS!$AG$145=0,0,IF(TEAMS!$AG$145>291,TEAMS!$AG$145,0)) -> 0 | D69: 67
A70: =IF(C70=0,0,IF(C70>291,TEAMS!$AC$163,0)) -> 0 | B70: =IF(C70=0,0,IF(C70>291,TEAMS!$AC$164,0)) -> 0 | C70: =IF(TEAMS!$AC$165=0,0,IF(TEAMS!$AC$165>291,TEAMS!$AC$165,0)) -> 0 | D70: 68
A71: =IF(C71=0,0,IF(C71>291,TEAMS!$AC$163,0)) -> 0 | B71: =IF(C71=0,0,IF(C71>291,TEAMS!$AD$164,0)) -> 0 | C71: =IF(TEAMS!$AD$165=0,0,IF(TEAMS!$AD$165>291,TEAMS!$AD$165,0)) -> 0 | D71: 69
A72: =IF(C72=0,0,IF(C72>291,TEAMS!$AC$163,0)) -> 0 | B72: =IF(C72=0,0,IF(C72>291,TEAMS!$AE$164,0)) -> 0 | C72: =IF(TEAMS!$AE$165=0,0,IF(TEAMS!$AE$165>291,TEAMS!$AE$165,0)) -> 0 | D72: 70
A73: =IF(C73=0,0,IF(C73>291,TEAMS!$AC$163,0)) -> 0 | B73: =IF(C73=0,0,IF(C73>291,TEAMS!$AF$164,0)) -> 0 | C73: =IF(TEAMS!$AF$165=0,0,IF(TEAMS!$AF$165>291,TEAMS!$AF$165,0)) -> 0 | D73: 71
A74: =IF(C74=0,0,IF(C74>291,TEAMS!$AC$163,0)) -> 0 | B74: =IF(C74=0,0,IF(C74>291,TEAMS!$AG$164,0)) -> 0 | C74: =IF(TEAMS!$AG$165=0,0,IF(TEAMS!$AG$165>291,TEAMS!$AG$165,0)) -> 0 | D74: 72
A75: =IF(C75=0,0,IF(C75>291,TEAMS!$AC$184,0)) -> 0 | B75: =IF(C75=0,0,IF(C75>291,TEAMS!AF185,0)) -> 0 | C75: =IF(TEAMS!AF186=0,0,IF(TEAMS!AF186>291,TEAMS!AF186,0)) -> 0 | D75: 73
A76: =IF(C76=0,0,IF(C76>291,TEAMS!$AC$184,0)) -> 0 | B76: =IF(C76=0,0,IF(C76>291,TEAMS!AG185,0)) -> 0 | C76: =IF(TEAMS!AG186=0,0,IF(TEAMS!AG186>291,TEAMS!AG186,0)) -> 0 | D76: 74
A77: =IF(C77=0,0,IF(C77>291,TEAMS!$AC$184,0)) -> 0 | B77: =IF(C77=0,0,IF(C77>291,TEAMS!AD205,0)) -> 0 | C77: =IF(TEAMS!AD206=0,0,IF(TEAMS!AD206>291,TEAMS!AD206,0)) -> 0 | D77: 75
A78: =IF(C78=0,0,IF(C78>291,TEAMS!$AC$184,0)) -> 0 | B78: =IF(C78=0,0,IF(C78>291,TEAMS!AE205,0)) -> 0 | C78: =IF(TEAMS!AE206=0,0,IF(TEAMS!AE206>291,TEAMS!AE206,0)) -> 0 | D78: 76
A79: =IF(C79=0,0,IF(C79>291,TEAMS!$AC$184,0)) -> 0 | B79: =IF(C79=0,0,IF(C79>291,TEAMS!AF205,0)) -> 0 | C79: =IF(TEAMS!AF206=0,0,IF(TEAMS!AF206>291,TEAMS!AF206,0)) -> 0 | D79: 77
A80: =IF(C80=0,0,IF(C80>291,TEAMS!$AC$184,0)) -> 0 | B80: =IF(C80=0,0,IF(C80>291,TEAMS!AG205,0)) -> 0 | C80: =IF(TEAMS!AG206=0,0,IF(TEAMS!AG206>291,TEAMS!AG206,0)) -> 0 | D80: 78
A81: =IF(C81=0,0,IF(C81>291,TEAMS!$AC$224,0)) -> 0 | B81: =IF(C81=0,0,IF(C81>291,TEAMS!$AC$225,0)) -> 0 | C81: =IF(TEAMS!AC$226=0,0,IF(TEAMS!AC$226>291,TEAMS!AC$226,0)) -> 0 | D81: 79
A82: =IF(C82=0,0,IF(C82>291,TEAMS!$AC$224,0)) -> 0 | B82: =IF(C82=0,0,IF(C82>291,TEAMS!$AD$225,0)) -> 0 | C82: =IF(TEAMS!AD$226=0,0,IF(TEAMS!AD$226>291,TEAMS!AD$226,0)) -> 0 | D82: 80
A83: =IF(C83=0,0,IF(C83>291,TEAMS!$AC$224,0)) -> 0 | B83: =IF(C83=0,0,IF(C83>291,TEAMS!$AE$225,0)) -> 0 | C83: =IF(TEAMS!AE$226=0,0,IF(TEAMS!AE$226>291,TEAMS!AE$226,0)) -> 0 | D83: 81
A84: =IF(C84=0,0,IF(C84>291,TEAMS!$AC$224,0)) -> 0 | B84: =IF(C84=0,0,IF(C84>291,TEAMS!$AF$225,0)) -> 0 | C84: =IF(TEAMS!AF$226=0,0,IF(TEAMS!AF$226>291,TEAMS!AF$226,0)) -> 0 | D84: 82
A85: =IF(C85=0,0,IF(C85>291,TEAMS!$AC$224,0)) -> 0 | B85: =IF(C85=0,0,IF(C85>291,TEAMS!$AG$225,0)) -> 0 | C85: =IF(TEAMS!AG$226=0,0,IF(TEAMS!AG$226>291,TEAMS!AG$226,0)) -> 0 | D85: 83
A86: =IF(C86=0,0,IF(C86>291,TEAMS!$AC$245,0)) -> 0 | B86: =IF(C86=0,0,IF(C86>291,TEAMS!$AD$246,0)) -> 0 | C86: =IF(TEAMS!AD$247=0,0,IF(TEAMS!AD$247>291,TEAMS!AD$247,0)) -> 0 | D86: 84
A87: =IF(C87=0,0,IF(C87>291,TEAMS!$AC$245,0)) -> 0 | B87: =IF(C87=0,0,IF(C87>291,TEAMS!$AE$246,0)) -> 0 | C87: =IF(TEAMS!AE$247=0,0,IF(TEAMS!AE$247>291,TEAMS!AE$247,0)) -> 0 | D87: 85
A88: =IF(C88=0,0,IF(C88>291,TEAMS!$AC$245,0)) -> 0 | B88: =IF(C88=0,0,IF(C88>291,TEAMS!$AC$266,0)) -> 0 | C88: =IF(TEAMS!AC$267=0,0,IF(TEAMS!AC$267>291,TEAMS!AC$267,0)) -> 0 | D88: 86
A89: =IF(C89=0,0,IF(C89>291,TEAMS!$AC$245,0)) -> 0 | B89: =IF(C89=0,0,IF(C89>291,TEAMS!$AD$266,0)) -> 0 | C89: =IF(TEAMS!AD$267=0,0,IF(TEAMS!AD$267>291,TEAMS!AD$267,0)) -> 0 | D89: 87
A90: =IF(C90=0,0,IF(C90>291,TEAMS!$AC$245,0)) -> 0 | B90: =IF(C90=0,0,IF(C90>291,TEAMS!$AE$266,0)) -> 0 | C90: =IF(TEAMS!AE$267=0,0,IF(TEAMS!AE$267>291,TEAMS!AE$267,0)) -> 0 | D90: 88
A91: =IF(C91=0,0,IF(C91>291,TEAMS!$AC$245,0)) -> 0 | B91: =IF(C91=0,0,IF(C91>291,TEAMS!$AF$266,0)) -> 0 | C91: =IF(TEAMS!AF$267=0,0,IF(TEAMS!AF$267>291,TEAMS!AF$267,0)) -> 0 | D91: 89
A92: =IF(C92=0,0,IF(C92>291,TEAMS!$AC$245,0)) -> 0 | B92: =IF(C92=0,0,IF(C92>291,TEAMS!$AG$266,0)) -> 0 | C92: =IF(TEAMS!AG$267=0,0,IF(TEAMS!AG$267>291,TEAMS!AG$267,0)) -> 0 | D92: 90
A93: =IF(C93=0,0,IF(C93>291,TEAMS!$AC$285,0)) -> 0 | B93: =IF(C93=0,0,IF(C93>291,TEAMS!$AC$286,0)) -> 0 | C93: =IF(TEAMS!AC$287=0,0,IF(TEAMS!AC$287>291,TEAMS!AC$287,0)) -> 0 | D93: 91
A94: =IF(C94=0,0,IF(C94>291,TEAMS!$AC$285,0)) -> 0 | B94: =IF(C94=0,0,IF(C94>291,TEAMS!$AD$286,0)) -> 0 | C94: =IF(TEAMS!AD$287=0,0,IF(TEAMS!AD$287>291,TEAMS!AD$287,0)) -> 0 | D94: 92
A95: =IF(C95=0,0,IF(C95>291,TEAMS!$AC$285,0)) -> 0 | B95: =IF(C95=0,0,IF(C95>291,TEAMS!$AE$286,0)) -> 0 | C95: =IF(TEAMS!AE$287=0,0,IF(TEAMS!AE$287>291,TEAMS!AE$287,0)) -> 0 | D95: 93
A96: =IF(C96=0,0,IF(C96>291,TEAMS!$AC$285,0)) -> 0 | B96: =IF(C96=0,0,IF(C96>291,TEAMS!$AF$286,0)) -> 0 | C96: =IF(TEAMS!AF$287=0,0,IF(TEAMS!AF$287>291,TEAMS!AF$287,0)) -> 0 | D96: 94
A97: =IF(C97=0,0,IF(C97>291,TEAMS!$AC$285,0)) -> 0 | B97: =IF(C97=0,0,IF(C97>291,TEAMS!$AG$286,0)) -> 0 | C97: =IF(TEAMS!AG$287=0,0,IF(TEAMS!AG$287>291,TEAMS!AG$287,0)) -> 0 | D97: 95
A98: =IF(C98=0,0,IF(C98>291,TEAMS!$AC$306,0)) -> 0 | B98: =IF(C98=0,0,IF(C98>291,TEAMS!$AC$307,0)) -> 0 | C98: =IF(TEAMS!AC308=0,0,IF(TEAMS!AC308>291,TEAMS!AC308,0)) -> 0 | D98: 96
A99: =IF(C99=0,0,IF(C99>291,TEAMS!$AC$306,0)) -> 0 | B99: =IF(C99=0,0,IF(C99>291,TEAMS!AD307,0)) -> 0 | C99: =IF(TEAMS!AD308=0,0,IF(TEAMS!AD308>291,TEAMS!AD308,0)) -> 0 | D99: 97
A100: =IF(C100=0,0,IF(C100>291,TEAMS!$AC$306,0)) -> 0 | B100: =IF(C100=0,0,IF(C100>291,TEAMS!AE307,0)) -> 0 | C100: =IF(TEAMS!AE308=0,0,IF(TEAMS!AE308>291,TEAMS!AE308,0)) -> 0 | D100: 98
A101: =IF(C101=0,0,IF(C101>291,TEAMS!$AC$306,0)) -> 0 | B101: =IF(C101=0,0,IF(C101>291,TEAMS!AF307,0)) -> 0 | C101: =IF(TEAMS!AF308=0,0,IF(TEAMS!AF308>291,TEAMS!AF308,0)) -> 0 | D101: 99
A102: =IF(C102=0,0,IF(C102>291,TEAMS!$AC$306,0)) -> 0 | B102: =IF(C102=0,0,IF(C102>291,TEAMS!AG307,0)) -> 0 | C102: =IF(TEAMS!AG308=0,0,IF(TEAMS!AG308>291,TEAMS!AG308,0)) -> 0 | D102: 100
A103: =IF(C103=0,0,IF(C103>291,TEAMS!$AC$306,0)) -> 0 | B103: =IF(C103=0,0,IF(C103>291,TEAMS!AC327,0)) -> 0 | C103: =IF(TEAMS!AC328=0,0,IF(TEAMS!AC328>291,TEAMS!AC328,0)) -> 0 | D103: 101
A104: =IF(C104=0,0,IF(C104>291,TEAMS!$AC$306,0)) -> 0 | B104: =IF(C104=0,0,IF(C104>291,TEAMS!AD327,0)) -> 0 | C104: =IF(TEAMS!AD328=0,0,IF(TEAMS!AD328>291,TEAMS!AD328,0)) -> 0 | D104: 102
A105: =IF(C105=0,0,IF(C105>291,TEAMS!$AC$306,0)) -> 0 | B105: =IF(C105=0,0,IF(C105>291,TEAMS!AE327,0)) -> 0 | C105: =IF(TEAMS!AE328=0,0,IF(TEAMS!AE328>291,TEAMS!AE328,0)) -> 0 | D105: 103
A106: =IF(C106=0,0,IF(C106>291,TEAMS!$AC$306,0)) -> 0 | B106: =IF(C106=0,0,IF(C106>291,TEAMS!AF327,0)) -> 0 | C106: =IF(TEAMS!AF328=0,0,IF(TEAMS!AF328>291,TEAMS!AF328,0)) -> 0 | D106: 104
A107: =IF(C107=0,0,IF(C107>291,TEAMS!$AC$306,0)) -> 0 | B107: =IF(C107=0,0,IF(C107>291,TEAMS!AG327,0)) -> 0 | C107: =IF(TEAMS!AG328=0,0,IF(TEAMS!AG328>291,TEAMS!AG328,0)) -> 0 | D107: 105
A108: =IF(C108=0,0,IF(C108>291,TEAMS!$AC$346,0)) -> 0 | B108: =IF(C108=0,0,IF(C108>291,TEAMS!$AC$347,0)) -> 0 | C108: =IF(TEAMS!AC$348=0,0,IF(TEAMS!AC$348>291,TEAMS!AC$348,0)) -> 0 | D108: 106
A109: =IF(C109=0,0,IF(C109>291,TEAMS!$AC$346,0)) -> 0 | B109: =IF(C109=0,0,IF(C109>291,TEAMS!$AD$347,0)) -> 0 | C109: =IF(TEAMS!AD$348=0,0,IF(TEAMS!AD$348>291,TEAMS!AD$348,0)) -> 0 | D109: 107
A110: =IF(C110=0,0,IF(C110>291,TEAMS!$AC$346,0)) -> 0 | B110: =IF(C110=0,0,IF(C110>291,TEAMS!$AE$347,0)) -> 0 | C110: =IF(TEAMS!AE$348=0,0,IF(TEAMS!AE$348>291,TEAMS!AE$348,0)) -> 0 | D110: 108
A111: =IF(C111=0,0,IF(C111>291,TEAMS!$AC$346,0)) -> 0 | B111: =IF(C111=0,0,IF(C111>291,TEAMS!$AF$347,0)) -> 0 | C111: =IF(TEAMS!AF$348=0,0,IF(TEAMS!AF$348>291,TEAMS!AF$348,0)) -> 0 | D111: 109
A112: =IF(C112=0,0,IF(C112>291,TEAMS!$AC$346,0)) -> 0 | B112: =IF(C112=0,0,IF(C112>291,TEAMS!$AG$347,0)) -> 0 | C112: =IF(TEAMS!AG$348=0,0,IF(TEAMS!AG$348>291,TEAMS!AG$348,0)) -> 0 | D112: 111
A113: =IF(C113=0,0,IF(C113>291,TEAMS!$AC$367,0)) -> 0 | B113: =IF(C113=0,0,IF(C113>291,TEAMS!$AD$368,0)) -> 0 | C113: =IF(TEAMS!AD$369=0,0,IF(TEAMS!AD$369>291,TEAMS!AD$369,0)) -> 0 | D113: 112
A114: =IF(C114=0,0,IF(C114>291,TEAMS!$AC$367,0)) -> 0 | B114: =IF(C114=0,0,IF(C114>291,TEAMS!$AE$368,0)) -> 0 | C114: =IF(TEAMS!AE$369=0,0,IF(TEAMS!AE$369>291,TEAMS!AE$369,0)) -> 0 | D114: 113
A115: =IF(C115=0,0,IF(C115>291,TEAMS!$AC$367,0)) -> 0 | B115: =IF(C115=0,0,IF(C115>291,TEAMS!$AF$368,0)) -> 0 | C115: =IF(TEAMS!AF$369=0,0,IF(TEAMS!AF$369>291,TEAMS!AF$369,0)) -> 0 | D115: 114
A116: =IF(C116=0,0,IF(C116>291,TEAMS!$AC$367,0)) -> 0 | B116: =IF(C116=0,0,IF(C116>291,TEAMS!$AG$368,0)) -> 0 | C116: =IF(TEAMS!AG$369=0,0,IF(TEAMS!AG$369>291,TEAMS!AG$369,0)) -> 0 | D116: 115
A117: =IF(C117=0,0,IF(C117>291,TEAMS!$AC$367,0)) -> 0 | B117: =IF(C117=0,0,IF(C117>291,TEAMS!$AC$388,0)) -> 0 | C117: =IF(TEAMS!AC$389=0,0,IF(TEAMS!AC$389>291,TEAMS!AC$389,0)) -> 0 | D117: 116
A118: =IF(C118=0,0,IF(C118>291,TEAMS!$AC$367,0)) -> 0 | B118: =IF(C118=0,0,IF(C118>291,TEAMS!$AD$388,0)) -> 0 | C118: =IF(TEAMS!AD$389=0,0,IF(TEAMS!AD$389>291,TEAMS!AD$389,0)) -> 0 | D118: 117
A119: =IF(C119=0,0,IF(C119>291,TEAMS!$AC$367,0)) -> 0 | B119: =IF(C119=0,0,IF(C119>291,TEAMS!$AE$388,0)) -> 0 | C119: =IF(TEAMS!AE$389=0,0,IF(TEAMS!AE$389>291,TEAMS!AE$389,0)) -> 0 | D119: 118
A120: =IF(C120=0,0,IF(C120>291,TEAMS!$AC$367,0)) -> 0 | B120: =IF(C120=0,0,IF(C120>291,TEAMS!$AF$388,0)) -> 0 | C120: =IF(TEAMS!AF$389=0,0,IF(TEAMS!AF$389>291,TEAMS!AF$389,0)) -> 0 | D120: 119
A121: =IF(C121=0,0,IF(C121>291,TEAMS!$AC$367,0)) -> 0 | B121: =IF(C121=0,0,IF(C121>291,TEAMS!$AG$388,0)) -> 0 | C121: =IF(TEAMS!AG$389=0,0,IF(TEAMS!AG$389>291,TEAMS!AG$389,0)) -> 0 | D121: 120
A122: =IF(C122=0,0,IF(C122>291,TEAMS!$AC$407,0)) -> 0 | B122: =IF(C122=0,0,IF(C122>291,TEAMS!$AC$408,0)) -> 0 | C122: =IF(TEAMS!AC$409=0,0,IF(TEAMS!AC$409>291,TEAMS!AC$409,0)) -> 0 | D122: 121
A123: =IF(C123=0,0,IF(C123>291,TEAMS!$AC$407,0)) -> 0 | B123: =IF(C123=0,0,IF(C123>291,TEAMS!$AD$408,0)) -> 0 | C123: =IF(TEAMS!AD$409=0,0,IF(TEAMS!AD$409>291,TEAMS!AD$409,0)) -> 0 | D123: 122
A124: =IF(C124=0,0,IF(C124>291,TEAMS!$AC$407,0)) -> 0 | B124: =IF(C124=0,0,IF(C124>291,TEAMS!$AE$408,0)) -> 0 | C124: =IF(TEAMS!AE$409=0,0,IF(TEAMS!AE$409>291,TEAMS!AE$409,0)) -> 0 | D124: 123
A125: =IF(C125=0,0,IF(C125>291,TEAMS!$AC$407,0)) -> 0 | B125: =IF(C125=0,0,IF(C125>291,TEAMS!$AF$408,0)) -> 0 | C125: =IF(TEAMS!AF$409=0,0,IF(TEAMS!AF$409>291,TEAMS!AF$409,0)) -> 0 | D125: 124
A126: =IF(C126=0,0,IF(C126>291,TEAMS!$AC$407,0)) -> 0 | B126: =IF(C126=0,0,IF(C126>291,TEAMS!$AG$408,0)) -> 0 | C126: =IF(TEAMS!AG$409=0,0,IF(TEAMS!AG$409>291,TEAMS!AG$409,0)) -> 0 | D126: 125
A127: =IF(C127=0,0,IF(C127>291,TEAMS!AC428,0)) -> 0 | B127: =IF(C127=0,0,IF(C127>291,TEAMS!AD429,0)) -> 0 | C127: =IF(TEAMS!AD430=0,0,IF(TEAMS!AD430>291,TEAMS!AD430,0)) -> 0 | D127: 126
A128: =IF(C128=0,0,IF(C128>291,TEAMS!AC428,0)) -> 0 | B128: =IF(C128=0,0,IF(C128>291,TEAMS!AE429,0)) -> 0 | C128: =IF(TEAMS!AE430=0,0,IF(TEAMS!AE430>291,TEAMS!AE430,0)) -> 0 | D128: 127
A129: =IF(C129=0,0,IF(C129>291,TEAMS!AC428,0)) -> 0 | B129: =IF(C129=0,0,IF(C129>291,TEAMS!AF429,0)) -> 0 | C129: =IF(TEAMS!AF430=0,0,IF(TEAMS!AF430>291,TEAMS!AF430,0)) -> 0 | D129: 128
A130: =IF(C130=0,0,IF(C130>291,TEAMS!AC428,0)) -> 0 | B130: =IF(C130=0,0,IF(C130>291,TEAMS!AG429,0)) -> 0 | C130: =IF(TEAMS!AG430=0,0,IF(TEAMS!AG430>291,TEAMS!AG430,0)) -> 0 | D130: 129
A131: =IF(C131=0,0,IF(C131>291,TEAMS!AC448,0)) -> 0 | B131: =IF(C131=0,0,IF(C131>291,TEAMS!AC449,0)) -> 0 | C131: =IF(TEAMS!AC450=0,0,IF(TEAMS!AC450>291,TEAMS!AC450,0)) -> 0 | D131: 130
A132: =IF(C132=0,0,IF(C132>291,TEAMS!AC448,0)) -> 0 | B132: =IF(C132=0,0,IF(C132>291,TEAMS!AD449,0)) -> 0 | C132: =IF(TEAMS!AD450=0,0,IF(TEAMS!AD450>291,TEAMS!AD450,0)) -> 0 | D132: 131
A133: =IF(C133=0,0,IF(C133>291,TEAMS!AC448,0)) -> 0 | B133: =IF(C133=0,0,IF(C133>291,TEAMS!AE449,0)) -> 0 | C133: =IF(TEAMS!AE450=0,0,IF(TEAMS!AE450>291,TEAMS!AE450,0)) -> 0 | D133: 132
A134: =IF(C134=0,0,IF(C134>291,TEAMS!AC448,0)) -> 0 | B134: =IF(C134=0,0,IF(C134>291,TEAMS!AF449,0)) -> 0 | C134: =IF(TEAMS!AF450=0,0,IF(TEAMS!AF450>291,TEAMS!AF450,0)) -> 0 | D134: 133
A135: =IF(C135=0,0,IF(C135>291,TEAMS!AC428,0)) -> 0 | B135: =IF(C135=0,0,IF(C135>291,TEAMS!AG449,0)) -> 0 | C135: =IF(TEAMS!AG450=0,0,IF(TEAMS!AG450>291,TEAMS!AG450,0)) -> 0 | D135: 134
A136: =IF(C136=0,0,IF(C136>291,TEAMS!$AC$468,0)) -> 0 | B136: =IF(C136=0,0,IF(C136>291,TEAMS!$AC$469,0)) -> 0 | C136: =IF(TEAMS!AC$470=0,0,IF(TEAMS!AC$470>291,TEAMS!AC$470,0)) -> 0 | D136: 135
A137: =IF(C137=0,0,IF(C137>291,TEAMS!$AC$468,0)) -> 0 | B137: =IF(C137=0,0,IF(C137>291,TEAMS!$AD$469,0)) -> 0 | C137: =IF(TEAMS!AD$470=0,0,IF(TEAMS!AD$470>291,TEAMS!AD$470,0)) -> 0 | D137: 136
A138: =IF(C138=0,0,IF(C138>291,TEAMS!$AC$468,0)) -> 0 | B138: =IF(C138=0,0,IF(C138>291,TEAMS!$AE$469,0)) -> 0 | C138: =IF(TEAMS!AE$470=0,0,IF(TEAMS!AE$470>291,TEAMS!AE$470,0)) -> 0 | D138: 137
A139: =IF(C139=0,0,IF(C139>291,TEAMS!$AC$468,0)) -> 0 | B139: =IF(C139=0,0,IF(C139>291,TEAMS!$AF$469,0)) -> 0 | C139: =IF(TEAMS!AF$470=0,0,IF(TEAMS!AF$470>291,TEAMS!AF$470,0)) -> 0 | D139: 138
A140: =IF(C140=0,0,IF(C140>291,TEAMS!$AC$468,0)) -> 0 | B140: =IF(C140=0,0,IF(C140>291,TEAMS!$AG$469,0)) -> 0 | C140: =IF(TEAMS!AG$470=0,0,IF(TEAMS!AG$470>291,TEAMS!AG$470,0)) -> 0 | D140: 139
A141: =IF(C141=0,0,IF(C141>291,TEAMS!$AC$489,0)) -> 0 | B141: =IF(C141=0,0,IF(C141>291,TEAMS!AC490,0)) -> 0 | C141: =IF(TEAMS!AC491=0,0,IF(TEAMS!AC491>291,TEAMS!AC491,0)) -> 0 | D141: 140
A142: =IF(C142=0,0,IF(C142>291,TEAMS!$AC$489,0)) -> 0 | B142: =IF(C142=0,0,IF(C142>291,TEAMS!AD490,0)) -> 0 | C142: =IF(TEAMS!AD491=0,0,IF(TEAMS!AD491>291,TEAMS!AD491,0)) -> 0 | D142: 141
A143: =IF(C143=0,0,IF(C143>291,TEAMS!$AC$489,0)) -> 0 | B143: =IF(C143=0,0,IF(C143>291,TEAMS!AE490,0)) -> 0 | C143: =IF(TEAMS!AE491=0,0,IF(TEAMS!AE491>291,TEAMS!AE491,0)) -> 0 | D143: 142
A144: =IF(C144=0,0,IF(C144>291,TEAMS!$AC$489,0)) -> 0 | B144: =IF(C144=0,0,IF(C144>291,TEAMS!AF490,0)) -> 0 | C144: =IF(TEAMS!AF491=0,0,IF(TEAMS!AF491>291,TEAMS!AF491,0)) -> 0 | D144: 143
A145: =IF(C145=0,0,IF(C145>291,TEAMS!$AC$489,0)) -> 0 | B145: =IF(C145=0,0,IF(C145>291,TEAMS!AG490,0)) -> 0 | C145: =IF(TEAMS!AG491=0,0,IF(TEAMS!AG491>291,TEAMS!AG491,0)) -> 0 | D145: 144
A146: =IF(C146=0,0,IF(C146>291,TEAMS!$AC$489,0)) -> 0 | B146: =IF(C146=0,0,IF(C146>291,TEAMS!AC510,0)) -> 0 | C146: =IF(TEAMS!AC$511=0,0,IF(TEAMS!AC$511>291,TEAMS!AC$511,0)) -> 0 | D146: 145
A147: =IF(C147=0,0,IF(C147>291,TEAMS!$AC$489,0)) -> 0 | B147: =IF(C147=0,0,IF(C147>291,TEAMS!AD510,0)) -> 0 | C147: =IF(TEAMS!AD$511=0,0,IF(TEAMS!AD$511>291,TEAMS!AD$511,0)) -> 0 | D147: 146
A148: =IF(C148=0,0,IF(C148>291,TEAMS!$AC$489,0)) -> 0 | B148: =IF(C148=0,0,IF(C148>291,TEAMS!AE510,0)) -> 0 | C148: =IF(TEAMS!AE$511=0,0,IF(TEAMS!AE$511>291,TEAMS!AE$511,0)) -> 0 | D148: 147
A149: =IF(C149=0,0,IF(C149>291,TEAMS!$AC$489,0)) -> 0 | B149: =IF(C149=0,0,IF(C149>291,TEAMS!AF510,0)) -> 0 | C149: =IF(TEAMS!AF$511=0,0,IF(TEAMS!AF$511>291,TEAMS!AF$511,0)) -> 0 | D149: 148
A150: =IF(C150=0,0,IF(C150>291,TEAMS!$AC$489,0)) -> 0 | B150: =IF(C150=0,0,IF(C150>291,TEAMS!AG510,0)) -> 0 | C150: =IF(TEAMS!AG$511=0,0,IF(TEAMS!AG$511>291,TEAMS!AG$511,0)) -> 0 | D150: 149
A151: =IF(C151=0,0,IF(C151>291,TEAMS!$AC$529,0)) -> 0 | B151: =IF(C151=0,0,IF(C151>291,TEAMS!$AC$530,0)) -> 0 | C151: =IF(TEAMS!AC$531=0,0,IF(TEAMS!AC$531>291,TEAMS!AC$531,0)) -> 0 | D151: 150
A152: =IF(C152=0,0,IF(C152>291,TEAMS!$AC$529,0)) -> 0 | B152: =IF(C152=0,0,IF(C152>291,TEAMS!$AD$530,0)) -> 0 | C152: =IF(TEAMS!AD$531=0,0,IF(TEAMS!AD$531>291,TEAMS!AD$531,0)) -> 0 | D152: 151
A153: =IF(C153=0,0,IF(C153>291,TEAMS!$AC$529,0)) -> 0 | B153: =IF(C153=0,0,IF(C153>291,TEAMS!$AE$530,0)) -> 0 | C153: =IF(TEAMS!AE$531=0,0,IF(TEAMS!AE$531>291,TEAMS!AE$531,0)) -> 0 | D153: 152
A154: =IF(C154=0,0,IF(C154>291,TEAMS!$AC$529,0)) -> 0 | B154: =IF(C154=0,0,IF(C154>291,TEAMS!$AF$530,0)) -> 0 | C154: =IF(TEAMS!AF$531=0,0,IF(TEAMS!AF$531>291,TEAMS!AF$531,0)) -> 0 | D154: 153
A155: =IF(C155=0,0,IF(C155>291,TEAMS!$AC$529,0)) -> 0 | B155: =IF(C155=0,0,IF(C155>291,TEAMS!$AG$530,0)) -> 0 | C155: =IF(TEAMS!AG$531=0,0,IF(TEAMS!AG$531>291,TEAMS!AG$531,0)) -> 0 | D155: 154
A156: =IF(C156=0,0,IF(C156>291,TEAMS!$AC$550,0)) -> 0 | B156: =IF(C156=0,0,IF(C156>291,TEAMS!AC$551,0)) -> 0 | C156: =IF(TEAMS!AC$552=0,0,IF(TEAMS!AC$552>291,TEAMS!AC$552,0)) -> 0 | D156: 155
A157: =IF(C157=0,0,IF(C157>291,TEAMS!$AC$550,0)) -> 0 | B157: =IF(C157=0,0,IF(C157>291,TEAMS!AD$551,0)) -> 0 | C157: =IF(TEAMS!AD$552=0,0,IF(TEAMS!AD$552>291,TEAMS!AD$552,0)) -> 0 | D157: 156
A158: =IF(C158=0,0,IF(C158>291,TEAMS!$AC$550,0)) -> 0 | B158: =IF(C158=0,0,IF(C158>291,TEAMS!AE$551,0)) -> 0 | C158: =IF(TEAMS!AE$552=0,0,IF(TEAMS!AE$552>291,TEAMS!AE$552,0)) -> 0 | D158: 157
A159: =IF(C159=0,0,IF(C159>291,TEAMS!$AC$550,0)) -> 0 | B159: =IF(C159=0,0,IF(C159>291,TEAMS!AF$551,0)) -> 0 | C159: =IF(TEAMS!AF$552=0,0,IF(TEAMS!AF$552>291,TEAMS!AF$552,0)) -> 0 | D159: 158
A160: =IF(C160=0,0,IF(C160>291,TEAMS!$AC$550,0)) -> 0 | B160: =IF(C160=0,0,IF(C160>291,TEAMS!AG$551,0)) -> 0 | C160: =IF(TEAMS!AG$552=0,0,IF(TEAMS!AG$552>291,TEAMS!AG$552,0)) -> 0 | D160: 159
A161: =IF(C161=0,0,IF(C161>291,TEAMS!$AC$550,0)) -> 0 | B161: =IF(C161=0,0,IF(C161>291,TEAMS!AC$571,0)) -> 0 | C161: =IF(TEAMS!AC$572=0,0,IF(TEAMS!AC$572>291,TEAMS!AC$572,0)) -> 0 | D161: 160
A162: =IF(C162=0,0,IF(C162>291,TEAMS!$AC$550,0)) -> 0 | B162: =IF(C162=0,0,IF(C162>291,TEAMS!AD$571,0)) -> 0 | C162: =IF(TEAMS!AD$572=0,0,IF(TEAMS!AD$572>291,TEAMS!AD$572,0)) -> 0 | D162: 161
A163: =IF(C163=0,0,IF(C163>291,TEAMS!$AC$550,0)) -> 0 | B163: =IF(C163=0,0,IF(C163>291,TEAMS!AE$571,0)) -> 0 | C163: =IF(TEAMS!AE$572=0,0,IF(TEAMS!AE$572>291,TEAMS!AE$572,0)) -> 0 | D163: 162
A164: =IF(C164=0,0,IF(C164>291,TEAMS!$AC$550,0)) -> 0 | B164: =IF(C164=0,0,IF(C164>291,TEAMS!AF$571,0)) -> 0 | C164: =IF(TEAMS!AF$572=0,0,IF(TEAMS!AF$572>291,TEAMS!AF$572,0)) -> 0 | D164: 163
A165: =IF(C165=0,0,IF(C165>291,TEAMS!$AC$550,0)) -> 0 | B165: =IF(C165=0,0,IF(C165>291,TEAMS!AG$571,0)) -> 0 | C165: =IF(TEAMS!AG$572=0,0,IF(TEAMS!AG$572>291,TEAMS!AG$572,0)) -> 0 | D165: 164
A166: =IF(C166=0,0,IF(C166>291,TEAMS!$AC$590,0)) -> 0 | B166: =IF(C166=0,0,IF(C166>291,TEAMS!$AC$591,0)) -> 0 | C166: =IF(TEAMS!AC$592=0,0,IF(TEAMS!AC$592>291,TEAMS!AC$592,0)) -> 0 | D166: 165
A167: =IF(C167=0,0,IF(C167>291,TEAMS!$AC$590,0)) -> 0 | B167: =IF(C167=0,0,IF(C167>291,TEAMS!$AD$591,0)) -> 0 | C167: =IF(TEAMS!AD$592=0,0,IF(TEAMS!AD$592>291,TEAMS!AD$592,0)) -> 0 | D167: 166
A168: =IF(C168=0,0,IF(C168>291,TEAMS!$AC$590,0)) -> 0 | B168: =IF(C168=0,0,IF(C168>291,TEAMS!$AE$591,0)) -> 0 | C168: =IF(TEAMS!AE$592=0,0,IF(TEAMS!AE$592>291,TEAMS!AE$592,0)) -> 0 | D168: 167
A169: =IF(C169=0,0,IF(C169>291,TEAMS!$AC$590,0)) -> 0 | B169: =IF(C169=0,0,IF(C169>291,TEAMS!$AF$591,0)) -> 0 | C169: =IF(TEAMS!AF$592=0,0,IF(TEAMS!AF$592>291,TEAMS!AF$592,0)) -> 0 | D169: 168
A170: =IF(C170=0,0,IF(C170>291,TEAMS!$AC$590,0)) -> 0 | B170: =IF(C170=0,0,IF(C170>291,TEAMS!$AG$591,0)) -> 0 | C170: =IF(TEAMS!AG$592=0,0,IF(TEAMS!AG$592>291,TEAMS!AG$592,0)) -> 0 | D170: 169
A171: =IF(C171=0,0,IF(C171>291,TEAMS!$AC$611,0)) -> 0 | B171: =IF(C171=0,0,IF(C171>291,TEAMS!AE$612,0)) -> 0 | C171: =IF(TEAMS!AE$613=0,0,IF(TEAMS!AE$613>291,TEAMS!AE$613,0)) -> 0 | D171: 170
A172: =IF(C172=0,0,IF(C172>291,TEAMS!$AC$611,0)) -> 0 | B172: =IF(C172=0,0,IF(C172>291,TEAMS!AF$612,0)) -> 0 | C172: =IF(TEAMS!AF$613=0,0,IF(TEAMS!AF$613>291,TEAMS!AF$613,0)) -> 0 | D172: 171
A173: =IF(C173=0,0,IF(C173>291,TEAMS!$AC$611,0)) -> 0 | B173: =IF(C173=0,0,IF(C173>291,TEAMS!AG$612,0)) -> 0 | C173: =IF(TEAMS!AG$613=0,0,IF(TEAMS!AG$613>291,TEAMS!AG$613,0)) -> 0 | D173: 172
A174: =IF(C174=0,0,IF(C174>291,TEAMS!$AC$611,0)) -> 0 | B174: =IF(C174=0,0,IF(C174>291,TEAMS!AC$632,0)) -> 0 | C174: =IF(TEAMS!AC$633=0,0,IF(TEAMS!AC$633>291,TEAMS!AC$633,0)) -> 0 | D174: 173
A175: =IF(C175=0,0,IF(C175>291,TEAMS!$AC$611,0)) -> 0 | B175: =IF(C175=0,0,IF(C175>291,TEAMS!AD$632,0)) -> 0 | C175: =IF(TEAMS!AD$633=0,0,IF(TEAMS!AD$633>291,TEAMS!AD$633,0)) -> 0 | D175: 174
A176: =IF(C176=0,0,IF(C176>291,TEAMS!$AC$611,0)) -> 0 | B176: =IF(C176=0,0,IF(C176>291,TEAMS!AE$754,0)) -> 0 | C176: =IF(TEAMS!AE$633=0,0,IF(TEAMS!AE$633>291,TEAMS!AE$633,0)) -> 0 | D176: 175
A177: =IF(C177=0,0,IF(C177>291,TEAMS!$AC$611,0)) -> 0 | B177: =IF(C177=0,0,IF(C177>291,TEAMS!AF$632,0)) -> 0 | C177: =IF(TEAMS!AF$633=0,0,IF(TEAMS!AF$633>291,TEAMS!AF$633,0)) -> 0 | D177: 176
A178: =IF(C178=0,0,IF(C178>291,TEAMS!$AC$611,0)) -> 0 | B178: =IF(C178=0,0,IF(C178>291,TEAMS!AG$632,0)) -> 0 | C178: =IF(TEAMS!AG$633=0,0,IF(TEAMS!AG$633>291,TEAMS!AG$633,0)) -> 0 | D178: 177
A179: =IF(C179=0,0,IF(C179>291,TEAMS!$AC$651,0)) -> 0 | B179: =IF(C179=0,0,IF(C179>291,TEAMS!$AC$652,0)) -> 0 | C179: =IF(TEAMS!AC$653=0,0,IF(TEAMS!AC$653>291,TEAMS!AC$653,0)) -> 0 | D179: 178
A180: =IF(C180=0,0,IF(C180>291,TEAMS!$AC$651,0)) -> 0 | B180: =IF(C180=0,0,IF(C180>291,TEAMS!$AD$652,0)) -> 0 | C180: =IF(TEAMS!AD$653=0,0,IF(TEAMS!AD$653>291,TEAMS!AD$653,0)) -> 0 | D180: 179
A181: =IF(C181=0,0,IF(C181>291,TEAMS!$AC$651,0)) -> 0 | B181: =IF(C181=0,0,IF(C181>291,TEAMS!$AE$652,0)) -> 0 | C181: =IF(TEAMS!AE$653=0,0,IF(TEAMS!AE$653>291,TEAMS!AE$653,0)) -> 0 | D181: 180
A182: =IF(C182=0,0,IF(C182>291,TEAMS!$AC$651,0)) -> 0 | B182: =IF(C182=0,0,IF(C182>291,TEAMS!$AF$652,0)) -> 0 | C182: =IF(TEAMS!AF$653=0,0,IF(TEAMS!AF$653>291,TEAMS!AF$653,0)) -> 0 | D182: 181
A183: =IF(C183=0,0,IF(C183>291,TEAMS!$AC$651,0)) -> 0 | B183: =IF(C183=0,0,IF(C183>291,TEAMS!$AG$652,0)) -> 0 | C183: =IF(TEAMS!AG$653=0,0,IF(TEAMS!AG$653>291,TEAMS!AG$653,0)) -> 0 | D183: 182
A184: =IF(C184=0,0,IF(C184>291,TEAMS!$AC$672,0)) -> 0 | B184: =IF(C184=0,0,IF(C184>291,TEAMS!AC$693,0)) -> 0 | C184: =IF(TEAMS!AC$694=0,0,IF(TEAMS!AC$694>291,TEAMS!AC$694,0)) -> 0 | D184: 183
A185: =IF(C185=0,0,IF(C185>291,TEAMS!$AC$672,0)) -> 0 | B185: =IF(C185=0,0,IF(C185>291,TEAMS!AD$693,0)) -> 0 | C185: =IF(TEAMS!AD$694=0,0,IF(TEAMS!AD$694>291,TEAMS!AD$694,0)) -> 0 | D185: 184
A186: =IF(C186=0,0,IF(C186>291,TEAMS!$AC$672,0)) -> 0 | B186: =IF(C186=0,0,IF(C186>291,TEAMS!AE$693,0)) -> 0 | C186: =IF(TEAMS!AE$694=0,0,IF(TEAMS!AE$694>291,TEAMS!AE$694,0)) -> 0 | D186: 185
A187: =IF(C187=0,0,IF(C187>291,TEAMS!$AC$672,0)) -> 0 | B187: =IF(C187=0,0,IF(C187>291,TEAMS!AG$693,0)) -> 0 | C187: =IF(TEAMS!AG$694=0,0,IF(TEAMS!AG$694>291,TEAMS!AG$694,0)) -> 0 | D187: 186
A188: =IF(C188=0,0,IF(C188>291,TEAMS!$AC$712,0)) -> 0 | B188: =IF(C188=0,0,IF(C188>291,TEAMS!$AC$713,0)) -> 0 | C188: =IF(TEAMS!AC$714=0,0,IF(TEAMS!AC$714>291,TEAMS!AC$714,0)) -> 0 | D188: 187
A189: =IF(C189=0,0,IF(C189>291,TEAMS!$AC$712,0)) -> 0 | B189: =IF(C189=0,0,IF(C189>291,TEAMS!$AD$713,0)) -> 0 | C189: =IF(TEAMS!AD$714=0,0,IF(TEAMS!AD$714>291,TEAMS!AD$714,0)) -> 0 | D189: 188
A190: =IF(C190=0,0,IF(C190>291,TEAMS!$AC$712,0)) -> 0 | B190: =IF(C190=0,0,IF(C190>291,TEAMS!$AE$713,0)) -> 0 | C190: =IF(TEAMS!AE$714=0,0,IF(TEAMS!AE$714>291,TEAMS!AE$714,0)) -> 0 | D190: 189
A191: =IF(C191=0,0,IF(C191>291,TEAMS!$AC$712,0)) -> 0 | B191: =IF(C191=0,0,IF(C191>291,TEAMS!$AF$713,0)) -> 0 | C191: =IF(TEAMS!AF$714=0,0,IF(TEAMS!AF$714>291,TEAMS!AF$714,0)) -> 0 | D191: 190
A192: =IF(C192=0,0,IF(C192>291,TEAMS!$AC$712,0)) -> 0 | B192: =IF(C192=0,0,IF(C192>291,TEAMS!$AG$713,0)) -> 0 | C192: =IF(TEAMS!AG$714=0,0,IF(TEAMS!AG$714>291,TEAMS!AG$714,0)) -> 0 | D192: 191
A193: =IF(C193=0,0,IF(C193>291,TEAMS!$AC$733,0)) -> 0 | B193: =IF(C193=0,0,IF(C193>291,TEAMS!AC$734,0)) -> 0 | C193: =IF(TEAMS!AC$735=0,0,IF(TEAMS!AC$735>291,TEAMS!AC$735,0)) -> 0 | D193: 192
A194: =IF(C194=0,0,IF(C194>291,TEAMS!$AC$733,0)) -> 0 | B194: =IF(C194=0,0,IF(C194>291,TEAMS!AF$734,0)) -> 0 | C194: =IF(TEAMS!AF$735=0,0,IF(TEAMS!AF$735>291,TEAMS!AF$735,0)) -> 0 | D194: 193
A195: =IF(C195=0,0,IF(C195>291,TEAMS!$AC$733,0)) -> 0 | B195: =IF(C195=0,0,IF(C195>291,TEAMS!AG$734,0)) -> 0 | C195: =IF(TEAMS!AG$735=0,0,IF(TEAMS!AG$735>291,TEAMS!AG$735,0)) -> 0 | D195: 194
A196: =IF(C196=0,0,IF(C196>291,TEAMS!$AC$733,0)) -> 0 | B196: =IF(C196=0,0,IF(C196>291,TEAMS!AC$754,0)) -> 0 | C196: =IF(TEAMS!AC$755=0,0,IF(TEAMS!AC$755>291,TEAMS!AC$755,0)) -> 0 | D196: 195
A197: =IF(C197=0,0,IF(C197>291,TEAMS!$AC$733,0)) -> 0 | B197: =IF(C197=0,0,IF(C197>291,TEAMS!AD$754,0)) -> 0 | C197: =IF(TEAMS!AD$755=0,0,IF(TEAMS!AD$755>291,TEAMS!AD$755,0)) -> 0 | D197: 196
A198: =IF(C198=0,0,IF(C198>291,TEAMS!$AC$733,0)) -> 0 | B198: =IF(C198=0,0,IF(C198>291,TEAMS!AE$754,0)) -> 0 | C198: =IF(TEAMS!AE$755=0,0,IF(TEAMS!AE$755>291,TEAMS!AE$755,0)) -> 0 | D198: 197
A199: =IF(C199=0,0,IF(C199>291,TEAMS!$AC$733,0)) -> 0 | B199: =IF(C199=0,0,IF(C199>291,TEAMS!AF$754,0)) -> 0 | C199: =IF(TEAMS!AF$755=0,0,IF(TEAMS!AF$755>291,TEAMS!AF$755,0)) -> 0 | D199: 198
A200: =IF(C200=0,0,IF(C200>291,TEAMS!$AC$733,0)) -> 0 | B200: =IF(C200=0,0,IF(C200>291,TEAMS!AG$754,0)) -> 0 | C200: =IF(TEAMS!AG$755=0,0,IF(TEAMS!AG$755>291,TEAMS!AG$755,0)) -> 0 | D200: 199
... 102 more rows

Sheet 2025
F1: Area 10 Standing (2024 - 2025 Season)
F2: Teams (ctrl+n) | I2: Team - *10 Avg | J2: Won | K2: Lost | L2: Win %
E3: 1 | F3: =TEAMS!$AC$62 -> CK | G3: =TEAMS!$A$63 -> Cherokee | I3: =TEXT(TEAMS!$AA$81,"0000.00")&TEXT(TEAMS!$AB$81,"-000.00") -> 1110.18-043.00 | J3: =SUM($E$43>$D$43,$G$44>$H$44,$K$42>$J$42,$M$41>$N$41,$E$55>$D$55,$G$56>$H$56,$J$56>$K$56,$N$55>$M$55,$E$68>$D$68,$G$66>$H$66,$K$65>$J$65,$M$67>$N$67,$E$80>$D$80,$H$80>$G$80) -> 10 | K3: =SUM($E$43<$D$43,$G$44<$H$44,$K$42<$J$42,$M$41<$N$41,$E$55<$D$55,$G$56<$H$56,$J$56<$K$56,$N$55<$M$55,$E$68<$D$68,$G$66<$H$66,$K$65<$J$65,$M$67<$N$67,$E$80<$D$80,$H$80<$G$80) -> 1 | L3: =IF(J3>0,J3/(J3+K3),0) -> 0.9090909091
E4: 2 | F4: =TEAMS!$AC$184 -> EW | G4: =TEAMS!$A$185 -> Etowah | I4: =TEXT(TEAMS!$AA$203,"0000.00")&TEXT(TEAMS!$AB$203,"-000.00") -> 1120.82-047.43 | J4: =SUM($E$44>$D$44,$H$43>$G$43,$K$41>$J$41,$M$42>$N$42,$D$56>$E$56,$H$56>$G$56,$K$54>$J$54,$M$56>$N$56,$E$67>$D$67,$G$65>$H$65,$K$66>$J$66,$N$68>$M$68,$D$80>$E$80,$G$78>$H$78) -> 9 | K4: =SUM($E$44<$D$44,$H$43<$G$43,$K$41<$J$41,$M$42<$N$42,$D$56<$E$56,$H$56<$G$56,$K$54<$J$54,$M$56<$N$56,$E$67<$D$67,$G$65<$H$65,$K$66<$J$66,$N$68<$M$68,$D$80<$E$80,$G$78<$H$78) -> 1 | L4: 0.9
E5: 3 | F5: =TEAMS!$AC$1 -> CV | G5: =TEAMS!$A$2 -> Cartersville | I5: =TEXT(TEAMS!$AA$20,"0000.00")&TEXT(TEAMS!$AB$20,"-000.00") -> 1106.00-040.90 | J5: =SUM($E$42>$D$42,$G$41>$H$41,$K$44>$J$44,$N$43>$M$43,$E$56>$D$56,$G$55>$H$55,$K$56>$J$56,$M$54>$N$54,$E$65>$D$65,$G$68>$H$68,$K$67>$J$67,$M$68>$N$68,$E$79>$D$79,$G$80>$H$80) -> 8 | K5: =SUM($E$42<$D$42,$G$41<$H$41,$K$44<$J$44,$N$43<$M$43,$E$56<$D$56,$G$55<$H$55,$K$56<$J$56,$M$54<$N$54,$E$65<$D$65,$G$68<$H$68,$K$67<$J$67,$M$68<$N$68,$E$79<$D$79,$G$80<$H$80) -> 1 | L5: 0.8888888889
E6: 4 | F6: =TEAMS!$AC$489 -> AL | G6: =TEAMS!$A$490 -> Allatoona | I6: =TEXT(TEAMS!$AA$508,"0000.00")&TEXT(TEAMS!$AB$508,"-000.00") -> 1109.55-042.90 | J6: =SUM($E$41>$D$41,$G$42>$H$42,$K$43>$J$43,$N$44>$M$44,$D$55>$E$55,$H$55>$G$55,$J$54>$K$54,$M$53>$N$53,$E$66>$D$66,$H$67>$G$67,$J$68>$K$68,$N$67>$M$67,$D$79>$E$79,$H$78>$G$78) -> 8 | K6: =SUM($E$41<$D$41,$G$42<$H$42,$K$43<$J$43,$N$44<$M$44,$D$55<$E$55,$H$55<$G$55,$J$54<$K$54,$M$53<$N$53,$E$66<$D$66,$H$67<$G$67,$J$68<$K$68,$N$67<$M$67,$D$79<$E$79,$H$78<$G$78) -> 3 | L6: 0.7272727273
E7: 5 | F7: =TEAMS!$AC$306 -> LF | G7: =TEAMS!$A$307 -> LaFayette | I7: =TEXT(TEAMS!$AA$325,"0000.00")&TEXT(TEAMS!$AB$325,"-000.00") -> 1081.31-030.83 | J7: =SUM($D$42>$E$42,$H$42>$G$42,$J$42>$K$42,$N$42>$M$42,$E$54>$D$54,$H$54>$G$54,$K$53>$J$53,$N$54>$M$54,$D$66>$E$66,$H$66>$G$66,$J$66>$K$66,$N$66>$M$66,$D$78>$E$78,$G$77>$H$77) -> 6 | K7: =SUM($D$42<$E$42,$H$42<$G$42,$J$42<$K$42,$N$42<$M$42,$E$54<$D$54,$H$54<$G$54,$K$53<$J$53,$N$54<$M$54,$D$66<$E$66,$H$66<$G$66,$J$66<$K$66,$N$66<$M$66,$D$78<$E$78,$G$77<$H$77) -> 7 | L7: 0.4615384615
E8: 6 | F8: =TEAMS!$AC$367 -> RL | G8: =TEAMS!$A$368 -> Ridgeland | I8: =TEXT(TEAMS!$AA$386,"0000.00")&TEXT(TEAMS!$AB$386,"-000.00") -> 1018.82-025.22 | J8: =SUM($D$41>$E$41,$H$41>$G$41,$J$41>$K$41,$N$41>$M$41,$D$53>$E$53,$H$53>$G$53,$J$53>$K$53,$N$53>$M$53,$D$65>$E$65,$H$65>$G$65,$J$65>$K$65,$N$65>$M$65,$E$77>$D$77,$H$77>$G$77) -> 2 | K8: =SUM($D$41<$E$41,$H$41<$G$41,$J$41<$K$41,$N$41<$M$41,$D$53<$E$53,$H$53<$G$53,$J$53<$K$53,$N$53<$M$53,$D$65<$E$65,$H$65<$G$65,$J$65<$K$65,$N$65<$M$65,$E$77<$D$77,$H$77<$G$77) -> 9 | L8: 0.1818181818
E9: 7 | F9: =TEAMS!$AC$123 -> DL | G9: =TEAMS!$A$124 -> Dalton | I9: =TEXT(TEAMS!$AA$142,"0000.00")&TEXT(TEAMS!$AB$142,"-000.00") -> 0891.77-012.69 | J9: =SUM($D$44>$E$44,$H$44>$G$44,$J$44>$K$44,$M$44>$N$44,$E$53>$D$53,$G$54>$H$54,$K$55>$J$55,$N$56>$M$56,$D$68>$E$68,$H$68>$G$68,$K$68>$J$68,$M$65>$N$65,$E$78>$D$78,$H$79>$G$79) -> 1 | K9: =SUM($D$44<$E$44,$H$44<$G$44,$J$44<$K$44,$M$44<$N$44,$E$53<$D$53,$G$54<$H$54,$K$55<$J$55,$N$56<$M$56,$D$68<$E$68,$H$68<$G$68,$K$68<$J$68,$M$65<$N$65,$E$78<$D$78,$H$79<$G$79) -> 12 | L9: 0.07692307692
E10: 8 | F10: =TEAMS!$AC$245 -> GC | G10: =TEAMS!$A$246 -> Gordon Central | I10: =TEXT(TEAMS!$AA$264,"0000.00")&TEXT(TEAMS!$AB$264,"-000.00") -> 0797.20-006.44 | J10: =SUM($D$43>$E$43,$G$43>$H$43,$J$43>$K$43,$M$43>$N$43,$D$54>$E$54,$G$53>$H$53,$J$55>$K$55,$M$55>$N$55,$D$67>$E$67,$G$67>$H$67,$J$67>$K$67,$M$66>$N$66,$D$77>$E$77,$G$79>$H$79) -> 0 | K10: =SUM($D$43<$E$43,$G$43<$H$43,$J$43<$K$43,$M$43<$N$43,$D$54<$E$54,$G$53<$H$53,$J$55<$K$55,$M$55<$N$55,$D$67<$E$67,$G$67<$H$67,$J$67<$K$67,$M$66<$N$66,$D$77<$E$77,$G$79<$H$79) -> 10 | L10: 0
E11: 9 | F11: =TEAMS!$AC$428 -> SN | G11: =TEAMS!$A$429 -> Sonoraville | I11: =TEXT(TEAMS!$AA$447,"0000.00")&TEXT(TEAMS!$AB$447,"-000.00") -> 0000.00-000.00 | J11: =SUM($E$43>$D$43,$H$41>$G$41,$J$41>$K$41,$N$42>$M$42,$D$67>$E$67,$H$53>$G$53,$J$54>$K$54,$M$55>$N$55,$H$65>$G$65,$J$66>$K$66,$D$77>$E$77,$H$78>$G$78) -> 1 | K11: =SUM($E$43>$D$43,$H$41>$G$41,$J$41>$K$41,$N$42>$M$42,$D$67>$E$67,$H$53>$G$53,$J$54>$K$54,$M$55>$N$55,$H$65>$G$65,$J$66>$K$66,$D$77>$E$77,$H$78>$G$78) -> 1 | L11: 0.5
D13: Match Score - Inner 10's
D14: Team | E14: 1 | F14: 2 | G14: 3 | H14: 4 | I14: 5 | J14: 6 | K14: 7 | L14: 8
D15: =TEAMS!$AC$1 -> CV | E15: =TEXT(TEAMS!$AA$4,"0000")&TEXT(TEAMS!$AB$4,"-000") -> 1094-043 | F15: =TEXT(TEAMS!$AA$5, "0000") & TEXT(TEAMS!$AB$5, "-000") -> 1117-021 | G15: =TEXT(TEAMS!$AA$6, "0000") & TEXT(TEAMS!$AB$6, "-000") -> 1088-030 | H15: =TEXT(TEAMS!$AA$7, "0000") & TEXT(TEAMS!$AB$7, "-000") -> 1073-040 | I15: =TEXT(TEAMS!$AA$8, "0000") & TEXT(TEAMS!$AB$8, "-000") -> 1116-050 | J15: =TEXT(TEAMS!$AA$9, "0000") & TEXT(TEAMS!$AB$9, "-000") -> 1103-037 | K15: =TEXT(TEAMS!$AA$10, "0000") & TEXT(TEAMS!$AB$10, "-000") ->  | L15: =TEXT(TEAMS!$AA$11, "0000") & TEXT(TEAMS!$AB$11, "-000") -> 1112-051
D16: =TEAMS!$AC$62 -> CK | E16: =TEXT(TEAMS!$AA$65, "0000") & TEXT(TEAMS!$AB$65, "-000") -> 1079-034 | F16: =TEXT(TEAMS!$AA$66, "0000") & TEXT(TEAMS!$AB$66, "-000") -> 1070-032 | G16: =TEXT(TEAMS!$AA$67, "0000") & TEXT(TEAMS!$AB$67, "-000") -> 1118-047 | H16: =TEXT(TEAMS!$AA$68, "0000") & TEXT(TEAMS!$AB$68, "-000") -> 1100 | I16: =TEXT(TEAMS!$AA$69, "0000") & TEXT(TEAMS!$AB$69, "-000") -> 1116-037 | J16: =TEXT(TEAMS!$AA$70, "0000") & TEXT(TEAMS!$AB$70, "-000") -> 1110-037 | K16: =TEXT(TEAMS!$AA$71, "0000") & TEXT(TEAMS!$AB$71, "-000") ->  | L16: =TEXT(TEAMS!$AA$72, "0000") & TEXT(TEAMS!$AB$72, "-000") -> 1129-049
D17: =TEAMS!$AC$123 -> DL | E17: =TEXT(TEAMS!$AA$126, "0000") & TEXT(TEAMS!$AB$126, "-000") -> 0919-015 | F17: =TEXT(TEAMS!$AA$127, "0000") & TEXT(TEAMS!$AB$127, "-000") -> 0818-012 | G17: =TEXT(TEAMS!$AA$128, "0000") & TEXT(TEAMS!$AB$128, "-000") -> 0789-010 | H17: =TEXT(TEAMS!$AA$129, "0000") & TEXT(TEAMS!$AB$129, "-000") -> 0889-012 | I17: =TEXT(TEAMS!$AA$130, "0000") & TEXT(TEAMS!$AB$130, "-000") -> 0840-014 | J17: =TEXT(TEAMS!$AA$131, "0000") & TEXT(TEAMS!$AB$131, "-000") -> 0858-008 | K17: =TEXT(TEAMS!$AA$132, "0000") & TEXT(TEAMS!$AB$132, "-000") -> 0877-006 | L17: =TEXT(TEAMS!$AA$133, "0000") & TEXT(TEAMS!$AB$133, "-000") -> 0879-010
D18: =TEAMS!$AC$184 -> EW | E18: =TEXT(TEAMS!$AA$187, "0000") & TEXT(TEAMS!$AB$187, "-000") -> 1113-046 | F18: =TEXT(TEAMS!$AA$188, "0000") & TEXT(TEAMS!$AB$188, "-000") -> 1105 | G18: =TEXT(TEAMS!$AA$189, "0000") & TEXT(TEAMS!$AB$189, "-000") -> 1124 | H18: =TEXT(TEAMS!$AA$190, "0000") & TEXT(TEAMS!$AB$190, "-000") -> 1118-043 | I18: =TEXT(TEAMS!$AA$191, "0000") & TEXT(TEAMS!$AB$191, "-000") -> 1126-050 | J18: =TEXT(TEAMS!$AA$192, "0000") & TEXT(TEAMS!$AB$192, "-000") -> 1109-040 | K18: =TEXT(TEAMS!$AA$193, "0000") & TEXT(TEAMS!$AB$193, "-000") -> 1119 | L18: =TEXT(TEAMS!$AA$194, "0000") & TEXT(TEAMS!$AB$194, "-000") -> 1110-051
D19: =TEAMS!$AC$245 -> GC | E19: =TEXT(TEAMS!$AA$248, "0000") & TEXT(TEAMS!$AB$248, "-000") -> 0452-003 | F19: =TEXT(TEAMS!$AA$249, "0000") & TEXT(TEAMS!$AB$249, "-000") -> 0825 | G19: =TEXT(TEAMS!$AA$250, "0000") & TEXT(TEAMS!$AB$250, "-000") -> 0882-008 | H19: =TEXT(TEAMS!$AA$251, "0000") & TEXT(TEAMS!$AB$251, "-000") -> 0803-008 | I19: =TEXT(TEAMS!$AA$252, "0000") & TEXT(TEAMS!$AB$252, "-000") -> 0753-003 | J19: =TEXT(TEAMS!$AA$253, "0000") & TEXT(TEAMS!$AB$253, "-000") ->  | K19: =TEXT(TEAMS!$AA$254, "0000") & TEXT(TEAMS!$AB$254, "-000") -> 0863-006 | L19: =TEXT(TEAMS!$AA$255, "0000") & TEXT(TEAMS!$AB$255, "-000") -> 0869-008
D20: =TEAMS!$AC$306 -> LF | E20: =TEXT(TEAMS!$AA$309, "0000") & TEXT(TEAMS!$AB$309, "-000") -> 1093-028 | F20: =TEXT(TEAMS!$AA$310, "0000") & TEXT(TEAMS!$AB$310, "-000") -> 1102-035 | G20: =TEXT(TEAMS!$AA$311, "0000") & TEXT(TEAMS!$AB$311, "-000") -> 1075-022 | H20: =TEXT(TEAMS!$AA$312, "0000") & TEXT(TEAMS!$AB$312, "-000") -> 1107-043 | I20: =TEXT(TEAMS!$AA$313, "0000") & TEXT(TEAMS!$AB$313, "-000") -> 1092-030 | J20: =TEXT(TEAMS!$AA$314, "0000") & TEXT(TEAMS!$AB$314, "-000") -> 1113-042 | K20: =TEXT(TEAMS!$AA$315, "0000") & TEXT(TEAMS!$AB$315, "-000") -> 1078-027 | L20: =TEXT(TEAMS!$AA$316, "0000") & TEXT(TEAMS!$AB$316, "-000") -> 1041-027
D21: =TEAMS!$AC$367 -> RL | E21: =TEXT(TEAMS!$AA$370, "0000") & TEXT(TEAMS!$AB$370, "-000") -> 0936-015 | F21: =TEXT(TEAMS!$AA$371, "0000") & TEXT(TEAMS!$AB$371, "-000") -> 0949-016 | G21: =TEXT(TEAMS!$AA$372, "0000") & TEXT(TEAMS!$AB$372, "-000") -> 1045 | H21: =TEXT(TEAMS!$AA$373, "0000") & TEXT(TEAMS!$AB$373, "-000") -> 0983 | I21: =TEXT(TEAMS!$AA$374, "0000") & TEXT(TEAMS!$AB$374, "-000") -> 1023-017 | J21: =TEXT(TEAMS!$AA$375, "0000") & TEXT(TEAMS!$AB$375, "-000") ->  | K21: =TEXT(TEAMS!$AA$376, "0000") & TEXT(TEAMS!$AB$376, "-000") -> 1050-030 | L21: =TEXT(TEAMS!$AA$377, "0000") & TEXT(TEAMS!$AB$377, "-000") -> 1059-030
D22: =TEAMS!$AC$428 -> SN | E22: =TEXT(TEAMS!$AA$431, "0000") & TEXT(TEAMS!$AB$431, "-000") ->  | F22: =TEXT(TEAMS!$AA$432, "0000") & TEXT(TEAMS!$AB$432, "-000") -> not | G22: =TEXT(TEAMS!$AA$433, "0000") & TEXT(TEAMS!$AB$433, "-000") -> Shooting | H22: =TEXT(TEAMS!$AA$434, "0000") & TEXT(TEAMS!$AB$434, "-000") -> this | I22: =TEXT(TEAMS!$AA$435, "0000") & TEXT(TEAMS!$AB$435, "-000") -> year | J22: =TEXT(TEAMS!$AA$436, "0000") & TEXT(TEAMS!$AB$436, "-000") ->  | K22: =TEXT(TEAMS!$AA$437, "0000") & TEXT(TEAMS!$AB$437, "-000") ->  | L22: =TEXT(TEAMS!$AA$438, "0000") & TEXT(TEAMS!$AB$438, "-000") -> 
D23: =TEAMS!$AC$489 -> AL | E23: =TEXT(TEAMS!$AA$492, "0000") & TEXT(TEAMS!$AB$492, "-000") -> 1092-042 | F23: =TEXT(TEAMS!$AA$493, "0000") & TEXT(TEAMS!$AB$493, "-000") -> 1113-047 | G23: =TEXT(TEAMS!$AA$494, "0000") & TEXT(TEAMS!$AB$494, "-000") -> 1126-048 | H23: =TEXT(TEAMS!$AA$495, "0000") & TEXT(TEAMS!$AB$495, "-000") -> 1110-045 | I23: =TEXT(TEAMS!$AA$496, "0000") & TEXT(TEAMS!$AB$496, "-000") -> 1127-051 | J23: =TEXT(TEAMS!$AA$497, "0000") & TEXT(TEAMS!$AB$497, "-000") -> 1100-031 | K23: =TEXT(TEAMS!$AA$498, "0000") & TEXT(TEAMS!$AB$498, "-000") -> 1097 | L23: =TEXT(TEAMS!$AA$499, "0000") & TEXT(TEAMS!$AB$499, "-000") -> 1108-043
D24: =TEAMS!$AC$550 -> Z10 | E24: =TEXT(TEAMS!$AA$553, "0000") & TEXT(TEAMS!$AB$553, "-000") ->  | F24: =TEXT(TEAMS!$AA$554, "0000") & TEXT(TEAMS!$AB$554, "-000") ->  | G24: =TEXT(TEAMS!$AA$555, "0000") & TEXT(TEAMS!$AB$555, "-000") ->  | H24: =TEXT(TEAMS!$AA$556, "0000") & TEXT(TEAMS!$AB$556, "-000") ->  | I24: =TEXT(TEAMS!$AA$557, "0000") & TEXT(TEAMS!$AB$557, "-000") ->  | J24: =TEXT(TEAMS!$AA$558, "0000") & TEXT(TEAMS!$AB$558, "-000") ->  | K24: =TEXT(TEAMS!$AA$559, "0000") & TEXT(TEAMS!$AB$559, "-000") ->  | L24: =TEXT(TEAMS!$AA$560, "0000") & TEXT(TEAMS!$AB$560, "-000") -> 
D26: Match Score - Inner 10's | K26: Sectional | L26: Area 10
D27: Team | E27: 9 | F27: 10 | G27: 11 | H27: 12 | I27: 13 | J27: 14 | K27: Playoff | L27: Chmpnshp
D28: =TEAMS!$AC$1 -> CV | E28: =TEXT(TEAMS!$AA$12, "0000") & TEXT(TEAMS!$AB$12, "-000") ->  | F28: =TEXT(TEAMS!$AA$13, "0000") & TEXT(TEAMS!$AB$13, "-000") -> 1129-054 | G28: =TEXT(TEAMS!$AA$14, "0000") & TEXT(TEAMS!$AB$14, "-000") -> 1105-033 | H28: =TEXT(TEAMS!$AA$15, "0000") & TEXT(TEAMS!$AB$15, "-000") -> 1123-050 | I28: =TEXT(TEAMS!$AA$16, "0000") & TEXT(TEAMS!$AB$16, "-000") ->  | J28: =TEXT(TEAMS!$AA$17, "0000") & TEXT(TEAMS!$AB$17, "-000") ->  | K28: =TEXT(TEAMS!$AA$18, "0000") & TEXT(TEAMS!$AB$18, "-000") ->  | L28: =TEXT(TEAMS!$AA$19, "0000") & TEXT(TEAMS!$AB$19, "-000") -> 
D29: =TEAMS!$AC$62 -> CK | E29: =TEXT(TEAMS!$AA$73, "0000") & TEXT(TEAMS!$AB$73, "-000") -> 1134-056 | F29: =TEXT(TEAMS!$AA$74, "0000") & TEXT(TEAMS!$AB$74, "-000") -> 1116-038 | G29: =TEXT(TEAMS!$AA$75, "0000") & TEXT(TEAMS!$AB$75, "-000") -> 1116-053 | H29: =TEXT(TEAMS!$AA$76, "0000") & TEXT(TEAMS!$AB$76, "-000") -> 1124-047 | I29: =TEXT(TEAMS!$AA$77, "0000") & TEXT(TEAMS!$AB$77, "-000") ->  | J29: =TEXT(TEAMS!$AA$78, "0000") & TEXT(TEAMS!$AB$78, "-000") ->  | K29: =TEXT(TEAMS!$AA$79, "0000") & TEXT(TEAMS!$AB$79, "-000") ->  | L29: =TEXT(TEAMS!$AA$80, "0000") & TEXT(TEAMS!$AB$80, "-000") -> 
D30: =TEAMS!$AC$123 -> DL | E30: =TEXT(TEAMS!$AA$134, "0000") & TEXT(TEAMS!$AB$134, "-000") -> 0849-014 | F30: =TEXT(TEAMS!$AA$135, "0000") & TEXT(TEAMS!$AB$135, "-000") -> 0971-014 | G30: =TEXT(TEAMS!$AA$136, "0000") & TEXT(TEAMS!$AB$136, "-000") -> 0975-017 | H30: =TEXT(TEAMS!$AA$137, "0000") & TEXT(TEAMS!$AB$137, "-000") -> 0992-017 | I30: =TEXT(TEAMS!$AA$138, "0000") & TEXT(TEAMS!$AB$138, "-000") -> 0937-016 | J30: =TEXT(TEAMS!$AA$139, "0000") & TEXT(TEAMS!$AB$139, "-000") ->  | K30: =TEXT(TEAMS!$AA$140, "0000") & TEXT(TEAMS!$AB$140, "-000") ->  | L30: =TEXT(TEAMS!$AA$141, "0000") & TEXT(TEAMS!$AB$141, "-000") -> 
D31: =TEAMS!$AC$184 -> EW | E31: =TEXT(TEAMS!$AA$195, "0000") & TEXT(TEAMS!$AB$195, "-000") ->  | F31: =TEXT(TEAMS!$AA$196, "0000") & TEXT(TEAMS!$AB$196, "-000") -> 1140-051 | G31: =TEXT(TEAMS!$AA$197, "0000") & TEXT(TEAMS!$AB$197, "-000") -> 1127 | H31: =TEXT(TEAMS!$AA$198, "0000") & TEXT(TEAMS!$AB$198, "-000") -> 1138-051 | I31: =TEXT(TEAMS!$AA$199, "0000") & TEXT(TEAMS!$AB$199, "-000") ->  | J31: =TEXT(TEAMS!$AA$200, "0000") & TEXT(TEAMS!$AB$200, "-000") ->  | K31: =TEXT(TEAMS!$AA$201, "0000") & TEXT(TEAMS!$AB$201, "-000") ->  | L31: =TEXT(TEAMS!$AA$202, "0000") & TEXT(TEAMS!$AB$202, "-000") -> 
D32: =TEAMS!$AC$245 -> GC | E32: =TEXT(TEAMS!$AA$256, "0000") & TEXT(TEAMS!$AB$256, "-000") ->  | F32: =TEXT(TEAMS!$AA$257, "0000") & TEXT(TEAMS!$AB$257, "-000") -> 0863-005 | G32: =TEXT(TEAMS!$AA$258, "0000") & TEXT(TEAMS!$AB$258, "-000") -> 0831-011 | H32: =TEXT(TEAMS!$AA$259, "0000") & TEXT(TEAMS!$AB$259, "-000") -> 0831-006 | I32: =TEXT(TEAMS!$AA$260, "0000") & TEXT(TEAMS!$AB$260, "-000") ->  | J32: =TEXT(TEAMS!$AA$261, "0000") & TEXT(TEAMS!$AB$261, "-000") ->  | K32: =TEXT(TEAMS!$AA$262, "0000") & TEXT(TEAMS!$AB$262, "-000") ->  | L32: =TEXT(TEAMS!$AA$263, "0000") & TEXT(TEAMS!$AB$263, "-000") -> 
D33: =TEAMS!$AC$306 -> LF | E33: =TEXT(TEAMS!$AA$317, "0000") & TEXT(TEAMS!$AB$317, "-000") ->  | F33: =TEXT(TEAMS!$AA$318, "0000") & TEXT(TEAMS!$AB$318, "-000") -> 1063-023 | G33: =TEXT(TEAMS!$AA$319, "0000") & TEXT(TEAMS!$AB$319, "-000") -> 1080 | H33: =TEXT(TEAMS!$AA$320, "0000") & TEXT(TEAMS!$AB$320, "-000") -> 1080-034 | I33: =TEXT(TEAMS!$AA$321, "0000") & TEXT(TEAMS!$AB$321, "-000") -> 1063-028 | J33: =TEXT(TEAMS!$AA$322, "0000") & TEXT(TEAMS!$AB$322, "-000") -> 1070-031 | K33: =TEXT(TEAMS!$AA$323, "0000") & TEXT(TEAMS!$AB$323, "-000") ->  | L33: =TEXT(TEAMS!$AA$324, "0000") & TEXT(TEAMS!$AB$324, "-000") -> 
D34: =TEAMS!$AC$367 -> RL | E34: =TEXT(TEAMS!$AA$378, "0000") & TEXT(TEAMS!$AB$378, "-000") ->  | F34: =TEXT(TEAMS!$AA$379, "0000") & TEXT(TEAMS!$AB$379, "-000") -> 1041-035 | G34: =TEXT(TEAMS!$AA$380, "0000") & TEXT(TEAMS!$AB$380, "-000") -> 1038-027 | H34: =TEXT(TEAMS!$AA$381, "0000") & TEXT(TEAMS!$AB$381, "-000") -> 1042-034 | I34: =TEXT(TEAMS!$AA$382, "0000") & TEXT(TEAMS!$AB$382, "-000") ->  | J34: =TEXT(TEAMS!$AA$383, "0000") & TEXT(TEAMS!$AB$383, "-000") -> 1041-023 | K34: =TEXT(TEAMS!$AA$384, "0000") & TEXT(TEAMS!$AB$384, "-000") ->  | L34: =TEXT(TEAMS!$AA$385, "0000") & TEXT(TEAMS!$AB$385, "-000") -> 
D35: =TEAMS!$AC$428 -> SN | E35: =TEXT(TEAMS!$AA$439, "0000") & TEXT(TEAMS!$AB$439, "-000") ->  | F35: =TEXT(TEAMS!$AA$440, "0000") & TEXT(TEAMS!$AB$440, "-000") -> not | G35: =TEXT(TEAMS!$AA$441, "0000") & TEXT(TEAMS!$AB$441, "-000") -> Shooting | H35: =TEXT(TEAMS!$AA$442, "0000") & TEXT(TEAMS!$AB$442, "-000") -> this | I35: =TEXT(TEAMS!$AA$443, "0000") & TEXT(TEAMS!$AB$443, "-000") -> year | J35: =TEXT(TEAMS!$AA$444, "0000") & TEXT(TEAMS!$AB$444, "-000") ->  | K35: =TEXT(TEAMS!$AA$445, "0000") & TEXT(TEAMS!$AB$445, "-000") ->  | L35: =TEXT(TEAMS!$AA$446, "0000") & TEXT(TEAMS!$AB$446, "-000") -> 
D36: =TEAMS!$AC$489 -> AL | E36: =TEXT(TEAMS!$AA$500, "0000") & TEXT(TEAMS!$AB$500, "-000") ->  | F36: =TEXT(TEAMS!$AA$501, "0000") & TEXT(TEAMS!$AB$501, "-000") -> 1117-039 | G36: =TEXT(TEAMS!$AA$502, "0000") & TEXT(TEAMS!$AB$502, "-000") -> 1105-039 | H36: =TEXT(TEAMS!$AA$503, "0000") & TEXT(TEAMS!$AB$503, "-000") -> 1110-044 | I36: =TEXT(TEAMS!$AA$504, "0000") & TEXT(TEAMS!$AB$504, "-000") ->  | J36: =TEXT(TEAMS!$AA$505, "0000") & TEXT(TEAMS!$AB$505, "-000") ->  | K36: =TEXT(TEAMS!$AA$506, "0000") & TEXT(TEAMS!$AB$506, "-000") ->  | L36: =TEXT(TEAMS!$AA$507, "0000") & TEXT(TEAMS!$AB$507, "-000") -> 
D37: =TEAMS!$AC$550 -> Z10 | E37: =TEXT(TEAMS!$AA$561, "0000") & TEXT(TEAMS!$AB$561, "-000") ->  | F37: =TEXT(TEAMS!$AA$562, "0000") & TEXT(TEAMS!$AB$562, "-000") ->  | G37: =TEXT(TEAMS!$AA$563, "0000") & TEXT(TEAMS!$AB$563, "-000") ->  | H37: =TEXT(TEAMS!$AA$564, "0000") & TEXT(TEAMS!$AB$564, "-000") ->  | I37: =TEXT(TEAMS!$AA$565, "0000") & TEXT(TEAMS!$AB$565, "-000") ->  | J37: =TEXT(TEAMS!$AA$566, "0000") & TEXT(TEAMS!$AB$566, "-000") ->  | K37: =TEXT(TEAMS!$AA$567, "0000") & TEXT(TEAMS!$AB$567, "-000") ->  | L37: =TEXT(TEAMS!$AA$568, "0000") & TEXT(TEAMS!$AB$568, "-000") -> 
C39: Matches
C40: 7 November 2024 Match 1 | F40: 14 November 2024 Match 2 | I40: 21 November 2024 Match 3 | L40: 5 December 2024 Match 4
C41: RL @ AL | D41: =E21 -> 0936-015 | E41: =E23 -> 1092-042 | F41: CV @ RL | G41: =F15 -> 1117-021 | H41: =F21 -> 0949-016 | I41: RL @ EW | J41: =G21 -> 1045 | K41: =G18 -> 1124 | L41: CK @ RL | M41: =H16 -> 1100 | N41: =H21 -> 0983
C42: LF @ CV | D42: =E20 -> 1093-028 | E42: =E15 -> 1094-043 | F42: AL @ LF | G42: =F23 -> 1113-047 | H42: =F20 -> 1102-035 | I42: LF @ CK | J42: =G20 -> 1075-022 | K42: =G16 -> 1118-047 | L42: EW @ LF | M42: =H18 -> 1118-043 | N42: =H20 -> 1107-043
C43: GC @ CK | D43: =E19 -> 0452-003 | E43: =E16 -> 1079-034 | F43: GC @ EW | G43: =F19 -> 0825 | H43: =F18 -> 1105 | I43: GC @ AL | J43: =G19 -> 0882-008 | K43: =G23 -> 1126-048 | L43: GC @ CV | M43: =H19 -> 0803-008 | N43: =H15 -> 1073-040
C44: DL @ EW | D44: =E17 -> 0919-015 | E44: =E18 -> 1113-046 | F44: CK @ DL | G44: =F16 -> 1070-032 | H44: =F17 -> 0818-012 | I44: DL @ CV | J44: =G17 -> 0789-010 | K44: =G15 -> 1088-030 | L44: DL @ AL | M44: =H17 -> 0889-012 | N44: =H23 -> 1110-045
C52: 12 December 2024 Match 5 | F52: 9 January 2025 Match 6 | I52: 14 January 2025 Match 7 | L52: 16 January 2025 Match 8
C53: RL @ DL | D53: =I21 -> 1023-017 | E53: =I17 -> 0840-014 | F53: GC @ RL | G53: =J19 ->  | H53: =J21 ->  | I53: RL @ LF | J53: =K21 -> 1050-030 | K53: =K20 -> 1078-027 | L53: AL @ RL | M53: =L23 -> 1108-043 | N53: =L21 -> 1059-030
C54: GC @ LF | D54: =I19 -> 0753-003 | E54: =I20 -> 1092-030 | F54: DL @ LF | G54: =J17 -> 0858-008 | H54: =J20 -> 1113-042 | I54: AL @ EW | J54: =K23 -> 1097 | K54: =K18 -> 1119 | L54: CV @ LF | M54: =L15 -> 1112-051 | N54: =L20 -> 1041-027
C55: AL @ CK | D55: =I23 -> 1127-051 | E55: =I16 -> 1116-037 | F55: CV @ AL | G55: =J15 -> 1103-037 | H55: =J23 -> 1100-031 | I55: GC @ DL | J55: =K19 -> 0863-006 | K55: =K17 -> 0877-006 | L55: GC @ CK | M55: =L19 -> 0869-008 | N55: =L16 -> 1129-049
C56: EW @ CV | D56: =I18 -> 1126-050 | E56: =I15 -> 1116-050 | F56: CK @ EW | G56: 1110-037 | H56: =J18 -> 1109-040 | I56: CK @ CV | J56: =K16 ->  | K56: =K15 ->  | L56: EW @ DL | M56: =L18 -> 1110-051 | N56: =L17 -> 0879-010
C64: 21 January 2025 Match 9 | F64: 23 January 2025 Match 10 | I64: 28 January 2025 Match 11 | L64: 30 January 2025 Match 12
C65: RL @ CV | D65: =E34 ->  | E65: =E28 ->  | F65: EW @ RL | G65: =F31 -> 1140-051 | H65: =F34 -> 1041-035 | I65: RL @ CK | J65: =G34 -> 1038-027 | K65: =G29 -> 1116-053 | L65: DL @ RL | M65: =H30 -> 0992-017 | N65: =H34 -> 1042-034
C66: LF @ AL | D66: =E33 ->  | E66: =E36 ->  | F66: CK @ LF | G66: =F29 -> 1116-038 | H66: =F33 -> 1063-023 | I66: LF @ EW | J66: 1080 | K66: =G31 -> 1127 | L66: GC @ LF | M66: =H32 -> 0831-006 | N66: =H33 -> 1080-034
C67: GC @ EW | D67: =E32 ->  | E67: =E31 ->  | F67: GC @ AL | G67: =F32 -> 0863-005 | H67: =F36 -> 1117-039 | I67: GC @ CV | J67: =G32 -> 0831-011 | K67: =G28 -> 1105-033 | L67: CK @ AL | M67: =H29 -> 1124-047 | N67: =H36 -> 1110-044
C68: DL @ CK | D68: =E30 -> 0849-014 | E68: =E29 -> 1134-056 | F68: CV @ DL | G68: =F28 -> 1129-054 | H68: =F30 -> 0971-014 | I68: AL @ DL | J68: =G36 -> 1105-039 | K68: =G30 -> 0975-017 | L68: CV @ EW | M68: =H31 -> 1138-051 | N68: =H31 -> 1138-051
C76: 4 February 2025 Match 13 | F76: 6 February 2025 Match 14
C77: GC @ RL | D77: =I32 ->  | E77: =I34 ->  | F77: LF @ RL | G77: =J33 -> 1070-031 | H77: =J34 -> 1041-023
C78: LF @ DL | D78: =I33 -> 1063-028 | E78: =I30 -> 0937-016 | F78: EW @ AL | G78: =J31 ->  | H78: =J36 -> 
C79: AL @ CV | D79: =I36 ->  | E79: =I28 ->  | F79: GC @ DL | G79: =J32 ->  | H79: =J30 -> 
C80: EW @ CK | D80: =I29 ->  | E80: =I29 ->  | F80: CV @ CK | G80: =J28 ->  | H80: =J29 -> 
C88: 2025-02-11 | I88: 2025-02-11
C89: Area 10 Championship | I89: Area 10 Championship
C90: Teams | E90: Score | F90: Teams | H90: Score | I90: Team | M90: Score | N90: Rank
C91: Alatoona | E91: =L36 -> 
C92: Cherokee | E92: =L29 -> 
C93: Cartersville | E93: =L28 -> 
C94: Dalton | E94: =L30 -> 
C95: Etowah | E95: =L31 -> 
C96: Gordon Central | E96: =L32 -> 
C97: LaFayette | E97: =L33 -> 
C98: Ridgeland | E98: =L34 -> 
A102: 1st Round/Sectionals 25 February 2025 Semifinals 04 March 2025 State Championship 15 March 2025

Sheet TEAMS
AC1: =A21 -> CV
A2: Cartersville | B2: Evans, Lucy (11) | G2: Rangel, Luis (12) | L2: Sheffleid, Maggie (10) | Q2: Craig, Ainsley (11) | V2: Newport, Bryson (10) | AA2: MATCH | AC2: =B2 -> Evans, Lucy (11) | AD2: =G2 -> Rangel, Luis (12) | AE2: =L2 -> Sheffleid, Maggie (10) | AF2: =Q2 -> Craig, Ainsley (11) | AG2: =V2 -> Newport, Bryson (10) | AH2: Match 1 | AM2: RK | AN2: Match 2 | AS2: RK | AT2: Match 3 | AY2: RK | AZ2: Match 4 | BE2: RK | BF2: Match 5 | BK2: RK | BL2: Match 6 | BQ2: RK | BR2: Match 7 | BW2: RK | BX2: Match 8 | CC2: RK | CD2: Match 9 | CI2: RK | CJ2: Match 10 | CO2: RK | CP2: Match 11 | CU2: RK | CV2: Match 12 | DA2: RK | DB2: Match 13 | DG2: RK | DH2: Match 14 | DM2: RK | DN2: Area Playoff | DS2: RK | DT2: Area Championship | DY2: RK | DZ2: AGGR | EA2: Kneeling | EB2: Prone | EC2: Standing
A3: VS | B3: K | C3: P | D3: S | E3: AGGR | F3: *10 | G3: K | H3: P | I3: S | J3: AGGR | K3: *10 | L3: K | M3: P | N3: S | O3: AGGR | P3: *10 | Q3: K | R3: P | S3: S | T3: AGGR | U3: *10 | V3: K | W3: P | X3: S | Y3: AGGR | Z3: *10 | AA3: SCORE | AB3: *10 | AC3: =IF(SUM(E4:E19)>0,LARGE(E4:E19,1),0) -> 295 | AD3: =IF(SUM(J4:J19)>0,LARGE(J4:J19,1),0) -> 280 | AE3: =IF(SUM(O4:O19)>0,LARGE(O4:O19,1),0) -> 287 | AF3: =IF(SUM(T4:T19)>0,LARGE(T4:T19,1),0) -> 268 | AG3: =IF(SUM(Y4:Y19)>0,LARGE(Y4:Y19,1),0) -> 277 | AH3: AGGR | AI3: *10 | AJ3: K | AK3: P | AL3: S | AN3: AGGR | AO3: *10 | AP3: K | AQ3: P | AR3: S | AT3: AGGR | AU3: *10 | AV3: K | AW3: P | AX3: S | AZ3: AGGR | BA3: *10 | BB3: K | BC3: P | BD3: S | BF3: AGGR | BG3: *10 | BH3: K | BI3: P | BJ3: S | BL3: AGGR | BM3: *10 | BN3: K | BO3: P | BP3: S | BR3: AGGR | BS3: *10 | BT3: K | BU3: P | BV3: S | BX3: AGGR | BY3: *10 | BZ3: K | CA3: P | CB3: S | CD3: AGGR | CE3: *10 | CF3: K | CG3: P | CH3: S | CJ3: AGGR | CK3: *10 | CL3: K | CM3: P | CN3: S | CP3: AGGR | CQ3: *10 | CR3: K | CS3: P | CT3: S | CV3: AGGR | CW3: *10 | CX3: K | CY3: P | CZ3: S | DB3: AGGR | DC3: *10 | DD3: K | DE3: P | DF3: S | DH3: AGGR | DI3: *10 | DJ3: K | DK3: P | DL3: S | DN3: AGGR | DO3: *10 | DP3: K | DQ3: P | DR3: S | DT3: AGGR | DU3: *10 | DV3: K | DW3: P | DX3: S | DZ3: Large | EA3: Large | EB3: Large | EC3: Large
A4: Lafayette | B4: 98 | C4: 98 | D4: 94 | E4: =SUM(B4:D4) -> 290 | F4: 19 | G4: 92 | H4: 95 | I4: 88 | J4: =IF(SUM(G4:I4)>0,SUM(G4:I4),"") -> 275 | K4: 7 | L4: 91 | M4: 96 | N4: 87 | O4: =IF(SUM(L4:N4)>0,SUM(L4:N4),"") -> 274 | P4: 8 | Q4: 91 | R4: 96 | S4: 68 | T4: =SUM(Q4:S4) -> 255 | U4: 9 | V4: 84 | W4: 90 | X4: 75 | Y4: =IF(SUM(V4:X4)>0,SUM(V4:X4),"") -> 249 | Z4: 5 | AA4: =IF(SUM(E4,J4,O4,T4,Y4,Y24,T24,O24,J24,E24,E44,J44,O44,T44,Y44)>0,(LARGE((E4,J4,O4,T4,Y4,Y24,T24,O24,J24,E24,E44,J44,O44,T44,Y44),1)+LARGE((E4,J4,O4,T4,Y4,Y24,T24,O24,J24,E24,E44,J44,O44,T44,Y44),2)+LARGE((E4,J4,O4,T4,Y4,Y24,T24,O24,J24,E24,E44,J44,O44,T44,Y44),3)+LARGE((E4,J4,O4,T4,Y4,Y24,T24,O24,J24,E24,E44,J44,O44,T44,Y44),4)),"") -> 1094 | AB4: =IF(SUM(AI35)>0,SUM(AI35),"") -> 43 | AH4: =IF(SUM(B4:D4)>0,SUM(B4:D4),0) -> 290 | AI4: =IF(SUM(F4)>0,SUM(F4),0) -> 19 | AJ4: =B4 -> 98 | AK4: =C4 -> 98 | AL4: =D4 -> 94 | AN4: =IF(SUM(B5:D5)>0,SUM(B5:D5),0) -> 292 | AO4: =IF(SUM(F5)>0,SUM(F5),0) -> 0 | AP4: =B5 -> 96 | AQ4: =C5 -> 99 | AR4: =D5 -> 97 | AT4: =IF(SUM(B6:D6)>0,SUM(B6:D6),0) -> 0 | AU4: =IF(SUM(F6)>0,SUM(F6),0) -> 0 | AV4: =B6 -> 0 | AW4: =C6 -> 0 | AX4: =D6 -> 0 | AZ4: =IF(SUM(B7:D7)>0,SUM(B7:D7),0) -> 295 | BA4: =IF(SUM(F7)>0,SUM(F7),0) -> 22 | BB4: =B7 -> 99 | BC4: =C7 -> 100 | BD4: =D7 -> 96 | BF4: =IF(SUM(B8:D8)>0,SUM(B8:D8),0) -> 292 | BG4: =IF(SUM(F8)>0,SUM(F8),0) -> 18 | BH4: =B8 -> 98 | BI4: =C8 -> 99 | BJ4: =D8 -> 95 | BL4: =IF(SUM(B9:D9)>0,SUM(B9:D9),0) -> 294 | BM4: =IF(SUM(F9)>0,SUM(F9),0) -> 19 | BN4: =B9 -> 99 | BO4: =C9 -> 100 | BP4: =D9 -> 95 | BR4: =IF(SUM(B10:D10)>0,SUM(B10:D10),0) -> 0 | BS4: =IF(SUM(F10)>0,SUM(F10),0) -> 0 | BT4: =B10 -> 0 | BU4: =C10 -> 0 | BV4: =D10 -> 0 | BX4: =IF(SUM(B11:D11)>0,SUM(B11:D11),0) -> 294 | BY4: =IF(SUM(F11)>0,SUM(F11),0) -> 22 | BZ4: =B11 -> 98 | CA4: =C11 -> 100 | CB4: =D11 -> 96 | CD4: =IF(SUM(B12:D12)>0,SUM(B12:D12),0) -> 0 | CE4: =IF(SUM(F12)>0,SUM(F12),0) -> 0 | CF4: =B12 -> 0 | CG4: =C12 -> 0 | CH4: =D12 -> 0 | CJ4: =IF(SUM(B13:D13)>0,SUM(B13:D13),0) -> 294 | CK4: =IF(SUM(F13)>0,SUM(F13),0) -> 16 | CL4: =B13 -> 98 | CM4: =C13 -> 98 | CN4: =D13 -> 98 | CP4: =IF(SUM(B14:D14)>0,SUM(B14:D14),0) -> 293 | CQ4: =IF(SUM(F14)>0,SUM(F14),0) -> 15 | CR4: =B14 -> 98 | CS4: =C14 -> 98 | CT4: =D14 -> 97 | CV4: =IF(SUM(B15:D15)>0,SUM(B15:D15),0) -> 293 | CW4: =IF(SUM(F15)>0,SUM(F15),0) -> 17 | CX4: =B15 -> 98 | CY4: =C15 -> 99 | CZ4: =D15 -> 96 | DB4: =IF(SUM(B16:D16)>0,SUM(B16:D16),0) -> 0 | DC4: =IF(SUM(F16)>0,SUM(F16),0) -> 0 | DD4: =B16 -> 0 | DE4: =C16 -> 0 | DF4: =D16 -> 0 | DH4: =IF(SUM(B17:D17)>0,SUM(B17:D17),0) -> 0 | DI4: =IF(SUM(F17)>0,SUM(F17),0) -> 0 | DJ4: =B17 -> 0 | DK4: =C17 -> 0 | DL4: =D17 -> 0 | DN4: =IF(SUM(B18:D18)>0,SUM(B18:D18),0) -> 0 | DO4: =IF(SUM(F18)>0,SUM(F18),0) -> 0 | DP4: =B18 -> 0 | DQ4: =C18 -> 0 | DR4: =D18 -> 0 | DT4: =IF(SUM(B19:D19)>0,SUM(B19:D19),0) -> 0 | DU4: =IF(SUM(F19)>0,SUM(F19),0) -> 0 | DV4: =B19 -> 0 | DW4: =C19 -> 0 | DX4: =D19 -> 0 | DZ4: =LARGE((DT4,DN4,DH4,DB4,CV4,CP4,CJ4,CD4,BX4,BR4,BL4,BF4,AZ4,AT4,AN4,AH4),1) -> 295 | EA4: =LARGE((AJ4,AP4,AV4,BB4,BH4,BN4,BT4,BZ4,CF4,CL4,CR4,CX4,DD4,DJ4,DP4,DV4),1) -> 99 | EB4: =LARGE((AK4,AQ4,AW4,BC4,BI4,BO4,BU4,CA4,CG4,CM4,CS4,CY4,DE4,DK4,DQ4,DW4),1) -> 100 | EC4: =LARGE((AL4,AR4,AX4,BD4,BJ4,BP4,BV4,CB4,CH4,CN4,CT4,CZ4,DF4,DL4,DR4,DX4),1) -> 98
A5: @ Ridgeland | B5: 96 | C5: 99 | D5: 97 | E5: =IF(SUM(B5:D5)>0,SUM(B5:D5),"") -> 292 | F5: 21` | G5: 91 | H5: 96 | I5: 84 | J5: 271 | K5: 9 | L5: 91 | M5: 95 | N5: 91 | O5: 277 | P5: 1 | Q5: 85 | R5: 97 | S5: 69 | T5: =IF(SUM(Q5:S5)>0,SUM(Q5:S5),"") -> 251 | U5: 8 | V5: 92 | W5: 99 | X5: 86 | Y5: 277 | Z5: 11 | AA5: =IF(SUM(E5,J5,O5,T5,Y5,Y25,T25,O25,J25,E25,E45,J45,O45,T45,Y45)>0,(LARGE((E5,J5,O5,T5,Y5,Y25,T25,O25,J25,E25,E45,J45,O45,T45,Y45),1)+LARGE((E5,J5,O5,T5,Y5,Y25,T25,O25,J25,E25,E45,J45,O45,T45,Y45),2)+LARGE((E5,J5,O5,T5,Y5,Y25,T25,O25,J25,E25,E45,J45,O45,T45,Y45),3)+LARGE((E5,J5,O5,T5,Y5,Y25,T25,O25,J25,E25,E45,J45,O45,T45,Y45),4)),"") -> 1117 | AB5: =IF(SUM(AO35)>0,SUM(AO35),"") -> 21 | AH5: =IF(SUM(G4:I4)>0,SUM(G4:I4),0) -> 275 | AI5: =IF(SUM(K4)>0,SUM(K4),0) -> 7 | AJ5: =G4 -> 92 | AK5: =H4 -> 95 | AL5: =I4 -> 88 | AN5: =IF(SUM(G5:I5)>0,SUM(G5:I5),0) -> 271 | AO5: =IF(SUM(K5)>0,SUM(K5),0) -> 9 | AP5: =G5 -> 91 | AQ5: =H5 -> 96 | AR5: =I5 -> 84 | AT5: =IF(SUM(G6:I6)>0,SUM(G6:I6),0) -> 280 | AU5: =IF(SUM(K6)>0,SUM(K6),0) -> 9 | AV5: =G6 -> 93 | AW5: =H6 -> 98 | AX5: =I6 -> 89 | AZ5: =IF(SUM(G7:I7)>0,SUM(G7:I7),0) -> 0 | BA5: =IF(SUM(K7)>0,SUM(K7),0) -> 0 | BB5: =G7 -> 0 | BC5: =H7 -> 0 | BD5: =I7 -> 0 | BF5: =IF(SUM(G8:I8)>0,SUM(G8:I8),0) -> 275 | BG5: =IF(SUM(K8)>0,SUM(K8),0) -> 9 | BH5: =G8 -> 94 | BI5: =H8 -> 97 | BJ5: =I8 -> 84 | BL5: =IF(SUM(G9:I9)>0,SUM(G9:I9),0) -> 271 | BM5: =IF(SUM(K9)>0,SUM(K9),0) -> 2 | BN5: =G9 -> 89 | BO5: =H9 -> 96 | BP5: =I9 -> 86 | BR5: =IF(SUM(G10:I10)>0,SUM(G10:I10),0) -> 0 | BS5: =IF(SUM(K10)>0,SUM(K10),0) -> 0 | BT5: =G10 -> 0 | BU5: =H10 -> 0 | BV5: =I10 -> 0 | BX5: =IF(SUM(G11:I11)>0,SUM(G11:I11),0) -> 267 | BY5: =IF(SUM(K11)>0,SUM(K11),0) -> 10 | BZ5: =G11 -> 83 | CA5: =H11 -> 99 | CB5: =I11 -> 85 | CD5: =IF(SUM(G12:I12)>0,SUM(G12:I12),0) -> 0 | CE5: =IF(SUM(K12)>0,SUM(K12),0) -> 0 | CF5: =G12 -> 0 | CG5: =H12 -> 0 | CH5: =I12 -> 0 | CJ5: =IF(SUM(G13:I13)>0,SUM(G13:I13),0) -> 280 | CK5: =IF(SUM(K13)>0,SUM(K13),0) -> 14 | CL5: =G13 -> 94 | CM5: =H13 -> 99 | CN5: =I13 -> 87 | CP5: =IF(SUM(G14:I14)>0,SUM(G14:I14),0) -> 272 | CQ5: =IF(SUM(K14)>0,SUM(K14),0) -> 9 | CR5: =G14 -> 88 | CS5: =H14 -> 100 | CT5: =I14 -> 84 | CV5: =IF(SUM(G15:I15)>0,SUM(G15:I15),0) -> 275 | CW5: =IF(SUM(K15)>0,SUM(K15),0) -> 11 | CX5: =G15 -> 92 | CY5: =H15 -> 99 | CZ5: =I15 -> 84 | DB5: =IF(SUM(G16:I16)>0,SUM(G16:I16),0) -> 0 | DC5: =IF(SUM(K16)>0,SUM(K16),0) -> 0 | DD5: =G16 -> 0 | DE5: =H16 -> 0 | DF5: =I16 -> 0 | DH5: =IF(SUM(G17:I17)>0,SUM(G17:I17),0) -> 0 | DI5: =IF(SUM(K17)>0,SUM(K17),0) -> 0 | DJ5: =G17 -> 0 | DK5: =H17 -> 0 | DL5: =I17 -> 0 | DN5: =IF(SUM(G18:I18)>0,SUM(G18:I18),0) -> 0 | DO5: =IF(SUM(K18)>0,SUM(K18),0) -> 0 | DP5: =G18 -> 0 | DQ5: =H18 -> 0 | DR5: =I18 -> 0 | DT5: =IF(SUM(G19:I19)>0,SUM(G19:I19),0) -> 0 | DU5: =IF(SUM(K19)>0,SUM(K19),0) -> 0 | DV5: =G19 -> 0 | DW5: =H19 -> 0 | DX5: =I19 -> 0 | DZ5: =LARGE((DT5,DN5,DH5,DB5,CV5,CP5,CJ5,CD5,BX5,BR5,BL5,BF5,AZ5,AT5,AN5,AH5),1) -> 280 | EA5: =LARGE((AJ5,AP5,AV5,BB5,BH5,BN5,BT5,BZ5,CF5,CL5,CR5,CX5,DD5,DJ5,DP5,DV5),1) -> 94 | EB5: =LARGE((AK5,AQ5,AW5,BC5,BI5,BO5,BU5,CA5,CG5,CM5,CS5,CY5,DE5,DK5,DQ5,DW5),1) -> 100 | EC5: =LARGE((AL5,AR5,AX5,BD5,BJ5,BP5,BV5,CB5,CH5,CN5,CT5,CZ5,DF5,DL5,DR5,DX5),1) -> 89
A6: Dalton | G6: 93 | H6: 98 | I6: 89 | J6: 280 | K6: 9 | L6: 92 | M6: 98 | N6: 92 | O6: 282 | P6: 10 | Q6: 83 | R6: 95 | S6: 57 | T6: 235 | U6: 4 | V6: 86 | W6: 94 | X6: 86 | Y6: 266 | Z6: 6 | AA6: =IF(SUM(E6,J6,O6,T6,Y6,Y26,T26,O26,J26,E26,E46,J46,O46,T46,Y46)>0,(LARGE((E6,J6,O6,T6,Y6,Y26,T26,O26,J26,E26,E46,J46,O46,T46,Y46),1)+LARGE((E6,J6,O6,T6,Y6,Y26,T26,O26,J26,E26,E46,J46,O46,T46,Y46),2)+LARGE((E6,J6,O6,T6,Y6,Y26,T26,O26,J26,E26,E46,J46,O46,T46,Y46),3)+LARGE((E6,J6,O6,T6,Y6,Y26,T26,O26,J26,E26,E46,J46,O46,T46,Y46),4)),"") -> 1088 | AB6: =IF(SUM(AU35)>0, SUM(AU35),"") -> 30 | AH6: =IF(SUM(L4:N4)>0,SUM(L4:N4),0) -> 274 | AI6: =IF(SUM(P4)>0,SUM(P4),0) -> 8 | AJ6: =L4 -> 91 | AK6: =M4 -> 96 | AL6: =N4 -> 87 | AN6: =IF(SUM(L5:N5)>0,SUM(L5:N5),0) -> 277 | AO6: =IF(SUM(P5)>0,SUM(P5),0) -> 1 | AP6: =L5 -> 91 | AQ6: =M5 -> 95 | AR6: =N5 -> 91 | AT6: =IF(SUM(L6:N6)>0,SUM(L6:N6),0) -> 282 | AU6: =IF(SUM(P6)>0,SUM(P6),0) -> 10 | AV6: =L6 -> 92 | AW6: =M6 -> 98 | AX6: =N6 -> 92 | AZ6: =IF(SUM(L7:N7)>0,SUM(L7:N7),0) -> 285 | BA6: =IF(SUM(P7)>0,SUM(P7),0) -> 13 | BB6: =L7 -> 95 | BC6: =M7 -> 100 | BD6: =N7 -> 90 | BF6: =IF(SUM(L8:N8)>0,SUM(L8:N8),0) -> 281 | BG6: =IF(SUM(P8)>0,SUM(P8),0) -> 14 | BH6: =L8 -> 94 | BI6: =M8 -> 98 | BJ6: =N8 -> 89 | BL6: =IF(SUM(L9:N9)>0,SUM(L9:N9),0) -> 282 | BM6: =IF(SUM(P9)>0,SUM(P9),0) -> 12 | BN6: =L9 -> 94 | BO6: =M9 -> 100 | BP6: =N9 -> 88 | BR6: =IF(SUM(L10:N10)>0,SUM(L10:N10),0) -> 0 | BS6: =IF(SUM(P10)>0,SUM(P10),0) -> 0 | BT6: =L10 -> 0 | BU6: =M10 -> 0 | BV6: =N10 -> 0 | BX6: =IF(SUM(L11:N11)>0,SUM(L11:N11),0) -> 282 | BY6: =IF(SUM(P11)>0,SUM(P11),0) -> 9 | BZ6: =L11 -> 96 | CA6: =M11 -> 97 | CB6: =N11 -> 89 | CD6: =IF(SUM(L12:N12)>0,SUM(L12:N12),0) -> 0 | CE6: =IF(SUM(P12)>0,SUM(P12),0) -> 0 | CF6: =L12 -> 0 | CG6: =M12 -> 0 | CH6: =N12 -> 0 | CJ6: =IF(SUM(L13:N13)>0,SUM(L13:N13),0) -> 287 | CK6: =IF(SUM(P13)>0,SUM(P13),0) -> 17 | CL6: =L13 -> 97 | CM6: =M13 -> 99 | CN6: =N13 -> 91 | CP6: =IF(SUM(L14:N14)>0,SUM(L14:N14),0) -> 277 | CQ6: =IF(SUM(P14)>0,SUM(P14),0) -> 7 | CR6: =L14 -> 93 | CS6: =M14 -> 98 | CT6: =N14 -> 86 | CV6: =IF(SUM(L15:N15)>0,SUM(L15:N15),0) -> 286 | CW6: =IF(SUM(P15)>0,SUM(P15),0) -> 0 | CX6: =L15 -> 97 | CY6: =M15 -> 100 | CZ6: =N15 -> 89 | DB6: =IF(SUM(L16:N16)>0,SUM(L16:N16),0) -> 0 | DC6: =IF(SUM(P16)>0,SUM(P16),0) -> 0 | DD6: =L16 -> 0 | DE6: =M16 -> 0 | DF6: =N16 -> 0 | DH6: =IF(SUM(L17:N17)>0,SUM(L17:N17),0) -> 0 | DI6: =IF(SUM(P17)>0,SUM(P17),0) -> 0 | DJ6: =L17 -> 0 | DK6: =M17 -> 0 | DL6: =N17 -> 0 | DN6: =IF(SUM(L18:N18)>0,SUM(L18:N18),0) -> 0 | DO6: =IF(SUM(P18)>0,SUM(P18),0) -> 0 | DP6: =L18 -> 0 | DQ6: =M18 -> 0 | DR6: =N18 -> 0 | DT6: =IF(SUM(L19:N19)>0,SUM(L19:N19),0) -> 0 | DU6: =IF(SUM(P19)>0,SUM(P19),0) -> 0 | DV6: =L19 -> 0 | DW6: =M19 -> 0 | DX6: =N19 -> 0 | DZ6: =LARGE((DT6,DN6,DH6,DB6,CV6,CP6,CJ6,CD6,BX6,BR6,BL6,BF6,AZ6,AT6,AN6,AH6),1) -> 287 | EA6: =LARGE((AJ6,AP6,AV6,BB6,BH6,BN6,BT6,BZ6,CF6,CL6,CR6,CX6,DD6,DJ6,DP6,DV6),1) -> 97 | EB6: =LARGE((AK6,AQ6,AW6,BC6,BI6,BO6,BU6,CA6,CG6,CM6,CS6,CY6,DE6,DK6,DQ6,DW6),1) -> 100 | EC6: =LARGE((AL6,AR6,AX6,BD6,BJ6,BP6,BV6,CB6,CH6,CN6,CT6,CZ6,DF6,DL6,DR6,DX6),1) -> 92
A7: Gordon Central | B7: 99 | C7: 100 | D7: 96 | E7: 295 | F7: 22 | L7: 95 | M7: 100 | N7: 90 | O7: 285 | P7: 13 | Q7: 78 | R7: 89 | S7: 68 | T7: 235 | U7: 2 | V7: 87 | W7: 87 | X7: 77 | Y7: 251 | Z7: 3 | AA7: =IF(SUM(E7,J7,O7,T7,Y7,Y27,T27,O27,J27,E27,E47,J47,O47,T47,Y47)>0,(LARGE((E7,J7,O7,T7,Y7,Y27,T27,O27,J27,E27,E47,J47,O47,T47,Y47),1)+LARGE((E7,J7,O7,T7,Y7,Y27,T27,O27,J27,E27,E47,J47,O47,T47,Y47),2)+LARGE((E7,J7,O7,T7,Y7,Y27,T27,O27,J27,E27,E47,J47,O47,T47,Y47),3)+LARGE((E7,J7,O7,T7,Y7,Y27,T27,O27,J27,E27,E47,J47,O47,T47,Y47),4)),"") -> 1073 | AB7: =IF(SUM(BA35)>0, SUM(BA35),"") -> 40 | AH7: =IF(SUM(Q4:S4)>0,SUM(Q4:S4),0) -> 255 | AI7: =IF(SUM(U4)>0,SUM(U4),0) -> 9 | AJ7: =Q4 -> 91 | AK7: =R4 -> 96 | AL7: =S4 -> 68 | AN7: =IF(SUM(Q5:S5)>0,SUM(Q5:S5),0) -> 251 | AO7: =IF(SUM(U5)>0,SUM(U5),0) -> 8 | AP7: =Q5 -> 85 | AQ7: =R5 -> 97 | AR7: =S5 -> 69 | AT7: =IF(SUM(Q6:S6)>0,SUM(Q6:S6),0) -> 235 | AU7: =IF(SUM(U6)>0,SUM(U6),0) -> 4 | AV7: =Q6 -> 83 | AW7: =R6 -> 95 | AX7: =S6 -> 57 | AZ7: =IF(SUM(Q7:S7)>0,SUM(Q7:S7),0) -> 235 | BA7: =IF(SUM(U7)>0,SUM(U7),0) -> 2 | BB7: =Q7 -> 78 | BC7: =R7 -> 89 | BD7: =S7 -> 68 | BF7: =IF(SUM(Q8:S8)>0,SUM(Q8:S8),0) -> 268 | BG7: =IF(SUM(U8)>0,SUM(U8),0) -> 9 | BH7: =Q8 -> 89 | BI7: =R8 -> 99 | BJ7: =S8 -> 80 | BL7: =IF(SUM(Q9:S9)>0,SUM(Q9:S9),0) -> 247 | BM7: =IF(SUM(U9)>0,SUM(U9),0) -> 0 | BN7: =Q9 -> 87 | BO7: =R9 -> 98 | BP7: =S9 -> 62 | BR7: =IF(SUM(Q10:S10)>0,SUM(Q10:S10),0) -> 0 | BS7: =IF(SUM(U10)>0,SUM(U10),0) -> 0 | BT7: =Q10 -> 0 | BU7: =R10 -> 0 | BV7: =S10 -> 0 | BX7: =IF(SUM(Q11:S11)>0,SUM(Q11:S11),0) -> 0 | BY7: =IF(SUM(U11)>0,SUM(U11),0) -> 0 | BZ7: =Q11 -> 0 | CA7: =R11 -> 0 | CB7: =S11 -> 0 | CD7: =IF(SUM(Q12:S12)>0,SUM(Q12:S12),0) -> 0 | CE7: =IF(SUM(U12)>0,SUM(U12),0) -> 0 | CF7: =Q12 -> 0 | CG7: =R12 -> 0 | CH7: =S12 -> 0 | CJ7: =IF(SUM(Q13:S13)>0,SUM(Q13:S13),0) -> 259 | CK7: =IF(SUM(U13)>0,SUM(U13),0) -> 6 | CL7: =Q13 -> 90 | CM7: =R13 -> 94 | CN7: =S13 -> 75 | CP7: =IF(SUM(Q14:S14)>0,SUM(Q14:S14),0) -> 259 | CQ7: =IF(SUM(U14)>0,SUM(U14),0) -> 4 | CR7: =Q14 -> 87 | CS7: =R14 -> 95 | CT7: =S14 -> 77 | CV7: =IF(SUM(Q15:S15)>0,SUM(Q15:S15),0) -> 260 | CW7: =IF(SUM(U15)>0,SUM(U15),0) -> 8 | CX7: =Q15 -> 91 | CY7: =R15 -> 95 | CZ7: =S15 -> 74 | DB7: =IF(SUM(Q16:S16)>0,SUM(Q16:S16),0) -> 0 | DC7: =IF(SUM(U16)>0,SUM(U16),0) -> 0 | DD7: =Q16 -> 0 | DE7: =R16 -> 0 | DF7: =S16 -> 0 | DH7: =IF(SUM(Q17:S17)>0,SUM(Q17:S17),0) -> 0 | DI7: =IF(SUM(U17)>0,SUM(U17),0) -> 0 | DJ7: =Q17 -> 0 | DK7: =R17 -> 0 | DL7: =S17 -> 0 | DN7: =IF(SUM(Q18:S18)>0,SUM(Q18:S18),0) -> 0 | DO7: =IF(SUM(U18)>0,SUM(U18),0) -> 0 | DP7: =Q18 -> 0 | DQ7: =R18 -> 0 | DR7: =S18 -> 0 | DT7: =IF(SUM(Q19:S19)>0,SUM(Q19:S19),0) -> 0 | DU7: =IF(SUM(U19)>0,SUM(U19),0) -> 0 | DV7: =Q19 -> 0 | DW7: =R19 -> 0 | DX7: =S19 -> 0 | DZ7: =LARGE((DT7,DN7,DH7,DB7,CV7,CP7,CJ7,CD7,BX7,BR7,BL7,BF7,AZ7,AT7,AN7,AH7),1) -> 268 | EA7: =LARGE((AJ7,AP7,AV7,BB7,BH7,BN7,BT7,BZ7,CF7,CL7,CR7,CX7,DD7,DJ7,DP7,DV7),1) -> 91 | EB7: =LARGE((AK7,AQ7,AW7,BC7,BI7,BO7,BU7,CA7,CG7,CM7,CS7,CY7,DE7,DK7,DQ7,DW7),1) -> 99 | EC7: =LARGE((AL7,AR7,AX7,BD7,BJ7,BP7,BV7,CB7,CH7,CN7,CT7,CZ7,DF7,DL7,DR7,DX7),1) -> 80
A8: Etowah | B8: 98 | C8: 99 | D8: 95 | E8: 292 | F8: 18 | G8: 94 | H8: 97 | I8: 84 | J8: 275 | K8: 9 | L8: 94 | M8: 98 | N8: 89 | O8: 281 | P8: 14 | Q8: 89 | R8: 99 | S8: 80 | T8: 268 | U8: 9 | V8: 89 | W8: 93 | X8: 77 | Y8: 259 | Z8: 6 | AA8: =IF(SUM(E8,J8,O8,T8,Y8,Y28,T28,O28,J28,E28,E48,J48,O48,T48,Y48)>0,(LARGE((E8,J8,O8,T8,Y8,Y28,T28,O28,J28,E28,E48,J48,O48,T48,Y48),1)+LARGE((E8,J8,O8,T8,Y8,Y28,T28,O28,J28,E28,E48,J48,O48,T48,Y48),2)+LARGE((E8,J8,O8,T8,Y8,Y28,T28,O28,J28,E28,E48,J48,O48,T48,Y48),3)+LARGE((E8,J8,O8,T8,Y8,Y28,T28,O28,J28,E28,E48,J48,O48,T48,Y48),4)),"") -> 1116 | AB8: =IF(SUM(BG35)>0,SUM(BG35),"") -> 50 | AH8: =IF(SUM(V4:X4)>0,SUM(V4:X4),0) -> 249 | AI8: =IF(SUM(Z4)>0,SUM(Z4),0) -> 5 | AJ8: =V4 -> 84 | AK8: =W4 -> 90 | AL8: =X4 -> 75 | AN8: =IF(SUM(V5:X5)>0,SUM(V5:X5),0) -> 277 | AO8: =IF(SUM(Z5)>0,SUM(Z5),0) -> 11 | AP8: =V5 -> 92 | AQ8: =W5 -> 99 | AR8: =X5 -> 86 | AT8: =IF(SUM(V6:X6)>0,SUM(V6:X6),0) -> 266 | AU8: =IF(SUM(Z6)>0,SUM(Z6),0) -> 6 | AV8: =V6 -> 86 | AW8: =W6 -> 94 | AX8: =X6 -> 86 | AZ8: =IF(SUM(V7:X7)>0,SUM(V7:X7),0) -> 251 | BA8: =IF(SUM(Z7)>0,SUM(Z7),0) -> 3 | BB8: =V7 -> 87 | BC8: =W7 -> 87 | BD8: =X7 -> 77 | BF8: =IF(SUM(V8:X8)>0,SUM(V8:X8),0) -> 259 | BG8: =IF(SUM(Z8)>0,SUM(Z8),0) -> 6 | BH8: =V8 -> 89 | BI8: =W8 -> 93 | BJ8: =X8 -> 77 | BL8: =IF(SUM(V9:X9)>0,SUM(V9:X9),0) -> 256 | BM8: =IF(SUM(Z9)>0,SUM(Z9),0) -> 4 | BN8: =V9 -> 89 | BO8: =W9 -> 92 | BP8: =X9 -> 75 | BR8: =IF(SUM(V10:X10)>0,SUM(V10:X10),0) -> 0 | BS8: =IF(SUM(Z10)>0,SUM(Z10),0) -> 0 | BT8: =V10 -> 0 | BU8: =W10 -> 0 | BV8: =X10 -> 0 | BX8: =IF(SUM(V11:X11)>0,SUM(V11:X11),0) -> 269 | BY8: =IF(SUM(Z11)>0,SUM(Z11),0) -> 10 | BZ8: =V11 -> 90 | CA8: =W11 -> 97 | CB8: =X11 -> 82 | CD8: =IF(SUM(V12:X12)>0,SUM(V12:X12),0) -> 0 | CE8: =IF(SUM(Z12)>0,SUM(Z12),0) -> 0 | CF8: =V12 -> 0 | CG8: =W12 -> 0 | CH8: =X12 -> 0 | CJ8: =IF(SUM(V13:X13)>0,SUM(V13:X13),0) -> 268 | CK8: =IF(SUM(Z13)>0,SUM(Z13),0) -> 7 | CL8: =V13 -> 94 | CM8: =W13 -> 92 | CN8: =X13 -> 82 | CP8: =IF(SUM(V14:X14)>0,SUM(V14:X14),0) -> 263 | CQ8: =IF(SUM(Z14)>0,SUM(Z14),0) -> 2 | CR8: =V14 -> 87 | CS8: =W14 -> 95 | CT8: =X14 -> 81 | CV8: =IF(SUM(V15:X15)>0,SUM(V15:X15),0) -> 269 | CW8: =IF(SUM(Z15)>0,SUM(Z15),0) -> 10 | CX8: =V15 -> 91 | CY8: =W15 -> 96 | CZ8: =X15 -> 82 | DB8: =IF(SUM(V16:X16)>0,SUM(V16:X16),0) -> 0 | DC8: =IF(SUM(Z16)>0,SUM(Z16),0) -> 0 | DD8: =V16 -> 0 | DE8: =W16 -> 0 | DF8: =X16 -> 0 | DH8: =IF(SUM(V17:X17)>0,SUM(V17:X17),0) -> 0 | DI8: =IF(SUM(Z17)>0,SUM(Z17),0) -> 0 | DJ8: =V17 -> 0 | DK8: =W17 -> 0 | DL8: =X17 -> 0 | DN8: =IF(SUM(V18:X18)>0,SUM(V18:X18),0) -> 0 | DO8: =IF(SUM(Z18)>0,SUM(Z18),0) -> 0 | DP8: =V18 -> 0 | DQ8: =W18 -> 0 | DR8: =X18 -> 0 | DT8: =IF(SUM(V19:X19)>0,SUM(V19:X19),0) -> 0 | DU8: =IF(SUM(Z19)>0,SUM(Z19),0) -> 0 | DV8: =V19 -> 0 | DW8: =W19 -> 0 | DX8: =X19 -> 0 | DZ8: =LARGE((DT8,DN8,DH8,DB8,CV8,CP8,CJ8,CD8,BX8,BR8,BL8,BF8,AZ8,AT8,AN8,AH8),1) -> 277 | EA8: =LARGE((AJ8,AP8,AV8,BB8,BH8,BN8,BT8,BZ8,CF8,CL8,CR8,CX8,DD8,DJ8,DP8,DV8),1) -> 94 | EB8: =LARGE((AK8,AQ8,AW8,BC8,BI8,BO8,BU8,CA8,CG8,CM8,CS8,CY8,DE8,DK8,DQ8,DW8),1) -> 99 | EC8: =LARGE((AL8,AR8,AX8,BD8,BJ8,BP8,BV8,CB8,CH8,CN8,CT8,CZ8,DF8,DL8,DR8,DX8),1) -> 86
A9: @ Allatoona | B9: 99 | C9: 100 | D9: 95 | E9: 294 | F9: 19 | G9: 89 | H9: 96 | I9: 86 | J9: 271 | K9: 2 | L9: 94 | M9: 100 | N9: 88 | O9: 282 | P9: 12 | Q9: 87 | R9: 98 | S9: 62 | T9: 247 | U9: `6 | V9: 89 | W9: 92 | X9: 75 | Y9: 256 | Z9: 4 | AA9: =IF(SUM(E9,J9,O9,T9,Y9,Y29,T29,O29,J29,E29,E49,J49,O49,T49,Y49)>0,(LARGE((E9,J9,O9,T9,Y9,Y29,T29,O29,J29,E29,E49,J49,O49,T49,Y49),1)+LARGE((E9,J9,O9,T9,Y9,Y29,T29,O29,J29,E29,E49,J49,O49,T49,Y49),2)+LARGE((E9,J9,O9,T9,Y9,Y29,T29,O29,J29,E29,E49,J49,O49,T49,Y49),3)+LARGE((E9,J9,O9,T9,Y9,Y29,T29,O29,J29,E29,E49,J49,O49,T49,Y49),4)),"") -> 1103 | AB9: =IF(SUM(BM35)>0,SUM(BM35),"") -> 37 | AH9: =IF(SUM(B24:D24)>0,SUM(B24:D24),0) -> 213 | AI9: =IF(SUM(F24)>0,SUM(F24),0) -> 4 | AJ9: =B24 -> 72 | AK9: =C24 -> 89 | AL9: =D24 -> 52 | AN9: =IF(SUM(B25:D25)>0,SUM(B25:D25),0) -> 0 | AO9: =IF(SUM(F25)>0,SUM(F25),0) -> 0 | AP9: =B25 -> 0 | AQ9: =C25 -> 0 | AR9: =D25 -> 0 | AT9: =IF(SUM(B26:D26)>0,SUM(B26:D26),0) -> 260 | AU9: =IF(SUM(F26)>0,SUM(F26),0) -> 5 | AV9: =B26 -> 91 | AW9: =C26 -> 89 | AX9: =D26 -> 80 | AZ9: =IF(SUM(B27:D27)>0,SUM(B27:D27),0) -> 242 | BA9: =IF(SUM(F27)>0,SUM(F27),0) -> 2 | BB9: =B27 -> 81 | BC9: =C27 -> 89 | BD9: =D27 -> 72 | BF9: =IF(SUM(B28:D28)>0,SUM(B28:D28),0) -> 0 | BG9: =IF(SUM(F28)>0,SUM(F28),0) -> 0 | BH9: =B28 -> 0 | BI9: =C28 -> 0 | BJ9: =D28 -> 0 | BL9: =IF(SUM(B29:D29)>0,SUM(B29:D29),0) -> 0 | BM9: =IF(SUM(F29)>0,SUM(F29),0) -> 0 | BN9: =B29 -> 0 | BO9: =C29 -> 0 | BP9: =D29 -> 0 | BR9: =IF(SUM(B30:D30)>0,SUM(B30:D30),0) -> 0 | BS9: =IF(SUM(F30)>0,SUM(F30),0) -> 0 | BT9: =B30 -> 0 | BU9: =C30 -> 0 | BV9: =D30 -> 0 | BX9: =IF(SUM(B31:D31)>0,SUM(B31:D31),0) -> 0 | BY9: =IF(SUM(F31)>0,SUM(F31),0) -> 0 | BZ9: =B31 -> 0 | CA9: =C31 -> 0 | CB9: =D31 -> 0 | CD9: =IF(SUM(B32:D32)>0,SUM(B32:D32),0) -> 0 | CE9: =IF(SUM(F32)>0,SUM(F32),0) -> 0 | CF9: =B32 -> 0 | CG9: =C32 -> 0 | CH9: =D32 -> 0 | CJ9: =IF(SUM(B33:D33)>0,SUM(B33:D33),0) -> 0 | CK9: =IF(SUM(F33)>0,SUM(F33),0) -> 0 | CL9: =B33 -> 0 | CM9: =C33 -> 0 | CN9: =D33 -> 0 | CP9: =IF(SUM(B34:D34)>0,SUM(B34:D34),0) -> 232 | CQ9: =IF(SUM(F34)>0,SUM(F34),0) -> 1 | CR9: =B34 -> 76 | CS9: =C34 -> 78 | CT9: =D34 -> 78 | CV9: =IF(SUM(B35:D35)>0,SUM(B35:D35),0) -> 0 | CW9: =IF(SUM(F35)>0,SUM(F35),0) -> 0 | CX9: =B35 -> 0 | CY9: =C35 -> 0 | CZ9: =D35 -> 0 | DB9: =IF(SUM(B36:D36)>0,SUM(B36:D36),0) -> 0 | DC9: =IF(SUM(F36)>0,SUM(F36),0) -> 0 | DD9: =B36 -> 0 | DE9: =C36 -> 0 | DF9: =D36 -> 0 | DH9: =IF(SUM(B37:D37)>0,SUM(B37:D37),0) -> 0 | DI9: =IF(SUM(F37)>0,SUM(F37),0) -> 0 | DJ9: =B37 -> 0 | DK9: =C37 -> 0 | DL9: =D37 -> 0 | DN9: =IF(SUM(B38:D38)>0,SUM(B38:D38),0) -> 0 | DO9: =IF(SUM(F38)>0,SUM(F37),0) -> 0 | DP9: =B38 -> 0 | DQ9: =C38 -> 0 | DR9: =D38 -> 0 | DT9: =IF(SUM(B39:D39)>0,SUM(B39:D39),0) -> 0 | DU9: =IF(SUM(F39)>0,SUM(F39),0) -> 0 | DV9: =B39 -> 0 | DW9: =C39 -> 0 | DX9: =D39 -> 0 | DZ9: =LARGE((DT9,DN9,DH9,DB9,CV9,CP9,CJ9,CD9,BX9,BR9,BL9,BF9,AZ9,AT9,AN9,AH9),1) -> 260 | EA9: =LARGE((AJ9,AP9,AV9,BB9,BH9,BN9,BT9,BZ9,CF9,CL9,CR9,CX9,DD9,DJ9,DP9,DV9),1) -> 91 | EB9: =LARGE((AK9,AQ9,AW9,BC9,BI9,BO9,BU9,CA9,CG9,CM9,CS9,CY9,DE9,DK9,DQ9,DW9),1) -> 89 | EC9: =LARGE((AL9,AR9,AX9,BD9,BJ9,BP9,BV9,CB9,CH9,CN9,CT9,CZ9,DF9,DL9,DR9,DX9),1) -> 80
A10: Cherokee | AA10: =IF(SUM(E10,J10,O10,T10,Y10,Y30,T30,O30,J30,E30,E50,J50,O50,T50,Y50)>0,(LARGE((E10,J10,O10,T10,Y10,Y30,T30,O30,J30,E30,E50,J50,O50,T50,Y50),1)+LARGE((E10,J10,O10,T10,Y10,Y30,T30,O30,J30,E30,E50,J50,O50,T50,Y50),2)+LARGE((E10,J10,O10,T10,Y10,Y30,T30,O30,J30,E30,E50,J50,O50,T50,Y50),3)+LARGE((E10,J10,O10,T10,Y10,Y30,T30,O30,J30,E30,E50,J50,O50,T50,Y50),4)),"") ->  | AB10: =IF(SUM(BS35)>0,SUM(BS35),"") ->  | AH10: =IF(SUM(G24:I24)>0,SUM(G24:I24),0) -> 0 | AI10: =IF(SUM(K24)>0,SUM(K24),0) -> 0 | AJ10: =G24 -> 0 | AK10: =H24 -> 0 | AL10: =I24 -> 0 | AN10: =IF(SUM(G25:I25)>0,SUM(G25:I25),0) -> 0 | AO10: =IF(SUM(K25)>0,SUM(K25),0) -> 0 | AP10: =G25 -> 0 | AQ10: =H25 -> 0 | AR10: =I25 -> 0 | AT10: =IF(SUM(G26:I26)>0,SUM(G26:I26),0) -> 244 | AU10: =IF(SUM(K26)>0,SUM(K26),0) -> 4 | AV10: =G26 -> 80 | AW10: =H26 -> 92 | AX10: =I26 -> 72 | AZ10: =IF(SUM(G27:I27)>0,SUM(G27:I27),0) -> 235 | BA10: =IF(SUM(K27)>0,SUM(K27),0) -> 3 | BB10: =G27 -> 82 | BC10: =H27 -> 85 | BD10: =I27 -> 68 | BF10: =IF(SUM(G28:I28)>0,SUM(G28:I28),0) -> 237 | BG10: =IF(SUM(K28)>0,SUM(K28),0) -> 1 | BH10: =G28 -> 75 | BI10: =H28 -> 89 | BJ10: =I28 -> 73 | BL10: =IF(SUM(G29:I29)>0,SUM(G29:I29),0) -> 0 | BM10: =IF(SUM(K29)>0,SUM(K29),0) -> 0 | BN10: =G29 -> 0 | BO10: =H29 -> 0 | BP10: =I29 -> 0 | BR10: =IF(SUM(G30:I30)>0,SUM(G30:I30),0) -> 0 | BS10: =IF(SUM(K30)>0,SUM(K30),0) -> 0 | BT10: =G30 -> 0 | BU10: =H30 -> 0 | BV10: =I30 -> 0 | BX10: =IF(SUM(G31:I31)>0,SUM(G31:I31),0) -> 0 | BY10: =IF(SUM(K31)>0,SUM(K31),0) -> 0 | BZ10: =G31 -> 0 | CA10: =H31 -> 0 | CB10: =I31 -> 0 | CD10: =IF(SUM(G32:I32)>0,SUM(G32:I32),0) -> 0 | CE10: =IF(SUM(K32)>0,SUM(K32),0) -> 0 | CF10: =G32 -> 0 | CG10: =H32 -> 0 | CH10: =I32 -> 0 | CJ10: =IF(SUM(G33:I33)>0,SUM(G33:I33),0) -> 0 | CK10: =IF(SUM(K33)>0,SUM(K33),0) -> 0 | CL10: =G33 -> 0 | CM10: =H33 -> 0 | CN10: =I33 -> 0 | CP10: =IF(SUM(G34:I34)>0,SUM(G34:I34),0) -> 0 | CQ10: =IF(SUM(K34)>0,SUM(K34),0) -> 0 | CR10: =G34 -> 0 | CS10: =H34 -> 0 | CT10: =I34 -> 0 | CV10: =IF(SUM(G35:I35)>0,SUM(G35:I35),0) -> 0 | CW10: =IF(SUM(K35)>0,SUM(K35),0) -> 0 | CX10: =G35 -> 0 | CY10: =H35 -> 0 | CZ10: =I35 -> 0 | DB10: =IF(SUM(G36:I36)>0,SUM(G36:I36),0) -> 0 | DC10: =IF(SUM(K36)>0,SUM(K36),0) -> 0 | DD10: =G36 -> 0 | DE10: =H36 -> 0 | DF10: =I36 -> 0 | DH10: =IF(SUM(G37:I37)>0,SUM(G37:I37),0) -> 0 | DI10: =IF(SUM(K37)>0,SUM(K37),0) -> 0 | DJ10: =G37 -> 0 | DK10: =H37 -> 0 | DL10: =I37 -> 0 | DN10: =IF(SUM(G38:I38)>0,SUM(G38:I38),0) -> 0 | DO10: =IF(SUM(K38)>0,SUM(K37),0) -> 0 | DP10: =G38 -> 0 | DQ10: =H38 -> 0 | DR10: =I38 -> 0 | DT10: =IF(SUM(G39:I39)>0,SUM(G39:I39),0) -> 0 | DU10: =IF(SUM(K39)>0,SUM(K39),0) -> 0 | DV10: =G39 -> 0 | DW10: =H39 -> 0 | DX10: =I39 -> 0 | DZ10: =LARGE((DT10,DN10,DH10,DB10,CV10,CP10,CJ10,CD10,BX10,BR10,BL10,BF10,AZ10,AT10,AN10,AH10),1) -> 244 | EA10: =LARGE((AJ10,AP10,AV10,BB10,BH10,BN10,BT10,BZ10,CF10,CL10,CR10,CX10,DD10,DJ10,DP10,DV10),1) -> 82 | EB10: =LARGE((AK10,AQ10,AW10,BC10,BI10,BO10,BU10,CA10,CG10,CM10,CS10,CY10,DE10,DK10,DQ10,DW10),1) -> 92 | EC10: =LARGE((AL10,AR10,AX10,BD10,BJ10,BP10,BV10,CB10,CH10,CN10,CT10,CZ10,DF10,DL10,DR10,DX10),1) -> 73
A11: @ Lafayette | B11: 98 | C11: 100 | D11: 96 | E11: 294 | F11: 22 | G11: 83 | H11: 99 | I11: 85 | J11: 267 | K11: 10 | L11: 96 | M11: 97 | N11: 89 | O11: 282 | P11: 9 | V11: 90 | W11: 97 | X11: 82 | Y11: 269 | Z11: 10 | AA11: =IF(SUM(E11,J11,O11,T11,Y11,Y31,T31,O31,J31,E31,E51,J51,O51,T51,Y51)>0,(LARGE((E11,J11,O11,T11,Y11,Y31,T31,O31,J31,E31,E51,J51,O51,T51,Y51),1)+LARGE((E11,J11,O11,T11,Y11,Y31,T31,O31,J31,E31,E51,J51,O51,T51,Y51),2)+LARGE((E11,J11,O11,T11,Y11,Y31,T31,O31,J31,E31,E51,J51,O51,T51,Y51),3)+LARGE((E11,J11,O11,T11,Y11,Y31,T31,O31,J31,E31,E51,J51,O51,T51,Y51),4)),"") -> 1112 | AB11: =IF(SUM(BY35)>0,SUM(BY35),"") -> 51 | AH11: =IF(SUM(L24:N24)>0,SUM(L24:N24),0) -> 0 | AI11: =IF(SUM(P24)>0,SUM(P24),0) -> 0 | AJ11: =L24 -> 0 | AK11: =M24 -> 0 | AL11: =N24 -> 0 | AN11: =IF(SUM(L25:N25)>0,SUM(L25:N25),0) -> 0 | AO11: =IF(SUM(P25)>0,SUM(P25),0) -> 0 | AP11: =L25 -> 0 | AQ11: =M25 -> 0 | AR11: =N25 -> 0 | AT11: =IF(SUM(L26:N26)>0,SUM(L26:N26),0) -> 0 | AU11: =IF(SUM(P26)>0,SUM(P26),0) -> 0 | AV11: =L26 -> 0 | AW11: =M26 -> 0 | AX11: =N26 -> 0 | AZ11: =IF(SUM(L27:N27)>0,SUM(L27:N27),0) -> 0 | BA11: =IF(SUM(P27)>0,SUM(P27),0) -> 0 | BB11: =L27 -> 0 | BC11: =M27 -> 0 | BD11: =N27 -> 0 | BF11: =IF(SUM(L28:N28)>0,SUM(L28:N28),0) -> 0 | BG11: =IF(SUM(P28)>0,SUM(P28),0) -> 0 | BH11: =L28 -> 0 | BI11: =M28 -> 0 | BJ11: =N28 -> 0 | BL11: =IF(SUM(L29:N29)>0,SUM(L29:N29),0) -> 0 | BM11: =IF(SUM(P29)>0,SUM(P29),0) -> 0 | BN11: =L29 -> 0 | BO11: =M29 -> 0 | BP11: =N29 -> 0 | BR11: =IF(SUM(L30:N30)>0,SUM(L30:N30),0) -> 0 | BS11: =IF(SUM(P30)>0,SUM(P30),0) -> 0 | BT11: =L30 -> 0 | BU11: =M30 -> 0 | BV11: =N30 -> 0 | BX11: =IF(SUM(L31:N31)>0,SUM(L31:N31),0) -> 0 | BY11: =IF(SUM(P31)>0,SUM(P31),0) -> 0 | BZ11: =L31 -> 0 | CA11: =M31 -> 0 | CB11: =N31 -> 0 | CD11: =IF(SUM(L32:N32)>0,SUM(L32:N32),0) -> 0 | CE11: =IF(SUM(P32)>0,SUM(P32),0) -> 0 | CF11: =L32 -> 0 | CG11: =M32 -> 0 | CH11: =N32 -> 0 | CJ11: =IF(SUM(L33:N33)>0,SUM(L33:N33),0) -> 0 | CK11: =IF(SUM(P33)>0,SUM(P33),0) -> 0 | CL11: =L33 -> 0 | CM11: =M33 -> 0 | CN11: =N33 -> 0 | CP11: =IF(SUM(L34:N34)>0,SUM(L34:N34),0) -> 0 | CQ11: =IF(SUM(P34)>0,SUM(P34),0) -> 0 | CR11: =L34 -> 0 | CS11: =M34 -> 0 | CT11: =N34 -> 0 | CV11: =IF(SUM(L35:N35)>0,SUM(L35:N35),0) -> 0 | CW11: =IF(SUM(P35)>0,SUM(P35),0) -> 0 | CX11: =L35 -> 0 | CY11: =M35 -> 0 | CZ11: =N35 -> 0 | DB11: =IF(SUM(L36:N36)>0,SUM(L36:N36),0) -> 0 | DC11: =IF(SUM(P36)>0,SUM(P36),0) -> 0 | DD11: =L36 -> 0 | DE11: =M36 -> 0 | DF11: =N36 -> 0 | DH11: =IF(SUM(L37:N37)>0,SUM(L37:N37),0) -> 0 | DI11: =IF(SUM(P37)>0,SUM(P37),0) -> 0 | DJ11: =L37 -> 0 | DK11: =M37 -> 0 | DL11: =N37 -> 0 | DN11: =IF(SUM(L38:N38)>0,SUM(L38:N38),0) -> 0 | DO11: =IF(SUM(P38)>0,SUM(P37),0) -> 0 | DP11: =L38 -> 0 | DQ11: =M38 -> 0 | DR11: =N38 -> 0 | DT11: =IF(SUM(L39:N39)>0,SUM(L39:N39),0) -> 0 | DU11: =IF(SUM(P39)>0,SUM(P39),0) -> 0 | DV11: =L39 -> 0 | DW11: =M39 -> 0 | DX11: =N39 -> 0 | DZ11: =LARGE((DT11,DN11,DH11,DB11,CV11,CP11,CJ11,CD11,BX11,BR11,BL11,BF11,AZ11,AT11,AN11,AH11),1) -> 0 | EA11: =LARGE((AJ11,AP11,AV11,BB11,BH11,BN11,BT11,BZ11,CF11,CL11,CR11,CX11,DD11,DJ11,DP11,DV11),1) -> 0 | EB11: =LARGE((AK11,AQ11,AW11,BC11,BI11,BO11,BU11,CA11,CG11,CM11,CS11,CY11,DE11,DK11,DQ11,DW11),1) -> 0 | EC11: =LARGE((AL11,AR11,AX11,BD11,BJ11,BP11,BV11,CB11,CH11,CN11,CT11,CZ11,DF11,DL11,DR11,DX11),1) -> 0
A12: Ridgeland | AA12: =IF(SUM(E12,J12,O12,T12,Y12,Y32,T32,O32,J32,E32,E52,J52,O52,T52,Y52)>0,(LARGE((E12,J12,O12,T12,Y12,Y32,T32,O32,J32,E32,E52,J52,O52,T52,Y52),1)+LARGE((E12,J12,O12,T12,Y12,Y32,T32,O32,J32,E32,E52,J52,O52,T52,Y52),2)+LARGE((E12,J12,O12,T12,Y12,Y32,T32,O32,J32,E32,E52,J52,O52,T52,Y52),3)+LARGE((E12,J12,O12,T12,Y12,Y32,T32,O32,J32,E32,E52,J52,O52,T52,Y52),4)),"") ->  | AB12: =IF(SUM(CE35)>0,SUM(CE35),"") ->  | AH12: =IF(SUM(Q24:S24)>0,SUM(Q24:S24),0) -> 0 | AI12: =IF(SUM(U24)>0,SUM(U24),0) -> 0 | AJ12: =Q24 -> 0 | AK12: =R24 -> 0 | AL12: =S24 -> 0 | AN12: =IF(SUM(Q25:S25)>0,SUM(Q25:S25),0) -> 0 | AO12: =IF(SUM(U25)>0,SUM(U25),0) -> 0 | AP12: =Q25 -> 0 | AQ12: =R25 -> 0 | AR12: =S25 -> 0 | AT12: =IF(SUM(Q26:S26)>0,SUM(Q26:S26),0) -> 0 | AU12: =IF(SUM(U26)>0,SUM(U26),0) -> 0 | AV12: =Q26 -> 0 | AW12: =R26 -> 0 | AX12: =S26 -> 0 | AZ12: =IF(SUM(Q27:S27)>0,SUM(Q27:S27),0) -> 0 | BA12: =IF(SUM(U27)>0,SUM(U27),0) -> 0 | BB12: =Q27 -> 0 | BC12: =R27 -> 0 | BD12: =S27 -> 0 | BF12: =IF(SUM(Q28:S28)>0,SUM(Q28:S28),0) -> 0 | BG12: =IF(SUM(U28)>0,SUM(U28),0) -> 0 | BH12: =Q28 -> 0 | BI12: =R28 -> 0 | BJ12: =S28 -> 0 | BL12: =IF(SUM(Q29:S29)>0,SUM(Q29:S29),0) -> 0 | BM12: =IF(SUM(U29)>0,SUM(U29),0) -> 0 | BN12: =Q29 -> 0 | BO12: =R29 -> 0 | BP12: =S29 -> 0 | BR12: =IF(SUM(Q30:S30)>0,SUM(Q30:S30),0) -> 0 | BS12: =IF(SUM(U30)>0,SUM(U30),0) -> 0 | BT12: =Q30 -> 0 | BU12: =R30 -> 0 | BV12: =S30 -> 0 | BX12: =IF(SUM(Q31:S31)>0,SUM(Q31:S31),0) -> 0 | BY12: =IF(SUM(U31)>0,SUM(U31),0) -> 0 | BZ12: =Q31 -> 0 | CA12: =R31 -> 0 | CB12: =S31 -> 0 | CD12: =IF(SUM(Q32:S32)>0,SUM(Q32:S32),0) -> 0 | CE12: =IF(SUM(U32)>0,SUM(U32),0) -> 0 | CF12: =Q32 -> 0 | CG12: =R32 -> 0 | CH12: =S32 -> 0 | CJ12: =IF(SUM(Q33:S33)>0,SUM(Q33:S33),0) -> 0 | CK12: =IF(SUM(U33)>0,SUM(U33),0) -> 0 | CL12: =Q33 -> 0 | CM12: =R33 -> 0 | CN12: =S33 -> 0 | CP12: =IF(SUM(Q34:S34)>0,SUM(Q34:S34),0) -> 0 | CQ12: =IF(SUM(U34)>0,SUM(U34),0) -> 0 | CR12: =Q34 -> 0 | CS12: =R34 -> 0 | CT12: =S34 -> 0 | CV12: =IF(SUM(Q35:S35)>0,SUM(Q35:S35),0) -> 0 | CW12: =IF(SUM(U35)>0,SUM(U35),0) -> 0 | CX12: =Q35 -> 0 | CY12: =R35 -> 0 | CZ12: =S35 -> 0 | DB12: =IF(SUM(Q36:S36)>0,SUM(Q36:S36),0) -> 0 | DC12: =IF(SUM(U36)>0,SUM(U36),0) -> 0 | DD12: =Q36 -> 0 | DE12: =R36 -> 0 | DF12: =S36 -> 0 | DH12: =IF(SUM(Q37:S37)>0,SUM(Q37:S37),0) -> 0 | DI12: =IF(SUM(U37)>0,SUM(U37),0) -> 0 | DJ12: =Q37 -> 0 | DK12: =R37 -> 0 | DL12: =S37 -> 0 | DN12: =IF(SUM(Q38:S38)>0,SUM(Q38:S38),0) -> 0 | DO12: =IF(SUM(U38)>0,SUM(U37),0) -> 0 | DP12: =Q38 -> 0 | DQ12: =R38 -> 0 | DR12: =S38 -> 0 | DT12: =IF(SUM(Q39:S39)>0,SUM(Q39:S39),0) -> 0 | DU12: =IF(SUM(U39)>0,SUM(U39),0) -> 0 | DV12: =Q39 -> 0 | DW12: =R39 -> 0 | DX12: =S39 -> 0 | DZ12: =LARGE((DT12,DN12,DH12,DB12,CV12,CP12,CJ12,CD12,BX12,BR12,BL12,BF12,AZ12,AT12,AN12,AH12),1) -> 0 | EA12: =LARGE((AJ12,AP12,AV12,BB12,BH12,BN12,BT12,BZ12,CF12,CL12,CR12,CX12,DD12,DJ12,DP12,DV12),1) -> 0 | EB12: =LARGE((AK12,AQ12,AW12,BC12,BI12,BO12,BU12,CA12,CG12,CM12,CS12,CY12,DE12,DK12,DQ12,DW12),1) -> 0 | EC12: =LARGE((AL12,AR12,AX12,BD12,BJ12,BP12,BV12,CB12,CH12,CN12,CT12,CZ12,DF12,DL12,DR12,DX12),1) -> 0
A13: @ Dalton | B13: 98 | C13: 98 | D13: 98 | E13: 294 | F13: 16 | G13: 94 | H13: 99 | I13: 87 | J13: 280 | K13: 14 | L13: 97 | M13: 99 | N13: 91 | O13: 287 | P13: 17 | Q13: 90 | R13: 94 | S13: 75 | T13: 259 | U13: 6 | V13: 94 | W13: 92 | X13: 82 | Y13: 268 | Z13: 7 | AA13: =IF(SUM(E13,J13,O13,T13,Y13,Y33,T33,O33,J33,E33,E53,J53,O53,T53,Y53)>0,(LARGE((E13,J13,O13,T13,Y13,Y33,T33,O33,J33,E33,E53,J53,O53,T53,Y53),1)+LARGE((E13,J13,O13,T13,Y13,Y33,T33,O33,J33,E33,E53,J53,O53,T53,Y53),2)+LARGE((E13,J13,O13,T13,Y13,Y33,T33,O33,J33,E33,E53,J53,O53,T53,Y53),3)+LARGE((E13,J13,O13,T13,Y13,Y33,T33,O33,J33,E33,E53,J53,O53,T53,Y53),4)),"") -> 1129 | AB13: =IF(SUM(CK35)>0,SUM(CK35),"") -> 54 | AH13: =IF(SUM(V24:X24)>0,SUM(V24:X24),0) -> 0 | AI13: =IF(SUM(Z24)>0,SUM(Z24),0) -> 0 | AJ13: =V24 -> 0 | AK13: =W24 -> 0 | AL13: =X24 -> 0 | AN13: =IF(SUM(V25:X25)>0,SUM(V25:X25),0) -> 0 | AO13: =IF(SUM(Z25)>0,SUM(Z25),0) -> 0 | AP13: =V25 -> 0 | AQ13: =W25 -> 0 | AR13: =X25 -> 0 | AT13: =IF(SUM(V26:X26)>0,SUM(V26:X26),0) -> 0 | AU13: =IF(SUM(Z26)>0,SUM(Z26),0) -> 0 | AV13: =V26 -> 0 | AW13: =W26 -> 0 | AX13: =X26 -> 0 | AZ13: =IF(SUM(V27:X27)>0,SUM(V27:X27),0) -> 0 | BA13: =IF(SUM(Z27)>0,SUM(Z27),0) -> 0 | BB13: =V27 -> 0 | BC13: =W27 -> 0 | BD13: =X27 -> 0 | BF13: =IF(SUM(V28:X28)>0,SUM(V28:X28),0) -> 0 | BG13: =IF(SUM(Z28)>0,SUM(Z28),0) -> 0 | BH13: =V28 -> 0 | BI13: =W28 -> 0 | BJ13: =X28 -> 0 | BL13: =IF(SUM(V29:X29)>0,SUM(V29:X29),0) -> 0 | BM13: =IF(SUM(Z29)>0,SUM(Z29),0) -> 0 | BN13: =V29 -> 0 | BO13: =W29 -> 0 | BP13: =X29 -> 0 | BR13: =IF(SUM(V30:X30)>0,SUM(V30:X30),0) -> 0 | BS13: =IF(SUM(Z30)>0,SUM(Z30),0) -> 0 | BT13: =V30 -> 0 | BU13: =W30 -> 0 | BV13: =X30 -> 0 | BX13: =IF(SUM(V31:X31)>0,SUM(V31:X31),0) -> 0 | BY13: =IF(SUM(Z31)>0,SUM(Z31),0) -> 0 | BZ13: =V31 -> 0 | CA13: =W31 -> 0 | CB13: =X31 -> 0 | CD13: =IF(SUM(V32:X32)>0,SUM(V32:X32),0) -> 0 | CE13: =IF(SUM(Z32)>0,SUM(Z32),0) -> 0 | CF13: =V32 -> 0 | CG13: =W32 -> 0 | CH13: =X32 -> 0 | CJ13: =IF(SUM(V33:X33)>0,SUM(V33:X33),0) -> 0 | CK13: =IF(SUM(Z33)>0,SUM(Z33),0) -> 0 | CL13: =V33 -> 0 | CM13: =W33 -> 0 | CN13: =X33 -> 0 | CP13: =IF(SUM(V34:X34)>0,SUM(V34:X34),0) -> 0 | CQ13: =IF(SUM(Z34)>0,SUM(Z34),0) -> 0 | CR13: =V34 -> 0 | CS13: =W34 -> 0 | CT13: =X34 -> 0 | CV13: =IF(SUM(V35:X35)>0,SUM(V35:X35),0) -> 0 | CW13: =IF(SUM(Z35)>0,SUM(Z35),0) -> 0 | CX13: =V35 -> 0 | CY13: =W35 -> 0 | CZ13: =X35 -> 0 | DB13: =IF(SUM(V35:X36)>0,SUM(V36:X36),0) -> 0 | DC13: =IF(SUM(Z36)>0,SUM(Z36),0) -> 0 | DD13: =V36 -> 0 | DE13: =W36 -> 0 | DF13: =X36 -> 0 | DH13: =IF(SUM(V37:X37)>0,SUM(V37:X37),0) -> 0 | DI13: =IF(SUM(Z37)>0,SUM(Z37),0) -> 0 | DJ13: =V37 -> 0 | DK13: =W37 -> 0 | DL13: =X37 -> 0 | DN13: =IF(SUM(V38:X38)>0,SUM(V38:X38),0) -> 0 | DO13: =IF(SUM(Z38)>0,SUM(Z37),0) -> 0 | DP13: =V38 -> 0 | DQ13: =W38 -> 0 | DR13: =X38 -> 0 | DT13: =IF(SUM(V39:X39)>0,SUM(V39:X39),0) -> 0 | DU13: =IF(SUM(Z39)>0,SUM(Z39),0) -> 0 | DV13: =V39 -> 0 | DW13: =W39 -> 0 | DX13: =X39 -> 0 | DZ13: =LARGE((DT13,DN13,DH13,DB13,CV13,CP13,CJ13,CD13,BX13,BR13,BL13,BF13,AZ13,AT13,AN13,AH13),1) -> 0 | EA13: =LARGE((AJ13,AP13,AV13,BB13,BH13,BN13,BT13,BZ13,CF13,CL13,CR13,CX13,DD13,DJ13,DP13,DV13),1) -> 0 | EB13: =LARGE((AK13,AQ13,AW13,BC13,BI13,BO13,BU13,CA13,CG13,CM13,CS13,CY13,DE13,DK13,DQ13,DW13),1) -> 0 | EC13: =LARGE((AL13,AR13,AX13,BD13,BJ13,BP13,BV13,CB13,CH13,CN13,CT13,CZ13,DF13,DL13,DR13,DX13),1) -> 0
A14: Gordon Central | B14: 98 | C14: 98 | D14: 97 | E14: 293 | F14: 15 | G14: 88 | H14: 100 | I14: 84 | J14: 272 | K14: 9 | L14: 93 | M14: 98 | N14: 86 | O14: 277 | P14: 7 | Q14: 87 | R14: 95 | S14: 77 | T14: 259 | U14: 4 | V14: 87 | W14: 95 | X14: 81 | Y14: 263 | Z14: 2 | AA14: =IF(SUM(E14,J14,O14,T14,Y14,Y34,T34,O34,J34,E34,E54,J54,O54,T54,Y54)>0,(LARGE((E14,J14,O14,T14,Y14,Y34,T34,O34,J34,E34,E54,J54,O54,T54,Y54),1)+LARGE((E14,J14,O14,T14,Y14,Y34,T34,O34,J34,E34,E54,J54,O54,T54,Y54),2)+LARGE((E14,J14,O14,T14,Y14,Y34,T34,O34,J34,E34,E54,J54,O54,T54,Y54),3)+LARGE((E14,J14,O14,T14,Y14,Y34,T34,O34,J34,E34,E54,J54,O54,T54,Y54),4)),"") -> 1105 | AB14: =IF(SUM(CQ35)>0,SUM(CQ35),"") -> 33 | AH14: =IF(SUM(B44:D44)>0,SUM(B44:D44),0) -> 0 | AI14: =IF(SUM(F44)>0,SUM(F44),0) -> 0 | AJ14: =B44 -> 0 | AK14: =C44 -> 0 | AL14: =D44 -> 0 | AN14: =IF(SUM(B45:D45)>0,SUM(B45:D45),0) -> 0 | AO14: =IF(SUM(F45)>0,SUM(F45),0) -> 0 | AP14: =B45 -> 0 | AQ14: =C45 -> 0 | AR14: =D45 -> 0 | AT14: =IF(SUM(B46:D46)>0,SUM(B46:D46),0) -> 0 | AU14: =IF(SUM(F46)>0,SUM(F46),0) -> 0 | AV14: =B46 -> 0 | AW14: =C46 -> 0 | AX14: =D46 -> 0 | AZ14: =IF(SUM(B47:D47)>0,SUM(B47:D47),0) -> 0 | BA14: =IF(SUM(F47)>0,SUM(F47),0) -> 0 | BB14: =B47 -> 0 | BC14: =C47 -> 0 | BD14: =D47 -> 0 | BF14: =IF(SUM(B48:D48)>0,SUM(B48:D48),0) -> 0 | BG14: =IF(SUM(F48)>0,SUM(F48),0) -> 0 | BH14: =B48 -> 0 | BI14: =C48 -> 0 | BJ14: =D48 -> 0 | BL14: =IF(SUM(B49:D49)>0,SUM(B49:D49),0) -> 0 | BM14: =IF(SUM(F49)>0,SUM(F49),0) -> 0 | BN14: =B49 -> 0 | BO14: =C49 -> 0 | BP14: =D49 -> 0 | BR14: =IF(SUM(B50:D50)>0,SUM(B50:D50),0) -> 0 | BS14: =IF(SUM(F50)>0,SUM(F50),0) -> 0 | BT14: =B50 -> 0 | BU14: =C50 -> 0 | BV14: =D50 -> 0 | BX14: =IF(SUM(B51:D51)>0,SUM(B51:D51),0) -> 0 | BY14: =IF(SUM(F51)>0,SUM(F51),0) -> 0 | BZ14: =B51 -> 0 | CA14: =C51 -> 0 | CB14: =D51 -> 0 | CD14: =IF(SUM(B52:D52)>0,SUM(B52:D52),0) -> 0 | CE14: =IF(SUM(F52)>0,SUM(F52),0) -> 0 | CF14: =B52 -> 0 | CG14: =C52 -> 0 | CH14: =D52 -> 0 | CJ14: =IF(SUM(B53:D53)>0,SUM(B53:D53),0) -> 0 | CK14: =IF(SUM(F53)>0,SUM(F53),0) -> 0 | CL14: =B53 -> 0 | CM14: =C53 -> 0 | CN14: =D53 -> 0 | CP14: =IF(SUM(B54:D54)>0,SUM(B54:D54),0) -> 0 | CQ14: =IF(SUM(F54)>0,SUM(F54),0) -> 0 | CR14: =B54 -> 0 | CS14: =C54 -> 0 | CT14: =D54 -> 0 | CV14: =IF(SUM(B55:D55)>0,SUM(B55:D55),0) -> 0 | CW14: =IF(SUM(F55)>0,SUM(F55),0) -> 0 | CX14: =B55 -> 0 | CY14: =C55 -> 0 | CZ14: =D55 -> 0 | DB14: =IF(SUM(B56:D56)>0,SUM(B56:D56),0) -> 0 | DC14: =IF(SUM(F56)>0,SUM(F56),0) -> 0 | DD14: =B56 -> 0 | DE14: =C56 -> 0 | DF14: =D56 -> 0 | DH14: =IF(SUM(B57:D57)>0,SUM(B57:D57),0) -> 0 | DI14: =IF(SUM(F57)>0,SUM(F57),0) -> 0 | DJ14: =B57 -> 0 | DK14: =C57 -> 0 | DL14: =D57 -> 0 | DN14: =IF(SUM(B58:D58)>0,SUM(B58:D58),0) -> 0 | DO14: =IF(SUM(F58)>0,SUM(F58),0) -> 0 | DP14: =B58 -> 0 | DQ14: =C58 -> 0 | DR14: =D58 -> 0 | DT14: =IF(SUM(B59:D59)>0,SUM(B59:D59),0) -> 0 | DU14: =IF(SUM(F59)>0,SUM(F59),0) -> 0 | DV14: =B59 -> 0 | DW14: =C59 -> 0 | DX14: =D59 -> 0 | DZ14: =LARGE((DT14,DN14,DH14,DB14,CV14,CP14,CJ14,CD14,BX14,BR14,BL14,BF14,AZ14,AT14,AN14,AH14),1) -> 0 | EA14: =LARGE((AJ14,AP14,AV14,BB14,BH14,BN14,BT14,BZ14,CF14,CL14,CR14,CX14,DD14,DJ14,DP14,DV14),1) -> 0 | EB14: =LARGE((AK14,AQ14,AW14,BC14,BI14,BO14,BU14,CA14,CG14,CM14,CS14,CY14,DE14,DK14,DQ14,DW14),1) -> 0 | EC14: =LARGE((AL14,AR14,AX14,BD14,BJ14,BP14,BV14,CB14,CH14,CN14,CT14,CZ14,DF14,DL14,DR14,DX14),1) -> 0
A15: @ Etowah | B15: 98 | C15: 99 | D15: 96 | E15: 293 | F15: 17 | G15: 92 | H15: 99 | I15: 84 | J15: 275 | K15: 11 | L15: 97 | M15: 100 | N15: 89 | O15: 286 | P15: `12 | Q15: 91 | R15: 95 | S15: 74 | T15: 260 | U15: 8 | V15: 91 | W15: 96 | X15: 82 | Y15: 269 | Z15: 10 | AA15: =IF(SUM(E15,J15,O15,T15,Y15,Y35,T35,O35,J35,E35,E55,J55,O55,T55,Y55)>0,(LARGE((E15,J15,O15,T15,Y15,Y35,T35,O35,J35,E35,E55,J55,O55,T55,Y55),1)+LARGE((E15,J15,O15,T15,Y15,Y35,T35,O35,J35,E35,E55,J55,O55,T55,Y55),2)+LARGE((E15,J15,O15,T15,Y15,Y35,T35,O35,J35,E35,E55,J55,O55,T55,Y55),3)+LARGE((E15,J15,O15,T15,Y15,Y35,T35,O35,J35,E35,E55,J55,O55,T55,Y55),4)),"") -> 1123 | AB15: 50 | AH15: =IF(SUM(G44:I44)>0,SUM(G44:I44),0) -> 0 | AI15: =IF(SUM(K44)>0,SUM(K44),0) -> 0 | AJ15: =G44 -> 0 | AK15: =H44 -> 0 | AL15: =I44 -> 0 | AN15: =IF(SUM(G45:I45)>0,SUM(G45:I45),0) -> 0 | AO15: =IF(SUM(K45)>0,SUM(K45),0) -> 0 | AP15: =G45 -> 0 | AQ15: =H45 -> 0 | AR15: =I45 -> 0 | AT15: =IF(SUM(G46:I46)>0,SUM(G46:I46),0) -> 0 | AU15: =IF(SUM(K46)>0,SUM(K46),0) -> 0 | AV15: =G46 -> 0 | AW15: =H46 -> 0 | AX15: =I46 -> 0 | AZ15: =IF(SUM(G47:I47)>0,SUM(G47:I47),0) -> 0 | BA15: =IF(SUM(K47)>0,SUM(K47),0) -> 0 | BB15: =G47 -> 0 | BC15: =H47 -> 0 | BD15: =I47 -> 0 | BF15: =IF(SUM(G48:I48)>0,SUM(G48:I48),0) -> 0 | BG15: =IF(SUM(K48)>0,SUM(K48),0) -> 0 | BH15: =G48 -> 0 | BI15: =H48 -> 0 | BJ15: =I48 -> 0 | BL15: =IF(SUM(G49:I49)>0,SUM(G49:I49),0) -> 0 | BM15: =IF(SUM(K49)>0,SUM(K49),0) -> 0 | BN15: =G49 -> 0 | BO15: =H49 -> 0 | BP15: =I49 -> 0 | BR15: =IF(SUM(G50:I50)>0,SUM(G50:I50),0) -> 0 | BS15: =IF(SUM(K50)>0,SUM(K50),0) -> 0 | BT15: =G50 -> 0 | BU15: =H50 -> 0 | BV15: =I50 -> 0 | BX15: =IF(SUM(G51:I51)>0,SUM(G51:I51),0) -> 0 | BY15: =IF(SUM(K51)>0,SUM(K51),0) -> 0 | BZ15: =G51 -> 0 | CA15: =H51 -> 0 | CB15: =I51 -> 0 | CD15: =IF(SUM(G52:I52)>0,SUM(G52:I52),0) -> 0 | CE15: =IF(SUM(K52)>0,SUM(K52),0) -> 0 | CF15: =G52 -> 0 | CG15: =H52 -> 0 | CH15: =I52 -> 0 | CJ15: =IF(SUM(G53:I53)>0,SUM(G53:I53),0) -> 0 | CK15: =IF(SUM(K53)>0,SUM(K53),0) -> 0 | CL15: =G53 -> 0 | CM15: =H53 -> 0 | CN15: =I53 -> 0 | CP15: =IF(SUM(G54:I54)>0,SUM(G54:I54),0) -> 0 | CQ15: =IF(SUM(K54)>0,SUM(K54),0) -> 0 | CR15: =G54 -> 0 | CS15: =H54 -> 0 | CT15: =I54 -> 0 | CV15: =IF(SUM(G55:I55)>0,SUM(G55:I55),0) -> 0 | CW15: =IF(SUM(K55)>0,SUM(K55),0) -> 0 | CX15: =G55 -> 0 | CY15: =H55 -> 0 | CZ15: =I55 -> 0 | DB15: =IF(SUM(G56:I56)>0,SUM(G56:I56),0) -> 0 | DC15: =IF(SUM(K56)>0,SUM(K56),0) -> 0 | DD15: =G56 -> 0 | DE15: =H56 -> 0 | DF15: =I56 -> 0 | DH15: =IF(SUM(G57:I57)>0,SUM(G57:I57),0) -> 0 | DI15: =IF(SUM(K57)>0,SUM(K57),0) -> 0 | DJ15: =G57 -> 0 | DK15: =H57 -> 0 | DL15: =I57 -> 0 | DN15: =IF(SUM(G58:I58)>0,SUM(G58:I58),0) -> 0 | DO15: =IF(SUM(K58)>0,SUM(K58),0) -> 0 | DP15: =G58 -> 0 | DQ15: =H58 -> 0 | DR15: =I58 -> 0 | DT15: =IF(SUM(G59:I59)>0,SUM(G59:I59),0) -> 0 | DU15: =IF(SUM(K59)>0,SUM(K59),0) -> 0 | DV15: =G59 -> 0 | DW15: =H59 -> 0 | DX15: =I59 -> 0 | DZ15: =LARGE((DT15,DN15,DH15,DB15,CV15,CP15,CJ15,CD15,BX15,BR15,BL15,BF15,AZ15,AT15,AN15,AH15),1) -> 0 | EA15: =LARGE((AJ15,AP15,AV15,BB15,BH15,BN15,BT15,BZ15,CF15,CL15,CR15,CX15,DD15,DJ15,DP15,DV15),1) -> 0 | EB15: =LARGE((AK15,AQ15,AW15,BC15,BI15,BO15,BU15,CA15,CG15,CM15,CS15,CY15,DE15,DK15,DQ15,DW15),1) -> 0 | EC15: =LARGE((AL15,AR15,AX15,BD15,BJ15,BP15,BV15,CB15,CH15,CN15,CT15,CZ15,DF15,DL15,DR15,DX15),1) -> 0
A16: Allatoona | AA16: =IF(SUM(E16,J16,O16,T16,Y16,Y36,T36,O36,J36,E36,E56,J56,O56,T56,Y56)>0,(LARGE((E16,J16,O16,T16,Y16,Y36,T36,O36,J36,E36,E56,J56,O56,T56,Y56),1)+LARGE((E16,J16,O16,T16,Y16,Y36,T36,O36,J36,E36,E56,J56,O56,T56,Y56),2)+LARGE((E16,J16,O16,T16,Y16,Y36,T36,O36,J36,E36,E56,J56,O56,T56,Y56),3)+LARGE((E16,J16,O16,T16,Y16,Y36,T36,O36,J36,E36,E56,J56,O56,T56,Y56),4)),"") ->  | AB16: =IF(SUM(DC35)>0,SUM(DC35),"") ->  | AH16: =IF(SUM(L44:N44)>0,SUM(L44:N44),0) -> 0 | AI16: =IF(SUM(P44)>0,SUM(P44),0) -> 0 | AJ16: =L44 -> 0 | AK16: =M44 -> 0 | AL16: =N44 -> 0 | AN16: =IF(SUM(L45:N45)>0,SUM(L45:N45),0) -> 0 | AO16: =IF(SUM(P45)>0,SUM(P45),0) -> 0 | AP16: =L45 -> 0 | AQ16: =M45 -> 0 | AR16: =N45 -> 0 | AT16: =IF(SUM(L46:N46)>0,SUM(L46:N46),0) -> 0 | AU16: =IF(SUM(P46)>0,SUM(P46),0) -> 0 | AV16: =L46 -> 0 | AW16: =M46 -> 0 | AX16: =N46 -> 0 | AZ16: =IF(SUM(L47:N47)>0,SUM(L47:N47),0) -> 0 | BA16: =IF(SUM(P47)>0,SUM(P47),0) -> 0 | BB16: =L47 -> 0 | BC16: =M47 -> 0 | BD16: =N47 -> 0 | BF16: =IF(SUM(L48:N48)>0,SUM(L48:N48),0) -> 0 | BG16: =IF(SUM(P48)>0,SUM(P48),0) -> 0 | BH16: =L48 -> 0 | BI16: =M48 -> 0 | BJ16: =N48 -> 0 | BL16: =IF(SUM(L49:N49)>0,SUM(L49:N49),0) -> 0 | BM16: =IF(SUM(P49)>0,SUM(P49),0) -> 0 | BN16: =L49 -> 0 | BO16: =M49 -> 0 | BP16: =N49 -> 0 | BR16: =IF(SUM(L50:N50)>0,SUM(L50:N50),0) -> 0 | BS16: =IF(SUM(P50)>0,SUM(P50),0) -> 0 | BT16: =L50 -> 0 | BU16: =M50 -> 0 | BV16: =N50 -> 0 | BX16: =IF(SUM(L51:N51)>0,SUM(L51:N51),0) -> 0 | BY16: =IF(SUM(P51)>0,SUM(P51),0) -> 0 | BZ16: =L51 -> 0 | CA16: =M51 -> 0 | CB16: =N51 -> 0 | CD16: =IF(SUM(L52:N52)>0,SUM(L52:N52),0) -> 0 | CE16: =IF(SUM(P52)>0,SUM(P52),0) -> 0 | CF16: =L52 -> 0 | CG16: =M52 -> 0 | CH16: =N52 -> 0 | CJ16: =IF(SUM(L53:N53)>0,SUM(L53:N53),0) -> 0 | CK16: =IF(SUM(P53)>0,SUM(P53),0) -> 0 | CL16: =L53 -> 0 | CM16: =M53 -> 0 | CN16: =N53 -> 0 | CP16: =IF(SUM(L54:N54)>0,SUM(L54:N54),0) -> 0 | CQ16: =IF(SUM(P54)>0,SUM(P54),0) -> 0 | CR16: =L54 -> 0 | CS16: =M54 -> 0 | CT16: =N54 -> 0 | CV16: =IF(SUM(L55:N55)>0,SUM(L55:N55),0) -> 0 | CW16: =IF(SUM(P55)>0,SUM(P55),0) -> 0 | CX16: =L55 -> 0 | CY16: =M55 -> 0 | CZ16: =N55 -> 0 | DB16: =IF(SUM(L56:N56)>0,SUM(L56:N56),0) -> 0 | DC16: =IF(SUM(P56)>0,SUM(P56),0) -> 0 | DD16: =L56 -> 0 | DE16: =M56 -> 0 | DF16: =N56 -> 0 | DH16: =IF(SUM(L57:N57)>0,SUM(L57:N57),0) -> 0 | DI16: =IF(SUM(P57)>0,SUM(P57),0) -> 0 | DJ16: =L57 -> 0 | DK16: =M57 -> 0 | DL16: =N57 -> 0 | DN16: =IF(SUM(L58:N58)>0,SUM(L58:N58),0) -> 0 | DO16: =IF(SUM(P58)>0,SUM(P58),0) -> 0 | DP16: =L58 -> 0 | DQ16: =M58 -> 0 | DR16: =N58 -> 0 | DT16: =IF(SUM(L59:N59)>0,SUM(L59:N59),0) -> 0 | DU16: =IF(SUM(P59)>0,SUM(P59),0) -> 0 | DV16: =L59 -> 0 | DW16: =M59 -> 0 | DX16: =N59 -> 0 | DZ16: =LARGE((DT16,DN16,DH16,DB16,CV16,CP16,CJ16,CD16,BX16,BR16,BL16,BF16,AZ16,AT16,AN16,AH16),1) -> 0 | EA16: =LARGE((AJ16,AP16,AV16,BB16,BH16,BN16,BT16,BZ16,CF16,CL16,CR16,CX16,DD16,DJ16,DP16,DV16),1) -> 0 | EB16: =LARGE((AK16,AQ16,AW16,BC16,BI16,BO16,BU16,CA16,CG16,CM16,CS16,CY16,DE16,DK16,DQ16,DW16),1) -> 0 | EC16: =LARGE((AL16,AR16,AX16,BD16,BJ16,BP16,BV16,CB16,CH16,CN16,CT16,CZ16,DF16,DL16,DR16,DX16),1) -> 0
A17: @ Cherokee | AA17: =IF(SUM(E17,J17,O17,T17,Y17,Y37,T37,O37,J37,E37,E57,J57,O57,T57,Y57)>0,(LARGE((E17,J17,O17,T17,Y17,Y37,T37,O37,J37,E37,E57,J57,O57,T57,Y57),1)+LARGE((E17,J17,O17,T17,Y17,Y37,T37,O37,J37,E37,E57,J57,O57,T57,Y57),2)+LARGE((E17,J17,O17,T17,Y17,Y37,T37,O37,J37,E37,E57,J57,O57,T57,Y57),3)+LARGE((E17,J17,O17,T17,Y17,Y37,T37,O37,J37,E37,E57,J57,O57,T57,Y57),4)),"") ->  | AB17: =IF(SUM(DI35)>0,SUM(DI35),"") ->  | AH17: =IF(SUM(Q44:S44)>0,SUM(Q44:S44),0) -> 0 | AI17: =IF(SUM(U44)>0,SUM(U44),0) -> 0 | AJ17: =Q44 -> 0 | AK17: =R44 -> 0 | AL17: =S44 -> 0 | AN17: =IF(SUM(Q45:S45)>0,SUM(Q45:S45),0) -> 0 | AO17: =IF(SUM(U45)>0,SUM(U45),0) -> 0 | AP17: =Q45 -> 0 | AQ17: =R45 -> 0 | AR17: =S45 -> 0 | AT17: =IF(SUM(Q46:S46)>0,SUM(Q46:S46),0) -> 0 | AU17: =IF(SUM(U46)>0,SUM(U46),0) -> 0 | AV17: =Q46 -> 0 | AW17: =R46 -> 0 | AX17: =S46 -> 0 | AZ17: =IF(SUM(Q47:S47)>0,SUM(Q47:S47),0) -> 0 | BA17: =IF(SUM(U47)>0,SUM(U47),0) -> 0 | BB17: =Q47 -> 0 | BC17: =R47 -> 0 | BD17: =S47 -> 0 | BF17: =IF(SUM(Q48:S48)>0,SUM(Q48:S48),0) -> 0 | BG17: =IF(SUM(U48)>0,SUM(U48),0) -> 0 | BH17: =Q48 -> 0 | BI17: =R48 -> 0 | BJ17: =S48 -> 0 | BL17: =IF(SUM(Q49:S49)>0,SUM(Q49:S49),0) -> 0 | BM17: =IF(SUM(U49)>0,SUM(U49),0) -> 0 | BN17: =Q49 -> 0 | BO17: =R49 -> 0 | BP17: =S49 -> 0 | BR17: =IF(SUM(Q50:S50)>0,SUM(Q50:S50),0) -> 0 | BS17: =IF(SUM(U50)>0,SUM(U50),0) -> 0 | BT17: =Q50 -> 0 | BU17: =R50 -> 0 | BV17: =S50 -> 0 | BX17: =IF(SUM(Q51:S51)>0,SUM(Q51:S51),0) -> 0 | BY17: =IF(SUM(U51)>0,SUM(U51),0) -> 0 | BZ17: =Q51 -> 0 | CA17: =R51 -> 0 | CB17: =S51 -> 0 | CD17: =IF(SUM(Q52:S52)>0,SUM(Q52:S52),0) -> 0 | CE17: =IF(SUM(U52)>0,SUM(U52),0) -> 0 | CF17: =Q52 -> 0 | CG17: =R52 -> 0 | CH17: =S52 -> 0 | CJ17: =IF(SUM(Q53:S53)>0,SUM(Q53:S53),0) -> 0 | CK17: =IF(SUM(U53)>0,SUM(U53),0) -> 0 | CL17: =Q53 -> 0 | CM17: =R53 -> 0 | CN17: =S53 -> 0 | CP17: =IF(SUM(Q54:S54)>0,SUM(Q54:S54),0) -> 0 | CQ17: =IF(SUM(U54)>0,SUM(U54),0) -> 0 | CR17: =Q54 -> 0 | CS17: =R54 -> 0 | CT17: =S54 -> 0 | CV17: =IF(SUM(Q54:S55)>0,SUM(Q55:S55),0) -> 0 | CW17: =IF(SUM(U55)>0,SUM(U55),0) -> 0 | CX17: =Q55 -> 0 | CY17: =R55 -> 0 | CZ17: =S55 -> 0 | DB17: =IF(SUM(Q56:S56)>0,SUM(Q56:S56),0) -> 0 | DC17: =IF(SUM(U56)>0,SUM(U56),0) -> 0 | DD17: =Q56 -> 0 | DE17: =R56 -> 0 | DF17: =S56 -> 0 | DH17: =IF(SUM(Q57:S57)>0,SUM(Q57:S57),0) -> 0 | DI17: =IF(SUM(U57)>0,SUM(U57),0) -> 0 | DJ17: =Q57 -> 0 | DK17: =R57 -> 0 | DL17: =S57 -> 0 | DN17: =IF(SUM(Q58:S58)>0,SUM(Q58:S58),0) -> 0 | DO17: =IF(SUM(U58)>0,SUM(U58),0) -> 0 | DP17: =Q58 -> 0 | DQ17: =R58 -> 0 | DR17: =S58 -> 0 | DT17: =IF(SUM(Q59:S59)>0,SUM(Q59:S59),0) -> 0 | DU17: =IF(SUM(U59)>0,SUM(U59),0) -> 0 | DV17: =Q59 -> 0 | DW17: =R59 -> 0 | DX17: =S59 -> 0 | DZ17: =LARGE((DT17,DN17,DH17,DB17,CV17,CP17,CJ17,CD17,BX17,BR17,BL17,BF17,AZ17,AT17,AN17,AH17),1) -> 0 | EA17: =LARGE((AJ17,AP17,AV17,BB17,BH17,BN17,BT17,BZ17,CF17,CL17,CR17,CX17,DD17,DJ17,DP17,DV17),1) -> 0 | EB17: =LARGE((AK17,AQ17,AW17,BC17,BI17,BO17,BU17,CA17,CG17,CM17,CS17,CY17,DE17,DK17,DQ17,DW17),1) -> 0 | EC17: =LARGE((AL17,AR17,AX17,BD17,BJ17,BP17,BV17,CB17,CH17,CN17,CT17,CZ17,DF17,DL17,DR17,DX17),1) -> 0
A18: Area Sectional/Playoff | AA18: =IF(SUM(E18,J18,O18,T18,Y18,Y38,T38,O38,J38,E38,E58,J58,O58,T58,Y58)>0,(LARGE((E18,J18,O18,T18,Y18,Y38,T38,O38,J38,E38,E58,J58,O58,T58,Y58),1)+LARGE((E18,J18,O18,T18,Y18,Y38,T38,O38,J38,E38,E58,J58,O58,T58,Y58),2)+LARGE((E18,J18,O18,T18,Y18,Y38,T38,O38,J38,E38,E58,J58,O58,T58,Y58),3)+LARGE((E18,J18,O18,T18,Y18,Y38,T38,O38,J38,E38,E58,J58,O58,T58,Y58),4)),"") ->  | AB18: =IF(SUM(DO35)>0,SUM(DO35),"") ->  | AH18: =IF(SUM(V44:X44)>0,SUM(V44:X44),0) -> 0 | AI18: =IF(SUM(Z44)>0,SUM(Z44),0) -> 0 | AJ18: =V44 -> 0 | AK18: =W44 -> 0 | AL18: =X44 -> 0 | AN18: =IF(SUM(V45:X45)>0,SUM(V45:X45),0) -> 0 | AO18: =IF(SUM(Z45)>0,SUM(Z45),0) -> 0 | AP18: =V45 -> 0 | AQ18: =W45 -> 0 | AR18: =X45 -> 0 | AT18: =IF(SUM(V46:X46)>0,SUM(V46:X46),0) -> 0 | AU18: =IF(SUM(Z46)>0,SUM(Z46),0) -> 0 | AV18: =V46 -> 0 | AW18: =W46 -> 0 | AX18: =X46 -> 0 | AZ18: =IF(SUM(V47:X47)>0,SUM(V47:X47),0) -> 0 | BA18: =IF(SUM(Z47)>0,SUM(Z47),0) -> 0 | BB18: =V47 -> 0 | BC18: =W47 -> 0 | BD18: =X47 -> 0 | BF18: =IF(SUM(V48:X48)>0,SUM(V48:X48),0) -> 0 | BG18: =IF(SUM(Z48)>0,SUM(Z48),0) -> 0 | BH18: =V48 -> 0 | BI18: =W48 -> 0 | BJ18: =X48 -> 0 | BL18: =IF(SUM(V49:X49)>0,SUM(V49:X49),0) -> 0 | BM18: =IF(SUM(Z49)>0,SUM(Z49),0) -> 0 | BN18: =V49 -> 0 | BO18: =W49 -> 0 | BP18: =X49 -> 0 | BR18: =IF(SUM(V50:X50)>0,SUM(V50:X50),0) -> 0 | BS18: =IF(SUM(Z50)>0,SUM(Z50),0) -> 0 | BT18: =V50 -> 0 | BU18: =W50 -> 0 | BV18: =X50 -> 0 | BX18: =IF(SUM(V51:X51)>0,SUM(V51:X51),0) -> 0 | BY18: =IF(SUM(Z51)>0,SUM(Z51),0) -> 0 | BZ18: =V51 -> 0 | CA18: =W51 -> 0 | CB18: =X51 -> 0 | CD18: =IF(SUM(V52:X52)>0,SUM(V52:X52),0) -> 0 | CE18: =IF(SUM(Z52)>0,SUM(Z52),0) -> 0 | CF18: =V52 -> 0 | CG18: =W52 -> 0 | CH18: =X52 -> 0 | CJ18: =IF(SUM(V53:X53)>0,SUM(V53:X53),0) -> 0 | CK18: =IF(SUM(Z53)>0,SUM(Z53),0) -> 0 | CL18: =V53 -> 0 | CM18: =W53 -> 0 | CN18: =X53 -> 0 | CP18: =IF(SUM(V54:X54)>0,SUM(V54:X54),0) -> 0 | CQ18: =IF(SUM(Z54)>0,SUM(Z54),0) -> 0 | CR18: =V54 -> 0 | CS18: =W54 -> 0 | CT18: =X54 -> 0 | CV18: =IF(SUM(V55:X55)>0,SUM(V55:X55),0) -> 0 | CW18: =IF(SUM(Z55)>0,SUM(Z55),0) -> 0 | CX18: =V55 -> 0 | CY18: =W55 -> 0 | CZ18: =X55 -> 0 | DB18: =IF(SUM(V56:X56)>0,SUM(V56:X56),0) -> 0 | DC18: =IF(SUM(Z56)>0,SUM(Z56),0) -> 0 | DD18: =V56 -> 0 | DE18: =W56 -> 0 | DF18: =X56 -> 0 | DH18: =IF(SUM(V57:X57)>0,SUM(V57:X57),0) -> 0 | DI18: =IF(SUM(Z57)>0,SUM(Z57),0) -> 0 | DJ18: =V57 -> 0 | DK18: =W57 -> 0 | DL18: =X57 -> 0 | DN18: =IF(SUM(V58:X58)>0,SUM(V58:X58),0) -> 0 | DO18: =IF(SUM(Z58)>0,SUM(Z58),0) -> 0 | DP18: =V58 -> 0 | DQ18: =W58 -> 0 | DR18: =X58 -> 0 | DT18: =IF(SUM(V59:X59)>0,SUM(V59:X59),0) -> 0 | DU18: =IF(SUM(Z59)>0,SUM(Z59),0) -> 0 | DV18: =V59 -> 0 | DW18: =W59 -> 0 | DX18: =X59 -> 0 | DZ18: =LARGE((DT18,DN18,DH18,DB18,CV18,CP18,CJ18,CD18,BX18,BR18,BL18,BF18,AZ18,AT18,AN18,AH18),1) -> 0 | EA18: =LARGE((AJ18,AP18,AV18,BB18,BH18,BN18,BT18,BZ18,CF18,CL18,CR18,CX18,DD18,DJ18,DP18,DV18),1) -> 0 | EB18: =LARGE((AK18,AQ18,AW18,BC18,BI18,BO18,BU18,CA18,CG18,CM18,CS18,CY18,DE18,DK18,DQ18,DW18),1) -> 0 | EC18: =LARGE((AL18,AR18,AX18,BD18,BJ18,BP18,BV18,CB18,CH18,CN18,CT18,CZ18,DF18,DL18,DR18,DX18),1) -> 0
A19: Area Championship | AA19: =IF(SUM(E19,J19,O19,T19,Y19,Y39,T39,O39,J39,E39,E59,J59,O59,T59,Y59)>0,(LARGE((E19,J19,O19,T19,Y19,Y39,T39,O39,J39,E39,E59,J59,O59,T59,Y59),1)+LARGE((E19,J19,O19,T19,Y19,Y39,T39,O39,J39,E39,E59,J59,O59,T59,Y59),2)+LARGE((E19,J19,O19,T19,Y19,Y39,T39,O39,J39,E39,E59,J59,O59,T59,Y59),3)+LARGE((E19,J19,O19,T19,Y19,Y39,T39,O39,J39,E39,E59,J59,O59,T59,Y59),4)),"") ->  | AB19: =IF(SUM(DU35)>0,SUM(DU35),"") ->  | AH19: =SUM(AH4:AH18) -> 1556 | AI19: =SUM(AI4:AI18) -> 52 | AJ19: =SUM(AJ4:AJ18) -> 528 | AK19: =SUM(AK4:AK18) -> 564 | AL19: =SUM(AL4:AL18) -> 464 | AN19: =SUM(AN4:AN18) -> 1368 | AO19: =SUM(AO4:AO18) -> 29 | AP19: =SUM(AP4:AP18) -> 455 | AQ19: =SUM(AQ4:AQ18) -> 486 | AR19: =SUM(AR4:AR18) -> 427 | AT19: =SUM(AT4:AT18) -> 1567 | AU19: =SUM(AU4:AU18) -> 38 | AV19: =SUM(AV4:AV18) -> 525 | AW19: =SUM(AW4:AW18) -> 566 | AX19: =SUM(AX4:AX18) -> 476 | AZ19: =SUM(AZ4:AZ18) -> 1543 | BA19: =SUM(BA4:BA18) -> 45 | BB19: =SUM(BB4:BB18) -> 522 | BC19: =SUM(BC4:BC18) -> 550 | BD19: =SUM(BD4:BD18) -> 471 | BF19: =SUM(BF4:BF18) -> 1612 | BG19: =SUM(BG4:BG18) -> 57 | BH19: =SUM(BH4:BH18) -> 539 | BI19: =SUM(BI4:BI18) -> 575 | BJ19: =SUM(BJ4:BJ18) -> 498 | BL19: =SUM(BL4:BL18) -> 1350 | BM19: =SUM(BM4:BM18) -> 37 | BN19: =SUM(BN4:BN18) -> 458 | BO19: =SUM(BO4:BO18) -> 486 | BP19: =SUM(BP4:BP18) -> 406 | BR19: =SUM(BR4:BR18) -> 0 | BS19: =SUM(BS4:BS18) -> 0 | BT19: =SUM(BT4:BT18) -> 0 | BU19: =SUM(BU4:BU18) -> 0 | BV19: =SUM(BV4:BV18) -> 0 | BX19: =SUM(BX4:BX18) -> 1112 | BY19: =SUM(BY4:BY18) -> 51 | BZ19: =SUM(BZ4:BZ18) -> 367 | CA19: =SUM(CA4:CA18) -> 393 | CB19: =SUM(CB4:CB18) -> 352 | CD19: =SUM(CD4:CD18) -> 0 | CE19: =SUM(CE4:CE18) -> 0 | CF19: =SUM(CF4:CF18) -> 0 | CG19: =SUM(CG4:CG18) -> 0 | CH19: =SUM(CH4:CH18) -> 0 | CJ19: =SUM(CJ4:CJ18) -> 1388 | CK19: =SUM(CK4:CK18) -> 60 | CL19: =SUM(CL4:CL18) -> 473 | CM19: =SUM(CM4:CM18) -> 482 | CN19: =SUM(CN4:CN18) -> 433 | CP19: =SUM(CP4:CP18) -> 1596 | CQ19: =SUM(CQ4:CQ18) -> 38 | CR19: =SUM(CR4:CR18) -> 529 | CS19: =SUM(CS4:CS18) -> 564 | CT19: =SUM(CT4:CT18) -> 503 | CV19: =SUM(CV4:CV18) -> 1383 | CW19: =SUM(CW4:CW18) -> 46 | CX19: =SUM(CX4:CX18) -> 469 | CY19: =SUM(CY4:CY18) -> 489 | CZ19: =SUM(CZ4:CZ18) -> 425 | DB19: =SUM(DB4:DB18) -> 0 | DC19: =SUM(DC4:DC18) -> 0 | DD19: =SUM(DD4:DD18) -> 0 | DE19: =SUM(DE4:DE18) -> 0 | DF19: =SUM(DF4:DF18) -> 0 | DH19: =SUM(DH4:DH18) -> 0 | DI19: =SUM(DI4:DI18) -> 0 | DJ19: =SUM(DJ4:DJ18) -> 0 | DK19: =SUM(DK4:DK18) -> 0 | DL19: =SUM(DL4:DL18) -> 0 | DN19: =SUM(DN4:DN18) -> 0 | DO19: =SUM(DO4:DO18) -> 0 | DP19: =SUM(DP4:DP18) -> 0 | DQ19: =SUM(DQ4:DQ18) -> 0 | DR19: =SUM(DR4:DR18) -> 0 | DT19: =SUM(DT4:DT18) -> 0 | DU19: =SUM(DU4:DU18) -> 0 | DV19: =SUM(DV4:DV18) -> 0 | DW19: =SUM(DW4:DW18) -> 0 | DX19: =SUM(DX4:DX18) -> 0
A20: Average | B20: =IF(SUM(B4:B19)=0,0,AVERAGE(B4:B19)) -> 98 | C20: =IF(SUM(C4:C19)=0,0,AVERAGE(C4:C19)) -> 99 | D20: =IF(SUM(D4:D19)=0,0,AVERAGE(D4:D19)) -> 96 | E20: =IF(SUM(E4:E19)=0,0,AVERAGE(E4:E19)) -> 293 | G20: =IF(SUM(G4:G19)=0,0,AVERAGE(G4:G19)) -> 90.66666667 | H20: =IF(SUM(H4:H19)=0,0,AVERAGE(H4:H19)) -> 97.66666667 | I20: =IF(SUM(I4:I19)=0,0,AVERAGE(I4:I19)) -> 85.66666667 | J20: =IF(SUM(J4:J19)=0,0,AVERAGE(J4:J19)) -> 274 | L20: =IF(SUM(L4:L19)=0,0,AVERAGE(L4:L19)) -> 94 | M20: =IF(SUM(M4:M19)=0,0,AVERAGE(M4:M19)) -> 98.1 | N20: =IF(SUM(N4:N19)=0,0,AVERAGE(N4:N19)) -> 89.2 | O20: =IF(SUM(O4:O19)=0,0,AVERAGE(O4:O19)) -> 281.3 | Q20: =IF(SUM(Q4:Q19)=0,0,AVERAGE(Q4:Q19)) -> 86.77777778 | R20: =IF(SUM(R4:R19)=0,0,AVERAGE(R4:R19)) -> 95.33333333 | S20: =IF(SUM(S4:S19)=0,0,AVERAGE(S4:S19)) -> 70 | T20: =IF(SUM(T4:T19)=0,0,AVERAGE(T4:T19)) -> 252.1111111 | V20: =IF(SUM(V4:V19)=0,0,AVERAGE(V4:V19)) -> 88.9 | W20: =IF(SUM(W4:W19)=0,0,AVERAGE(W4:W19)) -> 93.5 | X20: =IF(SUM(X4:X19)=0,0,AVERAGE(X4:X19)) -> 80.3 | Y20: =IF(SUM(Y4:Y19)=0,0,AVERAGE(Y4:Y19)) -> 262.7 | AA20: =IF(SUM(AA4:AA19)=0,0,AVERAGE(AA4:AA19)) -> 1106 | AB20: =IF(SUM(AB4:AB19)=0,0,AVERAGE(AB4:AB19)) -> 40.9 | AK20: =TEXT(AH4, "000")&TEXT(AI4, "-00") & TEXT(AL4, "-000") & TEXT(AK4, "-000") & TEXT(AJ4, "-000") -> 290-19-094-098-098 | AL20: =COUNTIF(AK20:AK34, ">=" & AK20) -> 1 | AM20: =RANK(AL20,AL20:AL34,1)+COUNTIF(AK20:AK20,AK20)-1 -> 1 | AQ20: =TEXT(AN4, "000") & TEXT(AO4, "-00") & TEXT(AR4, "-000") & TEXT(AQ4, "-000") & TEXT(AP4, "-000") -> 292-00-097-099-096 | AR20: =COUNTIF(AQ20:AQ34, ">=" & AQ20) -> 1 | AS20: =RANK(AR20,AR20:AR34,1)+COUNTIF(AQ20:AR20,AR20)-1 -> 1 | AW20: =TEXT(AT4, "000") & TEXT(AU4, "-00") & TEXT(AX4, "-000") & TEXT(AW4, "-000") & TEXT(AV4, "-000") -> 000-00-000-000-000 | AX20: =COUNTIF(AW20:AW34, ">=" & AW20) -> 15 | AY20: =RANK(AX20,AX20:AX34,1)+COUNTIF(AW20:AX20,AX20)-1 -> 7 | BC20: =TEXT(AZ4, "000") & TEXT(BA4, "-00") & TEXT(BD4, "-000") & TEXT(BC4, "-000") & TEXT(BB4, "-000") -> 295-22-096-100-099 | BD20: =COUNTIF(BC20:BC34, ">=" & BC20) -> 1 | BE20: =RANK(BD20,BD20:BD34,1)+COUNTIF(BC20:BC20,BC20)-1 -> 1 | BI20: =TEXT(BF4, "000") & TEXT(BG4, "-00") & TEXT(BJ4, "-000") & TEXT(BI4, "-000") & TEXT(BH4, "-000") -> 292-18-095-099-098 | BJ20: =COUNTIF(BI20:BI34, ">=" & BI20) -> 1 | BK20: =RANK(BJ20,BJ20:BJ34,1)+COUNTIF(BI20:BI20,BI20)-1 -> 1 | BO20: =TEXT(BL4, "000") & TEXT(BM4, "-00") & TEXT(BP4, "-000") & TEXT(BO4, "-000") & TEXT(BN4, "-000") -> 294-19-095-100-099 | BP20: =COUNTIF(BO20:BO34, ">=" & BO20) -> 1 | BQ20: =RANK(BP20,BP20:BP34,1)+COUNTIF(BO20:BO20,BO20)-1 -> 1 | BU20: =TEXT(BR4, "000") & TEXT(BS4, "-00") & TEXT(BV4, "-000") & TEXT(BU4, "-000") & TEXT(BT4, "-000") -> 000-00-000-000-000 | BV20: =COUNTIF(BU20:BU34, ">=" & BU20) -> 15 | BW20: =RANK(BV20,BV20:BV34,1)+COUNTIF(BU20:BU20,BU20)-1 -> 1 | CA20: =TEXT(BX4, "000") & TEXT(BY4, "-00") & TEXT(CB4, "-000") & TEXT(CA4, "-000") & TEXT(BZ4, "-000") -> 294-22-096-100-098 | CB20: =COUNTIF(CA20:CA34, ">=" & CA20) -> 1 | CC20: =RANK(CB20,CB20:CB34,1)+COUNTIF(CA20:CA20,CA20)-1 -> 1 | CG20: =TEXT(CD4, "000") & TEXT(CE4, "-00") & TEXT(CH4, "-000") & TEXT(CG4, "-000") & TEXT(CF4, "-000") -> 000-00-000-000-000 | CH20: =COUNTIF(CG20:CG34, ">=" & CG20) -> 15 | CI20: =RANK(CH20,CH20:CH34,1)+COUNTIF(CG20:CG20,CG20)-1 -> 1 | CM20: =TEXT(CJ4, "000") & TEXT(CK4, "-00") & TEXT(CN4, "-000") & TEXT(CM4, "-000") & TEXT(CL4, "-000") -> 294-16-098-098-098 | CN20: =COUNTIF(CM20:CM34, ">=" & CM20) -> 1 | CO20: =RANK(CN20,CN20:CN34,1)+COUNTIF(CM20:CM20,CM20)-1 -> 1 | CS20: =TEXT(CP4, "000") & TEXT(CQ4, "-00") & TEXT(CT4, "-000") & TEXT(CS4, "-000") & TEXT(CR4, "-000") -> 293-15-097-098-098 | CT20: =COUNTIF(CS20:CS34, ">=" & CS20) -> 1 | CU20: =RANK(CT20,CT20:CT34,1)+COUNTIF(CS20:CS20,CS20)-1 -> 1 | CY20: =TEXT(CV4, "000") & TEXT(CW4, "-00") & TEXT(CZ4, "-000") & TEXT(CY4, "-000") & TEXT(CX4, "-000") -> 293-17-096-099-098 | CZ20: =COUNTIF(CY20:CY34, ">=" & CY20) -> 1 | DA20: =RANK(CZ20,CZ20:CZ34,1)+COUNTIF(CY20:CY20,CY20)-1 -> 1 | DE20: =TEXT(DB4, "000") & TEXT(DC4, "-00") & TEXT(DF4, "-000") & TEXT(DE4, "-000") & TEXT(DD4, "-000") -> 000-00-000-000-000 | DF20: =COUNTIF(DE20:DE34, ">=" & DE20) -> 15 | DG20: =RANK(DF20,DF20:DF34,1)+COUNTIF(DE20:DE20,DE20)-1 -> 1 | DK20: =TEXT(DH4, "000") & TEXT(DI4, "-00") & TEXT(DL4, "-000") & TEXT(DK4, "-000") & TEXT(DJ4, "-000") -> 000-00-000-000-000 | DL20: =COUNTIF(DK20:DK34, ">=" & DK20) -> 15 | DM20: =RANK(DL20,DL20:DL34,1)+COUNTIF(DK20:DK20,DK20)-1 -> 1 | DQ20: =TEXT(DN4, "000") & TEXT(DO4, "-00") & TEXT(DR4, "-000") & TEXT(DQ4, "-000") & TEXT(DP4, "-000") -> 000-00-000-000-000 | DR20: =COUNTIF(DQ20:DQ34, ">=" & DQ20) -> 15 | DS20: =RANK(DR20,DR20:DR34,1)+COUNTIF(DQ20:DQ20,DQ20)-1 -> 1 | DW20: =TEXT(DT4, "000") & TEXT(DU4, "-00") & TEXT(DX4, "-000") & TEXT(DW4, "-000") & TEXT(DV4, "-000") -> 000-00-000-000-000 | DX20: =COUNTIF(DW20:DW34, ">=" & DW20) -> 15 | DY20: =RANK(DX20,DX20:DX34,1)+COUNTIF(DW20:DW20,DW20)-1 -> 1
A21: CV | AC21: =A21 -> CV | AK21: =TEXT(AH5, "000")&TEXT(AI5, "-00") & TEXT(AL5, "-000") & TEXT(AK5, "-000") & TEXT(AJ5, "-000") -> 275-07-088-095-092 | AL21: =COUNTIF(AK20:AK34, ">=" & AK21) -> 2 | AM21: =RANK(AL21,AL20:AL34,1)+COUNTIF(AK20:AK21,AK21)-1 -> 2 | AQ21: =TEXT(AN5, "000") & TEXT(AO5, "-00") & TEXT(AR5, "-000") & TEXT(AQ5, "-000") & TEXT(AP5, "-000") -> 271-09-084-096-091 | AR21: =COUNTIF(AQ20:AQ34, ">=" & AQ21) -> 4 | AS21: =RANK(AR21,AR20:AR34,1)+COUNTIF(AQ20:AR21,AR21)-1 -> 4 | AW21: =TEXT(AT5, "000") & TEXT(AU5, "-00") & TEXT(AX5, "-000") & TEXT(AW5, "-000") & TEXT(AV5, "-000") -> 280-09-089-098-093 | AX21: =COUNTIF(AW20:AW34, ">=" & AW21) -> 2 | AY21: =RANK(AX21,AX20:AX34,1)+COUNTIF(AW20:AX21,AX21)-1 -> 2 | BC21: =TEXT(AZ5, "000") & TEXT(BA5, "-00") & TEXT(BD5, "-000") & TEXT(BC5, "-000") & TEXT(BB5, "-000") -> 000-00-000-000-000 | BD21: =COUNTIF(BC20:BC34, ">=" & BC21) -> 15 | BE21: =RANK(BD21,BD20:BD34,1)+COUNTIF(BC20:BC21,BC21)-1 -> 7 | BI21: =TEXT(BF5, "000") & TEXT(BG5, "-00") & TEXT(BJ5, "-000") & TEXT(BI5, "-000") & TEXT(BH5, "-000") -> 275-09-084-097-094 | BJ21: =COUNTIF(BI20:BI34, ">=" & BI21) -> 3 | BK21: =RANK(BJ21,BJ20:BJ34,1)+COUNTIF(BI20:BI21,BI21)-1 -> 3 | BO21: =TEXT(BL5, "000") & TEXT(BM5, "-00") & TEXT(BP5, "-000") & TEXT(BO5, "-000") & TEXT(BN5, "-000") -> 271-02-086-096-089 | BP21: =COUNTIF(BO20:BO34, ">=" & BO21) -> 3 | BQ21: =RANK(BP21,BP20:BP34,1)+COUNTIF(BO20:BO21,BO21)-1 -> 3 | BU21: =TEXT(BR5, "000") & TEXT(BS5, "-00") & TEXT(BV5, "-000") & TEXT(BU5, "-000") & TEXT(BT5, "-000") -> 000-00-000-000-000 | BV21: =COUNTIF(BU20:BU34, ">=" & BU21) -> 15 | BW21: =RANK(BV21,BV20:BV34,1)+COUNTIF(BU20:BU21,BU21)-1 -> 2 | CA21: =TEXT(BX5, "000") & TEXT(BY5, "-00") & TEXT(CB5, "-000") & TEXT(CA5, "-000") & TEXT(BZ5, "-000") -> 267-10-085-099-083 | CB21: =COUNTIF(CA20:CA34, ">=" & CA21) -> 4 | CC21: =RANK(CB21,CB20:CB34,1)+COUNTIF(CA20:CA21,CA21)-1 -> 4 | CG21: =TEXT(CD5, "000") & TEXT(CE5, "-00") & TEXT(CH5, "-000") & TEXT(CG5, "-000") & TEXT(CF5, "-000") -> 000-00-000-000-000 | CH21: =COUNTIF(CG20:CG34, ">=" & CG21) -> 15 | CI21: =RANK(CH21,CH20:CH34,1)+COUNTIF(CG20:CG21,CG21)-1 -> 2 | CM21: =TEXT(CJ5, "000") & TEXT(CK5, "-00") & TEXT(CN5, "-000") & TEXT(CM5, "-000") & TEXT(CL5, "-000") -> 280-14-087-099-094 | CN21: =COUNTIF(CM20:CM34, ">=" & CM21) -> 3 | CO21: =RANK(CN21,CN20:CN34,1)+COUNTIF(CM20:CM21,CM21)-1 -> 3 | CS21: =TEXT(CP5, "000") & TEXT(CQ5, "-00") & TEXT(CT5, "-000") & TEXT(CS5, "-000") & TEXT(CR5, "-000") -> 272-09-084-100-088 | CT21: =COUNTIF(CS20:CS34, ">=" & CS21) -> 3 | CU21: =RANK(CT21,CT20:CT34,1)+COUNTIF(CS20:CS21,CS21)-1 -> 3 | CY21: =TEXT(CV5, "000") & TEXT(CW5, "-00") & TEXT(CZ5, "-000") & TEXT(CY5, "-000") & TEXT(CX5, "-000") -> 275-11-084-099-092 | CZ21: =COUNTIF(CY20:CY34, ">=" & CY21) -> 3 | DA21: =RANK(CZ21,CZ20:CZ34,1)+COUNTIF(CY20:CY21,CY21)-1 -> 3 | DE21: =TEXT(DB5, "000") & TEXT(DC5, "-00") & TEXT(DF5, "-000") & TEXT(DE5, "-000") & TEXT(DD5, "-000") -> 000-00-000-000-000 | DF21: =COUNTIF(DE20:DE34, ">=" & DE21) -> 15 | DG21: =RANK(DF21,DF20:DF34,1)+COUNTIF(DE20:DE21,DE21)-1 -> 2 | DK21: =TEXT(DH5, "000") & TEXT(DI5, "-00") & TEXT(DL5, "-000") & TEXT(DK5, "-000") & TEXT(DJ5, "-000") -> 000-00-000-000-000 | DL21: =COUNTIF(DK20:DK34, ">=" & DK21) -> 15 | DM21: =RANK(DL21,DL20:DL34,1)+COUNTIF(DK20:DK21,DK21)-1 -> 2 | DQ21: =TEXT(DN5, "000") & TEXT(DO5, "-00") & TEXT(DR5, "-000") & TEXT(DQ5, "-000") & TEXT(DP5, "-000") -> 000-00-000-000-000 | DR21: =COUNTIF(DQ20:DQ34, ">=" & DQ21) -> 15 | DS21: =RANK(DR21,DR20:DR34,1)+COUNTIF(DQ20:DQ21,DQ21)-1 -> 2 | DW21: =TEXT(DT5, "000") & TEXT(DU5, "-00") & TEXT(DX5, "-000") & TEXT(DW5, "-000") & TEXT(DV5, "-000") -> 000-00-000-000-000 | DX21: =COUNTIF(DW20:DW34, ">=" & DW21) -> 15 | DY21: =RANK(DX21,DX20:DX34,1)+COUNTIF(DW20:DW21,DW21)-1 -> 2
A22: Cartersville | B22: Van Pelt, Chance (9) | G22: Gibson, Lucas (11) | L22: CV 8 | Q22: CV 9 | V22: CV 10 | AC22: =B22 -> Van Pelt, Chance (9) | AD22: =G22 -> Gibson, Lucas (11) | AE22: =L22 -> CV 8 | AF22: =Q22 -> CV 9 | AG22: =V22 -> CV 10 | AK22: =TEXT(AH6,"000")&TEXT(AI6,"-00")&TEXT(AL6,"-000")&TEXT(AK6,"-000")&TEXT(AJ6,"-000") -> 274-08-087-096-091 | AL22: =COUNTIF(AK20:AK34, ">=" & AK22) -> 3 | AM22: =RANK(AL22,AL20:AL34,1)+COUNTIF(AK20:AK22,AK22)-1 -> 3 | AQ22: =TEXT(AN6,"000")&TEXT(AO6,"-00")&TEXT(AR6,"-000")&TEXT(AQ6,"-000")&TEXT(AP6,"-000") -> 277-01-091-095-091 | AR22: =COUNTIF(AQ20:AQ34, ">=" & AQ22) -> 3 | AS22: =RANK(AR22,AR20:AR34,1)+COUNTIF(AQ20:AR22,AR22)-1 -> 3 | AW22: =TEXT(AT6,"000")&TEXT(AU6,"-00")&TEXT(AX6,"-000")&TEXT(AW6,"-000")&TEXT(AV6,"-000") -> 282-10-092-098-092 | AX22: =COUNTIF(AW20:AW34, ">=" & AW22) -> 1 | AY22: =RANK(AX22,AX20:AX34,1)+COUNTIF(AW20:AX22,AX22)-1 -> 1 | BC22: =TEXT(AZ6,"000")&TEXT(BA6,"-00")&TEXT(BD6,"-000")&TEXT(BC6,"-000")&TEXT(BB6,"-000") -> 285-13-090-100-095 | BD22: =COUNTIF(BC20:BC34, ">=" & BC22) -> 2 | BE22: =RANK(BD22,BD20:BD34,1)+COUNTIF(BC20:BC22,BC22)-1 -> 2 | BI22: =TEXT(BF6,"000")&TEXT(BG6,"-00")&TEXT(BJ6,"-000")&TEXT(BI6,"-000")&TEXT(BH6,"-000") -> 281-14-089-098-094 | BJ22: =COUNTIF(BI20:BI34, ">=" & BI22) -> 2 | BK22: =RANK(BJ22,BJ20:BJ34,1)+COUNTIF(BI20:BI22,BI22)-1 -> 2 | BO22: =TEXT(BL6,"000")&TEXT(BM6,"-00")&TEXT(BP6,"-000")&TEXT(BO6,"-000")&TEXT(BN6,"-000") -> 282-12-088-100-094 | BP22: =COUNTIF(BO20:BO34, ">=" & BO22) -> 2 | BQ22: =RANK(BP22,BP20:BP34,1)+COUNTIF(BO20:BO22,BO22)-1 -> 2 | BU22: =TEXT(BR6,"000")&TEXT(BS6,"-00")&TEXT(BV6,"-000")&TEXT(BU6,"-000")&TEXT(BT6,"-000") -> 000-00-000-000-000 | BV22: =COUNTIF(BU20:BU34, ">=" & BU22) -> 15 | BW22: =RANK(BV22,BV20:BV34,1)+COUNTIF(BU20:BU22,BU22)-1 -> 3 | CA22: =TEXT(BX6,"000")&TEXT(BY6,"-00")&TEXT(CB6,"-000")&TEXT(CA6,"-000")&TEXT(BZ6,"-000") -> 282-09-089-097-096 | CB22: =COUNTIF(CA20:CA34, ">=" & CA22) -> 2 | CC22: =RANK(CB22,CB20:CB34,1)+COUNTIF(CA20:CA22,CA22)-1 -> 2 | CG22: =TEXT(CD6,"000")&TEXT(CE6,"-00")&TEXT(CH6,"-000")&TEXT(CG6,"-000")&TEXT(CF6,"-000") -> 000-00-000-000-000 | CH22: =COUNTIF(CG20:CG34, ">=" & CG22) -> 15 | CI22: =RANK(CH22,CH20:CH34,1)+COUNTIF(CG20:CG22,CG22)-1 -> 3 | CM22: =TEXT(CJ6,"000")&TEXT(CK6,"-00")&TEXT(CN6,"-000")&TEXT(CM6,"-000")&TEXT(CL6,"-000") -> 287-17-091-099-097 | CN22: =COUNTIF(CM20:CM34, ">=" & CM22) -> 2 | CO22: =RANK(CN22,CN20:CN34,1)+COUNTIF(CM20:CM22,CM22)-1 -> 2 | CS22: =TEXT(CP6,"000")&TEXT(CQ6,"-00")&TEXT(CT6,"-000")&TEXT(CS6,"-000")&TEXT(CR6,"-000") -> 277-07-086-098-093 | CT22: =COUNTIF(CS20:CS34, ">=" & CS22) -> 2 | CU22: =RANK(CT22,CT20:CT34,1)+COUNTIF(CS20:CS22,CS22)-1 -> 2 | CY22: =TEXT(CV6,"000")&TEXT(CW6,"-00")&TEXT(CZ6,"-000")&TEXT(CY6,"-000")&TEXT(CX6,"-000") -> 286-00-089-100-097 | CZ22: =COUNTIF(CY20:CY34, ">=" & CY22) -> 2 | DA22: =RANK(CZ22,CZ20:CZ34,1)+COUNTIF(CY20:CY22,CY22)-1 -> 2 | DE22: =TEXT(DB6,"000")&TEXT(DC6,"-00")&TEXT(DF6,"-000")&TEXT(DE6,"-000")&TEXT(DD6,"-000") -> 000-00-000-000-000 | DF22: =COUNTIF(DE20:DE34, ">=" & DE22) -> 15 | DG22: =RANK(DF22,DF20:DF34,1)+COUNTIF(DE20:DE22,DE22)-1 -> 3 | DK22: =TEXT(DH6,"000")&TEXT(DI6,"-00")&TEXT(DL6,"-000")&TEXT(DK6,"-000")&TEXT(DJ6,"-000") -> 000-00-000-000-000 | DL22: =COUNTIF(DK20:DK34, ">=" & DK22) -> 15 | DM22: =RANK(DL22,DL20:DL34,1)+COUNTIF(DK20:DK22,DK22)-1 -> 3 | DQ22: =TEXT(DN6,"000")&TEXT(DO6,"-00")&TEXT(DR6,"-000")&TEXT(DQ6,"-000")&TEXT(DP6,"-000") -> 000-00-000-000-000 | DR22: =COUNTIF(DQ20:DQ34, ">=" & DQ22) -> 15 | DS22: =RANK(DR22,DR20:DR34,1)+COUNTIF(DQ20:DQ22,DQ22)-1 -> 3 | DW22: =TEXT(DT6,"000")&TEXT(DU6,"-00")&TEXT(DX6,"-000")&TEXT(DW6,"-000")&TEXT(DV6,"-000") -> 000-00-000-000-000 | DX22: =COUNTIF(DW20:DW34, ">=" & DW22) -> 15 | DY22: =RANK(DX22,DX20:DX34,1)+COUNTIF(DW20:DW22,DW22)-1 -> 3
A23: VS | B23: K | C23: P | D23: S | E23: AGGR | F23: *10 | G23: K | H23: P | I23: S | J23: AGGR | K23: *10 | L23: K | M23: P | N23: S | O23: AGGR | P23: *10 | Q23: K | R23: P | S23: S | T23: AGGR | U23: *10 | V23: K | W23: P | X23: S | Y23: AGGR | Z23: *10 | AC23: =IF(SUM(E24:E39)>0,LARGE(E24:E39,1),0) -> 260 | AD23: =IF(SUM(J24:J39)>0,LARGE(J24:J39,1),0) -> 244 | AE23: =IF(SUM(O24:O39)>0,LARGE(O24:O39,1),0) -> 0 | AF23: =IF(SUM(T24:T39)>0,LARGE(T24:T39,1),0) -> 0 | AG23: =IF(SUM(Y24:Y39)>0,LARGE(Y24:Y39,1),0) -> 0 | AK23: 255-09-068-096-091 | AL23: =COUNTIF(AK20:AK34, ">=" & AK23) -> 4 | AM23: =RANK(AL23,AL20:AL34,1)+COUNTIF(AK20:AK23,AK23)-1 -> 4 | AQ23: 251-08-069-097-085 | AR23: =COUNTIF(AQ20:AQ34, ">=" & AQ23) -> 5 | AS23: =RANK(AR23,AR20:AR34,1)+COUNTIF(AQ20:AR23,AR23)-1 -> 5 | AW23: 235-04-057-095-083 | AX23: =COUNTIF(AW20:AW34, ">=" & AW23) -> 6 | AY23: =RANK(AX23,AX20:AX34,1)+COUNTIF(AW20:AX23,AX23)-1 -> 6 | BC23: 235-02-068-089-078 | BD23: =COUNTIF(BC20:BC34, ">=" & BC23) -> 6 | BE23: =RANK(BD23,BD20:BD34,1)+COUNTIF(BC20:BC23,BC23)-1 -> 6 | BI23: 268-09-080-099-089 | BJ23: =COUNTIF(BI20:BI34, ">=" & BI23) -> 4 | BK23: =RANK(BJ23,BJ20:BJ34,1)+COUNTIF(BI20:BI23,BI23)-1 -> 4 | BO23: 247-00-062-098-087 | BP23: =COUNTIF(BO20:BO34, ">=" & BO23) -> 5 | BQ23: =RANK(BP23,BP20:BP34,1)+COUNTIF(BO20:BO23,BO23)-1 -> 5 | BU23: 000-00-000-000-000 | BV23: =COUNTIF(BU20:BU34, ">=" & BU23) -> 15 | BW23: =RANK(BV23,BV20:BV34,1)+COUNTIF(BU20:BU23,BU23)-1 -> 4 | CA23: 000-00-000-000-000 | CB23: =COUNTIF(CA20:CA34, ">=" & CA23) -> 15 | CC23: =RANK(CB23,CB20:CB34,1)+COUNTIF(CA20:CA23,CA23)-1 -> 5 | CG23: 000-00-000-000-000 | CH23: =COUNTIF(CG20:CG34, ">=" & CG23) -> 15 | CI23: =RANK(CH23,CH20:CH34,1)+COUNTIF(CG20:CG23,CG23)-1 -> 4 | CM23: 259-06-075-094-090 | CN23: =COUNTIF(CM20:CM34, ">=" & CM23) -> 5 | CO23: =RANK(CN23,CN20:CN34,1)+COUNTIF(CM20:CM23,CM23)-1 -> 5 | CS23: 259-04-077-095-087 | CT23: =COUNTIF(CS20:CS34, ">=" & CS23) -> 5 | CU23: =RANK(CT23,CT20:CT34,1)+COUNTIF(CS20:CS23,CS23)-1 -> 5 | CY23: 260-08-074-095-091 | CZ23: =COUNTIF(CY20:CY34, ">=" & CY23) -> 5 | DA23: =RANK(CZ23,CZ20:CZ34,1)+COUNTIF(CY20:CY23,CY23)-1 -> 5 | DE23: 000-00-000-000-000 | DF23: =COUNTIF(DE20:DE34, ">=" & DE23) -> 15 | DG23: =RANK(DF23,DF20:DF34,1)+COUNTIF(DE20:DE23,DE23)-1 -> 4 | DK23: 000-00-000-000-000 | DL23: =COUNTIF(DK20:DK34, ">=" & DK23) -> 15 | DM23: =RANK(DL23,DL20:DL34,1)+COUNTIF(DK20:DK23,DK23)-1 -> 4 | DQ23: 000-00-000-000-000 | DR23: =COUNTIF(DQ20:DQ34, ">=" & DQ23) -> 15 | DS23: =RANK(DR23,DR20:DR34,1)+COUNTIF(DQ20:DQ23,DQ23)-1 -> 4 | DW23: 000-00-000-000-000 | DX23: =COUNTIF(DW20:DW34, ">=" & DW23) -> 15 | DY23: =RANK(DX23,DX20:DX34,1)+COUNTIF(DW20:DW23,DW23)-1 -> 4
A24: Lafayette | B24: 72 | C24: 89 | D24: 52 | E24: =IF(SUM(B24:D24)>0,SUM(B24:D24),"") -> 213 | F24: 4 | J24: =IF(SUM(G24:I24)>0,SUM(G24:I24),"") ->  | O24: =IF(SUM(L24:N24)>0,SUM(L24:N24),"") ->  | T24: =IF(SUM(Q24:S24)>0,SUM(Q24:S24),"") ->  | Y24: =IF(SUM(V24:X24)>0,SUM(V24:X24),"") ->  | AK24: 249-05-075-090-084 | AL24: =COUNTIF(AK20:AK34, ">=" & AK24) -> 5 | AM24: =RANK(AL24,AL20:AL34,1)+COUNTIF(AK20:AK24,AK24)-1 -> 5 | AQ24: 277-11-086-099-092 | AR24: =COUNTIF(AQ20:AQ34, ">=" & AQ24) -> 2 | AS24: =RANK(AR24,AR20:AR34,1)+COUNTIF(AQ20:AR24,AR24)-1 -> 2 | AW24: 266-06-086-094-086 | AX24: =COUNTIF(AW20:AW34, ">=" & AW24) -> 3 | AY24: =RANK(AX24,AX20:AX34,1)+COUNTIF(AW20:AX24,AX24)-1 -> 3 | BC24: 251-03-077-087-087 | BD24: =COUNTIF(BC20:BC34, ">=" & BC24) -> 3 | BE24: =RANK(BD24,BD20:BD34,1)+COUNTIF(BC20:BC24,BC24)-1 -> 3 | BI24: 259-06-077-093-089 | BJ24: =COUNTIF(BI20:BI34, ">=" & BI24) -> 5 | BK24: =RANK(BJ24,BJ20:BJ34,1)+COUNTIF(BI20:BI24,BI24)-1 -> 5 | BO24: 256-04-075-092-089 | BP24: =COUNTIF(BO20:BO34, ">=" & BO24) -> 4 | BQ24: =RANK(BP24,BP20:BP34,1)+COUNTIF(BO20:BO24,BO24)-1 -> 4 | BU24: 000-00-000-000-000 | BV24: =COUNTIF(BU20:BU34, ">=" & BU24) -> 15 | BW24: =RANK(BV24,BV20:BV34,1)+COUNTIF(BU20:BU24,BU24)-1 -> 5 | CA24: 269-10-082-097-090 | CB24: =COUNTIF(CA20:CA34, ">=" & CA24) -> 3 | CC24: =RANK(CB24,CB20:CB34,1)+COUNTIF(CA20:CA24,CA24)-1 -> 3 | CG24: 000-00-000-000-000 | CH24: =COUNTIF(CG20:CG34, ">=" & CG24) -> 15 | CI24: =RANK(CH24,CH20:CH34,1)+COUNTIF(CG20:CG24,CG24)-1 -> 5 | CM24: 268-07-082-092-094 | CN24: =COUNTIF(CM20:CM34, ">=" & CM24) -> 4 | CO24: =RANK(CN24,CN20:CN34,1)+COUNTIF(CM20:CM24,CM24)-1 -> 4 | CS24: 263-02-081-095-087 | CT24: =COUNTIF(CS20:CS34, ">=" & CS24) -> 4 | CU24: =RANK(CT24,CT20:CT34,1)+COUNTIF(CS20:CS24,CS24)-1 -> 4 | CY24: 269-10-082-096-091 | CZ24: =COUNTIF(CY20:CY34, ">=" & CY24) -> 4 | DA24: =RANK(CZ24,CZ20:CZ34,1)+COUNTIF(CY20:CY24,CY24)-1 -> 4 | DE24: 000-00-000-000-000 | DF24: =COUNTIF(DE20:DE34, ">=" & DE24) -> 15 | DG24: =RANK(DF24,DF20:DF34,1)+COUNTIF(DE20:DE24,DE24)-1 -> 5 | DK24: 000-00-000-000-000 | DL24: =COUNTIF(DK20:DK34, ">=" & DK24) -> 15 | DM24: =RANK(DL24,DL20:DL34,1)+COUNTIF(DK20:DK24,DK24)-1 -> 5 | DQ24: 000-00-000-000-000 | DR24: =COUNTIF(DQ20:DQ34, ">=" & DQ24) -> 15 | DS24: =RANK(DR24,DR20:DR34,1)+COUNTIF(DQ20:DQ24,DQ24)-1 -> 5 | DW24: 000-00-000-000-000 | DX24: =COUNTIF(DW20:DW34, ">=" & DW24) -> 15 | DY24: =RANK(DX24,DX20:DX34,1)+COUNTIF(DW20:DW24,DW24)-1 -> 5
A25: @ Ridgeland | AK25: 213-04-052-089-072 | AL25: =COUNTIF(AK20:AK34, ">=" & AK25) -> 6 | AM25: =RANK(AL25,AL20:AL34,1)+COUNTIF(AK20:AK25,AK25)-1 -> 6 | AQ25: 000-00-000-000-000 | AR25: =COUNTIF(AQ20:AQ34, ">=" & AQ25) -> 15 | AS25: =RANK(AR25,AR20:AR34,1)+COUNTIF(AQ20:AR25,AR25)-1 -> 6 | AW25: 260-05-080-089-091 | AX25: =COUNTIF(AW20:AW34, ">=" & AW25) -> 4 | AY25: =RANK(AX25,AX20:AX34,1)+COUNTIF(AW20:AX25,AX25)-1 -> 4 | BC25: 242-02-072-089-081 | BD25: =COUNTIF(BC20:BC34, ">=" & BC25) -> 4 | BE25: =RANK(BD25,BD20:BD34,1)+COUNTIF(BC20:BC25,BC25)-1 -> 4 | BI25: 000-00-000-000-000 | BJ25: =COUNTIF(BI20:BI34, ">=" & BI25) -> 15 | BK25: =RANK(BJ25,BJ20:BJ34,1)+COUNTIF(BI20:BI25,BI25)-1 -> 7 | BO25: 000-00-000-000-000 | BP25: =COUNTIF(BO20:BO34, ">=" & BO25) -> 15 | BQ25: =RANK(BP25,BP20:BP34,1)+COUNTIF(BO20:BO25,BO25)-1 -> 6 | BU25: 000-00-000-000-000 | BV25: =COUNTIF(BU20:BU34, ">=" & BU25) -> 15 | BW25: =RANK(BV25,BV20:BV34,1)+COUNTIF(BU20:BU25,BU25)-1 -> 6 | CA25: 000-00-000-000-000 | CB25: =COUNTIF(CA20:CA34, ">=" & CA25) -> 15 | CC25: =RANK(CB25,CB20:CB34,1)+COUNTIF(CA20:CA25,CA25)-1 -> 6 | CG25: 000-00-000-000-000 | CH25: =COUNTIF(CG20:CG34, ">=" & CG25) -> 15 | CI25: =RANK(CH25,CH20:CH34,1)+COUNTIF(CG20:CG25,CG25)-1 -> 6 | CM25: 000-00-000-000-000 | CN25: =COUNTIF(CM20:CM34, ">=" & CM25) -> 15 | CO25: =RANK(CN25,CN20:CN34,1)+COUNTIF(CM20:CM25,CM25)-1 -> 6 | CS25: 232-01-078-078-076 | CT25: =COUNTIF(CS20:CS34, ">=" & CS25) -> 6 | CU25: =RANK(CT25,CT20:CT34,1)+COUNTIF(CS20:CS25,CS25)-1 -> 6 | CY25: 000-00-000-000-000 | CZ25: =COUNTIF(CY20:CY34, ">=" & CY25) -> 15 | DA25: =RANK(CZ25,CZ20:CZ34,1)+COUNTIF(CY20:CY25,CY25)-1 -> 6 | DE25: 000-00-000-000-000 | DF25: =COUNTIF(DE20:DE34, ">=" & DE25) -> 15 | DG25: =RANK(DF25,DF20:DF34,1)+COUNTIF(DE20:DE25,DE25)-1 -> 6 | DK25: 000-00-000-000-000 | DL25: =COUNTIF(DK20:DK34, ">=" & DK25) -> 15 | DM25: =RANK(DL25,DL20:DL34,1)+COUNTIF(DK20:DK25,DK25)-1 -> 6 | DQ25: 000-00-000-000-000 | DR25: =COUNTIF(DQ20:DQ34, ">=" & DQ25) -> 15 | DS25: =RANK(DR25,DR20:DR34,1)+COUNTIF(DQ20:DQ25,DQ25)-1 -> 6 | DW25: 000-00-000-000-000 | DX25: =COUNTIF(DW20:DW34, ">=" & DW25) -> 15 | DY25: =RANK(DX25,DX20:DX34,1)+COUNTIF(DW20:DW25,DW25)-1 -> 6
A26: Dalton | B26: 91 | C26: 89 | D26: 80 | E26: 260 | F26: 5 | G26: 80 | H26: 92 | I26: 72 | J26: 244 | K26: 4 | AA26: s | AK26: 000-00-000-000-000 | AL26: =COUNTIF(AK20:AK34, ">=" & AK26) -> 15 | AM26: =RANK(AL26,AL20:AL34,1)+COUNTIF(AK20:AK26,AK26)-1 -> 7 | AQ26: 000-00-000-000-000 | AR26: =COUNTIF(AQ20:AQ34, ">=" & AQ26) -> 15 | AS26: =RANK(AR26,AR20:AR34,1)+COUNTIF(AQ20:AR26,AR26)-1 -> 7 | AW26: 244-04-072-092-080 | AX26: =COUNTIF(AW20:AW34, ">=" & AW26) -> 5 | AY26: =RANK(AX26,AX20:AX34,1)+COUNTIF(AW20:AX26,AX26)-1 -> 5 | BC26: 235-03-068-085-082 | BD26: =COUNTIF(BC20:BC34, ">=" & BC26) -> 5 | BE26: =RANK(BD26,BD20:BD34,1)+COUNTIF(BC20:BC26,BC26)-1 -> 5 | BI26: 237-01-073-089-075 | BJ26: =COUNTIF(BI20:BI34, ">=" & BI26) -> 6 | BK26: =RANK(BJ26,BJ20:BJ34,1)+COUNTIF(BI20:BI26,BI26)-1 -> 6 | BO26: 000-00-000-000-000 | BP26: =COUNTIF(BO20:BO34, ">=" & BO26) -> 15 | BQ26: =RANK(BP26,BP20:BP34,1)+COUNTIF(BO20:BO26,BO26)-1 -> 7 | BU26: 000-00-000-000-000 | BV26: =COUNTIF(BU20:BU34, ">=" & BU26) -> 15 | BW26: =RANK(BV26,BV20:BV34,1)+COUNTIF(BU20:BU26,BU26)-1 -> 7 | CA26: 000-00-000-000-000 | CB26: =COUNTIF(CA20:CA34, ">=" & CA26) -> 15 | CC26: =RANK(CB26,CB20:CB34,1)+COUNTIF(CA20:CA26,CA26)-1 -> 7 | CG26: 000-00-000-000-000 | CH26: =COUNTIF(CG20:CG34, ">=" & CG26) -> 15 | CI26: =RANK(CH26,CH20:CH34,1)+COUNTIF(CG20:CG26,CG26)-1 -> 7 | CM26: 000-00-000-000-000 | CN26: =COUNTIF(CM20:CM34, ">=" & CM26) -> 15 | CO26: =RANK(CN26,CN20:CN34,1)+COUNTIF(CM20:CM26,CM26)-1 -> 7 | CS26: 000-00-000-000-000 | CT26: =COUNTIF(CS20:CS34, ">=" & CS26) -> 15 | CU26: =RANK(CT26,CT20:CT34,1)+COUNTIF(CS20:CS26,CS26)-1 -> 7 | CY26: 000-00-000-000-000 | CZ26: =COUNTIF(CY20:CY34, ">=" & CY26) -> 15 | DA26: =RANK(CZ26,CZ20:CZ34,1)+COUNTIF(CY20:CY26,CY26)-1 -> 7 | DE26: 000-00-000-000-000 | DF26: =COUNTIF(DE20:DE34, ">=" & DE26) -> 15 | DG26: =RANK(DF26,DF20:DF34,1)+COUNTIF(DE20:DE26,DE26)-1 -> 7 | DK26: 000-00-000-000-000 | DL26: =COUNTIF(DK20:DK34, ">=" & DK26) -> 15 | DM26: =RANK(DL26,DL20:DL34,1)+COUNTIF(DK20:DK26,DK26)-1 -> 7 | DQ26: 000-00-000-000-000 | DR26: =COUNTIF(DQ20:DQ34, ">=" & DQ26) -> 15 | DS26: =RANK(DR26,DR20:DR34,1)+COUNTIF(DQ20:DQ26,DQ26)-1 -> 7 | DW26: 000-00-000-000-000 | DX26: =COUNTIF(DW20:DW34, ">=" & DW26) -> 15 | DY26: =RANK(DX26,DX20:DX34,1)+COUNTIF(DW20:DW26,DW26)-1 -> 7
A27: Gordon Central | B27: 81 | C27: 89 | D27: 72 | E27: 242 | F27: 2 | G27: 82 | H27: 85 | I27: 68 | J27: 235 | K27: 3 | AA27: e | AK27: 000-00-000-000-000 | AL27: =COUNTIF(AK20:AK34, ">=" & AK27) -> 15 | AM27: =RANK(AL27,AL20:AL34,1)+COUNTIF(AK20:AK27,AK27)-1 -> 8 | AQ27: 000-00-000-000-000 | AR27: =COUNTIF(AQ20:AQ34, ">=" & AQ27) -> 15 | AS27: =RANK(AR27,AR20:AR34,1)+COUNTIF(AQ20:AR27,AR27)-1 -> 8 | AW27: 000-00-000-000-000 | AX27: =COUNTIF(AW20:AW34, ">=" & AW27) -> 15 | AY27: =RANK(AX27,AX20:AX34,1)+COUNTIF(AW20:AX27,AX27)-1 -> 8 | BC27: 000-00-000-000-000 | BD27: =COUNTIF(BC20:BC34, ">=" & BC27) -> 15 | BE27: =RANK(BD27,BD20:BD34,1)+COUNTIF(BC20:BC27,BC27)-1 -> 8 | BI27: 000-00-000-000-000 | BJ27: =COUNTIF(BI20:BI34, ">=" & BI27) -> 15 | BK27: =RANK(BJ27,BJ20:BJ34,1)+COUNTIF(BI20:BI27,BI27)-1 -> 8 | BO27: 000-00-000-000-000 | BP27: =COUNTIF(BO20:BO34, ">=" & BO27) -> 15 | BQ27: =RANK(BP27,BP20:BP34,1)+COUNTIF(BO20:BO27,BO27)-1 -> 8 | BU27: 000-00-000-000-000 | BV27: =COUNTIF(BU20:BU34, ">=" & BU27) -> 15 | BW27: =RANK(BV27,BV20:BV34,1)+COUNTIF(BU20:BU27,BU27)-1 -> 8 | CA27: 000-00-000-000-000 | CB27: =COUNTIF(CA20:CA34, ">=" & CA27) -> 15 | CC27: =RANK(CB27,CB20:CB34,1)+COUNTIF(CA20:CA27,CA27)-1 -> 8 | CG27: 000-00-000-000-000 | CH27: =COUNTIF(CG20:CG34, ">=" & CG27) -> 15 | CI27: =RANK(CH27,CH20:CH34,1)+COUNTIF(CG20:CG27,CG27)-1 -> 8 | CM27: 000-00-000-000-000 | CN27: =COUNTIF(CM20:CM34, ">=" & CM27) -> 15 | CO27: =RANK(CN27,CN20:CN34,1)+COUNTIF(CM20:CM27,CM27)-1 -> 8 | CS27: 000-00-000-000-000 | CT27: =COUNTIF(CS20:CS34, ">=" & CS27) -> 15 | CU27: =RANK(CT27,CT20:CT34,1)+COUNTIF(CS20:CS27,CS27)-1 -> 8 | CY27: 000-00-000-000-000 | CZ27: =COUNTIF(CY20:CY34, ">=" & CY27) -> 15 | DA27: =RANK(CZ27,CZ20:CZ34,1)+COUNTIF(CY20:CY27,CY27)-1 -> 8 | DE27: 000-00-000-000-000 | DF27: =COUNTIF(DE20:DE34, ">=" & DE27) -> 15 | DG27: =RANK(DF27,DF20:DF34,1)+COUNTIF(DE20:DE27,DE27)-1 -> 8 | DK27: 000-00-000-000-000 | DL27: =COUNTIF(DK20:DK34, ">=" & DK27) -> 15 | DM27: =RANK(DL27,DL20:DL34,1)+COUNTIF(DK20:DK27,DK27)-1 -> 8 | DQ27: 000-00-000-000-000 | DR27: =COUNTIF(DQ20:DQ34, ">=" & DQ27) -> 15 | DS27: =RANK(DR27,DR20:DR34,1)+COUNTIF(DQ20:DQ27,DQ27)-1 -> 8 | DW27: 000-00-000-000-000 | DX27: =COUNTIF(DW20:DW34, ">=" & DW27) -> 15 | DY27: =RANK(DX27,DX20:DX34,1)+COUNTIF(DW20:DW27,DW27)-1 -> 8
A28: Etowah | G28: 75 | H28: 89 | I28: 73 | J28: 237 | K28: 1 | AA28: e | AK28: 000-00-000-000-000 | AL28: =COUNTIF(AK20:AK34, ">=" & AK28) -> 15 | AM28: =RANK(AL28,AL20:AL34,1)+COUNTIF(AK20:AK28,AK28)-1 -> 9 | AQ28: 000-00-000-000-000 | AR28: =COUNTIF(AQ20:AQ34, ">=" & AQ28) -> 15 | AS28: =RANK(AR28,AR20:AR34,1)+COUNTIF(AQ20:AR28,AR28)-1 -> 9 | AW28: 000-00-000-000-000 | AX28: =COUNTIF(AW20:AW34, ">=" & AW28) -> 15 | AY28: =RANK(AX28,AX20:AX34,1)+COUNTIF(AW20:AX28,AX28)-1 -> 9 | BC28: 000-00-000-000-000 | BD28: =COUNTIF(BC20:BC34, ">=" & BC28) -> 15 | BE28: =RANK(BD28,BD20:BD34,1)+COUNTIF(BC20:BC28,BC28)-1 -> 9 | BI28: 000-00-000-000-000 | BJ28: =COUNTIF(BI20:BI34, ">=" & BI28) -> 15 | BK28: =RANK(BJ28,BJ20:BJ34,1)+COUNTIF(BI20:BI28,BI28)-1 -> 9 | BO28: 000-00-000-000-000 | BP28: =COUNTIF(BO20:BO34, ">=" & BO28) -> 15 | BQ28: =RANK(BP28,BP20:BP34,1)+COUNTIF(BO20:BO28,BO28)-1 -> 9 | BU28: 000-00-000-000-000 | BV28: =COUNTIF(BU20:BU34, ">=" & BU28) -> 15 | BW28: =RANK(BV28,BV20:BV34,1)+COUNTIF(BU20:BU28,BU28)-1 -> 9 | CA28: 000-00-000-000-000 | CB28: =COUNTIF(CA20:CA34, ">=" & CA28) -> 15 | CC28: =RANK(CB28,CB20:CB34,1)+COUNTIF(CA20:CA28,CA28)-1 -> 9 | CG28: 000-00-000-000-000 | CH28: =COUNTIF(CG20:CG34, ">=" & CG28) -> 15 | CI28: =RANK(CH28,CH20:CH34,1)+COUNTIF(CG20:CG28,CG28)-1 -> 9 | CM28: 000-00-000-000-000 | CN28: =COUNTIF(CM20:CM34, ">=" & CM28) -> 15 | CO28: =RANK(CN28,CN20:CN34,1)+COUNTIF(CM20:CM28,CM28)-1 -> 9 | CS28: 000-00-000-000-000 | CT28: =COUNTIF(CS20:CS34, ">=" & CS28) -> 15 | CU28: =RANK(CT28,CT20:CT34,1)+COUNTIF(CS20:CS28,CS28)-1 -> 9 | CY28: 000-00-000-000-000 | CZ28: =COUNTIF(CY20:CY34, ">=" & CY28) -> 15 | DA28: =RANK(CZ28,CZ20:CZ34,1)+COUNTIF(CY20:CY28,CY28)-1 -> 9 | DE28: 000-00-000-000-000 | DF28: =COUNTIF(DE20:DE34, ">=" & DE28) -> 15 | DG28: =RANK(DF28,DF20:DF34,1)+COUNTIF(DE20:DE28,DE28)-1 -> 9 | DK28: 000-00-000-000-000 | DL28: =COUNTIF(DK20:DK34, ">=" & DK28) -> 15 | DM28: =RANK(DL28,DL20:DL34,1)+COUNTIF(DK20:DK28,DK28)-1 -> 9 | DQ28: 000-00-000-000-000 | DR28: =COUNTIF(DQ20:DQ34, ">=" & DQ28) -> 15 | DS28: =RANK(DR28,DR20:DR34,1)+COUNTIF(DQ20:DQ28,DQ28)-1 -> 9 | DW28: 000-00-000-000-000 | DX28: =COUNTIF(DW20:DW34, ">=" & DW28) -> 15 | DY28: =RANK(DX28,DX20:DX34,1)+COUNTIF(DW20:DW28,DW28)-1 -> 9
A29: @ Allatoona | AK29: 000-00-000-000-000 | AL29: =COUNTIF(AK20:AK34, ">=" & AK29) -> 15 | AM29: =RANK(AL29,AL20:AL34,1)+COUNTIF(AK20:AK29,AK29)-1 -> 10 | AQ29: 000-00-000-000-000 | AR29: =COUNTIF(AQ20:AQ34, ">=" & AQ29) -> 15 | AS29: =RANK(AR29,AR20:AR34,1)+COUNTIF(AQ20:AR29,AR29)-1 -> 10 | AW29: 000-00-000-000-000 | AX29: =COUNTIF(AW20:AW34, ">=" & AW29) -> 15 | AY29: =RANK(AX29,AX20:AX34,1)+COUNTIF(AW20:AX29,AX29)-1 -> 10 | BC29: 000-00-000-000-000 | BD29: =COUNTIF(BC20:BC34, ">=" & BC29) -> 15 | BE29: =RANK(BD29,BD20:BD34,1)+COUNTIF(BC20:BC29,BC29)-1 -> 10 | BI29: 000-00-000-000-000 | BJ29: =COUNTIF(BI20:BI34, ">=" & BI29) -> 15 | BK29: =RANK(BJ29,BJ20:BJ34,1)+COUNTIF(BI20:BI29,BI29)-1 -> 10 | BO29: 000-00-000-000-000 | BP29: =COUNTIF(BO20:BO34, ">=" & BO29) -> 15 | BQ29: =RANK(BP29,BP20:BP34,1)+COUNTIF(BO20:BO29,BO29)-1 -> 10 | BU29: 000-00-000-000-000 | BV29: =COUNTIF(BU20:BU34, ">=" & BU29) -> 15 | BW29: =RANK(BV29,BV20:BV34,1)+COUNTIF(BU20:BU29,BU29)-1 -> 10 | CA29: 000-00-000-000-000 | CB29: =COUNTIF(CA20:CA34, ">=" & CA29) -> 15 | CC29: =RANK(CB29,CB20:CB34,1)+COUNTIF(CA20:CA29,CA29)-1 -> 10 | CG29: 000-00-000-000-000 | CH29: =COUNTIF(CG20:CG34, ">=" & CG29) -> 15 | CI29: =RANK(CH29,CH20:CH34,1)+COUNTIF(CG20:CG29,CG29)-1 -> 10 | CM29: 000-00-000-000-000 | CN29: =COUNTIF(CM20:CM34, ">=" & CM29) -> 15 | CO29: =RANK(CN29,CN20:CN34,1)+COUNTIF(CM20:CM29,CM29)-1 -> 10 | CS29: 000-00-000-000-000 | CT29: =COUNTIF(CS20:CS34, ">=" & CS29) -> 15 | CU29: =RANK(CT29,CT20:CT34,1)+COUNTIF(CS20:CS29,CS29)-1 -> 10 | CY29: 000-00-000-000-000 | CZ29: =COUNTIF(CY20:CY34, ">=" & CY29) -> 15 | DA29: =RANK(CZ29,CZ20:CZ34,1)+COUNTIF(CY20:CY29,CY29)-1 -> 10 | DE29: 000-00-000-000-000 | DF29: =COUNTIF(DE20:DE34, ">=" & DE29) -> 15 | DG29: =RANK(DF29,DF20:DF34,1)+COUNTIF(DE20:DE29,DE29)-1 -> 10 | DK29: 000-00-000-000-000 | DL29: =COUNTIF(DK20:DK34, ">=" & DK29) -> 15 | DM29: =RANK(DL29,DL20:DL34,1)+COUNTIF(DK20:DK29,DK29)-1 -> 10 | DQ29: 000-00-000-000-000 | DR29: =COUNTIF(DQ20:DQ34, ">=" & DQ29) -> 15 | DS29: =RANK(DR29,DR20:DR34,1)+COUNTIF(DQ20:DQ29,DQ29)-1 -> 10 | DW29: 000-00-000-000-000 | DX29: =COUNTIF(DW20:DW34, ">=" & DW29) -> 15 | DY29: =RANK(DX29,DX20:DX34,1)+COUNTIF(DW20:DW29,DW29)-1 -> 10
A30: Cherokee | AA30: a | AK30: 000-00-000-000-000 | AL30: =COUNTIF(AK20:AK34, ">=" & AK30) -> 15 | AM30: =RANK(AL30,AL20:AL34,1)+COUNTIF(AK20:AK30,AK30)-1 -> 11 | AQ30: 000-00-000-000-000 | AR30: =COUNTIF(AQ20:AQ34, ">=" & AQ30) -> 15 | AS30: =RANK(AR30,AR20:AR34,1)+COUNTIF(AQ20:AR30,AR30)-1 -> 11 | AW30: 000-00-000-000-000 | AX30: =COUNTIF(AW20:AW34, ">=" & AW30) -> 15 | AY30: =RANK(AX30,AX20:AX34,1)+COUNTIF(AW20:AX30,AX30)-1 -> 11 | BC30: 000-00-000-000-000 | BD30: =COUNTIF(BC20:BC34, ">=" & BC30) -> 15 | BE30: =RANK(BD30,BD20:BD34,1)+COUNTIF(BC20:BC30,BC30)-1 -> 11 | BI30: 000-00-000-000-000 | BJ30: =COUNTIF(BI20:BI34, ">=" & BI30) -> 15 | BK30: =RANK(BJ30,BJ20:BJ34,1)+COUNTIF(BI20:BI30,BI30)-1 -> 11 | BO30: 000-00-000-000-000 | BP30: =COUNTIF(BO20:BO34, ">=" & BO30) -> 15 | BQ30: =RANK(BP30,BP20:BP34,1)+COUNTIF(BO20:BO30,BO30)-1 -> 11 | BU30: 000-00-000-000-000 | BV30: =COUNTIF(BU20:BU34, ">=" & BU30) -> 15 | BW30: =RANK(BV30,BV20:BV34,1)+COUNTIF(BU20:BU30,BU30)-1 -> 11 | CA30: 000-00-000-000-000 | CB30: =COUNTIF(CA20:CA34, ">=" & CA30) -> 15 | CC30: =RANK(CB30,CB20:CB34,1)+COUNTIF(CA20:CA30,CA30)-1 -> 11 | CG30: 000-00-000-000-000 | CH30: =COUNTIF(CG20:CG34, ">=" & CG30) -> 15 | CI30: =RANK(CH30,CH20:CH34,1)+COUNTIF(CG20:CG30,CG30)-1 -> 11 | CM30: 000-00-000-000-000 | CN30: =COUNTIF(CM20:CM34, ">=" & CM30) -> 15 | CO30: =RANK(CN30,CN20:CN34,1)+COUNTIF(CM20:CM30,CM30)-1 -> 11 | CS30: 000-00-000-000-000 | CT30: =COUNTIF(CS20:CS34, ">=" & CS30) -> 15 | CU30: =RANK(CT30,CT20:CT34,1)+COUNTIF(CS20:CS30,CS30)-1 -> 11 | CY30: 000-00-000-000-000 | CZ30: =COUNTIF(CY20:CY34, ">=" & CY30) -> 15 | DA30: =RANK(CZ30,CZ20:CZ34,1)+COUNTIF(CY20:CY30,CY30)-1 -> 11 | DE30: 000-00-000-000-000 | DF30: =COUNTIF(DE20:DE34, ">=" & DE30) -> 15 | DG30: =RANK(DF30,DF20:DF34,1)+COUNTIF(DE20:DE30,DE30)-1 -> 11 | DK30: 000-00-000-000-000 | DL30: =COUNTIF(DK20:DK34, ">=" & DK30) -> 15 | DM30: =RANK(DL30,DL20:DL34,1)+COUNTIF(DK20:DK30,DK30)-1 -> 11 | DQ30: 000-00-000-000-000 | DR30: =COUNTIF(DQ20:DQ34, ">=" & DQ30) -> 15 | DS30: =RANK(DR30,DR20:DR34,1)+COUNTIF(DQ20:DQ30,DQ30)-1 -> 11 | DW30: 000-00-000-000-000 | DX30: =COUNTIF(DW20:DW34, ">=" & DW30) -> 15 | DY30: =RANK(DX30,DX20:DX34,1)+COUNTIF(DW20:DW30,DW30)-1 -> 11
A31: @ Lafayette | AA31: b | AK31: 000-00-000-000-000 | AL31: =COUNTIF(AK20:AK34, ">=" & AK31) -> 15 | AM31: =RANK(AL31,AL20:AL34,1)+COUNTIF(AK20:AK31,AK31)-1 -> 12 | AQ31: 000-00-000-000-000 | AR31: =COUNTIF(AQ20:AQ34, ">=" & AQ31) -> 15 | AS31: =RANK(AR31,AR20:AR34,1)+COUNTIF(AQ20:AR31,AR31)-1 -> 12 | AW31: 000-00-000-000-000 | AX31: =COUNTIF(AW20:AW34, ">=" & AW31) -> 15 | AY31: =RANK(AX31,AX20:AX34,1)+COUNTIF(AW20:AX31,AX31)-1 -> 12 | BC31: 000-00-000-000-000 | BD31: =COUNTIF(BC20:BC34, ">=" & BC31) -> 15 | BE31: =RANK(BD31,BD20:BD34,1)+COUNTIF(BC20:BC31,BC31)-1 -> 12 | BI31: 000-00-000-000-000 | BJ31: =COUNTIF(BI20:BI34, ">=" & BI31) -> 15 | BK31: =RANK(BJ31,BJ20:BJ34,1)+COUNTIF(BI20:BI31,BI31)-1 -> 12 | BO31: 000-00-000-000-000 | BP31: =COUNTIF(BO20:BO34, ">=" & BO31) -> 15 | BQ31: =RANK(BP31,BP20:BP34,1)+COUNTIF(BO20:BO31,BO31)-1 -> 12 | BU31: 000-00-000-000-000 | BV31: =COUNTIF(BU20:BU34, ">=" & BU31) -> 15 | BW31: =RANK(BV31,BV20:BV34,1)+COUNTIF(BU20:BU31,BU31)-1 -> 12 | CA31: 000-00-000-000-000 | CB31: =COUNTIF(CA20:CA34, ">=" & CA31) -> 15 | CC31: =RANK(CB31,CB20:CB34,1)+COUNTIF(CA20:CA31,CA31)-1 -> 12 | CG31: 000-00-000-000-000 | CH31: =COUNTIF(CG20:CG34, ">=" & CG31) -> 15 | CI31: =RANK(CH31,CH20:CH34,1)+COUNTIF(CG20:CG31,CG31)-1 -> 12 | CM31: 000-00-000-000-000 | CN31: =COUNTIF(CM20:CM34, ">=" & CM31) -> 15 | CO31: =RANK(CN31,CN20:CN34,1)+COUNTIF(CM20:CM31,CM31)-1 -> 12 | CS31: 000-00-000-000-000 | CT31: =COUNTIF(CS20:CS34, ">=" & CS31) -> 15 | CU31: =RANK(CT31,CT20:CT34,1)+COUNTIF(CS20:CS31,CS31)-1 -> 12 | CY31: 000-00-000-000-000 | CZ31: =COUNTIF(CY20:CY34, ">=" & CY31) -> 15 | DA31: =RANK(CZ31,CZ20:CZ34,1)+COUNTIF(CY20:CY31,CY31)-1 -> 12 | DE31: 000-00-000-000-000 | DF31: =COUNTIF(DE20:DE34, ">=" & DE31) -> 15 | DG31: =RANK(DF31,DF20:DF34,1)+COUNTIF(DE20:DE31,DE31)-1 -> 12 | DK31: 000-00-000-000-000 | DL31: =COUNTIF(DK20:DK34, ">=" & DK31) -> 15 | DM31: =RANK(DL31,DL20:DL34,1)+COUNTIF(DK20:DK31,DK31)-1 -> 12 | DQ31: 000-00-000-000-000 | DR31: =COUNTIF(DQ20:DQ34, ">=" & DQ31) -> 15 | DS31: =RANK(DR31,DR20:DR34,1)+COUNTIF(DQ20:DQ31,DQ31)-1 -> 12 | DW31: 000-00-000-000-000 | DX31: =COUNTIF(DW20:DW34, ">=" & DW31) -> 15 | DY31: =RANK(DX31,DX20:DX34,1)+COUNTIF(DW20:DW31,DW31)-1 -> 12
A32: Ridgeland | AA32: o | AK32: 000-00-000-000-000 | AL32: =COUNTIF(AK20:AK34, ">=" & AK32) -> 15 | AM32: =RANK(AL32,AL20:AL34,1)+COUNTIF(AK20:AK32,AK32)-1 -> 13 | AQ32: 000-00-000-000-000 | AR32: =COUNTIF(AQ20:AQ34, ">=" & AQ32) -> 15 | AS32: =RANK(AR32,AR20:AR34,1)+COUNTIF(AQ20:AR32,AR32)-1 -> 13 | AW32: 000-00-000-000-000 | AX32: =COUNTIF(AW20:AW34, ">=" & AW32) -> 15 | AY32: =RANK(AX32,AX20:AX34,1)+COUNTIF(AW20:AX32,AX32)-1 -> 13 | BC32: 000-00-000-000-000 | BD32: =COUNTIF(BC20:BC34, ">=" & BC32) -> 15 | BE32: =RANK(BD32,BD20:BD34,1)+COUNTIF(BC20:BC32,BC32)-1 -> 13 | BI32: 000-00-000-000-000 | BJ32: =COUNTIF(BI20:BI34, ">=" & BI32) -> 15 | BK32: =RANK(BJ32,BJ20:BJ34,1)+COUNTIF(BI20:BI32,BI32)-1 -> 13 | BO32: 000-00-000-000-000 | BP32: =COUNTIF(BO20:BO34, ">=" & BO32) -> 15 | BQ32: =RANK(BP32,BP20:BP34,1)+COUNTIF(BO20:BO32,BO32)-1 -> 13 | BU32: 000-00-000-000-000 | BV32: =COUNTIF(BU20:BU34, ">=" & BU32) -> 15 | BW32: =RANK(BV32,BV20:BV34,1)+COUNTIF(BU20:BU32,BU32)-1 -> 13 | CA32: 000-00-000-000-000 | CB32: =COUNTIF(CA20:CA34, ">=" & CA32) -> 15 | CC32: =RANK(CB32,CB20:CB34,1)+COUNTIF(CA20:CA32,CA32)-1 -> 13 | CG32: 000-00-000-000-000 | CH32: =COUNTIF(CG20:CG34, ">=" & CG32) -> 15 | CI32: =RANK(CH32,CH20:CH34,1)+COUNTIF(CG20:CG32,CG32)-1 -> 13 | CM32: 000-00-000-000-000 | CN32: =COUNTIF(CM20:CM34, ">=" & CM32) -> 15 | CO32: =RANK(CN32,CN20:CN34,1)+COUNTIF(CM20:CM32,CM32)-1 -> 13 | CS32: 000-00-000-000-000 | CT32: =COUNTIF(CS20:CS34, ">=" & CS32) -> 15 | CU32: =RANK(CT32,CT20:CT34,1)+COUNTIF(CS20:CS32,CS32)-1 -> 13 | CY32: 000-00-000-000-000 | CZ32: =COUNTIF(CY20:CY34, ">=" & CY32) -> 15 | DA32: =RANK(CZ32,CZ20:CZ34,1)+COUNTIF(CY20:CY32,CY32)-1 -> 13 | DE32: 000-00-000-000-000 | DF32: =COUNTIF(DE20:DE34, ">=" & DE32) -> 15 | DG32: =RANK(DF32,DF20:DF34,1)+COUNTIF(DE20:DE32,DE32)-1 -> 13 | DK32: 000-00-000-000-000 | DL32: =COUNTIF(DK20:DK34, ">=" & DK32) -> 15 | DM32: =RANK(DL32,DL20:DL34,1)+COUNTIF(DK20:DK32,DK32)-1 -> 13 | DQ32: 000-00-000-000-000 | DR32: =COUNTIF(DQ20:DQ34, ">=" & DQ32) -> 15 | DS32: =RANK(DR32,DR20:DR34,1)+COUNTIF(DQ20:DQ32,DQ32)-1 -> 13 | DW32: 000-00-000-000-000 | DX32: =COUNTIF(DW20:DW34, ">=" & DW32) -> 15 | DY32: =RANK(DX32,DX20:DX34,1)+COUNTIF(DW20:DW32,DW32)-1 -> 13
A33: @ Dalton | AA33: v | AK33: 000-00-000-000-000 | AL33: =COUNTIF(AK20:AK34, ">=" & AK33) -> 15 | AM33: =RANK(AL33,AL20:AL34,1)+COUNTIF(AK20:AK33,AK33)-1 -> 14 | AQ33: 000-00-000-000-000 | AR33: =COUNTIF(AQ20:AQ34, ">=" & AQ33) -> 15 | AS33: =RANK(AR33,AR20:AR34,1)+COUNTIF(AQ20:AR33,AR33)-1 -> 14 | AW33: 000-00-000-000-000 | AX33: =COUNTIF(AW20:AW34, ">=" & AW33) -> 15 | AY33: =RANK(AX33,AX20:AX34,1)+COUNTIF(AW20:AX33,AX33)-1 -> 14 | BC33: 000-00-000-000-000 | BD33: =COUNTIF(BC20:BC34, ">=" & BC33) -> 15 | BE33: =RANK(BD33,BD20:BD34,1)+COUNTIF(BC20:BC33,BC33)-1 -> 14 | BI33: 000-00-000-000-000 | BJ33: =COUNTIF(BI20:BI34, ">=" & BI33) -> 15 | BK33: =RANK(BJ33,BJ20:BJ34,1)+COUNTIF(BI20:BI33,BI33)-1 -> 14 | BO33: 000-00-000-000-000 | BP33: =COUNTIF(BO20:BO34, ">=" & BO33) -> 15 | BQ33: =RANK(BP33,BP20:BP34,1)+COUNTIF(BO20:BO33,BO33)-1 -> 14 | BU33: 000-00-000-000-000 | BV33: =COUNTIF(BU20:BU34, ">=" & BU33) -> 15 | BW33: =RANK(BV33,BV20:BV34,1)+COUNTIF(BU20:BU33,BU33)-1 -> 14 | CA33: 000-00-000-000-000 | CB33: =COUNTIF(CA20:CA34, ">=" & CA33) -> 15 | CC33: =RANK(CB33,CB20:CB34,1)+COUNTIF(CA20:CA33,CA33)-1 -> 14 | CG33: 000-00-000-000-000 | CH33: =COUNTIF(CG20:CG34, ">=" & CG33) -> 15 | CI33: =RANK(CH33,CH20:CH34,1)+COUNTIF(CG20:CG33,CG33)-1 -> 14 | CM33: 000-00-000-000-000 | CN33: =COUNTIF(CM20:CM34, ">=" & CM33) -> 15 | CO33: =RANK(CN33,CN20:CN34,1)+COUNTIF(CM20:CM33,CM33)-1 -> 14 | CS33: 000-00-000-000-000 | CT33: =COUNTIF(CS20:CS34, ">=" & CS33) -> 15 | CU33: =RANK(CT33,CT20:CT34,1)+COUNTIF(CS20:CS33,CS33)-1 -> 14 | CY33: 000-00-000-000-000 | CZ33: =COUNTIF(CY20:CY34, ">=" & CY33) -> 15 | DA33: =RANK(CZ33,CZ20:CZ34,1)+COUNTIF(CY20:CY33,CY33)-1 -> 14 | DE33: 000-00-000-000-000 | DF33: =COUNTIF(DE20:DE34, ">=" & DE33) -> 15 | DG33: =RANK(DF33,DF20:DF34,1)+COUNTIF(DE20:DE33,DE33)-1 -> 14 | DK33: 000-00-000-000-000 | DL33: =COUNTIF(DK20:DK34, ">=" & DK33) -> 15 | DM33: =RANK(DL33,DL20:DL34,1)+COUNTIF(DK20:DK33,DK33)-1 -> 14 | DQ33: 000-00-000-000-000 | DR33: =COUNTIF(DQ20:DQ34, ">=" & DQ33) -> 15 | DS33: =RANK(DR33,DR20:DR34,1)+COUNTIF(DQ20:DQ33,DQ33)-1 -> 14 | DW33: 000-00-000-000-000 | DX33: =COUNTIF(DW20:DW34, ">=" & DW33) -> 15 | DY33: =RANK(DX33,DX20:DX34,1)+COUNTIF(DW20:DW33,DW33)-1 -> 14
A34: Gordon Central | B34: 76 | C34: 78 | D34: 78 | E34: 232 | F34: 1 | AA34: e | AK34: 000-00-000-000-000 | AL34: =COUNTIF(AK20:AK34, ">=" & AK34) -> 15 | AM34: =RANK(AL34,AL20:AL34,1)+COUNTIF(AK20:AK34,AK34)-1 -> 15 | AQ34: 000-00-000-000-000 | AR34: =COUNTIF(AQ20:AQ34, ">=" & AQ34) -> 15 | AS34: =RANK(AR34,AR20:AR34,1)+COUNTIF(AQ20:AR34,AR34)-1 -> 15 | AW34: 000-00-000-000-000 | AX34: =COUNTIF(AW20:AW34, ">=" & AW34) -> 15 | AY34: =RANK(AX34,AX20:AX34,1)+COUNTIF(AW20:AX34,AX34)-1 -> 15 | BC34: 000-00-000-000-000 | BD34: =COUNTIF(BC20:BC34, ">=" & BC34) -> 15 | BE34: =RANK(BD34,BD20:BD34,1)+COUNTIF(BC20:BC34,BC34)-1 -> 15 | BI34: 000-00-000-000-000 | BJ34: =COUNTIF(BI20:BI34, ">=" & BI34) -> 15 | BK34: =RANK(BJ34,BJ20:BJ34,1)+COUNTIF(BI20:BI34,BI34)-1 -> 15 | BO34: 000-00-000-000-000 | BP34: =COUNTIF(BO20:BO34, ">=" & BO34) -> 15 | BQ34: =RANK(BP34,BP20:BP34,1)+COUNTIF(BO20:BO34,BO34)-1 -> 15 | BU34: 000-00-000-000-000 | BV34: =COUNTIF(BU20:BU34, ">=" & BU34) -> 15 | BW34: =RANK(BV34,BV20:BV34,1)+COUNTIF(BU20:BU34,BU34)-1 -> 15 | CA34: 000-00-000-000-000 | CB34: =COUNTIF(CA20:CA34, ">=" & CA34) -> 15 | CC34: =RANK(CB34,CB20:CB34,1)+COUNTIF(CA20:CA34,CA34)-1 -> 15 | CG34: 000-00-000-000-000 | CH34: =COUNTIF(CG20:CG34, ">=" & CG34) -> 15 | CI34: =RANK(CH34,CH20:CH34,1)+COUNTIF(CG20:CG34,CG34)-1 -> 15 | CM34: 000-00-000-000-000 | CN34: =COUNTIF(CM20:CM34, ">=" & CM34) -> 15 | CO34: =RANK(CN34,CN20:CN34,1)+COUNTIF(CM20:CM34,CM34)-1 -> 15 | CS34: 000-00-000-000-000 | CT34: =COUNTIF(CS20:CS34, ">=" & CS34) -> 15 | CU34: =RANK(CT34,CT20:CT34,1)+COUNTIF(CS20:CS34,CS34)-1 -> 15 | CY34: 000-00-000-000-000 | CZ34: =COUNTIF(CY20:CY34, ">=" & CY34) -> 15 | DA34: =RANK(CZ34,CZ20:CZ34,1)+COUNTIF(CY20:CY34,CY34)-1 -> 15 | DE34: 000-00-000-000-000 | DF34: =COUNTIF(DE20:DE34, ">=" & DE34) -> 15 | DG34: =RANK(DF34,DF20:DF34,1)+COUNTIF(DE20:DE34,DE34)-1 -> 15 | DK34: 000-00-000-000-000 | DL34: =COUNTIF(DK20:DK34, ">=" & DK34) -> 15 | DM34: =RANK(DL34,DL20:DL34,1)+COUNTIF(DK20:DK34,DK34)-1 -> 15 | DQ34: 000-00-000-000-000 | DR34: =COUNTIF(DQ20:DQ34, ">=" & DQ34) -> 15 | DS34: =RANK(DR34,DR20:DR34,1)+COUNTIF(DQ20:DQ34,DQ34)-1 -> 15 | DW34: 000-00-000-000-000 | DX34: =COUNTIF(DW20:DW34, ">=" & DW34) -> 15 | DY34: =RANK(DX34,DX20:DX34,1)+COUNTIF(DW20:DW34,DW34)-1 -> 15
A35: @ Etowah | AH35: =IF((OR(AA4="Forfeit",AA4="Win")),0,SUMIFS(AH4:AH18,AM20:AM34,"<=4")) -> 1094 | AI35: =IF((OR(AA4="Forfeit",AA4="Win")),0,SUMIFS(AI4:AI18,AM20:AM34,"<=4")) -> 43 | AJ35: =IF((OR(AA4="Forfeit",AA4="Win")),0,SUMIFS(AJ4:AJ18, AM20:AM34, "<=4")) -> 372 | AK35: =IF((OR(AA4="Forfeit",AA4="Win")),0,SUMIFS(AK4:AK18, AM20:AM34, "<=4")) -> 385 | AL35: =IF((OR(AA4="Forfeit",AA4="Win")),0,SUMIFS(AL4:AL18, AM20:AM34, "<=4")) -> 337 | AN35: =IF((OR(AA5="Forfeit",AA5="Win")),0,SUMIFS(AN4:AN18,AS20:AS34,"<=4")) -> 1117 | AO35: =IF((OR(AA5="Forfeit",AA5="Win")),0,SUMIFS(AO4:AO18,AS20:AS34,"<=4")) -> 21 | AP35: =IF((OR(AA5="Forfeit",AA5="Win")),0,SUMIFS(AP4:AP18, AS20:AS34, "<=4")) -> 370 | AQ35: =IF((OR(AA5="Forfeit",AA5="Win")),0,SUMIFS(AQ4:AQ18, AS20:AS34, "<=4")) -> 389 | AR35: =IF((OR(AA5="Forfeit",AA5="Win")),0,SUMIFS(AR4:AR18, AS20:AS34, "<=4")) -> 358 | AT35: =IF((OR(AA6="Forfeit",AA6="Win")),0,SUMIFS(AT4:AT18,AY20:AY34,"<=4")) -> 1088 | AU35: =IF((OR(AA6="Forfeit",AA6="Win")),0,SUMIFS(AU4:AU18,AY20:AY34,"<=4")) -> 30 | AV35: =IF((OR(AA6="Forfeit",AA6="Win")),0,SUMIFS(AV4:AV18, AY20:AY34, "<=4")) -> 362 | AW35: =IF((OR(AA6="Forfeit",AA6="Win")),0,SUMIFS(AW4:AW18, AY20:AY34, "<=4")) -> 379 | AX35: =IF((OR(AA6="Forfeit",AA6="Win")),0,SUMIFS(AX4:AX18, AY20:AY34, "<=4")) -> 347 | AZ35: =IF((OR(AA7="Forfeit",AA7="Win")),0,SUMIFS(AZ4:AZ18,BE20:BE34,"<=4")) -> 1073 | BA35: =IF((OR(AA7="Forfeit",AA7="Win")),0,SUMIFS(BA4:BA18,BE20:BE34,"<=4")) -> 40 | BB35: =IF((OR(AA7="Forfeit",AA7="Win")),0,SUMIFS(BB4:BB18, BE20:BE34, "<=4")) -> 362 | BC35: =IF((OR(AA7="Forfeit",AA7="Win")),0,SUMIFS(BC4:BC18, BE20:BE34, "<=4")) -> 376 | BD35: =IF((OR(AA7="Forfeit",AA7="Win")),0,SUMIFS(BD4:BD18, BE20:BE34, "<=4")) -> 335 | BF35: =IF((OR(AA8="Forfeit",AA8="Win")),0,SUMIFS(BF4:BF18,BK20:BK34,"<=4")) -> 1116 | BG35: =IF((OR(AA8="Forfeit",AA8="Win")),0,SUMIFS(BG4:BG18,BK20:BK34,"<=4")) -> 50 | BH35: =IF((OR(AA8="Forfeit",AA8="Win")),0,SUMIFS(BH4:BH18, BK20:BK34, "<=4")) -> 375 | BI35: =IF((OR(AA8="Forfeit",AA8="Win")),0,SUMIFS(BI4:BI18, BK20:BK34, "<=4")) -> 393 | BJ35: =IF((OR(AA8="Forfeit",AA8="Win")),0,SUMIFS(BJ4:BJ18, BK20:BK34, "<=4")) -> 348 | BL35: =IF((OR(AA9="Forfeit",AA9="Win")),0,SUMIFS(BL4:BL18,BQ20:BQ34,"<=4")) -> 1103 | BM35: =IF((OR(AA9="Forfeit",AA9="Win")),0,SUMIFS(BM4:BM18,BQ20:BQ34,"<=4")) -> 37 | BN35: =IF((OR(AA9="Forfeit",AA9="Win")),0,SUMIFS(BN4:BN18, BQ20:BQ34, "<=4")) -> 371 | BO35: =IF((OR(AA9="Forfeit",AA9="Win")),0,SUMIFS(BO4:BO18, BQ20:BQ34, "<=4")) -> 388 | BP35: =IF((OR(AA9="Forfeit",AA9="Win")),0,SUMIFS(BP4:BP18, BQ20:BQ34, "<=4")) -> 344 | BR35: =IF((OR(AA10="Forfeit",AA10="Win")),0,SUMIFS(BR4:BR18,BW20:BW34,"<=4")) -> 0 | BS35: =IF((OR(AA10="Forfeit",AA10="Win")),0,SUMIFS(BS4:BS18,BW20:BW34,"<=4")) -> 0 | BT35: =IF((OR(AA10="Forfeit",AA10="Win")),0,SUMIFS(BT4:BT18, BW20:BW34, "<=4")) -> 0 | BU35: =IF((OR(AA10="Forfeit",AA10="Win")),0,SUMIFS(BU4:BU18, BW20:BW34, "<=4")) -> 0 | BV35: =IF((OR(AA10="Forfeit",AA10="Win")),0,SUMIFS(BV4:BV18, BW20:BW34, "<=4")) -> 0 | BX35: =IF((OR(AA11="Forfeit",AA11="Win")),0,SUMIFS(BX4:BX18,CC20:CC34,"<=4")) -> 1112 | BY35: =IF((OR(AA11="Forfeit",AA11="Win")),0,SUMIFS(BY4:BY18,CC20:CC34,"<=4")) -> 51 | BZ35: =IF((OR(AA11="Forfeit",AA11="Win")),0,SUMIFS(BZ4:BZ18, CC20:CC34, "<=4")) -> 367 | CA35: =IF((OR(AA11="Forfeit",AA11="Win")),0,SUMIFS(CA4:CA18, CC20:CC34, "<=4")) -> 393 | CB35: =IF((OR(AA11="Forfeit",AA11="Win")),0,SUMIFS(CB4:CB18, CC20:CC34, "<=4")) -> 352 | CD35: =IF((OR(AA12="Forfeit",AA12="Win")),0,SUMIFS(CD4:CD18,CI20:CI34,"<=4")) -> 0 | CE35: =IF((OR(AA12="Forfeit",AA12="Win")),0,SUMIFS(CE4:CE18,CI20:CI34,"<=4")) -> 0 | CF35: =IF((OR(AA12="Forfeit",AA12="Win")),0,SUMIFS(CF4:CF18, CI20:CI34, "<=4")) -> 0 | CG35: =IF((OR(AA12="Forfeit",AA12="Win")),0,SUMIFS(CG4:CG18, CI20:CI34, "<=4")) -> 0 | CH35: =IF((OR(AA12="Forfeit",AA12="Win")),0,SUMIFS(CH4:CH18, CI20:CI34, "<=4")) -> 0 | CJ35: =IF((OR(AA13="Forfeit",AA13="Win")),0,SUMIFS(CJ4:CJ18,CO20:CO34,"<=4")) -> 1129 | CK35: =IF((OR(AA13="Forfeit",AA13="Win")),0,SUMIFS(CK4:CK18,CO20:CO34,"<=4")) -> 54 | CL35: =IF((OR(AA13="Forfeit",AA13="Win")),0,SUMIFS(CL4:CL18, CO20:CO34, "<=4")) -> 383 | CM35: =IF((OR(AA13="Forfeit",AA13="Win")),0,SUMIFS(CM4:CM18, CO20:CO34, "<=4")) -> 388 | CN35: =IF((OR(AA13="Forfeit",AA13="Win")),0,SUMIFS(CN4:CN18, CO20:CO34, "<=4")) -> 358 | CP35: =IF((OR(AA14="Forfeit",AA14="Win")),0,SUMIFS(CP4:CP18,CU20:CU34,"<=4")) -> 1105 | CQ35: =IF((OR(AA14="Forfeit",AA14="Win")),0,SUMIFS(CQ4:CQ18,CU20:CU34,"<=4")) -> 33 | CR35: =IF((OR(AA14="Forfeit",AA14="Win")),0,SUMIFS(CR4:CR18, CU20:CU34, "<=4")) -> 366 | CS35: =IF((OR(AA14="Forfeit",AA14="Win")),0,SUMIFS(CS4:CS18, CU20:CU34, "<=4")) -> 391 | CT35: =IF((OR(AA14="Forfeit",AA14="Win")),0,SUMIFS(CT4:CT18, CU20:CU34, "<=4")) -> 348 | CV35: =IF((OR(AA15="Forfeit",AA15="Win")),0,SUMIFS(CV4:CV18,DA20:DA34,"<=4")) -> 1123 | CW35: =IF((OR(AA15="Forfeit",AA15="Win")),0,SUMIFS(CW4:CW18,DA20:DA34,"<=4")) -> 38 | CX35: =IF((OR(AA15="Forfeit",AA15="Win")),0,SUMIFS(CX4:CX18, DA20:DA34, "<=4")) -> 378 | CY35: =IF((OR(AA15="Forfeit",AA15="Win")),0,SUMIFS(CY4:CY18, DA20:DA34, "<=4")) -> 394 | CZ35: =IF((OR(AA15="Forfeit",AA15="Win")),0,SUMIFS(CZ4:CZ18, DA20:DA34, "<=4")) -> 351 | DB35: =IF((OR(AA16="Forfeit",AA16="Win")),0,SUMIFS(DB4:DB18,DG20:DG34,"<=4")) -> 0 | DC35: =IF((OR(AA16="Forfeit",AA16="Win")),0,SUMIFS(DC4:DC18,DG20:DG34,"<=4")) -> 0 | DD35: =IF((OR(AA16="Forfeit",AA16="Win")),0,SUMIFS(DD4:DD18, DG20:DG34, "<=4")) -> 0 | DE35: =IF((OR(AA16="Forfeit",AA16="Win")),0,SUMIFS(DE4:DE18, DG20:DG34, "<=4")) -> 0 | DF35: =IF((OR(AA16="Forfeit",AA16="Win")),0,SUMIFS(DF4:DF18, DG20:DG34, "<=4")) -> 0 | DH35: =IF((OR(AA17="Forfeit",AA17="Win")),0,SUMIFS(DH4:DH18,DM20:DM34,"<=4")) -> 0 | DI35: =IF((OR(AA17="Forfeit",AA17="Win")),0,SUMIFS(DI4:DI18,DM20:DM34,"<=4")) -> 0 | DJ35: =IF((OR(AA17="Forfeit",AA17="Win")),0,SUMIFS(DJ4:DJ18, DM20:DM34, "<=4")) -> 0 | DK35: =IF((OR(AA17="Forfeit",AA17="Win")),0,SUMIFS(DK4:DK18, DM20:DM34, "<=4")) -> 0 | DL35: =IF((OR(AA17="Forfeit",AA17="Win")),0,SUMIFS(DL4:DL18, DM20:DM34, "<=4")) -> 0 | DN35: =IF((OR(AA18="Forfeit",AA18="Win")),0,SUMIFS(DN4:DN18,DS20:DS34,"<=4")) -> 0 | DO35: =IF((OR(AA18="Forfeit",AA18="Win")),0,SUMIFS(DO4:DO18,DS20:DS34,"<=4")) -> 0 | DP35: =IF((OR(AA18="Forfeit",AA18="Win")),0,SUMIFS(DP4:DP18,DS20:DS34,"<=4")) -> 0 | DQ35: =IF((OR(AA18="Forfeit",AA18="Win")),0,SUMIFS(DQ4:DQ18,DS20:DS34,"<=4")) -> 0 | DR35: =IF((OR(AA18="Forfeit",AA18="Win")),0,SUMIFS(DR4:DR18,DS20:DS34,"<=4")) -> 0 | DT35: =IF((OR(AA19="Forfeit",AA19="Win")),0,SUMIFS(DT4:DT18,DY20:DY34,"<=4")) -> 0 | DU35: =IF((OR(AA19="Forfeit",AA19="Win")),0,SUMIFS(DU4:DU18,DY20:DY34,"<=4")) -> 0 | DV35: =IF((OR(AA19="Forfeit",AA19="Win")),0,SUMIFS(DV4:DV18,DY20:DY34,"<=4")) -> 0 | DW35: =IF((OR(AA19="Forfeit",AA19="Win")),0,SUMIFS(DW4:DW18,DY20:DY34,"<=4")) -> 0 | DX35: =IF((OR(AA19="Forfeit",AA19="Win")),0,SUMIFS(DX4:DX18,DY20:DY34,"<=4")) -> 0
A36: Allatoona | E36: =IF(SUM(B36:D36)>0,SUM(B36:D36),"") -> 
A37: @ Cherokee
A38: Area Sectional/Playoff
A39: Area Championship
A40: Average | B40: =IF(SUM(B24:B39)=0,0,AVERAGE(B24:B39)) -> 80 | C40: =IF(SUM(C24:C39)=0,0,AVERAGE(C24:C39)) -> 86.25 | D40: =IF(SUM(D24:D39)=0,0,AVERAGE(D24:D39)) -> 70.5 | E40: =IF(SUM(E24:E39)=0,0,AVERAGE(E24:E39)) -> 236.75 | G40: =IF(SUM(G24:G39)=0,0,AVERAGE(G24:G39)) -> 79 | H40: =IF(SUM(H24:H39)=0,0,AVERAGE(H24:H39)) -> 88.66666667 | I40: =IF(SUM(I24:I39)=0,0,AVERAGE(I24:I39)) -> 71 | J40: =IF(SUM(J24:J39)=0,0,AVERAGE(J24:J39)) -> 238.6666667 | L40: =IF(SUM(L24:L39)=0,0,AVERAGE(L24:L39)) -> 0 | M40: =IF(SUM(M24:M39)=0,0,AVERAGE(M24:M39)) -> 0 | N40: =IF(SUM(N24:N39)=0,0,AVERAGE(N24:N39)) -> 0 | O40: =IF(SUM(O24:O39)=0,0,AVERAGE(O24:O39)) -> 0 | Q40: =IF(SUM(Q24:Q39)=0,0,AVERAGE(Q24:Q39)) -> 0 | R40: =IF(SUM(R24:R39)=0,0,AVERAGE(R24:R39)) -> 0 | S40: =IF(SUM(S24:S39)=0,0,AVERAGE(S24:S39)) -> 0 | T40: =IF(SUM(T24:T39)=0,0,AVERAGE(T24:T39)) -> 0 | V40: =IF(SUM(V24:V39)=0,0,AVERAGE(V24:V39)) -> 0 | W40: =IF(SUM(W24:W39)=0,0,AVERAGE(W24:W39)) -> 0 | X40: =IF(SUM(X24:X39)=0,0,AVERAGE(X24:X39)) -> 0 | Y40: =IF(SUM(Y24:Y39)=0,0,AVERAGE(Y24:Y39)) -> 0
AC41: =A21 -> CV
A42: Cartersville | B42: CV 11 | G42: CV 12 | L42: CV 13 | Q42: CV 14 | V42: CV15 | AC42: =B42 -> CV 11 | AD42: =G42 -> CV 12 | AE42: =L42 -> CV 13 | AF42: =Q42 -> CV 14 | AG42: =V42 -> CV15
A43: VS | B43: K | C43: P | D43: S | E43: AGGR | F43: *10 | G43: K | H43: P | I43: S | J43: AGGR | K43: *10 | L43: K | M43: P | N43: S | O43: AGGR | P43: *10 | Q43: K | R43: P | S43: S | T43: AGGR | U43: *10 | V43: K | W43: P | X43: S | Y43: AGGR | Z43: *10 | AC43: =IF(SUM(E44:E59)>0,LARGE(E44:E59,1),0) -> 0 | AD43: =IF(SUM(J44:J59)>0,LARGE(J44:J59,1),0) -> 0 | AE43: =IF(SUM(O44:O59)>0,LARGE(O44:O59,1),0) -> 0 | AF43: =IF(SUM(T44:T59)>0,LARGE(T44:T59,1),0) -> 0 | AG43: =IF(SUM(Y44:Y59)>0,LARGE(Y44:Y59,1),0) -> 0
A44: Lafayette | E44: =IF(SUM(B44:D44)>0,SUM(B44:D44),"") ->  | J44: =IF(SUM(G44:I44)>0,SUM(G44:I44),"") ->  | O44: =IF(SUM(L44:N44)>0,SUM(L44:N44),"") ->  | T44: =IF(SUM(Q44:S44)>0,SUM(Q44:S44),"") ->  | Y44: =IF(SUM(V44:X44)>0,SUM(V44:X44),"") -> 
A45: @ Ridgeland
A46: Dalton | AA46: s
A47: Gordon Central | AA47: e
A48: Etowah | AA48: e
A49: @ Allatoona
A50: Cherokee | AA50: a
A51: @ Lafayette | AA51: b
A52: Ridgeland | AA52: o
A53: @ Dalton | AA53: v
A54: Gordon Central | AA54: e
A55: @ Etowah
A56: Allatoona
A57: @ Cherokee
A58: Area Sectional/Playoff
A59: Area Championship
A60: Average | B60: =IF(SUM(B44:B59)=0,0,AVERAGE(B44:B59)) -> 0 | C60: =IF(SUM(C44:C59)=0,0,AVERAGE(C44:C59)) -> 0 | D60: =IF(SUM(D44:D59)=0,0,AVERAGE(D44:D59)) -> 0 | E60: =IF(SUM(E44:E59)=0,0,AVERAGE(E44:E59)) -> 0 | G60: =IF(SUM(G44:G59)=0,0,AVERAGE(G44:G59)) -> 0 | H60: =IF(SUM(H44:H59)=0,0,AVERAGE(H44:H59)) -> 0 | I60: =IF(SUM(I44:I59)=0,0,AVERAGE(I44:I59)) -> 0 | J60: =IF(SUM(J44:J59)=0,0,AVERAGE(J44:J59)) -> 0 | L60: =IF(SUM(L44:L59)=0,0,AVERAGE(L44:L59)) -> 0 | M60: =IF(SUM(M44:M59)=0,0,AVERAGE(M44:M59)) -> 0 | N60: =IF(SUM(N44:N59)=0,0,AVERAGE(N44:N59)) -> 0 | O60: =IF(SUM(O44:O59)=0,0,AVERAGE(O44:O59)) -> 0 | Q60: =IF(SUM(Q44:Q59)=0,0,AVERAGE(Q44:Q59)) -> 0 | R60: =IF(SUM(R44:R59)=0,0,AVERAGE(R44:R59)) -> 0 | S60: =IF(SUM(S44:S59)=0,0,AVERAGE(S44:S59)) -> 0 | T60: =IF(SUM(T44:T59)=0,0,AVERAGE(T44:T59)) -> 0 | V60: =IF(SUM(V44:V59)=0,0,AVERAGE(V44:V59)) -> 0 | W60: =IF(SUM(W44:W59)=0,0,AVERAGE(W44:W59)) -> 0 | X60: =IF(SUM(X44:X59)=0,0,AVERAGE(X44:X59)) -> 0 | Y60: =IF(SUM(Y44:Y59)=0,0,AVERAGE(Y44:Y59)) -> 0
AC62: =A82 -> CK
A63: Cherokee | B63: Semones, Katelyn (10) | G63: Souksavath, Taylor (11) | L63: Hood, Lily (10 | Q63: Crane, Thomas (11) | V63: Divver, Derek (9) | AA63: MATCH | AC63: =B63 -> Semones, Katelyn (10) | AD63: =G63 -> Souksavath, Taylor (11) | AE63: =L63 -> Hood, Lily (10 | AF63: =Q63 -> Crane, Thomas (11) | AG63: =V63 -> Divver, Derek (9) | AH63: Match 1 | AM63: RK | AN63: Match 2 | AS63: RK | AT63: Match 3 | AY63: RK | AZ63: Match 4 | BE63: RK | BF63: Match 5 | BK63: RK | BL63: Match 6 | BQ63: RK | BR63: Match 7 | BW63: RK | BX63: Match 8 | CC63: RK | CD63: Match 9 | CI63: RK | CJ63: Match 10 | CO63: RK | CP63: Match 11 | CU63: RK | CV63: Match 12 | DA63: RK | DB63: Match 13 | DG63: RK | DH63: Match 14 | DM63: RK | DN63: Area Playoff | DS63: RK | DT63: Area Championship | DY63: RK | DZ63: AGGR | EA63: Kneeling | EB63: Prone | EC63: Standing
A64: VS | B64: K | C64: P | D64: S | E64: AGGR | F64: *10 | G64: K | H64: P | I64: S | J64: AGGR | K64: *10 | L64: K | M64: P | N64: S | O64: AGGR | P64: *10 | Q64: K | R64: P | S64: S | T64: AGGR | U64: *10 | V64: K | W64: P | X64: S | Y64: AGGR | Z64: *10 | AA64: SCORE | AB64: *10 | AC64: =IF(SUM(E65:E80)>0,LARGE(E65:E80,1),0) -> 286 | AD64: =IF(SUM(J65:J80)>0,LARGE(J65:J80,1),0) -> 285 | AE64: =IF(SUM(O65:O80)>0,LARGE(O65:O80,1),0) -> 285 | AF64: =IF(SUM(T65:T80)>0,LARGE(T65:T80,1),0) -> 282 | AG64: =IF(SUM(Y65:Y80)>0,LARGE(Y65:Y80,1),0) -> 273 | AH64: AGGR | AI64: *10 | AJ64: K | AK64: P | AL64: S | AN64: AGGR | AO64: *10 | AP64: K | AQ64: P | AR64: S | AT64: AGGR | AU64: *10 | AV64: K | AW64: P | AX64: S | AZ64: AGGR | BA64: *10 | BB64: K | BC64: P | BD64: S | BF64: AGGR | BG64: *10 | BH64: K | BI64: P | BJ64: S | BL64: AGGR | BM64: *10 | BN64: K | BO64: P | BP64: S | BR64: AGGR | BS64: *10 | BT64: K | BU64: P | BV64: S | BX64: AGGR | BY64: *10 | BZ64: K | CA64: P | CB64: S | CD64: AGGR | CE64: *10 | CF64: K | CG64: P | CH64: S | CJ64: AGGR | CK64: *10 | CL64: K | CM64: P | CN64: S | CP64: AGGR | CQ64: *10 | CR64: K | CS64: P | CT64: S | CV64: AGGR | CW64: *10 | CX64: K | CY64: P | CZ64: S | DB64: AGGR | DC64: *10 | DD64: K | DE64: P | DF64: S | DH64: AGGR | DI64: *10 | DJ64: K | DK64: P | DL64: S | DN64: AGGR | DO64: *10 | DP64: K | DQ64: P | DR64: S | DT64: AGGR | DU64: *10 | DV64: K | DW64: P | DX64: S | DZ64: Large | EA64: Large | EB64: Large | EC64: Large
A65: Gordon Central | B65: 92 | C65: 97 | D65: 89 | E65: =IF(SUM(B65:D65)>0,SUM(B65:D65),"") -> 278 | F65: 13 | G65: 91 | H65: 98 | I65: 85 | J65: =IF(SUM(G65:I65)>0,SUM(G65:I65),"") -> 274 | K65: 9 | L65: 88 | M65: 89 | N65: 87 | O65: =IF(SUM(L65:N65)>0,SUM(L65:N65),"") -> 264 | P65: 8 | Q65: 90 | R65: 90 | S65: 83 | T65: =IF(SUM(Q65:S65)>0,SUM(Q65:S65),"") -> 263 | U65: 4 | V65: 81 | W65: 82 | X65: 72 | Y65: =IF(SUM(V65:X65)>0,SUM(V65:X65),"") -> 235 | Z65: 2 | AA65: =IF(SUM(E65,J65,O65,T65,Y65,Y85,T85,O85,J85,E85,E105,J105,O105,T105,Y105)>0,(LARGE((E65,J65,O65,T65,Y65,Y85,T85,O85,J85,E85,E105,J105,O105,T105,Y105),1)+LARGE((E65,J65,O65,T65,Y65,Y85,T85,O85,J85,E85,E105,J105,O105,T105,Y105),2)+LARGE((E65,J65,O65,T65,Y65,Y85,T85,O85,J85,E85,E105,J105,O105,T105,Y105),3)+LARGE((E65,J65,O65,T65,Y65,Y85,T85,O85,J85,E85,E105,J105,O105,T105,Y105),4)),"") -> 1079 | AB65: =IF(SUM(AI96)>0,SUM(AI96),"") -> 34 | AH65: =IF(SUM(B65:D65)>0,SUM(B65:D65),0) -> 278 | AI65: =IF(SUM(F65)>0,SUM(F65),0) -> 13 | AJ65: =B65 -> 92 | AK65: =C65 -> 97 | AL65: =D65 -> 89 | AN65: =IF(SUM(B66:D66)>0,SUM(B66:D66),0) -> 274 | AO65: =IF(SUM(F66)>0,SUM(F66),0) -> 14 | AP65: =B66 -> 97 | AQ65: =C66 -> 97 | AR65: =D66 -> 80 | AT65: =IF(SUM(B67:D67)>0,SUM(B67:D67),0) -> 283 | AU65: =IF(SUM(F67)>0,SUM(F67),0) -> 13 | AV65: =B67 -> 97 | AW65: =C67 -> 98 | AX65: =D67 -> 88 | AZ65: =IF(SUM(B68:D68)>0,SUM(B68:D68),0) -> 282 | BA65: =IF(SUM(F68)>0,SUM(F68),0) -> 0 | BB65: =B68 -> 96 | BC65: =C68 -> 97 | BD65: =D68 -> 89 | BF65: =IF(SUM(B69:D69)>0,SUM(B69:D69),0) -> 278 | BG65: =IF(SUM(F69)>0,SUM(F69),0) -> 8 | BH65: =B69 -> 94 | BI65: =C69 -> 94 | BJ65: =D69 -> 90 | BL65: =IF(SUM(B70:D70)>0,SUM(B70:D70),0) -> 275 | BM65: =IF(SUM(F70)>0,SUM(F70),0) -> 8 | BN65: =B70 -> 91 | BO65: =C70 -> 87 | BP65: =D70 -> 97 | BR65: =IF(SUM(B71:D71)>0,SUM(B71:D71),0) -> 0 | BS65: =IF(SUM(F71)>0,SUM(F71),0) -> 0 | BT65: =B71 -> 0 | BU65: =C71 -> 0 | BV65: =D71 -> 0 | BX65: =IF(SUM(B72:D72)>0,SUM(B72:D72),0) -> 281 | BY65: =IF(SUM(F72)>0,SUM(F72),0) -> 13 | BZ65: =B72 -> 98 | CA65: =C72 -> 97 | CB65: =D72 -> 86 | CD65: =IF(SUM(B73:D73)>0,SUM(B73:D73),0) -> 286 | CE65: =IF(SUM(F73)>0,SUM(F73),0) -> 18 | CF65: =B73 -> 98 | CG65: =C73 -> 99 | CH65: =D73 -> 89 | CJ65: =IF(SUM(B74:D74)>0,SUM(B74:D74),0) -> 284 | CK65: =IF(SUM(F74)>0,SUM(F74),0) -> 13 | CL65: =B74 -> 95 | CM65: =C74 -> 99 | CN65: =D74 -> 90 | CP65: =IF(SUM(B75:D75)>0,SUM(B75:D75),0) -> 268 | CQ65: =IF(SUM(F75)>0,SUM(F75),0) -> 6 | CR65: =B75 -> 82 | CS65: =C75 -> 93 | CT65: =D75 -> 93 | CV65: =IF(SUM(B76:D76)>0,SUM(B76:D76),0) -> 285 | CW65: =IF(SUM(F76)>0,SUM(F76),0) -> 15 | CX65: =B76 -> 94 | CY65: =C76 -> 99 | CZ65: =D76 -> 92 | DB65: =IF(SUM(B77:D77)>0,SUM(B77:D77),0) -> 0 | DC65: =IF(SUM(F77)>0,SUM(F77),0) -> 0 | DD65: =B77 -> 0 | DE65: =C77 -> 0 | DF65: =D77 -> 0 | DH65: =IF(SUM(B78:D78)>0,SUM(B78:D78),0) -> 0 | DI65: =IF(SUM(F78)>0,SUM(F78),0) -> 0 | DJ65: =B78 -> 0 | DK65: =C78 -> 0 | DL65: =D78 -> 0 | DN65: =IF(SUM(B79:D79)>0,SUM(B79:D79),0) -> 0 | DO65: =IF(SUM(F79)>0,SUM(F79),0) -> 0 | DP65: =B79 -> 0 | DQ65: =C79 -> 0 | DR65: =D79 -> 0 | DT65: =IF(SUM(B80:D80)>0,SUM(B80:D80),0) -> 0 | DU65: =IF(SUM(F80)>0,SUM(F80),0) -> 0 | DV65: =B80 -> 0 | DW65: =C80 -> 0 | DX65: =D80 -> 0 | DZ65: =LARGE((DT65,DN65,DH65,DB65,CV65,CP65,CJ65,CD65,BX65,BR65,BL65,BF65,AZ65,AT65,AN65,AH65),1) -> 286 | EA65: =LARGE((AJ65,AP65,AV65,BB65,BH65,BN65,BT65,BZ65,CF65,CL65,CR65,CX65,DD65,DJ65,DP65,DV65),1) -> 98 | EB65: =LARGE((AK65,AQ65,AW65,BC65,BI65,BO65,BU65,CA65,CG65,CM65,CS65,CY65,DE65,DK65,DQ65,DW65),1) -> 99 | EC65: =LARGE((AL65,AR65,AX65,BD65,BJ65,BP65,BV65,CB65,CH65,CN65,CT65,CZ65,DF65,DL65,DR65,DX65),1) -> 97
A66: @ Dalton | B66: 97 | C66: 97 | D66: 80 | E66: 274 | F66: 14 | G66: 93 | H66: 96 | I66: 90 | J66: 279 | K66: 9 | L66: 83 | M66: 88 | N66: 89 | O66: 260 | P66: 4 | Q66: 82 | R66: 89 | S66: 73 | T66: 244 | U66: 1 | AA66: =IF(SUM(E66,J66,O66,T66,Y66,Y86,T86,O86,J86,E86,E106,J106,O106,T106,Y106)>0,(LARGE((E66,J66,O66,T66,Y66,Y86,T86,O86,J86,E86,E106,J106,O106,T106,Y106),1)+LARGE((E66,J66,O66,T66,Y66,Y86,T86,O86,J86,E86,E106,J106,O106,T106,Y106),2)+LARGE((E66,J66,O66,T66,Y66,Y86,T86,O86,J86,E86,E106,J106,O106,T106,Y106),3)+LARGE((E66,J66,O66,T66,Y66,Y86,T86,O86,J86,E86,E106,J106,O106,T106,Y106),4)),"") -> 1070 | AB66: =IF(SUM(AO96)>0,SUM(AO96),"") -> 32 | AH66: =IF(SUM(G65:I65)>0,SUM(G65:I65),0) -> 274 | AI66: =IF(SUM(K65)>0,SUM(K65),0) -> 9 | AJ66: =G65 -> 91 | AK66: =H65 -> 98 | AL66: =I65 -> 85 | AN66: =IF(SUM(G66:I66)>0,SUM(G66:I66),0) -> 279 | AO66: =IF(SUM(K66)>0,SUM(K66),0) -> 9 | AP66: =G66 -> 93 | AQ66: =H66 -> 96 | AR66: =I66 -> 90 | AT66: =IF(SUM(G67:I67)>0,SUM(G67:I67),0) -> 281 | AU66: =IF(SUM(K67)>0,SUM(K67),0) -> 12 | AV66: =G67 -> 94 | AW66: =H67 -> 97 | AX66: =I67 -> 90 | AZ66: =IF(SUM(G68:I68)>0,SUM(G68:I68),0) -> 281 | BA66: =IF(SUM(K68)>0,SUM(K68),0) -> 0 | BB66: =G68 -> 97 | BC66: =H68 -> 97 | BD66: =I68 -> 87 | BF66: =IF(SUM(G69:I69)>0,SUM(G69:I69),0) -> 284 | BG66: =IF(SUM(K69)>0,SUM(K69),0) -> 12 | BH66: =G69 -> 95 | BI66: =H69 -> 96 | BJ66: =I69 -> 93 | BL66: =IF(SUM(G70:I70)>0,SUM(G70:I70),0) -> 281 | BM66: =IF(SUM(K70)>0,SUM(K70),0) -> 13 | BN66: =G70 -> 96 | BO66: =H70 -> 99 | BP66: =I70 -> 86 | BR66: =IF(SUM(G71:I71)>0,SUM(G71:I71),0) -> 0 | BS66: =IF(SUM(K71)>0,SUM(K71),0) -> 0 | BT66: =G71 -> 0 | BU66: =H71 -> 0 | BV66: =I71 -> 0 | BX66: =IF(SUM(G72:I72)>0,SUM(G72:I72),0) -> 282 | BY66: =IF(SUM(K72)>0,SUM(K72),0) -> 11 | BZ66: =G72 -> 96 | CA66: =H72 -> 99 | CB66: =I72 -> 87 | CD66: =IF(SUM(G73:I73)>0,SUM(G73:I73),0) -> 285 | CE66: =IF(SUM(K73)>0,SUM(K73),0) -> 16 | CF66: =G73 -> 97 | CG66: =H73 -> 99 | CH66: =I73 -> 89 | CJ66: =IF(SUM(G74:I74)>0,SUM(G74:I74),0) -> 284 | CK66: =IF(SUM(K74)>0,SUM(K74),0) -> 8 | CL66: =G74 -> 95 | CM66: =H74 -> 96 | CN66: =I74 -> 93 | CP66: =IF(SUM(G75:I75)>0,SUM(G75:I75),0) -> 281 | CQ66: =IF(SUM(K75)>0,SUM(K75),0) -> 14 | CR66: =G75 -> 96 | CS66: =H75 -> 100 | CT66: =I75 -> 85 | CV66: =IF(SUM(G76:I76)>0,SUM(G76:I76),0) -> 285 | CW66: =IF(SUM(K76)>0,SUM(K76),0) -> 17 | CX66: =G76 -> 96 | CY66: =H76 -> 99 | CZ66: =I76 -> 90 | DB66: =IF(SUM(G77:I77)>0,SUM(G77:I77),0) -> 0 | DC66: =IF(SUM(K77)>0,SUM(K77),0) -> 0 | DD66: =G77 -> 0 | DE66: =H77 -> 0 | DF66: =I77 -> 0 | DH66: =IF(SUM(G78:I78)>0,SUM(G78:I78),0) -> 0 | DI66: =IF(SUM(K78)>0,SUM(K78),0) -> 0 | DJ66: =G78 -> 0 | DK66: =H78 -> 0 | DL66: =I78 -> 0 | DN66: =IF(SUM(G79:I79)>0,SUM(G79:I79),0) -> 0 | DO66: =IF(SUM(K79)>0,SUM(K79),0) -> 0 | DP66: =G79 -> 0 | DQ66: =H79 -> 0 | DR66: =I79 -> 0 | DT66: =IF(SUM(G80:I80)>0,SUM(G80:I80),0) -> 0 | DU66: =IF(SUM(K80)>0,SUM(K80),0) -> 0 | DV66: =G80 -> 0 | DW66: =H80 -> 0 | DX66: =I80 -> 0 | DZ66: =LARGE((DT66,DN66,DH66,DB66,CV66,CP66,CJ66,CD66,BX66,BR66,BL66,BF66,AZ66,AT66,AN66,AH66),1) -> 285 | EA66: =LARGE((AJ66,AP66,AV66,BB66,BH66,BN66,BT66,BZ66,CF66,CL66,CR66,CX66,DD66,DJ66,DP66,DV66),1) -> 97 | EB66: =LARGE((AK66,AQ66,AW66,BC66,BI66,BO66,BU66,CA66,CG66,CM66,CS66,CY66,DE66,DK66,DQ66,DW66),1) -> 100 | EC66: =LARGE((AL66,AR66,AX66,BD66,BJ66,BP66,BV66,CB66,CH66,CN66,CT66,CZ66,DF66,DL66,DR66,DX66),1) -> 93
A67: Lafayette | B67: 97 | C67: 98 | D67: 88 | E67: 283 | F67: 13 | G67: 94 | H67: 97 | I67: 90 | J67: 281 | K67: 12 | L67: 92 | M67: 97 | N67: 93 | O67: 282 | P67: 12 | Q67: 88 | R67: 95 | S67: 89 | T67: 272 | U67: 10 | AA67: =IF(SUM(E67,J67,O67,T67,Y67,Y87,T87,O87,J87,E87,E107,J107,O107,T107,Y107)>0,(LARGE((E67,J67,O67,T67,Y67,Y87,T87,O87,J87,E87,E107,J107,O107,T107,Y107),1)+LARGE((E67,J67,O67,T67,Y67,Y87,T87,O87,J87,E87,E107,J107,O107,T107,Y107),2)+LARGE((E67,J67,O67,T67,Y67,Y87,T87,O87,J87,E87,E107,J107,O107,T107,Y107),3)+LARGE((E67,J67,O67,T67,Y67,Y87,T87,O87,J87,E87,E107,J107,O107,T107,Y107),4)),"") -> 1118 | AB67: =IF(SUM(AU96)>0, SUM(AU96),"") -> 47 | AH67: =IF(SUM(L65:N65)>0,SUM(L65:N65),0) -> 264 | AI67: =IF(SUM(P65)>0,SUM(P65),0) -> 8 | AJ67: =L65 -> 88 | AK67: =M65 -> 89 | AL67: =N65 -> 87 | AN67: =IF(SUM(L66:N66)>0,SUM(L66:N66),0) -> 260 | AO67: =IF(SUM(P66)>0,SUM(P66),0) -> 4 | AP67: =L66 -> 83 | AQ67: =M66 -> 88 | AR67: =N66 -> 89 | AT67: =IF(SUM(L67:N67)>0,SUM(L67:N67),0) -> 282 | AU67: =IF(SUM(P67)>0,SUM(P67),0) -> 12 | AV67: =L67 -> 92 | AW67: =M67 -> 97 | AX67: =N67 -> 93 | AZ67: =IF(SUM(L68:N68)>0,SUM(L68:N68),0) -> 272 | BA67: =IF(SUM(P68)>0,SUM(P68),0) -> 0 | BB67: =L68 -> 92 | BC67: =M68 -> 95 | BD67: =N68 -> 85 | BF67: =IF(SUM(L69:N69)>0,SUM(L69:N69),0) -> 280 | BG67: =IF(SUM(P69)>0,SUM(P69),0) -> 12 | BH67: =L69 -> 96 | BI67: =M69 -> 97 | BJ67: =N69 -> 87 | BL67: =IF(SUM(L70:N70)>0,SUM(L70:N70),0) -> 283 | BM67: =IF(SUM(P70)>0,SUM(P70),0) -> 10 | BN67: =L70 -> 94 | BO67: =M70 -> 97 | BP67: =N70 -> 92 | BR67: =IF(SUM(L71:N71)>0,SUM(L71:N71),0) -> 0 | BS67: =IF(SUM(P71)>0,SUM(P71),0) -> 0 | BT67: =L71 -> 0 | BU67: =M71 -> 0 | BV67: =N71 -> 0 | BX67: =IF(SUM(L72:N72)>0,SUM(L72:N72),0) -> 284 | BY67: =IF(SUM(P72)>0,SUM(P72),0) -> 11 | BZ67: =L72 -> 92 | CA67: =M72 -> 99 | CB67: =N72 -> 93 | CD67: =IF(SUM(L73:N73)>0,SUM(L73:N73),0) -> 280 | CE67: =IF(SUM(P73)>0,SUM(P73),0) -> 11 | CF67: =L73 -> 92 | CG67: =M73 -> 98 | CH67: =N73 -> 90 | CJ67: =IF(SUM(L74:N74)>0,SUM(L74:N74),0) -> 283 | CK67: =IF(SUM(P74)>0,SUM(P74),0) -> 14 | CL67: =L74 -> 95 | CM67: =M74 -> 99 | CN67: =N74 -> 89 | CP67: =IF(SUM(L75:N75)>0,SUM(L75:N75),0) -> 285 | CQ67: =IF(SUM(P75)>0,SUM(P75),0) -> 15 | CR67: =L75 -> 95 | CS67: =M75 -> 100 | CT67: =N75 -> 90 | CV67: =IF(SUM(L76:N76)>0,SUM(L76:N76),0) -> 278 | CW67: =IF(SUM(P76)>0,SUM(P76),0) -> 10 | CX67: =L76 -> 93 | CY67: =M76 -> 96 | CZ67: =N76 -> 89 | DB67: =IF(SUM(L77:N77)>0,SUM(L77:N77),0) -> 0 | DC67: =IF(SUM(P77)>0,SUM(P77),0) -> 0 | DD67: =L77 -> 0 | DE67: =M77 -> 0 | DF67: =N77 -> 0 | DH67: =IF(SUM(L78:N78)>0,SUM(L78:N78),0) -> 0 | DI67: =IF(SUM(P78)>0,SUM(P78),0) -> 0 | DJ67: =L78 -> 0 | DK67: =M78 -> 0 | DL67: =N78 -> 0 | DN67: =IF(SUM(L79:N79)>0,SUM(L79:N79),0) -> 0 | DO67: =IF(SUM(P79)>0,SUM(P79),0) -> 0 | DP67: =L79 -> 0 | DQ67: =M79 -> 0 | DR67: =N79 -> 0 | DT67: =IF(SUM(L80:N80)>0,SUM(L80:N80),0) -> 0 | DU67: =IF(SUM(P80)>0,SUM(P80),0) -> 0 | DV67: =L80 -> 0 | DW67: =M80 -> 0 | DX67: =N80 -> 0 | DZ67: =LARGE((DT67,DN67,DH67,DB67,CV67,CP67,CJ67,CD67,BX67,BR67,BL67,BF67,AZ67,AT67,AN67,AH67),1) -> 285 | EA67: =LARGE((AJ67,AP67,AV67,BB67,BH67,BN67,BT67,BZ67,CF67,CL67,CR67,CX67,DD67,DJ67,DP67,DV67),1) -> 96 | EB67: =LARGE((AK67,AQ67,AW67,BC67,BI67,BO67,BU67,CA67,CG67,CM67,CS67,CY67,DE67,DK67,DQ67,DW67),1) -> 100 | EC67: =LARGE((AL67,AR67,AX67,BD67,BJ67,BP67,BV67,CB67,CH67,CN67,CT67,CZ67,DF67,DL67,DR67,DX67),1) -> 93
A68: @ Ridgeland | B68: 96 | C68: 97 | D68: 89 | E68: 282 | G68: 97 | H68: 97 | I68: 87 | J68: 281 | L68: 92 | M68: 95 | N68: 85 | O68: 272 | Q68: 84 | R68: 95 | S68: 86 | T68: 265 | V68: 82 | W68: 95 | X68: 80 | Y68: 257 | AA68: =IF(SUM(E68,J68,O68,T68,Y68,Y88,T88,O88,J88,E88,E108,J108,O108,T108,Y108)>0,(LARGE((E68,J68,O68,T68,Y68,Y88,T88,O88,J88,E88,E108,J108,O108,T108,Y108),1)+LARGE((E68,J68,O68,T68,Y68,Y88,T88,O88,J88,E88,E108,J108,O108,T108,Y108),2)+LARGE((E68,J68,O68,T68,Y68,Y88,T88,O88,J88,E88,E108,J108,O108,T108,Y108),3)+LARGE((E68,J68,O68,T68,Y68,Y88,T88,O88,J88,E88,E108,J108,O108,T108,Y108),4)),"") -> 1100 | AB68: =IF(SUM(BA96)>0, SUM(BA96),"") ->  | AH68: =IF(SUM(Q65:S65)>0,SUM(Q65:S65),0) -> 263 | AI68: =IF(SUM(U65)>0,SUM(U65),0) -> 4 | AJ68: =Q65 -> 90 | AK68: =R65 -> 90 | AL68: =S65 -> 83 | AN68: =IF(SUM(Q66:S66)>0,SUM(Q66:S66),0) -> 244 | AO68: =IF(SUM(U66)>0,SUM(U66),0) -> 1 | AP68: =Q66 -> 82 | AQ68: =R66 -> 89 | AR68: =S66 -> 73 | AT68: =IF(SUM(Q67:S67)>0,SUM(Q67:S67),0) -> 272 | AU68: =IF(SUM(U67)>0,SUM(U67),0) -> 10 | AV68: =Q67 -> 88 | AW68: =R67 -> 95 | AX68: =S67 -> 89 | AZ68: =IF(SUM(Q68:S68)>0,SUM(Q68:S68),0) -> 265 | BA68: =IF(SUM(U68)>0,SUM(U68),0) -> 0 | BB68: =Q68 -> 84 | BC68: =R68 -> 95 | BD68: =S68 -> 86 | BF68: =IF(SUM(Q69:S69)>0,SUM(Q69:S69),0) -> 271 | BG68: =IF(SUM(U69)>0,SUM(U69),0) -> 7 | BH68: =Q69 -> 87 | BI68: =R69 -> 92 | BJ68: =S69 -> 92 | BL68: =IF(SUM(Q70:S70)>0,SUM(Q70:S70),0) -> 271 | BM68: =IF(SUM(U70)>0,SUM(U70),0) -> 6 | BN68: =Q70 -> 92 | BO68: =R70 -> 94 | BP68: =S70 -> 85 | BR68: =IF(SUM(Q71:S71)>0,SUM(Q71:S71),0) -> 0 | BS68: =IF(SUM(U71)>0,SUM(U71),0) -> 0 | BT68: =Q71 -> 0 | BU68: =R71 -> 0 | BV68: =S71 -> 0 | BX68: =IF(SUM(Q72:S72)>0,SUM(Q72:S72),0) -> 282 | BY68: =IF(SUM(U72)>0,SUM(U72),0) -> 14 | BZ68: =Q72 -> 91 | CA68: =R72 -> 98 | CB68: =S72 -> 93 | CD68: =IF(SUM(Q73:S73)>0,SUM(Q73:S73),0) -> 0 | CE68: =IF(SUM(U73)>0,SUM(U73),0) -> 0 | CF68: =Q73 -> 0 | CG68: =R73 -> 0 | CH68: =S73 -> 0 | CJ68: =IF(SUM(Q74:S74)>0,SUM(Q74:S74),0) -> 265 | CK68: =IF(SUM(U74)>0,SUM(U74),0) -> 3 | CL68: =Q74 -> 92 | CM68: =R74 -> 93 | CN68: =S74 -> 80 | CP68: =IF(SUM(Q75:S75)>0,SUM(Q75:S75),0) -> 277 | CQ68: =IF(SUM(U75)>0,SUM(U75),0) -> 12 | CR68: =Q75 -> 90 | CS68: =R75 -> 99 | CT68: =S75 -> 88 | CV68: =IF(SUM(Q76:S76)>0,SUM(Q76:S76),0) -> 260 | CW68: =IF(SUM(U76)>0,SUM(U76),0) -> 5 | CX68: =Q76 -> 88 | CY68: =R76 -> 91 | CZ68: =S76 -> 81 | DB68: =IF(SUM(Q77:S77)>0,SUM(Q77:S77),0) -> 0 | DC68: =IF(SUM(U77)>0,SUM(U77),0) -> 0 | DD68: =Q77 -> 0 | DE68: =R77 -> 0 | DF68: =S77 -> 0 | DH68: =IF(SUM(Q78:S78)>0,SUM(Q78:S78),0) -> 0 | DI68: =IF(SUM(U78)>0,SUM(U78),0) -> 0 | DJ68: =Q78 -> 0 | DK68: =R78 -> 0 | DL68: =S78 -> 0 | DN68: =IF(SUM(Q79:S79)>0,SUM(Q79:S79),0) -> 0 | DO68: =IF(SUM(U79)>0,SUM(U79),0) -> 0 | DP68: =Q79 -> 0 | DQ68: =R79 -> 0 | DR68: =S79 -> 0 | DT68: =IF(SUM(Q80:S80)>0,SUM(Q80:S80),0) -> 0 | DU68: =IF(SUM(U80)>0,SUM(U80),0) -> 0 | DV68: =Q80 -> 0 | DW68: =R80 -> 0 | DX68: =S80 -> 0 | DZ68: =LARGE((DT68,DN68,DH68,DB68,CV68,CP68,CJ68,CD68,BX68,BR68,BL68,BF68,AZ68,AT68,AN68,AH68),1) -> 282 | EA68: =LARGE((AJ68,AP68,AV68,BB68,BH68,BN68,BT68,BZ68,CF68,CL68,CR68,CX68,DD68,DJ68,DP68,DV68),1) -> 92 | EB68: =LARGE((AK68,AQ68,AW68,BC68,BI68,BO68,BU68,CA68,CG68,CM68,CS68,CY68,DE68,DK68,DQ68,DW68),1) -> 99 | EC68: =LARGE((AL68,AR68,AX68,BD68,BJ68,BP68,BV68,CB68,CH68,CN68,CT68,CZ68,DF68,DL68,DR68,DX68),1) -> 93
A69: Allatoona | B69: 94 | C69: 94 | D69: 90 | E69: 278 | F69: 8 | G69: 95 | H69: 96 | I69: 93 | J69: 284 | K69: 12 | L69: 96 | M69: 97 | N69: 87 | O69: 280 | P69: 12 | Q69: 87 | R69: 92 | S69: 92 | T69: 271 | U69: 7 | AA69: =IF(SUM(E69,J69,O69,T69,Y69,Y89,T89,O89,J89,E89,E109,J109,O109,T109,Y109)>0,(LARGE((E69,J69,O69,T69,Y69,Y89,T89,O89,J89,E89,E109,J109,O109,T109,Y109),1)+LARGE((E69,J69,O69,T69,Y69,Y89,T89,O89,J89,E89,E109,J109,O109,T109,Y109),2)+LARGE((E69,J69,O69,T69,Y69,Y89,T89,O89,J89,E89,E109,J109,O109,T109,Y109),3)+LARGE((E69,J69,O69,T69,Y69,Y89,T89,O89,J89,E89,E109,J109,O109,T109,Y109),4)),"") -> 1116 | AB69: =IF(SUM(BG96)>0,SUM(BG96),"") -> 37 | AH69: =IF(SUM(V65:X65)>0,SUM(V65:X65),0) -> 235 | AI69: =IF(SUM(Z65)>0,SUM(Z65),0) -> 2 | AJ69: =V65 -> 81 | AK69: =W65 -> 82 | AL69: =X65 -> 72 | AN69: =IF(SUM(V66:X66)>0,SUM(V66:X66),0) -> 0 | AO69: =IF(SUM(Z66)>0,SUM(Z66),0) -> 0 | AP69: =V66 -> 0 | AQ69: =W66 -> 0 | AR69: =X66 -> 0 | AT69: =IF(SUM(V67:X67)>0,SUM(V67:X67),0) -> 0 | AU69: =IF(SUM(Z67)>0,SUM(Z67),0) -> 0 | AV69: =V67 -> 0 | AW69: =W67 -> 0 | AX69: =X67 -> 0 | AZ69: =IF(SUM(V68:X68)>0,SUM(V68:X68),0) -> 257 | BA69: =IF(SUM(Z68)>0,SUM(Z68),0) -> 0 | BB69: =V68 -> 82 | BC69: =W68 -> 95 | BD69: =X68 -> 80 | BF69: =IF(SUM(V69:X69)>0,SUM(V69:X69),0) -> 0 | BG69: =IF(SUM(Z69)>0,SUM(Z69),0) -> 0 | BH69: =V69 -> 0 | BI69: =W69 -> 0 | BJ69: =X69 -> 0 | BL69: =IF(SUM(V70:X70)>0,SUM(V70:X70),0) -> 0 | BM69: =IF(SUM(Z70)>0,SUM(Z70),0) -> 0 | BN69: =V70 -> 0 | BO69: =W70 -> 0 | BP69: =X70 -> 0 | BR69: =IF(SUM(V71:X71)>0,SUM(V71:X71),0) -> 0 | BS69: =IF(SUM(Z71)>0,SUM(Z71),0) -> 0 | BT69: =V71 -> 0 | BU69: =W71 -> 0 | BV69: =X71 -> 0 | BX69: =IF(SUM(V72:X72)>0,SUM(V72:X72),0) -> 0 | BY69: =IF(SUM(Z72)>0,SUM(Z72),0) -> 0 | BZ69: =V72 -> 0 | CA69: =W72 -> 0 | CB69: =X72 -> 0 | CD69: =IF(SUM(V73:X73)>0,SUM(V73:X73),0) -> 0 | CE69: =IF(SUM(Z73)>0,SUM(Z73),0) -> 0 | CF69: =V73 -> 0 | CG69: =W73 -> 0 | CH69: =X73 -> 0 | CJ69: =IF(SUM(V74:X74)>0,SUM(V74:X74),0) -> 0 | CK69: =IF(SUM(Z74)>0,SUM(Z74),0) -> 0 | CL69: =V74 -> 0 | CM69: =W74 -> 0 | CN69: =X74 -> 0 | CP69: =IF(SUM(V75:X75)>0,SUM(V75:X75),0) -> 273 | CQ69: =IF(SUM(Z75)>0,SUM(Z75),0) -> 12 | CR69: =V75 -> 94 | CS69: =W75 -> 98 | CT69: =X75 -> 81 | CV69: =IF(SUM(V76:X76)>0,SUM(V76:X76),0) -> 0 | CW69: =IF(SUM(Z76)>0,SUM(Z76),0) -> 0 | CX69: =V76 -> 0 | CY69: =W76 -> 0 | CZ69: =X76 -> 0 | DB69: =IF(SUM(V77:X77)>0,SUM(V77:X77),0) -> 0 | DC69: =IF(SUM(Z77)>0,SUM(Z77),0) -> 0 | DD69: =V77 -> 0 | DE69: =W77 -> 0 | DF69: =X77 -> 0 | DH69: =IF(SUM(V78:X78)>0,SUM(V78:X78),0) -> 0 | DI69: =IF(SUM(Z78)>0,SUM(Z78),0) -> 0 | DJ69: =V78 -> 0 | DK69: =W78 -> 0 | DL69: =X78 -> 0 | DN69: =IF(SUM(V79:X79)>0,SUM(V79:X79),0) -> 0 | DO69: =IF(SUM(Z79)>0,SUM(Z79),0) -> 0 | DP69: =V79 -> 0 | DQ69: =W79 -> 0 | DR69: =X79 -> 0 | DT69: =IF(SUM(V80:X80)>0,SUM(V80:X80),0) -> 0 | DU69: =IF(SUM(Z80)>0,SUM(Z80),0) -> 0 | DV69: =V80 -> 0 | DW69: =W80 -> 0 | DX69: =X80 -> 0 | DZ69: =LARGE((DT69,DN69,DH69,DB69,CV69,CP69,CJ69,CD69,BX69,BR69,BL69,BF69,AZ69,AT69,AN69,AH69),1) -> 273 | EA69: =LARGE((AJ69,AP69,AV69,BB69,BH69,BN69,BT69,BZ69,CF69,CL69,CR69,CX69,DD69,DJ69,DP69,DV69),1) -> 94 | EB69: =LARGE((AK69,AQ69,AW69,BC69,BI69,BO69,BU69,CA69,CG69,CM69,CS69,CY69,DE69,DK69,DQ69,DW69),1) -> 98 | EC69: =LARGE((AL69,AR69,AX69,BD69,BJ69,BP69,BV69,CB69,CH69,CN69,CT69,CZ69,DF69,DL69,DR69,DX69),1) -> 81
A70: @ Etowah | B70: 91 | C70: 87 | D70: 97 | E70: 275 | F70: 8 | G70: 96 | H70: 99 | I70: 86 | J70: 281 | K70: 13 | L70: 94 | M70: 97 | N70: 92 | O70: 283 | P70: 10 | Q70: 92 | R70: 94 | S70: 85 | T70: 271 | U70: 6 | AA70: =IF(SUM(E70,J70,O70,T70,Y70,Y90,T90,O90,J90,E90,E110,J110,O110,T110,Y110)>0,(LARGE((E70,J70,O70,T70,Y70,Y90,T90,O90,J90,E90,E110,J110,O110,T110,Y110),1)+LARGE((E70,J70,O70,T70,Y70,Y90,T90,O90,J90,E90,E110,J110,O110,T110,Y110),2)+LARGE((E70,J70,O70,T70,Y70,Y90,T90,O90,J90,E90,E110,J110,O110,T110,Y110),3)+LARGE((E70,J70,O70,T70,Y70,Y90,T90,O90,J90,E90,E110,J110,O110,T110,Y110),4)),"") -> 1110 | AB70: =IF(SUM(BM96)>0,SUM(BM96),"") -> 37 | AH70: =IF(SUM(B85:D85)>0,SUM(B85:D85),0) -> 0 | AI70: =IF(SUM(F85)>0,SUM(F85),0) -> 0 | AJ70: =B85 -> 0 | AK70: =C85 -> 0 | AL70: =D85 -> 0 | AN70: =IF(SUM(B86:D86)>0,SUM(B86:D86),0) -> 0 | AO70: =IF(SUM(F86)>0,SUM(F86),0) -> 0 | AP70: =B86 -> 0 | AQ70: =C86 -> 0 | AR70: =D86 -> 0 | AT70: =IF(SUM(B87:D87)>0,SUM(B87:D87),0) -> 0 | AU70: =IF(SUM(F87)>0,SUM(F87),0) -> 0 | AV70: =B87 -> 0 | AW70: =C87 -> 0 | AX70: =D87 -> 0 | AZ70: =IF(SUM(B88:D88)>0,SUM(B88:D88),0) -> 0 | BA70: =IF(SUM(F88)>0,SUM(F88),0) -> 0 | BB70: =B88 -> 0 | BC70: =C88 -> 0 | BD70: =D88 -> 0 | BF70: =IF(SUM(B89:D89)>0,SUM(B89:D89),0) -> 0 | BG70: =IF(SUM(F89)>0,SUM(F89),0) -> 0 | BH70: =B89 -> 0 | BI70: =C89 -> 0 | BJ70: =D89 -> 0 | BL70: =IF(SUM(B90:D90)>0,SUM(B90:D90),0) -> 0 | BM70: =IF(SUM(F90)>0,SUM(F90),0) -> 0 | BN70: =B90 -> 0 | BO70: =C90 -> 0 | BP70: =D90 -> 0 | BR70: =IF(SUM(B91:D91)>0,SUM(B91:D91),0) -> 0 | BS70: =IF(SUM(F91)>0,SUM(F91),0) -> 0 | BT70: =B91 -> 0 | BU70: =C91 -> 0 | BV70: =D91 -> 0 | BX70: =IF(SUM(B92:D92)>0,SUM(B92:D92),0) -> 0 | BY70: =IF(SUM(F92)>0,SUM(F92),0) -> 0 | BZ70: =B92 -> 0 | CA70: =C92 -> 0 | CB70: =D92 -> 0 | CD70: =IF(SUM(B93:D93)>0,SUM(B93:D93),0) -> 270 | CE70: =IF(SUM(F93)>0,SUM(F93),0) -> 6 | CF70: =B93 -> 94 | CG70: =C93 -> 93 | CH70: =D93 -> 83 | CJ70: =IF(SUM(B94:D94)>0,SUM(B94:D94),0) -> 0 | CK70: =IF(SUM(F94)>0,SUM(F94),0) -> 0 | CL70: =B94 -> 0 | CM70: =C94 -> 0 | CN70: =D94 -> 0 | CP70: =IF(SUM(B95:D95)>0,SUM(B95:D95),0) -> 0 | CQ70: =IF(SUM(F95)>0,SUM(F95),0) -> 0 | CR70: =B95 -> 0 | CS70: =C95 -> 0 | CT70: =D95 -> 0 | CV70: =IF(SUM(B96:D96)>0,SUM(B96:D96),0) -> 0 | CW70: =IF(SUM(F96)>0,SUM(F96),0) -> 0 | CX70: =B96 -> 0 | CY70: =C96 -> 0 | CZ70: =D96 -> 0 | DB70: =IF(SUM(B97:D97)>0,SUM(B97:D97),0) -> 0 | DC70: =IF(SUM(F97)>0,SUM(F97),0) -> 0 | DD70: =B97 -> 0 | DE70: =C97 -> 0 | DF70: =D97 -> 0 | DH70: =IF(SUM(B98:D98)>0,SUM(B98:D98),0) -> 0 | DI70: =IF(SUM(F98)>0,SUM(F98),0) -> 0 | DJ70: =B98 -> 0 | DK70: =C98 -> 0 | DL70: =D98 -> 0 | DN70: =IF(SUM(B99:D99)>0,SUM(B99:D99),0) -> 0 | DO70: =IF(SUM(F99)>0,SUM(F98),0) -> 0 | DP70: =B99 -> 0 | DQ70: =C99 -> 0 | DR70: =D99 -> 0 | DT70: =IF(SUM(B100:D100)>0,SUM(B100:D100),0) -> 0 | DU70: =IF(SUM(F100)>0,SUM(F100),0) -> 0 | DV70: =B100 -> 0 | DW70: =C100 -> 0 | DX70: =D100 -> 0 | DZ70: =LARGE((DT70,DN70,DH70,DB70,CV70,CP70,CJ70,CD70,BX70,BR70,BL70,BF70,AZ70,AT70,AN70,AH70),1) -> 270 | EA70: =LARGE((AJ70,AP70,AV70,BB70,BH70,BN70,BT70,BZ70,CF70,CL70,CR70,CX70,DD70,DJ70,DP70,DV70),1) -> 94 | EB70: =LARGE((AK70,AQ70,AW70,BC70,BI70,BO70,BU70,CA70,CG70,CM70,CS70,CY70,DE70,DK70,DQ70,DW70),1) -> 93 | EC70: =LARGE((AL70,AR70,AX70,BD70,BJ70,BP70,BV70,CB70,CH70,CN70,CT70,CZ70,DF70,DL70,DR70,DX70),1) -> 83
A71: @ Cartersville | AA71: =IF(SUM(E71,J71,O71,T71,Y71,Y91,T91,O91,J91,E91,E111,J111,O111,T111,Y111)>0,(LARGE((E71,J71,O71,T71,Y71,Y91,T91,O91,J91,E91,E111,J111,O111,T111,Y111),1)+LARGE((E71,J71,O71,T71,Y71,Y91,T91,O91,J91,E91,E111,J111,O111,T111,Y111),2)+LARGE((E71,J71,O71,T71,Y71,Y91,T91,O91,J91,E91,E111,J111,O111,T111,Y111),3)+LARGE((E71,J71,O71,T71,Y71,Y91,T91,O91,J91,E91,E111,J111,O111,T111,Y111),4)),"") ->  | AB71: =IF(SUM(BS96)>0,SUM(BS96),"") ->  | AH71: =IF(SUM(G85:I85)>0,SUM(G85:I85),0) -> 0 | AI71: =IF(SUM(K85)>0,SUM(K85),0) -> 0 | AJ71: =G85 -> 0 | AK71: =H85 -> 0 | AL71: =I85 -> 0 | AN71: =IF(SUM(G86:I86)>0,SUM(G86:I86),0) -> 0 | AO71: =IF(SUM(K86)>0,SUM(K86),0) -> 0 | AP71: =G86 -> 0 | AQ71: =H86 -> 0 | AR71: =I86 -> 0 | AT71: =IF(SUM(G87:I87)>0,SUM(G87:I87),0) -> 0 | AU71: =IF(SUM(K87)>0,SUM(K87),0) -> 0 | AV71: =G87 -> 0 | AW71: =H87 -> 0 | AX71: =I87 -> 0 | AZ71: =IF(SUM(G88:I88)>0,SUM(G88:I88),0) -> 0 | BA71: =IF(SUM(K88)>0,SUM(K88),0) -> 0 | BB71: =G88 -> 0 | BC71: =H88 -> 0 | BD71: =I88 -> 0 | BF71: =IF(SUM(G89:I89)>0,SUM(G89:I89),0) -> 0 | BG71: =IF(SUM(K89)>0,SUM(K89),0) -> 0 | BH71: =G89 -> 0 | BI71: =H89 -> 0 | BJ71: =I89 -> 0 | BL71: =IF(SUM(G90:I90)>0,SUM(G90:I90),0) -> 0 | BM71: =IF(SUM(K90)>0,SUM(K90),0) -> 0 | BN71: =G90 -> 0 | BO71: =H90 -> 0 | BP71: =I90 -> 0 | BR71: =IF(SUM(G91:I91)>0,SUM(G91:I91),0) -> 0 | BS71: =IF(SUM(K91)>0,SUM(K91),0) -> 0 | BT71: =G91 -> 0 | BU71: =H91 -> 0 | BV71: =I91 -> 0 | BX71: =IF(SUM(G92:I92)>0,SUM(G92:I92),0) -> 242 | BY71: =IF(SUM(K92)>0,SUM(K92),0) -> 1 | BZ71: =G92 -> 89 | CA71: =H92 -> 86 | CB71: =I92 -> 67 | CD71: =IF(SUM(G93:I93)>0,SUM(G93:I93),0) -> 0 | CE71: =IF(SUM(K93)>0,SUM(K93),0) -> 0 | CF71: =G93 -> 0 | CG71: =H93 -> 0 | CH71: =I93 -> 0 | CJ71: =IF(SUM(G94:I94)>0,SUM(G94:I94),0) -> 0 | CK71: =IF(SUM(K94)>0,SUM(K94),0) -> 0 | CL71: =G94 -> 0 | CM71: =H94 -> 0 | CN71: =I94 -> 0 | CP71: =IF(SUM(G95:I95)>0,SUM(G95:I95),0) -> 0 | CQ71: =IF(SUM(K95)>0,SUM(K95),0) -> 0 | CR71: =G95 -> 0 | CS71: =H95 -> 0 | CT71: =I95 -> 0 | CV71: =IF(SUM(G96:I96)>0,SUM(G96:I96),0) -> 0 | CW71: =IF(SUM(K96)>0,SUM(K96),0) -> 0 | CX71: =G96 -> 0 | CY71: =H96 -> 0 | CZ71: =I96 -> 0 | DB71: =IF(SUM(G97:I97)>0,SUM(G97:I97),0) -> 0 | DC71: =IF(SUM(K97)>0,SUM(K97),0) -> 0 | DD71: =G97 -> 0 | DE71: =H97 -> 0 | DF71: =I97 -> 0 | DH71: =IF(SUM(G98:I98)>0,SUM(G98:I98),0) -> 0 | DI71: =IF(SUM(K98)>0,SUM(K98),0) -> 0 | DJ71: =G98 -> 0 | DK71: =H98 -> 0 | DL71: =I98 -> 0 | DN71: =IF(SUM(G99:I99)>0,SUM(G99:I99),0) -> 0 | DO71: =IF(SUM(K99)>0,SUM(K98),0) -> 0 | DP71: =G99 -> 0 | DQ71: =H99 -> 0 | DR71: =I99 -> 0 | DT71: =IF(SUM(G100:I100)>0,SUM(G100:I100),0) -> 0 | DU71: =IF(SUM(K100)>0,SUM(K100),0) -> 0 | DV71: =G100 -> 0 | DW71: =H100 -> 0 | DX71: =I100 -> 0 | DZ71: =LARGE((DT71,DN71,DH71,DB71,CV71,CP71,CJ71,CD71,BX71,BR71,BL71,BF71,AZ71,AT71,AN71,AH71),1) -> 242 | EA71: =LARGE((AJ71,AP71,AV71,BB71,BH71,BN71,BT71,BZ71,CF71,CL71,CR71,CX71,DD71,DJ71,DP71,DV71),1) -> 89 | EB71: =LARGE((AK71,AQ71,AW71,BC71,BI71,BO71,BU71,CA71,CG71,CM71,CS71,CY71,DE71,DK71,DQ71,DW71),1) -> 86 | EC71: =LARGE((AL71,AR71,AX71,BD71,BJ71,BP71,BV71,CB71,CH71,CN71,CT71,CZ71,DF71,DL71,DR71,DX71),1) -> 67
A72: Gordon Central | B72: 98 | C72: 97 | D72: 86 | E72: 281 | F72: 13 | G72: 96 | H72: 99 | I72: 87 | J72: 282 | K72: 11 | L72: 92 | M72: 99 | N72: 93 | O72: 284 | P72: 11 | Q72: 91 | R72: 98 | S72: 93 | T72: 282 | U72: 14 | AA72: =IF(SUM(E72,J72,O72,T72,Y72,Y92,T92,O92,J92,E92,E112,J112,O112,T112,Y112)>0,(LARGE((E72,J72,O72,T72,Y72,Y92,T92,O92,J92,E92,E112,J112,O112,T112,Y112),1)+LARGE((E72,J72,O72,T72,Y72,Y92,T92,O92,J92,E92,E112,J112,O112,T112,Y112),2)+LARGE((E72,J72,O72,T72,Y72,Y92,T92,O92,J92,E92,E112,J112,O112,T112,Y112),3)+LARGE((E72,J72,O72,T72,Y72,Y92,T92,O92,J92,E92,E112,J112,O112,T112,Y112),4)),"") -> 1129 | AB72: =IF(SUM(BY96)>0,SUM(BY96),"") -> 49 | AH72: =IF(SUM(L85:N85)>0,SUM(L85:N85),0) -> 0 | AI72: =IF(SUM(P85)>0,SUM(P85),0) -> 0 | AJ72: =L85 -> 0 | AK72: =M85 -> 0 | AL72: =N85 -> 0 | AN72: =IF(SUM(L86:N86)>0,SUM(L86:N86),0) -> 0 | AO72: =IF(SUM(P86)>0,SUM(P86),0) -> 0 | AP72: =L86 -> 0 | AQ72: =M86 -> 0 | AR72: =N86 -> 0 | AT72: =IF(SUM(L87:N87)>0,SUM(L87:N87),0) -> 267 | AU72: =IF(SUM(P87)>0,SUM(P87),0) -> 9 | AV72: =L87 -> 93 | AW72: =M87 -> 98 | AX72: =N87 -> 76 | AZ72: =IF(SUM(L88:N88)>0,SUM(L88:N88),0) -> 252 | BA72: =IF(SUM(P88)>0,SUM(P88),0) -> 0 | BB72: =L88 -> 80 | BC72: =M88 -> 92 | BD72: =N88 -> 80 | BF72: =IF(SUM(L89:N89)>0,SUM(L89:N89),0) -> 0 | BG72: =IF(SUM(P89)>0,SUM(P89),0) -> 0 | BH72: =L89 -> 0 | BI72: =M89 -> 0 | BJ72: =N89 -> 0 | BL72: =IF(SUM(L90:N90)>0,SUM(L90:N90),0) -> 0 | BM72: =IF(SUM(P90)>0,SUM(P90),0) -> 0 | BN72: =L90 -> 0 | BO72: =M90 -> 0 | BP72: =N90 -> 0 | BR72: =IF(SUM(L91:N91)>0,SUM(L91:N91),0) -> 0 | BS72: =IF(SUM(P91)>0,SUM(P91),0) -> 0 | BT72: =L91 -> 0 | BU72: =M91 -> 0 | BV72: =N91 -> 0 | BX72: =IF(SUM(L92:N92)>0,SUM(L92:N92),0) -> 0 | BY72: =IF(SUM(P92)>0,SUM(P92),0) -> 0 | BZ72: =L92 -> 0 | CA72: =M92 -> 0 | CB72: =N92 -> 0 | CD72: =IF(SUM(L93:N93)>0,SUM(L93:N93),0) -> 271 | CE72: =IF(SUM(P93)>0,SUM(P93),0) -> 7 | CF72: =L93 -> 95 | CG72: =M93 -> 94 | CH72: =N93 -> 82 | CJ72: =IF(SUM(L94:N94)>0,SUM(L94:N94),0) -> 0 | CK72: =IF(SUM(P94)>0,SUM(P94),0) -> 0 | CL72: =L94 -> 0 | CM72: =M94 -> 0 | CN72: =N94 -> 0 | CP72: =IF(SUM(L95:N95)>0,SUM(L95:N95),0) -> 0 | CQ72: =IF(SUM(P95)>0,SUM(P95),0) -> 0 | CR72: =L95 -> 0 | CS72: =M95 -> 0 | CT72: =N95 -> 0 | CV72: =IF(SUM(L96:N96)>0,SUM(L96:N96),0) -> 0 | CW72: =IF(SUM(P96)>0,SUM(P96),0) -> 0 | CX72: =L96 -> 0 | CY72: =M96 -> 0 | CZ72: =N96 -> 0 | DB72: =IF(SUM(L97:N97)>0,SUM(L97:N97),0) -> 0 | DC72: =IF(SUM(P97)>0,SUM(P97),0) -> 0 | DD72: =L97 -> 0 | DE72: =M97 -> 0 | DF72: =N97 -> 0 | DH72: =IF(SUM(L98:N98)>0,SUM(L98:N98),0) -> 0 | DI72: =IF(SUM(P98)>0,SUM(P98),0) -> 0 | DJ72: =L98 -> 0 | DK72: =M98 -> 0 | DL72: =N98 -> 0 | DN72: =IF(SUM(L99:N99)>0,SUM(L99:N99),0) -> 0 | DO72: =IF(SUM(P99)>0,SUM(P98),0) -> 0 | DP72: =L99 -> 0 | DQ72: =M99 -> 0 | DR72: =N99 -> 0 | DT72: =IF(SUM(L100:N100)>0,SUM(L100:N100),0) -> 0 | DU72: =IF(SUM(P100)>0,SUM(P100),0) -> 0 | DV72: =L100 -> 0 | DW72: =M100 -> 0 | DX72: =N100 -> 0 | DZ72: =LARGE((DT72,DN72,DH72,DB72,CV72,CP72,CJ72,CD72,BX72,BR72,BL72,BF72,AZ72,AT72,AN72,AH72),1) -> 271 | EA72: =LARGE((AJ72,AP72,AV72,BB72,BH72,BN72,BT72,BZ72,CF72,CL72,CR72,CX72,DD72,DJ72,DP72,DV72),1) -> 95 | EB72: =LARGE((AK72,AQ72,AW72,BC72,BI72,BO72,BU72,CA72,CG72,CM72,CS72,CY72,DE72,DK72,DQ72,DW72),1) -> 98 | EC72: =LARGE((AL72,AR72,AX72,BD72,BJ72,BP72,BV72,CB72,CH72,CN72,CT72,CZ72,DF72,DL72,DR72,DX72),1) -> 82
A73: Dalton | B73: 98 | C73: 99 | D73: 89 | E73: 286 | F73: 18 | G73: 97 | H73: 99 | I73: 89 | J73: 285 | K73: 16 | L73: 92 | M73: 98 | N73: 90 | O73: 280 | P73: 11 | AA73: =IF(SUM(E73,J73,O73,T73,Y73,Y93,T93,O93,J93,E93,E113,J113,O113,T113,Y113)>0,(LARGE((E73,J73,O73,T73,Y73,Y93,T93,O93,J93,E93,E113,J113,O113,T113,Y113),1)+LARGE((E73,J73,O73,T73,Y73,Y93,T93,O93,J93,E93,E113,J113,O113,T113,Y113),2)+LARGE((E73,J73,O73,T73,Y73,Y93,T93,O93,J93,E93,E113,J113,O113,T113,Y113),3)+LARGE((E73,J73,O73,T73,Y73,Y93,T93,O93,J93,E93,E113,J113,O113,T113,Y113),4)),"") -> 1134 | AB73: =IF(SUM(CE96)>0,SUM(CE96),"") -> 56 | AH73: =IF(SUM(Q85:S85)>0,SUM(Q85:S85),0) -> 0 | AI73: =IF(SUM(U85)>0,SUM(U85),0) -> 0 | AJ73: =Q85 -> 0 | AK73: =R85 -> 0 | AL73: =S85 -> 0 | AN73: =IF(SUM(Q86:S86)>0,SUM(Q86:S86),0) -> 257 | AO73: =IF(SUM(U86)>0,SUM(U86),0) -> 5 | AP73: =Q86 -> 83 | AQ73: =R86 -> 90 | AR73: =S86 -> 84 | AT73: =IF(SUM(Q87:S87)>0,SUM(Q87:S87),0) -> 0 | AU73: =IF(SUM(U87)>0,SUM(U87),0) -> 0 | AV73: =Q87 -> 0 | AW73: =R87 -> 0 | AX73: =S87 -> 0 | AZ73: =IF(SUM(Q88:S88)>0,SUM(Q88:S88),0) -> 0 | BA73: =IF(SUM(U88)>0,SUM(U88),0) -> 0 | BB73: =Q88 -> 0 | BC73: =R88 -> 0 | BD73: =S88 -> 0 | BF73: =IF(SUM(Q89:S89)>0,SUM(Q89:S89),0) -> 274 | BG73: =IF(SUM(U89)>0,SUM(U89),0) -> 5 | BH73: =Q89 -> 92 | BI73: =R89 -> 95 | BJ73: =S89 -> 87 | BL73: =IF(SUM(Q90:S90)>0,SUM(Q90:S90),0) -> 265 | BM73: =IF(SUM(U90)>0,SUM(U90),0) -> 5 | BN73: =Q90 -> 91 | BO73: =R90 -> 88 | BP73: =S90 -> 86 | BR73: =IF(SUM(Q91:S91)>0,SUM(Q91:S91),0) -> 0 | BS73: =IF(SUM(U91)>0,SUM(U91),0) -> 0 | BT73: =Q91 -> 0 | BU73: =R91 -> 0 | BV73: =S91 -> 0 | BX73: =IF(SUM(Q92:S92)>0,SUM(Q92:S92),0) -> 0 | BY73: =IF(SUM(U92)>0,SUM(U92),0) -> 0 | BZ73: =Q92 -> 0 | CA73: =R92 -> 0 | CB73: =S92 -> 0 | CD73: =IF(SUM(Q93:S93)>0,SUM(Q93:S93),0) -> 283 | CE73: =IF(SUM(U93)>0,SUM(U93),0) -> 11 | CF73: =Q93 -> 96 | CG73: =R93 -> 98 | CH73: =S93 -> 89 | CJ73: =IF(SUM(Q94:S94)>0,SUM(Q94:S94),0) -> 0 | CK73: =IF(SUM(U94)>0,SUM(U94),0) -> 0 | CL73: =Q94 -> 0 | CM73: =R94 -> 0 | CN73: =S94 -> 0 | CP73: =IF(SUM(Q95:S95)>0,SUM(Q95:S95),0) -> 0 | CQ73: =IF(SUM(U95)>0,SUM(U95),0) -> 0 | CR73: =Q95 -> 0 | CS73: =R95 -> 0 | CT73: =S95 -> 0 | CV73: =IF(SUM(Q96:S96)>0,SUM(Q96:S96),0) -> 276 | CW73: =IF(SUM(U96)>0,SUM(U96),0) -> 5 | CX73: =Q96 -> 89 | CY73: =R96 -> 96 | CZ73: =S96 -> 91 | DB73: =IF(SUM(Q97:S97)>0,SUM(Q97:S97),0) -> 0 | DC73: =IF(SUM(U97)>0,SUM(U97),0) -> 0 | DD73: =Q97 -> 0 | DE73: =R97 -> 0 | DF73: =S97 -> 0 | DH73: =IF(SUM(Q98:S98)>0,SUM(Q98:S98),0) -> 0 | DI73: =IF(SUM(U98)>0,SUM(U98),0) -> 0 | DJ73: =Q98 -> 0 | DK73: =R98 -> 0 | DL73: =S98 -> 0 | DN73: =IF(SUM(Q99:S99)>0,SUM(Q99:S99),0) -> 0 | DO73: =IF(SUM(U99)>0,SUM(U98),0) -> 0 | DP73: =Q99 -> 0 | DQ73: =R99 -> 0 | DR73: =S99 -> 0 | DT73: =IF(SUM(Q100:S100)>0,SUM(Q100:S100),0) -> 0 | DU73: =IF(SUM(U100)>0,SUM(U100),0) -> 0 | DV73: =Q100 -> 0 | DW73: =R100 -> 0 | DX73: =S100 -> 0 | DZ73: =LARGE((DT73,DN73,DH73,DB73,CV73,CP73,CJ73,CD73,BX73,BR73,BL73,BF73,AZ73,AT73,AN73,AH73),1) -> 283 | EA73: =LARGE((AJ73,AP73,AV73,BB73,BH73,BN73,BT73,BZ73,CF73,CL73,CR73,CX73,DD73,DJ73,DP73,DV73),1) -> 96 | EB73: =LARGE((AK73,AQ73,AW73,BC73,BI73,BO73,BU73,CA73,CG73,CM73,CS73,CY73,DE73,DK73,DQ73,DW73),1) -> 98 | EC73: =LARGE((AL73,AR73,AX73,BD73,BJ73,BP73,BV73,CB73,CH73,CN73,CT73,CZ73,DF73,DL73,DR73,DX73),1) -> 91
A74: @ Lafayette | B74: 95 | C74: 99 | D74: 90 | E74: 284 | F74: 13 | G74: 95 | H74: 96 | I74: 93 | J74: 284 | K74: 8 | L74: 95 | M74: 99 | N74: 89 | O74: 283 | P74: 14 | Q74: 92 | R74: 93 | S74: 80 | T74: 265 | U74: 3 | AA74: =IF(SUM(E74,J74,O74,T74,Y74,Y94,T94,O94,J94,E94,E114,J114,O114,T114,Y114)>0,(LARGE((E74,J74,O74,T74,Y74,Y94,T94,O94,J94,E94,E114,J114,O114,T114,Y114),1)+LARGE((E74,J74,O74,T74,Y74,Y94,T94,O94,J94,E94,E114,J114,O114,T114,Y114),2)+LARGE((E74,J74,O74,T74,Y74,Y94,T94,O94,J94,E94,E114,J114,O114,T114,Y114),3)+LARGE((E74,J74,O74,T74,Y74,Y94,T94,O94,J94,E94,E114,J114,O114,T114,Y114),4)),"") -> 1116 | AB74: =IF(SUM(CK96)>0,SUM(CK96),"") -> 38 | AH74: =IF(SUM(V85:X85)>0,SUM(V85:X85),0) -> 0 | AI74: =IF(SUM(Z85)>0,SUM(Z85),0) -> 0 | AJ74: =V85 -> 0 | AK74: =W85 -> 0 | AL74: =X85 -> 0 | AN74: =IF(SUM(V86:X86)>0,SUM(V86:X86),0) -> 0 | AO74: =IF(SUM(Z86)>0,SUM(Z86),0) -> 0 | AP74: =V86 -> 0 | AQ74: =W86 -> 0 | AR74: =X86 -> 0 | AT74: =IF(SUM(V87:X87)>0,SUM(V87:X87),0) -> 0 | AU74: =IF(SUM(Z87)>0,SUM(Z87),0) -> 0 | AV74: =V87 -> 0 | AW74: =W87 -> 0 | AX74: =X87 -> 0 | AZ74: =IF(SUM(V88:X88)>0,SUM(V88:X88),0) -> 0 | BA74: =IF(SUM(Z88)>0,SUM(Z88),0) -> 0 | BB74: =V88 -> 0 | BC74: =W88 -> 0 | BD74: =X88 -> 0 | BF74: =IF(SUM(V89:X89)>0,SUM(V89:X89),0) -> 0 | BG74: =IF(SUM(Z89)>0,SUM(Z89),0) -> 0 | BH74: =V89 -> 0 | BI74: =W89 -> 0 | BJ74: =X89 -> 0 | BL74: =IF(SUM(V90:X90)>0,SUM(V90:X90),0) -> 0 | BM74: =IF(SUM(Z90)>0,SUM(Z90),0) -> 0 | BN74: =V90 -> 0 | BO74: =W90 -> 0 | BP74: =X90 -> 0 | BR74: =IF(SUM(V91:X91)>0,SUM(V91:X91),0) -> 0 | BS74: =IF(SUM(Z91)>0,SUM(Z91),0) -> 0 | BT74: =V91 -> 0 | BU74: =W91 -> 0 | BV74: =X91 -> 0 | BX74: =IF(SUM(V92:X92)>0,SUM(V92:X92),0) -> 0 | BY74: =IF(SUM(Z92)>0,SUM(Z92),0) -> 0 | BZ74: =V92 -> 0 | CA74: =W92 -> 0 | CB74: =X92 -> 0 | CD74: =IF(SUM(V93:X93)>0,SUM(V93:X93),0) -> 0 | CE74: =IF(SUM(Z93)>0,SUM(Z93),0) -> 0 | CF74: =V93 -> 0 | CG74: =W93 -> 0 | CH74: =X93 -> 0 | CJ74: =IF(SUM(V94:X94)>0,SUM(V94:X94),0) -> 0 | CK74: =IF(SUM(Z94)>0,SUM(Z94),0) -> 0 | CL74: =V94 -> 0 | CM74: =W94 -> 0 | CN74: =X94 -> 0 | CP74: =IF(SUM(V95:X95)>0,SUM(V95:X95),0) -> 0 | CQ74: =IF(SUM(Z95)>0,SUM(Z95),0) -> 0 | CR74: =V95 -> 0 | CS74: =W95 -> 0 | CT74: =X95 -> 0 | CV74: =IF(SUM(V96:X96)>0,SUM(V96:X96),0) -> 0 | CW74: =IF(SUM(Z96)>0,SUM(Z96),0) -> 0 | CX74: =V96 -> 0 | CY74: =W96 -> 0 | CZ74: =X96 -> 0 | DB74: =IF(SUM(V96:X97)>0,SUM(V97:X97),0) -> 0 | DC74: =IF(SUM(Z97)>0,SUM(Z97),0) -> 0 | DD74: =V97 -> 0 | DE74: =W97 -> 0 | DF74: =X97 -> 0 | DH74: =IF(SUM(V98:X98)>0,SUM(V98:X98),0) -> 0 | DI74: =IF(SUM(Z98)>0,SUM(Z98),0) -> 0 | DJ74: =V98 -> 0 | DK74: =W98 -> 0 | DL74: =X98 -> 0 | DN74: =IF(SUM(V99:X99)>0,SUM(V99:X99),0) -> 0 | DO74: =IF(SUM(Z99)>0,SUM(Z98),0) -> 0 | DP74: =V99 -> 0 | DQ74: =W99 -> 0 | DR74: =X99 -> 0 | DT74: =IF(SUM(V100:X100)>0,SUM(V100:X100),0) -> 0 | DU74: =IF(SUM(Z100)>0,SUM(Z100),0) -> 0 | DV74: =V100 -> 0 | DW74: =W100 -> 0 | DX74: =X100 -> 0 | DZ74: =LARGE((DT74,DN74,DH74,DB74,CV74,CP74,CJ74,CD74,BX74,BR74,BL74,BF74,AZ74,AT74,AN74,AH74),1) -> 0 | EA74: =LARGE((AJ74,AP74,AV74,BB74,BH74,BN74,BT74,BZ74,CF74,CL74,CR74,CX74,DD74,DJ74,DP74,DV74),1) -> 0 | EB74: =LARGE((AK74,AQ74,AW74,BC74,BI74,BO74,BU74,CA74,CG74,CM74,CS74,CY74,DE74,DK74,DQ74,DW74),1) -> 0 | EC74: =LARGE((AL74,AR74,AX74,BD74,BJ74,BP74,BV74,CB74,CH74,CN74,CT74,CZ74,DF74,DL74,DR74,DX74),1) -> 0
A75: Ridgeland | B75: 82 | C75: 93 | D75: 93 | E75: 268 | F75: 6 | G75: 96 | H75: 100 | I75: 85 | J75: 281 | K75: 14 | L75: 95 | M75: 100 | N75: 90 | O75: 285 | P75: 15 | Q75: 90 | R75: 99 | S75: 88 | T75: 277 | U75: 12 | V75: 94 | W75: 98 | X75: 81 | Y75: 273 | Z75: 12 | AA75: =IF(SUM(E75,J75,O75,T75,Y75,Y95,T95,O95,J95,E95,E115,J115,O115,T115,Y115)>0,(LARGE((E75,J75,O75,T75,Y75,Y95,T95,O95,J95,E95,E115,J115,O115,T115,Y115),1)+LARGE((E75,J75,O75,T75,Y75,Y95,T95,O95,J95,E95,E115,J115,O115,T115,Y115),2)+LARGE((E75,J75,O75,T75,Y75,Y95,T95,O95,J95,E95,E115,J115,O115,T115,Y115),3)+LARGE((E75,J75,O75,T75,Y75,Y95,T95,O95,J95,E95,E115,J115,O115,T115,Y115),4)),"") -> 1116 | AB75: =IF(SUM(CQ96)>0,SUM(CQ96),"") -> 53 | AH75: =IF(SUM(B105:D105)>0,SUM(B105:D105),0) -> 0 | AI75: =IF(SUM(F105)>0,SUM(F105),0) -> 0 | AJ75: =B105 -> 0 | AK75: =C105 -> 0 | AL75: =D105 -> 0 | AN75: =IF(SUM(B106:D106)>0,SUM(B106:D106),0) -> 0 | AO75: =IF(SUM(F106)>0,SUM(F106),0) -> 0 | AP75: =B106 -> 0 | AQ75: =C106 -> 0 | AR75: =D106 -> 0 | AT75: =IF(SUM(B107:D107)>0,SUM(B107:D107),0) -> 0 | AU75: =IF(SUM(F107)>0,SUM(F107),0) -> 0 | AV75: =B107 -> 0 | AW75: =C107 -> 0 | AX75: =D107 -> 0 | AZ75: =IF(SUM(B108:D108)>0,SUM(B108:D108),0) -> 0 | BA75: =IF(SUM(F108)>0,SUM(F108),0) -> 0 | BB75: =B108 -> 0 | BC75: =C108 -> 0 | BD75: =D108 -> 0 | BF75: =IF(SUM(B109:D109)>0,SUM(B109:D109),0) -> 0 | BG75: =IF(SUM(F109)>0,SUM(F109),0) -> 0 | BH75: =B109 -> 0 | BI75: =C109 -> 0 | BJ75: =D109 -> 0 | BL75: =IF(SUM(B110:D110)>0,SUM(B110:D110),0) -> 0 | BM75: =IF(SUM(F110)>0,SUM(F110),0) -> 0 | BN75: =B110 -> 0 | BO75: =C110 -> 0 | BP75: =D110 -> 0 | BR75: =IF(SUM(B111:D111)>0,SUM(B111:D111),0) -> 0 | BS75: =IF(SUM(F111)>0,SUM(F111),0) -> 0 | BT75: =B111 -> 0 | BU75: =C111 -> 0 | BV75: =D111 -> 0 | BX75: =IF(SUM(B112:D112)>0,SUM(B112:D112),0) -> 0 | BY75: =IF(SUM(F112)>0,SUM(F112),0) -> 0 | BZ75: =B112 -> 0 | CA75: =C112 -> 0 | CB75: =D112 -> 0 | CD75: =IF(SUM(B113:D113)>0,SUM(B113:D113),0) -> 0 | CE75: =IF(SUM(F113)>0,SUM(F113),0) -> 0 | CF75: =B113 -> 0 | CG75: =C113 -> 0 | CH75: =D113 -> 0 | CJ75: =IF(SUM(B114:D114)>0,SUM(B114:D114),0) -> 0 | CK75: =IF(SUM(F114)>0,SUM(F114),0) -> 0 | CL75: =B114 -> 0 | CM75: =C114 -> 0 | CN75: =D114 -> 0 | CP75: =IF(SUM(B115:D115)>0,SUM(B115:D115),0) -> 0 | CQ75: =IF(SUM(F115)>0,SUM(F115),0) -> 0 | CR75: =B115 -> 0 | CS75: =C115 -> 0 | CT75: =D115 -> 0 | CV75: =IF(SUM(B116:D116)>0,SUM(B116:D116),0) -> 0 | CW75: =IF(SUM(F116)>0,SUM(F116),0) -> 0 | CX75: =B116 -> 0 | CY75: =C116 -> 0 | CZ75: =D116 -> 0 | DB75: =IF(SUM(B117:D117)>0,SUM(B117:D117),0) -> 0 | DC75: =IF(SUM(F117)>0,SUM(F117),0) -> 0 | DD75: =B117 -> 0 | DE75: =C117 -> 0 | DF75: =D117 -> 0 | DH75: =IF(SUM(B118:D118)>0,SUM(B118:D118),0) -> 0 | DI75: =IF(SUM(F118)>0,SUM(F118),0) -> 0 | DJ75: =B118 -> 0 | DK75: =C118 -> 0 | DL75: =D118 -> 0 | DN75: =IF(SUM(B119:D119)>0,SUM(B119:D119),0) -> 0 | DO75: =IF(SUM(F119)>0,SUM(F119),0) -> 0 | DP75: =B119 -> 0 | DQ75: =C119 -> 0 | DR75: =D119 -> 0 | DT75: =IF(SUM(B120:D120)>0,SUM(B120:D120),0) -> 0 | DU75: =IF(SUM(F120)>0,SUM(F120),0) -> 0 | DV75: =B120 -> 0 | DW75: =C120 -> 0 | DX75: =D120 -> 0 | DZ75: =LARGE((DT75,DN75,DH75,DB75,CV75,CP75,CJ75,CD75,BX75,BR75,BL75,BF75,AZ75,AT75,AN75,AH75),1) -> 0 | EA75: =LARGE((AJ75,AP75,AV75,BB75,BH75,BN75,BT75,BZ75,CF75,CL75,CR75,CX75,DD75,DJ75,DP75,DV75),1) -> 0 | EB75: =LARGE((AK75,AQ75,AW75,BC75,BI75,BO75,BU75,CA75,CG75,CM75,CS75,CY75,DE75,DK75,DQ75,DW75),1) -> 0 | EC75: =LARGE((AL75,AR75,AX75,BD75,BJ75,BP75,BV75,CB75,CH75,CN75,CT75,CZ75,DF75,DL75,DR75,DX75),1) -> 0
A76: @ Allatoona | B76: 94 | C76: 99 | D76: 92 | E76: 285 | F76: 15 | G76: 96 | H76: 99 | I76: 90 | J76: 285 | K76: 17 | L76: 93 | M76: 96 | N76: 89 | O76: 278 | P76: 10 | Q76: 88 | R76: 91 | S76: 81 | T76: 260 | U76: 5 | AA76: =IF(SUM(E76,J76,O76,T76,Y76,Y96,T96,O96,J96,E96,E116,J116,O116,T116,Y116)>0,(LARGE((E76,J76,O76,T76,Y76,Y96,T96,O96,J96,E96,E116,J116,O116,T116,Y116),1)+LARGE((E76,J76,O76,T76,Y76,Y96,T96,O96,J96,E96,E116,J116,O116,T116,Y116),2)+LARGE((E76,J76,O76,T76,Y76,Y96,T96,O96,J96,E96,E116,J116,O116,T116,Y116),3)+LARGE((E76,J76,O76,T76,Y76,Y96,T96,O96,J96,E96,E116,J116,O116,T116,Y116),4)),"") -> 1124 | AB76: =IF(SUM(CW96)>0,SUM(CW96),"") -> 47 | AH76: =IF(SUM(G105:I105)>0,SUM(G105:I105),0) -> 0 | AI76: =IF(SUM(K105)>0,SUM(K105),0) -> 0 | AJ76: =G105 -> 0 | AK76: =H105 -> 0 | AL76: =I105 -> 0 | AN76: =IF(SUM(G106:I106)>0,SUM(G106:I106),0) -> 0 | AO76: =IF(SUM(K106)>0,SUM(K106),0) -> 0 | AP76: =G106 -> 0 | AQ76: =H106 -> 0 | AR76: =I106 -> 0 | AT76: =IF(SUM(G107:I107)>0,SUM(G107:I107),0) -> 0 | AU76: =IF(SUM(K107)>0,SUM(K107),0) -> 0 | AV76: =G107 -> 0 | AW76: =H107 -> 0 | AX76: =I107 -> 0 | AZ76: =IF(SUM(G108:I108)>0,SUM(G108:I108),0) -> 0 | BA76: =IF(SUM(K108)>0,SUM(K108),0) -> 0 | BB76: =G108 -> 0 | BC76: =H108 -> 0 | BD76: =I108 -> 0 | BF76: =IF(SUM(G109:I109)>0,SUM(G109:I109),0) -> 0 | BG76: =IF(SUM(K109)>0,SUM(K109),0) -> 0 | BH76: =G109 -> 0 | BI76: =H109 -> 0 | BJ76: =I109 -> 0 | BL76: =IF(SUM(G110:I110)>0,SUM(G110:I110),0) -> 0 | BM76: =IF(SUM(K110)>0,SUM(K110),0) -> 0 | BN76: =G110 -> 0 | BO76: =H110 -> 0 | BP76: =I110 -> 0 | BR76: =IF(SUM(G111:I111)>0,SUM(G111:I111),0) -> 0 | BS76: =IF(SUM(K111)>0,SUM(K111),0) -> 0 | BT76: =G111 -> 0 | BU76: =H111 -> 0 | BV76: =I111 -> 0 | BX76: =IF(SUM(G112:I112)>0,SUM(G112:I112),0) -> 0 | BY76: =IF(SUM(K112)>0,SUM(K112),0) -> 0 | BZ76: =G112 -> 0 | CA76: =H112 -> 0 | CB76: =I112 -> 0 | CD76: =IF(SUM(G113:I113)>0,SUM(G113:I113),0) -> 0 | CE76: =IF(SUM(K113)>0,SUM(K113),0) -> 0 | CF76: =G113 -> 0 | CG76: =H113 -> 0 | CH76: =I113 -> 0 | CJ76: =IF(SUM(G114:I114)>0,SUM(G114:I114),0) -> 0 | CK76: =IF(SUM(K114)>0,SUM(K114),0) -> 0 | CL76: =G114 -> 0 | CM76: =H114 -> 0 | CN76: =I114 -> 0 | CP76: =IF(SUM(G115:I115)>0,SUM(G115:I115),0) -> 0 | CQ76: =IF(SUM(K115)>0,SUM(K115),0) -> 0 | CR76: =G115 -> 0 | CS76: =H115 -> 0 | CT76: =I115 -> 0 | CV76: =IF(SUM(G116:I116)>0,SUM(G116:I116),0) -> 0 | CW76: =IF(SUM(K116)>0,SUM(K116),0) -> 0 | CX76: =G116 -> 0 | CY76: =H116 -> 0 | CZ76: =I116 -> 0 | DB76: =IF(SUM(G117:I117)>0,SUM(G117:I117),0) -> 0 | DC76: =IF(SUM(K117)>0,SUM(K117),0) -> 0 | DD76: =G117 -> 0 | DE76: =H117 -> 0 | DF76: =I117 -> 0 | DH76: =IF(SUM(G118:I118)>0,SUM(G118:I118),0) -> 0 | DI76: =IF(SUM(K118)>0,SUM(K118),0) -> 0 | DJ76: =G118 -> 0 | DK76: =H118 -> 0 | DL76: =I118 -> 0 | DN76: =IF(SUM(G119:I119)>0,SUM(G119:I119),0) -> 0 | DO76: =IF(SUM(K119)>0,SUM(K119),0) -> 0 | DP76: =G119 -> 0 | DQ76: =H119 -> 0 | DR76: =I119 -> 0 | DT76: =IF(SUM(G120:I120)>0,SUM(G120:I120),0) -> 0 | DU76: =IF(SUM(K120)>0,SUM(K120),0) -> 0 | DV76: =G120 -> 0 | DW76: =H120 -> 0 | DX76: =I120 -> 0 | DZ76: =LARGE((DT76,DN76,DH76,DB76,CV76,CP76,CJ76,CD76,BX76,BR76,BL76,BF76,AZ76,AT76,AN76,AH76),1) -> 0 | EA76: =LARGE((AJ76,AP76,AV76,BB76,BH76,BN76,BT76,BZ76,CF76,CL76,CR76,CX76,DD76,DJ76,DP76,DV76),1) -> 0 | EB76: =LARGE((AK76,AQ76,AW76,BC76,BI76,BO76,BU76,CA76,CG76,CM76,CS76,CY76,DE76,DK76,DQ76,DW76),1) -> 0 | EC76: =LARGE((AL76,AR76,AX76,BD76,BJ76,BP76,BV76,CB76,CH76,CN76,CT76,CZ76,DF76,DL76,DR76,DX76),1) -> 0
A77: Etowah | AA77: =IF(SUM(E77,J77,O77,T77,Y77,Y97,T97,O97,J97,E97,E117,J117,O117,T117,Y117)>0,(LARGE((E77,J77,O77,T77,Y77,Y97,T97,O97,J97,E97,E117,J117,O117,T117,Y117),1)+LARGE((E77,J77,O77,T77,Y77,Y97,T97,O97,J97,E97,E117,J117,O117,T117,Y117),2)+LARGE((E77,J77,O77,T77,Y77,Y97,T97,O97,J97,E97,E117,J117,O117,T117,Y117),3)+LARGE((E77,J77,O77,T77,Y77,Y97,T97,O97,J97,E97,E117,J117,O117,T117,Y117),4)),"") ->  | AB77: =IF(SUM(DC96)>0,SUM(DC96),"") ->  | AH77: =IF(SUM(L105:N105)>0,SUM(L105:N105),0) -> 0 | AI77: =IF(SUM(P105)>0,SUM(P105),0) -> 0 | AJ77: =L105 -> 0 | AK77: =M105 -> 0 | AL77: =N105 -> 0 | AN77: =IF(SUM(L106:N106)>0,SUM(L106:N106),0) -> 0 | AO77: =IF(SUM(P106)>0,SUM(P106),0) -> 0 | AP77: =L106 -> 0 | AQ77: =M106 -> 0 | AR77: =N106 -> 0 | AT77: =IF(SUM(L107:N107)>0,SUM(L107:N107),0) -> 0 | AU77: =IF(SUM(P107)>0,SUM(P107),0) -> 0 | AV77: =L107 -> 0 | AW77: =M107 -> 0 | AX77: =N107 -> 0 | AZ77: =IF(SUM(L108:N108)>0,SUM(L108:N108),0) -> 0 | BA77: =IF(SUM(P108)>0,SUM(P108),0) -> 0 | BB77: =L108 -> 0 | BC77: =M108 -> 0 | BD77: =N108 -> 0 | BF77: =IF(SUM(L109:N109)>0,SUM(L109:N109),0) -> 0 | BG77: =IF(SUM(P109)>0,SUM(P109),0) -> 0 | BH77: =L109 -> 0 | BI77: =M109 -> 0 | BJ77: =N109 -> 0 | BL77: =IF(SUM(L110:N110)>0,SUM(L110:N110),0) -> 0 | BM77: =IF(SUM(P110)>0,SUM(P110),0) -> 0 | BN77: =L110 -> 0 | BO77: =M110 -> 0 | BP77: =N110 -> 0 | BR77: =IF(SUM(L111:N111)>0,SUM(L111:N111),0) -> 0 | BS77: =IF(SUM(P111)>0,SUM(P111),0) -> 0 | BT77: =L111 -> 0 | BU77: =M111 -> 0 | BV77: =N111 -> 0 | BX77: =IF(SUM(L112:N112)>0,SUM(L112:N112),0) -> 0 | BY77: =IF(SUM(P112)>0,SUM(P112),0) -> 0 | BZ77: =L112 -> 0 | CA77: =M112 -> 0 | CB77: =N112 -> 0 | CD77: =IF(SUM(L113:N113)>0,SUM(L113:N113),0) -> 0 | CE77: =IF(SUM(P113)>0,SUM(P113),0) -> 0 | CF77: =L113 -> 0 | CG77: =M113 -> 0 | CH77: =N113 -> 0 | CJ77: =IF(SUM(L114:N114)>0,SUM(L114:N114),0) -> 0 | CK77: =IF(SUM(P114)>0,SUM(P114),0) -> 0 | CL77: =L114 -> 0 | CM77: =M114 -> 0 | CN77: =N114 -> 0 | CP77: =IF(SUM(L115:N115)>0,SUM(L115:N115),0) -> 0 | CQ77: =IF(SUM(P115)>0,SUM(P115),0) -> 0 | CR77: =L115 -> 0 | CS77: =M115 -> 0 | CT77: =N115 -> 0 | CV77: =IF(SUM(L116:N116)>0,SUM(L116:N116),0) -> 0 | CW77: =IF(SUM(P116)>0,SUM(P116),0) -> 0 | CX77: =L116 -> 0 | CY77: =M116 -> 0 | CZ77: =N116 -> 0 | DB77: =IF(SUM(L117:N117)>0,SUM(L117:N117),0) -> 0 | DC77: =IF(SUM(P117)>0,SUM(P117),0) -> 0 | DD77: =L117 -> 0 | DE77: =M117 -> 0 | DF77: =N117 -> 0 | DH77: =IF(SUM(L118:N118)>0,SUM(L118:N118),0) -> 0 | DI77: =IF(SUM(P118)>0,SUM(P118),0) -> 0 | DJ77: =L118 -> 0 | DK77: =M118 -> 0 | DL77: =N118 -> 0 | DN77: =IF(SUM(L119:N119)>0,SUM(L119:N119),0) -> 0 | DO77: =IF(SUM(P119)>0,SUM(P119),0) -> 0 | DP77: =L119 -> 0 | DQ77: =M119 -> 0 | DR77: =N119 -> 0 | DT77: =IF(SUM(L120:N120)>0,SUM(L120:N120),0) -> 0 | DU77: =IF(SUM(P120)>0,SUM(P120),0) -> 0 | DV77: =L120 -> 0 | DW77: =M120 -> 0 | DX77: =N120 -> 0 | DZ77: =LARGE((DT77,DN77,DH77,DB77,CV77,CP77,CJ77,CD77,BX77,BR77,BL77,BF77,AZ77,AT77,AN77,AH77),1) -> 0 | EA77: =LARGE((AJ77,AP77,AV77,BB77,BH77,BN77,BT77,BZ77,CF77,CL77,CR77,CX77,DD77,DJ77,DP77,DV77),1) -> 0 | EB77: =LARGE((AK77,AQ77,AW77,BC77,BI77,BO77,BU77,CA77,CG77,CM77,CS77,CY77,DE77,DK77,DQ77,DW77),1) -> 0 | EC77: =LARGE((AL77,AR77,AX77,BD77,BJ77,BP77,BV77,CB77,CH77,CN77,CT77,CZ77,DF77,DL77,DR77,DX77),1) -> 0
A78: Cartersville | AA78: =IF(SUM(E78,J78,O78,T78,Y78,Y98,T98,O98,J98,E98,E118,J118,O118,T118,Y118)>0,(LARGE((E78,J78,O78,T78,Y78,Y98,T98,O98,J98,E98,E118,J118,O118,T118,Y118),1)+LARGE((E78,J78,O78,T78,Y78,Y98,T98,O98,J98,E98,E118,J118,O118,T118,Y118),2)+LARGE((E78,J78,O78,T78,Y78,Y98,T98,O98,J98,E98,E118,J118,O118,T118,Y118),3)+LARGE((E78,J78,O78,T78,Y78,Y98,T98,O98,J98,E98,E118,J118,O118,T118,Y118),4)),"") ->  | AB78: =IF(SUM(DI96)>0,SUM(DI96),"") ->  | AH78: =IF(SUM(Q105:S105)>0,SUM(Q105:S105),0) -> 0 | AI78: =IF(SUM(U105)>0,SUM(U105),0) -> 0 | AJ78: =Q105 -> 0 | AK78: =R105 -> 0 | AL78: =S105 -> 0 | AN78: =IF(SUM(Q106:S106)>0,SUM(Q106:S106),0) -> 0 | AO78: =IF(SUM(U106)>0,SUM(U106),0) -> 0 | AP78: =Q106 -> 0 | AQ78: =R106 -> 0 | AR78: =S106 -> 0 | AT78: =IF(SUM(Q107:S107)>0,SUM(Q107:S107),0) -> 0 | AU78: =IF(SUM(U107)>0,SUM(U107),0) -> 0 | AV78: =Q107 -> 0 | AW78: =R107 -> 0 | AX78: =S107 -> 0 | AZ78: =IF(SUM(Q108:S108)>0,SUM(Q108:S108),0) -> 0 | BA78: =IF(SUM(U108)>0,SUM(U108),0) -> 0 | BB78: =Q108 -> 0 | BC78: =R108 -> 0 | BD78: =S108 -> 0 | BF78: =IF(SUM(Q109:S109)>0,SUM(Q109:S109),0) -> 0 | BG78: =IF(SUM(U109)>0,SUM(U109),0) -> 0 | BH78: =Q109 -> 0 | BI78: =R109 -> 0 | BJ78: =S109 -> 0 | BL78: =IF(SUM(Q110:S110)>0,SUM(Q110:S110),0) -> 0 | BM78: =IF(SUM(U110)>0,SUM(U110),0) -> 0 | BN78: =Q110 -> 0 | BO78: =R110 -> 0 | BP78: =S110 -> 0 | BR78: =IF(SUM(Q111:S111)>0,SUM(Q111:S111),0) -> 0 | BS78: =IF(SUM(U111)>0,SUM(U111),0) -> 0 | BT78: =Q111 -> 0 | BU78: =R111 -> 0 | BV78: =S111 -> 0 | BX78: =IF(SUM(Q112:S112)>0,SUM(Q112:S112),0) -> 0 | BY78: =IF(SUM(U112)>0,SUM(U112),0) -> 0 | BZ78: =Q112 -> 0 | CA78: =R112 -> 0 | CB78: =S112 -> 0 | CD78: =IF(SUM(Q113:S113)>0,SUM(Q113:S113),0) -> 0 | CE78: =IF(SUM(U113)>0,SUM(U113),0) -> 0 | CF78: =Q113 -> 0 | CG78: =R113 -> 0 | CH78: =S113 -> 0 | CJ78: =IF(SUM(Q114:S114)>0,SUM(Q114:S114),0) -> 0 | CK78: =IF(SUM(U114)>0,SUM(U114),0) -> 0 | CL78: =Q114 -> 0 | CM78: =R114 -> 0 | CN78: =S114 -> 0 | CP78: =IF(SUM(Q115:S115)>0,SUM(Q115:S115),0) -> 0 | CQ78: =IF(SUM(U115)>0,SUM(U115),0) -> 0 | CR78: =Q115 -> 0 | CS78: =R115 -> 0 | CT78: =S115 -> 0 | CV78: =IF(SUM(Q115:S116)>0,SUM(Q116:S116),0) -> 0 | CW78: =IF(SUM(U116)>0,SUM(U116),0) -> 0 | CX78: =Q116 -> 0 | CY78: =R116 -> 0 | CZ78: =S116 -> 0 | DB78: =IF(SUM(Q117:S117)>0,SUM(Q117:S117),0) -> 0 | DC78: =IF(SUM(U117)>0,SUM(U117),0) -> 0 | DD78: =Q117 -> 0 | DE78: =R117 -> 0 | DF78: =S117 -> 0 | DH78: =IF(SUM(Q118:S118)>0,SUM(Q118:S118),0) -> 0 | DI78: =IF(SUM(U118)>0,SUM(U118),0) -> 0 | DJ78: =Q118 -> 0 | DK78: =R118 -> 0 | DL78: =S118 -> 0 | DN78: =IF(SUM(Q119:S119)>0,SUM(Q119:S119),0) -> 0 | DO78: =IF(SUM(U119)>0,SUM(U119),0) -> 0 | DP78: =Q119 -> 0 | DQ78: =R119 -> 0 | DR78: =S119 -> 0 | DT78: =IF(SUM(Q120:S120)>0,SUM(Q120:S120),0) -> 0 | DU78: =IF(SUM(U120)>0,SUM(U120),0) -> 0 | DV78: =Q120 -> 0 | DW78: =R120 -> 0 | DX78: =S120 -> 0 | DZ78: =LARGE((DT78,DN78,DH78,DB78,CV78,CP78,CJ78,CD78,BX78,BR78,BL78,BF78,AZ78,AT78,AN78,AH78),1) -> 0 | EA78: =LARGE((AJ78,AP78,AV78,BB78,BH78,BN78,BT78,BZ78,CF78,CL78,CR78,CX78,DD78,DJ78,DP78,DV78),1) -> 0 | EB78: =LARGE((AK78,AQ78,AW78,BC78,BI78,BO78,BU78,CA78,CG78,CM78,CS78,CY78,DE78,DK78,DQ78,DW78),1) -> 0 | EC78: =LARGE((AL78,AR78,AX78,BD78,BJ78,BP78,BV78,CB78,CH78,CN78,CT78,CZ78,DF78,DL78,DR78,DX78),1) -> 0
A79: Area Sectional/Playoff | AA79: =IF(SUM(E79,J79,O79,T79,Y79,Y99,T99,O99,J99,E99,E119,J119,O119,T119,Y119)>0,(LARGE((E79,J79,O79,T79,Y79,Y99,T99,O99,J99,E99,E119,J119,O119,T119,Y119),1)+LARGE((E79,J79,O79,T79,Y79,Y99,T99,O99,J99,E99,E119,J119,O119,T119,Y119),2)+LARGE((E79,J79,O79,T79,Y79,Y99,T99,O99,J99,E99,E119,J119,O119,T119,Y119),3)+LARGE((E79,J79,O79,T79,Y79,Y99,T99,O99,J99,E99,E119,J119,O119,T119,Y119),4)),"") ->  | AB79: =IF(SUM(DO96)>0,SUM(DO96),"") ->  | AH79: =IF(SUM(V105:X105)>0,SUM(V105:X105),0) -> 0 | AI79: =IF(SUM(Z105)>0,SUM(Z105),0) -> 0 | AJ79: =V105 -> 0 | AK79: =W105 -> 0 | AL79: =X105 -> 0 | AN79: =IF(SUM(V106:X106)>0,SUM(V106:X106),0) -> 0 | AO79: =IF(SUM(Z106)>0,SUM(Z106),0) -> 0 | AP79: =V106 -> 0 | AQ79: =W106 -> 0 | AR79: =X106 -> 0 | AT79: =IF(SUM(V107:X107)>0,SUM(V107:X107),0) -> 0 | AU79: =IF(SUM(Z107)>0,SUM(Z107),0) -> 0 | AV79: =V107 -> 0 | AW79: =W107 -> 0 | AX79: =X107 -> 0 | AZ79: =IF(SUM(V108:X108)>0,SUM(V108:X108),0) -> 0 | BA79: =IF(SUM(Z108)>0,SUM(Z108),0) -> 0 | BB79: =V108 -> 0 | BC79: =W108 -> 0 | BD79: =X108 -> 0 | BF79: =IF(SUM(V109:X109)>0,SUM(V109:X109),0) -> 0 | BG79: =IF(SUM(Z109)>0,SUM(Z109),0) -> 0 | BH79: =V109 -> 0 | BI79: =W109 -> 0 | BJ79: =X109 -> 0 | BL79: =IF(SUM(V110:X110)>0,SUM(V110:X110),0) -> 0 | BM79: =IF(SUM(Z110)>0,SUM(Z110),0) -> 0 | BN79: =V110 -> 0 | BO79: =W110 -> 0 | BP79: =X110 -> 0 | BR79: =IF(SUM(V111:X111)>0,SUM(V111:X111),0) -> 0 | BS79: =IF(SUM(Z111)>0,SUM(Z111),0) -> 0 | BT79: =V111 -> 0 | BU79: =W111 -> 0 | BV79: =X111 -> 0 | BX79: =IF(SUM(V112:X112)>0,SUM(V112:X112),0) -> 0 | BY79: =IF(SUM(Z112)>0,SUM(Z112),0) -> 0 | BZ79: =V112 -> 0 | CA79: =W112 -> 0 | CB79: =X112 -> 0 | CD79: =IF(SUM(V113:X113)>0,SUM(V113:X113),0) -> 0 | CE79: =IF(SUM(Z113)>0,SUM(Z113),0) -> 0 | CF79: =V113 -> 0 | CG79: =W113 -> 0 | CH79: =X113 -> 0 | CJ79: =IF(SUM(V114:X114)>0,SUM(V114:X114),0) -> 0 | CK79: =IF(SUM(Z114)>0,SUM(Z114),0) -> 0 | CL79: =V114 -> 0 | CM79: =W114 -> 0 | CN79: =X114 -> 0 | CP79: =IF(SUM(V115:X115)>0,SUM(V115:X115),0) -> 0 | CQ79: =IF(SUM(Z115)>0,SUM(Z115),0) -> 0 | CR79: =V115 -> 0 | CS79: =W115 -> 0 | CT79: =X115 -> 0 | CV79: =IF(SUM(V116:X116)>0,SUM(V116:X116),0) -> 0 | CW79: =IF(SUM(Z116)>0,SUM(Z116),0) -> 0 | CX79: =V116 -> 0 | CY79: =W116 -> 0 | CZ79: =X116 -> 0 | DB79: =IF(SUM(V117:X117)>0,SUM(V117:X117),0) -> 0 | DC79: =IF(SUM(Z117)>0,SUM(Z117),0) -> 0 | DD79: =V117 -> 0 | DE79: =W117 -> 0 | DF79: =X117 -> 0 | DH79: =IF(SUM(V118:X118)>0,SUM(V118:X118),0) -> 0 | DI79: =IF(SUM(Z118)>0,SUM(Z118),0) -> 0 | DJ79: =V118 -> 0 | DK79: =W118 -> 0 | DL79: =X118 -> 0 | DN79: =IF(SUM(V119:X119)>0,SUM(V119:X119),0) -> 0 | DO79: =IF(SUM(Z119)>0,SUM(Z119),0) -> 0 | DP79: =V119 -> 0 | DQ79: =W119 -> 0 | DR79: =X119 -> 0 | DT79: =IF(SUM(V120:X120)>0,SUM(V120:X120),0) -> 0 | DU79: =IF(SUM(Z120)>0,SUM(Z120),0) -> 0 | DV79: =V120 -> 0 | DW79: =W120 -> 0 | DX79: =X120 -> 0 | DZ79: =LARGE((DT79,DN79,DH79,DB79,CV79,CP79,CJ79,CD79,BX79,BR79,BL79,BF79,AZ79,AT79,AN79,AH79),1) -> 0 | EA79: =LARGE((AJ79,AP79,AV79,BB79,BH79,BN79,BT79,BZ79,CF79,CL79,CR79,CX79,DD79,DJ79,DP79,DV79),1) -> 0 | EB79: =LARGE((AK79,AQ79,AW79,BC79,BI79,BO79,BU79,CA79,CG79,CM79,CS79,CY79,DE79,DK79,DQ79,DW79),1) -> 0 | EC79: =LARGE((AL79,AR79,AX79,BD79,BJ79,BP79,BV79,CB79,CH79,CN79,CT79,CZ79,DF79,DL79,DR79,DX79),1) -> 0
A80: Area Championship | AA80: =IF(SUM(E80,J80,O80,T80,Y80,Y100,T100,O100,J100,E100,E120,J120,O120,T120,Y120)>0,(LARGE((E80,J80,O80,T80,Y80,Y100,T100,O100,J100,E100,E120,J120,O120,T120,Y120),1)+LARGE((E80,J80,O80,T80,Y80,Y100,T100,O100,J100,E100,E120,J120,O120,T120,Y120),2)+LARGE((E80,J80,O80,T80,Y80,Y100,T100,O100,J100,E100,E120,J120,O120,T120,Y120),3)+LARGE((E80,J80,O80,T80,Y80,Y100,T100,O100,J100,E100,E120,J120,O120,T120,Y120),4)),"") ->  | AB80: =IF(SUM(DU96)>0,SUM(DU96),"") ->  | AH80: =SUM(AH65:AH79) -> 1314 | AI80: =SUM(AI65:AI79) -> 36 | AJ80: =SUM(AJ65:AJ79) -> 442 | AK80: =SUM(AK65:AK79) -> 456 | AL80: =SUM(AL65:AL79) -> 416 | AN80: =SUM(AN65:AN79) -> 1314 | AO80: =SUM(AO65:AO79) -> 33 | AP80: =SUM(AP65:AP79) -> 438 | AQ80: =SUM(AQ65:AQ79) -> 460 | AR80: =SUM(AR65:AR79) -> 416 | AT80: =SUM(AT65:AT79) -> 1385 | AU80: =SUM(AU65:AU79) -> 56 | AV80: =SUM(AV65:AV79) -> 464 | AW80: =SUM(AW65:AW79) -> 485 | AX80: =SUM(AX65:AX79) -> 436 | AZ80: =SUM(AZ65:AZ79) -> 1609 | BA80: =SUM(BA65:BA79) -> 0 | BB80: =SUM(BB65:BB79) -> 531 | BC80: =SUM(BC65:BC79) -> 571 | BD80: =SUM(BD65:BD79) -> 507 | BF80: =SUM(BF65:BF79) -> 1387 | BG80: =SUM(BG65:BG79) -> 44 | BH80: =SUM(BH65:BH79) -> 464 | BI80: =SUM(BI65:BI79) -> 474 | BJ80: =SUM(BJ65:BJ79) -> 449 | BL80: =SUM(BL65:BL79) -> 1375 | BM80: =SUM(BM65:BM79) -> 42 | BN80: =SUM(BN65:BN79) -> 464 | BO80: =SUM(BO65:BO79) -> 465 | BP80: =SUM(BP65:BP79) -> 446 | BR80: =SUM(BR65:BR79) -> 0 | BS80: =SUM(BS65:BS79) -> 0 | BT80: =SUM(BT65:BT79) -> 0 | BU80: =SUM(BU65:BU79) -> 0 | BV80: =SUM(BV65:BV79) -> 0 | BX80: =SUM(BX65:BX79) -> 1371 | BY80: =SUM(BY65:BY79) -> 50 | BZ80: =SUM(BZ65:BZ79) -> 466 | CA80: =SUM(CA65:CA79) -> 479 | CB80: =SUM(CB65:CB79) -> 426 | CD80: =SUM(CD65:CD79) -> 1675 | CE80: =SUM(CE65:CE79) -> 69 | CF80: =SUM(CF65:CF79) -> 572 | CG80: =SUM(CG65:CG79) -> 581 | CH80: =SUM(CH65:CH79) -> 522 | CJ80: =SUM(CJ65:CJ79) -> 1116 | CK80: =SUM(CK65:CK79) -> 38 | CL80: =SUM(CL65:CL79) -> 377 | CM80: =SUM(CM65:CM79) -> 387 | CN80: =SUM(CN65:CN79) -> 352 | CP80: =SUM(CP65:CP79) -> 1384 | CQ80: =SUM(CQ65:CQ79) -> 59 | CR80: =SUM(CR65:CR79) -> 457 | CS80: =SUM(CS65:CS79) -> 490 | CT80: =SUM(CT65:CT79) -> 437 | CV80: =SUM(CV65:CV79) -> 1384 | CW80: =SUM(CW65:CW79) -> 52 | CX80: =SUM(CX65:CX79) -> 460 | CY80: =SUM(CY65:CY79) -> 481 | CZ80: =SUM(CZ65:CZ79) -> 443 | DB80: =SUM(DB65:DB79) -> 0 | DC80: =SUM(DC65:DC79) -> 0 | DD80: =SUM(DD65:DD79) -> 0 | DE80: =SUM(DE65:DE79) -> 0 | DF80: =SUM(DF65:DF79) -> 0 | DH80: =SUM(DH65:DH79) -> 0 | DI80: =SUM(DI65:DI79) -> 0 | DJ80: =SUM(DJ65:DJ79) -> 0 | DK80: =SUM(DK65:DK79) -> 0 | DL80: =SUM(DL65:DL79) -> 0 | DN80: =SUM(DN65:DN79) -> 0 | DO80: =SUM(DO65:DO79) -> 0 | DP80: =SUM(DP65:DP79) -> 0 | DQ80: =SUM(DQ65:DQ79) -> 0 | DR80: =SUM(DR65:DR79) -> 0 | DT80: =SUM(DT65:DT79) -> 0 | DU80: =SUM(DU65:DU79) -> 0 | DV80: =SUM(DV65:DV79) -> 0 | DW80: =SUM(DW65:DW79) -> 0 | DX80: =SUM(DX65:DX79) -> 0
A81: Average | B81: =IF(SUM(B65:B80)=0,0,AVERAGE(B65:B80)) -> 94 | C81: =IF(SUM(C65:C80)=0,0,AVERAGE(C65:C80)) -> 96.09090909 | D81: =IF(SUM(D65:D80)=0,0,AVERAGE(D65:D80)) -> 89.36363636 | E81: =IF(SUM(E65:E80)=0,0,AVERAGE(E65:E80)) -> 279.4545455 | G81: =IF(SUM(G65:G80)=0,0,AVERAGE(G65:G80)) -> 95.09090909 | H81: =IF(SUM(H65:H80)=0,0,AVERAGE(H65:H80)) -> 97.81818182 | I81: =IF(SUM(I65:I80)=0,0,AVERAGE(I65:I80)) -> 88.63636364 | J81: =IF(SUM(J65:J80)=0,0,AVERAGE(J65:J80)) -> 281.5454545 | L81: =IF(SUM(L65:L80)=0,0,AVERAGE(L65:L80)) -> 92 | M81: =IF(SUM(M65:M80)=0,0,AVERAGE(M65:M80)) -> 95.90909091 | N81: =IF(SUM(N65:N80)=0,0,AVERAGE(N65:N80)) -> 89.45454545 | O81: =IF(SUM(O65:O80)=0,0,AVERAGE(O65:O80)) -> 277.3636364 | Q81: =IF(SUM(Q65:Q80)=0,0,AVERAGE(Q65:Q80)) -> 88.4 | R81: =IF(SUM(R65:R80)=0,0,AVERAGE(R65:R80)) -> 93.6 | S81: =IF(SUM(S65:S80)=0,0,AVERAGE(S65:S80)) -> 85 | T81: =IF(SUM(T65:T80)=0,0,AVERAGE(T65:T80)) -> 267 | V81: =IF(SUM(V65:V80)=0,0,AVERAGE(V65:V80)) -> 85.66666667 | W81: =IF(SUM(W65:W80)=0,0,AVERAGE(W65:W80)) -> 91.66666667 | X81: =IF(SUM(X65:X80)=0,0,AVERAGE(X65:X80)) -> 77.66666667 | Y81: =IF(SUM(Y65:Y80)=0,0,AVERAGE(Y65:Y80)) -> 255 | AA81: =IF(SUM(AA65:AA80)=0,0,AVERAGE(AA65:AA80)) -> 1110.181818 | AB81: =IF(SUM(AB65:AB80)=0,0,AVERAGE(AB65:AB80)) -> 43 | AK81: =TEXT(AH65, "000")&TEXT(AI65, "-00") & TEXT(AL65, "-000") & TEXT(AK65, "-000") & TEXT(AJ65, "-000") -> 278-13-089-097-092 | AL81: =COUNTIF(AK81:AK95, ">=" & AK81) -> 1 | AM81: =RANK(AL81,AL81:AL95,1)+COUNTIF(AK81:AK81,AK81)-1 -> 1 | AQ81: =TEXT(AN65, "000") & TEXT(AO65, "-00") & TEXT(AR65, "-000") & TEXT(AQ65, "-000") & TEXT(AP65, "-000") -> 274-14-080-097-097 | AR81: =COUNTIF(AQ81:AQ95, ">=" & AQ81) -> 2 | AS81: =RANK(AR81,AR81:AR95,1)+COUNTIF(AQ81:AR81,AR81)-1 -> 2 | AW81: =TEXT(AT65, "000") & TEXT(AU65, "-00") & TEXT(AX65, "-000") & TEXT(AW65, "-000") & TEXT(AV65, "-000") -> 283-13-088-098-097 | AX81: =COUNTIF(AW81:AW95, ">=" & AW81) -> 1 | AY81: =RANK(AX81,AX81:AX95,1)+COUNTIF(AW81:AX81,AX81)-1 -> 1 | BC81: =TEXT(AZ65, "000") & TEXT(BA65, "-00") & TEXT(BD65, "-000") & TEXT(BC65, "-000") & TEXT(BB65, "-000") -> 282-00-089-097-096 | BD81: =COUNTIF(BC81:BC95, ">=" & BC81) -> 1 | BE81: =RANK(BD81,BD81:BD95,1)+COUNTIF(BC81:BC81,BC81)-1 -> 1 | BI81: =TEXT(BF65, "000") & TEXT(BG65, "-00") & TEXT(BJ65, "-000") & TEXT(BI65, "-000") & TEXT(BH65, "-000") -> 278-08-090-094-094 | BJ81: =COUNTIF(BI81:BI95, ">=" & BI81) -> 3 | BK81: =RANK(BJ81,BJ81:BJ95,1)+COUNTIF(BI81:BI81,BI81)-1 -> 3 | BO81: =TEXT(BL65, "000") & TEXT(BM65, "-00") & TEXT(BP65, "-000") & TEXT(BO65, "-000") & TEXT(BN65, "-000") -> 275-08-097-087-091 | BP81: =COUNTIF(BO81:BO95, ">=" & BO81) -> 3 | BQ81: =RANK(BP81,BP81:BP95,1)+COUNTIF(BO81:BO81,BO81)-1 -> 3 | BU81: =TEXT(BR65, "000") & TEXT(BS65, "-00") & TEXT(BV65, "-000") & TEXT(BU65, "-000") & TEXT(BT65, "-000") -> 000-00-000-000-000 | BV81: =COUNTIF(BU81:BU95, ">=" & BU81) -> 15 | BW81: =RANK(BV81,BV81:BV95,1)+COUNTIF(BU81:BU81,BU81)-1 -> 1 | CA81: =TEXT(BX65, "000") & TEXT(BY65, "-00") & TEXT(CB65, "-000") & TEXT(CA65, "-000") & TEXT(BZ65, "-000") -> 281-13-086-097-098 | CB81: =COUNTIF(CA81:CA95, ">=" & CA81) -> 4 | CC81: =RANK(CB81,CB81:CB95,1)+COUNTIF(CA81:CA81,CA81)-1 -> 4 | CG81: =TEXT(CD65, "000") & TEXT(CE65, "-00") & TEXT(CH65, "-000") & TEXT(CG65, "-000") & TEXT(CF65, "-000") -> 286-18-089-099-098 | CH81: =COUNTIF(CG81:CG95, ">=" & CG81) -> 1 | CI81: =RANK(CH81,CH81:CH95,1)+COUNTIF(CG81:CG81,CG81)-1 -> 1 | CM81: =TEXT(CJ65, "000") & TEXT(CK65, "-00") & TEXT(CN65, "-000") & TEXT(CM65, "-000") & TEXT(CL65, "-000") -> 284-13-090-099-095 | CN81: =COUNTIF(CM81:CM95, ">=" & CM81) -> 1 | CO81: =RANK(CN81,CN81:CN95,1)+COUNTIF(CM81:CM81,CM81)-1 -> 1 | CS81: =TEXT(CP65, "000") & TEXT(CQ65, "-00") & TEXT(CT65, "-000") & TEXT(CS65, "-000") & TEXT(CR65, "-000") -> 268-06-093-093-082 | CT81: =COUNTIF(CS81:CS95, ">=" & CS81) -> 5 | CU81: =RANK(CT81,CT81:CT95,1)+COUNTIF(CS81:CS81,CS81)-1 -> 5 | CY81: =TEXT(CV65, "000") & TEXT(CW65, "-00") & TEXT(CZ65, "-000") & TEXT(CY65, "-000") & TEXT(CX65, "-000") -> 285-15-092-099-094 | CZ81: =COUNTIF(CY81:CY95, ">=" & CY81) -> 2 | DA81: =RANK(CZ81,CZ81:CZ95,1)+COUNTIF(CY81:CY81,CY81)-1 -> 2 | DE81: =TEXT(DB65, "000") & TEXT(DC65, "-00") & TEXT(DF65, "-000") & TEXT(DE65, "-000") & TEXT(DD65, "-000") -> 000-00-000-000-000 | DF81: =COUNTIF(DE81:DE95, ">=" & DE81) -> 15 | DG81: =RANK(DF81,DF81:DF95,1)+COUNTIF(DE81:DE81,DE81)-1 -> 1 | DK81: =TEXT(DH65, "000") & TEXT(DI65, "-00") & TEXT(DL65, "-000") & TEXT(DK65, "-000") & TEXT(DJ65, "-000") -> 000-00-000-000-000 | DL81: =COUNTIF(DK81:DK95, ">=" & DK81) -> 15 | DM81: =RANK(DL81,DL81:DL95,1)+COUNTIF(DK81:DK81,DK81)-1 -> 1 | DQ81: =TEXT(DN65, "000") & TEXT(DO65, "-00") & TEXT(DR65, "-000") & TEXT(DQ65, "-000") & TEXT(DP65, "-000") -> 000-00-000-000-000 | DR81: =COUNTIF(DQ81:DQ95, ">=" & DQ81) -> 15 | DS81: =RANK(DR81,DR81:DR95,1)+COUNTIF(DQ81:DQ81,DQ81)-1 -> 1 | DW81: =TEXT(DT65, "000") & TEXT(DU65, "-00") & TEXT(DX65, "-000") & TEXT(DW65, "-000") & TEXT(DV65, "-000") -> 000-00-000-000-000 | DX81: =COUNTIF(DW81:DW95, ">=" & DW81) -> 15 | DY81: =RANK(DX81,DX81:DX95,1)+COUNTIF(DW81:DW81,DW81)-1 -> 1
A82: CK | AC82: =A82 -> CK | AK82: =TEXT(AH66, "000")&TEXT(AI66, "-00") & TEXT(AL66, "-000") & TEXT(AK66, "-000") & TEXT(AJ66, "-000") -> 274-09-085-098-091 | AL82: =COUNTIF(AK81:AK95, ">=" & AK82) -> 2 | AM82: =RANK(AL82,AL81:AL95,1)+COUNTIF(AK81:AK82,AK82)-1 -> 2 | AQ82: =TEXT(AN66, "000") & TEXT(AO66, "-00") & TEXT(AR66, "-000") & TEXT(AQ66, "-000") & TEXT(AP66, "-000") -> 279-09-090-096-093 | AR82: =COUNTIF(AQ81:AQ95, ">=" & AQ82) -> 1 | AS82: =RANK(AR82,AR81:AR95,1)+COUNTIF(AQ81:AR82,AR82)-1 -> 1 | AW82: =TEXT(AT66, "000") & TEXT(AU66, "-00") & TEXT(AX66, "-000") & TEXT(AW66, "-000") & TEXT(AV66, "-000") -> 281-12-090-097-094 | AX82: =COUNTIF(AW81:AW95, ">=" & AW82) -> 3 | AY82: =RANK(AX82,AX81:AX95,1)+COUNTIF(AW81:AX82,AX82)-1 -> 3 | BC82: =TEXT(AZ66, "000") & TEXT(BA66, "-00") & TEXT(BD66, "-000") & TEXT(BC66, "-000") & TEXT(BB66, "-000") -> 281-00-087-097-097 | BD82: =COUNTIF(BC81:BC95, ">=" & BC82) -> 2 | BE82: =RANK(BD82,BD81:BD95,1)+COUNTIF(BC81:BC82,BC82)-1 -> 2 | BI82: =TEXT(BF66, "000") & TEXT(BG66, "-00") & TEXT(BJ66, "-000") & TEXT(BI66, "-000") & TEXT(BH66, "-000") -> 284-12-093-096-095 | BJ82: =COUNTIF(BI81:BI95, ">=" & BI82) -> 1 | BK82: =RANK(BJ82,BJ81:BJ95,1)+COUNTIF(BI81:BI82,BI82)-1 -> 1 | BO82: =TEXT(BL66, "000") & TEXT(BM66, "-00") & TEXT(BP66, "-000") & TEXT(BO66, "-000") & TEXT(BN66, "-000") -> 281-13-086-099-096 | BP82: =COUNTIF(BO81:BO95, ">=" & BO82) -> 2 | BQ82: =RANK(BP82,BP81:BP95,1)+COUNTIF(BO81:BO82,BO82)-1 -> 2 | BU82: =TEXT(BR66, "000") & TEXT(BS66, "-00") & TEXT(BV66, "-000") & TEXT(BU66, "-000") & TEXT(BT66, "-000") -> 000-00-000-000-000 | BV82: =COUNTIF(BU81:BU95, ">=" & BU82) -> 15 | BW82: =RANK(BV82,BV81:BV95,1)+COUNTIF(BU81:BU82,BU82)-1 -> 2 | CA82: =TEXT(BX66, "000") & TEXT(BY66, "-00") & TEXT(CB66, "-000") & TEXT(CA66, "-000") & TEXT(BZ66, "-000") -> 282-11-087-099-096 | CB82: =COUNTIF(CA81:CA95, ">=" & CA82) -> 3 | CC82: =RANK(CB82,CB81:CB95,1)+COUNTIF(CA81:CA82,CA82)-1 -> 3 | CG82: =TEXT(CD66, "000") & TEXT(CE66, "-00") & TEXT(CH66, "-000") & TEXT(CG66, "-000") & TEXT(CF66, "-000") -> 285-16-089-099-097 | CH82: =COUNTIF(CG81:CG95, ">=" & CG82) -> 2 | CI82: =RANK(CH82,CH81:CH95,1)+COUNTIF(CG81:CG82,CG82)-1 -> 2 | CM82: =TEXT(CJ66, "000") & TEXT(CK66, "-00") & TEXT(CN66, "-000") & TEXT(CM66, "-000") & TEXT(CL66, "-000") -> 284-08-093-096-095 | CN82: =COUNTIF(CM81:CM95, ">=" & CM82) -> 2 | CO82: =RANK(CN82,CN81:CN95,1)+COUNTIF(CM81:CM82,CM82)-1 -> 2 | CS82: =TEXT(CP66, "000") & TEXT(CQ66, "-00") & TEXT(CT66, "-000") & TEXT(CS66, "-000") & TEXT(CR66, "-000") -> 281-14-085-100-096 | CT82: =COUNTIF(CS81:CS95, ">=" & CS82) -> 2 | CU82: =RANK(CT82,CT81:CT95,1)+COUNTIF(CS81:CS82,CS82)-1 -> 2 | CY82: =TEXT(CV66, "000") & TEXT(CW66, "-00") & TEXT(CZ66, "-000") & TEXT(CY66, "-000") & TEXT(CX66, "-000") -> 285-17-090-099-096 | CZ82: =COUNTIF(CY81:CY95, ">=" & CY82) -> 1 | DA82: =RANK(CZ82,CZ81:CZ95,1)+COUNTIF(CY81:CY82,CY82)-1 -> 1 | DE82: =TEXT(DB66, "000") & TEXT(DC66, "-00") & TEXT(DF66, "-000") & TEXT(DE66, "-000") & TEXT(DD66, "-000") -> 000-00-000-000-000 | DF82: =COUNTIF(DE81:DE95, ">=" & DE82) -> 15 | DG82: =RANK(DF82,DF81:DF95,1)+COUNTIF(DE81:DE82,DE82)-1 -> 2 | DK82: =TEXT(DH66, "000") & TEXT(DI66, "-00") & TEXT(DL66, "-000") & TEXT(DK66, "-000") & TEXT(DJ66, "-000") -> 000-00-000-000-000 | DL82: =COUNTIF(DK81:DK95, ">=" & DK82) -> 15 | DM82: =RANK(DL82,DL81:DL95,1)+COUNTIF(DK81:DK82,DK82)-1 -> 2 | DQ82: =TEXT(DN66, "000") & TEXT(DO66, "-00") & TEXT(DR66, "-000") & TEXT(DQ66, "-000") & TEXT(DP66, "-000") -> 000-00-000-000-000 | DR82: =COUNTIF(DQ81:DQ95, ">=" & DQ82) -> 15 | DS82: =RANK(DR82,DR81:DR95,1)+COUNTIF(DQ81:DQ82,DQ82)-1 -> 2 | DW82: =TEXT(DT66, "000") & TEXT(DU66, "-00") & TEXT(DX66, "-000") & TEXT(DW66, "-000") & TEXT(DV66, "-000") -> 000-00-000-000-000 | DX82: =COUNTIF(DW81:DW95, ">=" & DW82) -> 15 | DY82: =RANK(DX82,DX81:DX95,1)+COUNTIF(DW81:DW82,DW82)-1 -> 2
A83: Cherokee | B83: Goodwin, Adeline (9) | G83: Reeves, Chance (9) | L83: Henry, Shay (9) | Q83: Matiak, Ayva (10) | V83: CK 10 | AC83: =B83 -> Goodwin, Adeline (9) | AD83: =G83 -> Reeves, Chance (9) | AE83: =L83 -> Henry, Shay (9) | AF83: =Q83 -> Matiak, Ayva (10) | AG83: =V83 -> CK 10 | AK83: =TEXT(AH67,"000")&TEXT(AI67,"-00")&TEXT(AL67,"-000")&TEXT(AK67,"-000")&TEXT(AJ67,"-000") -> 264-08-087-089-088 | AL83: =COUNTIF(AK81:AK95, ">=" & AK83) -> 3 | AM83: =RANK(AL83,AL81:AL95,1)+COUNTIF(AK81:AK83,AK83)-1 -> 3 | AQ83: =TEXT(AN67,"000")&TEXT(AO67,"-00")&TEXT(AR67,"-000")&TEXT(AQ67,"-000")&TEXT(AP67,"-000") -> 260-04-089-088-083 | AR83: =COUNTIF(AQ81:AQ95, ">=" & AQ83) -> 3 | AS83: =RANK(AR83,AR81:AR95,1)+COUNTIF(AQ81:AR83,AR83)-1 -> 3 | AW83: =TEXT(AT67,"000")&TEXT(AU67,"-00")&TEXT(AX67,"-000")&TEXT(AW67,"-000")&TEXT(AV67,"-000") -> 282-12-093-097-092 | AX83: =COUNTIF(AW81:AW95, ">=" & AW83) -> 2 | AY83: =RANK(AX83,AX81:AX95,1)+COUNTIF(AW81:AX83,AX83)-1 -> 2 | BC83: =TEXT(AZ67,"000")&TEXT(BA67,"-00")&TEXT(BD67,"-000")&TEXT(BC67,"-000")&TEXT(BB67,"-000") -> 272-00-085-095-092 | BD83: =COUNTIF(BC81:BC95, ">=" & BC83) -> 3 | BE83: =RANK(BD83,BD81:BD95,1)+COUNTIF(BC81:BC83,BC83)-1 -> 3 | BI83: =TEXT(BF67,"000")&TEXT(BG67,"-00")&TEXT(BJ67,"-000")&TEXT(BI67,"-000")&TEXT(BH67,"-000") -> 280-12-087-097-096 | BJ83: =COUNTIF(BI81:BI95, ">=" & BI83) -> 2 | BK83: =RANK(BJ83,BJ81:BJ95,1)+COUNTIF(BI81:BI83,BI83)-1 -> 2 | BO83: =TEXT(BL67,"000")&TEXT(BM67,"-00")&TEXT(BP67,"-000")&TEXT(BO67,"-000")&TEXT(BN67,"-000") -> 283-10-092-097-094 | BP83: =COUNTIF(BO81:BO95, ">=" & BO83) -> 1 | BQ83: =RANK(BP83,BP81:BP95,1)+COUNTIF(BO81:BO83,BO83)-1 -> 1 | BU83: =TEXT(BR67,"000")&TEXT(BS67,"-00")&TEXT(BV67,"-000")&TEXT(BU67,"-000")&TEXT(BT67,"-000") -> 000-00-000-000-000 | BV83: =COUNTIF(BU81:BU95, ">=" & BU83) -> 15 | BW83: =RANK(BV83,BV81:BV95,1)+COUNTIF(BU81:BU83,BU83)-1 -> 3 | CA83: =TEXT(BX67,"000")&TEXT(BY67,"-00")&TEXT(CB67,"-000")&TEXT(CA67,"-000")&TEXT(BZ67,"-000") -> 284-11-093-099-092 | CB83: =COUNTIF(CA81:CA95, ">=" & CA83) -> 1 | CC83: =RANK(CB83,CB81:CB95,1)+COUNTIF(CA81:CA83,CA83)-1 -> 1 | CG83: =TEXT(CD67,"000")&TEXT(CE67,"-00")&TEXT(CH67,"-000")&TEXT(CG67,"-000")&TEXT(CF67,"-000") -> 280-11-090-098-092 | CH83: =COUNTIF(CG81:CG95, ">=" & CG83) -> 4 | CI83: =RANK(CH83,CH81:CH95,1)+COUNTIF(CG81:CG83,CG83)-1 -> 4 | CM83: =TEXT(CJ67,"000")&TEXT(CK67,"-00")&TEXT(CN67,"-000")&TEXT(CM67,"-000")&TEXT(CL67,"-000") -> 283-14-089-099-095 | CN83: =COUNTIF(CM81:CM95, ">=" & CM83) -> 3 | CO83: =RANK(CN83,CN81:CN95,1)+COUNTIF(CM81:CM83,CM83)-1 -> 3 | CS83: =TEXT(CP67,"000")&TEXT(CQ67,"-00")&TEXT(CT67,"-000")&TEXT(CS67,"-000")&TEXT(CR67,"-000") -> 285-15-090-100-095 | CT83: =COUNTIF(CS81:CS95, ">=" & CS83) -> 1 | CU83: =RANK(CT83,CT81:CT95,1)+COUNTIF(CS81:CS83,CS83)-1 -> 1 | CY83: =TEXT(CV67,"000")&TEXT(CW67,"-00")&TEXT(CZ67,"-000")&TEXT(CY67,"-000")&TEXT(CX67,"-000") -> 278-10-089-096-093 | CZ83: =COUNTIF(CY81:CY95, ">=" & CY83) -> 3 | DA83: =RANK(CZ83,CZ81:CZ95,1)+COUNTIF(CY81:CY83,CY83)-1 -> 3 | DE83: =TEXT(DB67,"000")&TEXT(DC67,"-00")&TEXT(DF67,"-000")&TEXT(DE67,"-000")&TEXT(DD67,"-000") -> 000-00-000-000-000 | DF83: =COUNTIF(DE81:DE95, ">=" & DE83) -> 15 | DG83: =RANK(DF83,DF81:DF95,1)+COUNTIF(DE81:DE83,DE83)-1 -> 3 | DK83: =TEXT(DH67,"000")&TEXT(DI67,"-00")&TEXT(DL67,"-000")&TEXT(DK67,"-000")&TEXT(DJ67,"-000") -> 000-00-000-000-000 | DL83: =COUNTIF(DK81:DK95, ">=" & DK83) -> 15 | DM83: =RANK(DL83,DL81:DL95,1)+COUNTIF(DK81:DK83,DK83)-1 -> 3 | DQ83: =TEXT(DN67,"000")&TEXT(DO67,"-00")&TEXT(DR67,"-000")&TEXT(DQ67,"-000")&TEXT(DP67,"-000") -> 000-00-000-000-000 | DR83: =COUNTIF(DQ81:DQ95, ">=" & DQ83) -> 15 | DS83: =RANK(DR83,DR81:DR95,1)+COUNTIF(DQ81:DQ83,DQ83)-1 -> 3 | DW83: =TEXT(DT67,"000")&TEXT(DU67,"-00")&TEXT(DX67,"-000")&TEXT(DW67,"-000")&TEXT(DV67,"-000") -> 000-00-000-000-000 | DX83: =COUNTIF(DW81:DW95, ">=" & DW83) -> 15 | DY83: =RANK(DX83,DX81:DX95,1)+COUNTIF(DW81:DW83,DW83)-1 -> 3
A84: VS | B84: K | C84: P | D84: S | E84: AGGR | F84: *10 | G84: K | H84: P | I84: S | J84: AGGR | K84: *10 | L84: K | M84: P | N84: S | O84: AGGR | P84: *10 | Q84: K | R84: P | S84: S | T84: AGGR | U84: *10 | V84: K | W84: P | X84: S | Y84: AGGR | Z84: *10 | AC84: =IF(SUM(E85:E100)>0,LARGE(E85:E100,1),0) -> 270 | AD84: =IF(SUM(J85:J100)>0,LARGE(J85:J100,1),0) -> 242 | AE84: =IF(SUM(O85:O100)>0,LARGE(O85:O100,1),0) -> 271 | AF84: =IF(SUM(T85:T100)>0,LARGE(T85:T100,1),0) -> 283 | AG84: =IF(SUM(Y85:Y100)>0,LARGE(Y85:Y100,1),0) -> 0 | AK84: 263-04-083-090-090 | AL84: =COUNTIF(AK81:AK95, ">=" & AK84) -> 4 | AM84: =RANK(AL84,AL81:AL95,1)+COUNTIF(AK81:AK84,AK84)-1 -> 4 | AQ84: 244-01-073-089-082 | AR84: =COUNTIF(AQ81:AQ95, ">=" & AQ84) -> 5 | AS84: =RANK(AR84,AR81:AR95,1)+COUNTIF(AQ81:AR84,AR84)-1 -> 5 | AW84: 272-10-089-095-088 | AX84: =COUNTIF(AW81:AW95, ">=" & AW84) -> 4 | AY84: =RANK(AX84,AX81:AX95,1)+COUNTIF(AW81:AX84,AX84)-1 -> 4 | BC84: 265-00-086-095-084 | BD84: =COUNTIF(BC81:BC95, ">=" & BC84) -> 4 | BE84: =RANK(BD84,BD81:BD95,1)+COUNTIF(BC81:BC84,BC84)-1 -> 4 | BI84: 271-07-092-092-087 | BJ84: =COUNTIF(BI81:BI95, ">=" & BI84) -> 5 | BK84: =RANK(BJ84,BJ81:BJ95,1)+COUNTIF(BI81:BI84,BI84)-1 -> 5 | BO84: 271-06-085-094-092 | BP84: =COUNTIF(BO81:BO95, ">=" & BO84) -> 4 | BQ84: =RANK(BP84,BP81:BP95,1)+COUNTIF(BO81:BO84,BO84)-1 -> 4 | BU84: 000-00-000-000-000 | BV84: =COUNTIF(BU81:BU95, ">=" & BU84) -> 15 | BW84: =RANK(BV84,BV81:BV95,1)+COUNTIF(BU81:BU84,BU84)-1 -> 4 | CA84: 282-14-093-098-091 | CB84: =COUNTIF(CA81:CA95, ">=" & CA84) -> 2 | CC84: =RANK(CB84,CB81:CB95,1)+COUNTIF(CA81:CA84,CA84)-1 -> 2 | CG84: 000-00-000-000-000 | CH84: =COUNTIF(CG81:CG95, ">=" & CG84) -> 15 | CI84: =RANK(CH84,CH81:CH95,1)+COUNTIF(CG81:CG84,CG84)-1 -> 7 | CM84: 265-03-080-093-092 | CN84: =COUNTIF(CM81:CM95, ">=" & CM84) -> 4 | CO84: =RANK(CN84,CN81:CN95,1)+COUNTIF(CM81:CM84,CM84)-1 -> 4 | CS84: 277-12-088-099-090 | CT84: =COUNTIF(CS81:CS95, ">=" & CS84) -> 3 | CU84: =RANK(CT84,CT81:CT95,1)+COUNTIF(CS81:CS84,CS84)-1 -> 3 | CY84: 260-05-081-091-088 | CZ84: =COUNTIF(CY81:CY95, ">=" & CY84) -> 5 | DA84: =RANK(CZ84,CZ81:CZ95,1)+COUNTIF(CY81:CY84,CY84)-1 -> 5 | DE84: 000-00-000-000-000 | DF84: =COUNTIF(DE81:DE95, ">=" & DE84) -> 15 | DG84: =RANK(DF84,DF81:DF95,1)+COUNTIF(DE81:DE84,DE84)-1 -> 4 | DK84: 000-00-000-000-000 | DL84: =COUNTIF(DK81:DK95, ">=" & DK84) -> 15 | DM84: =RANK(DL84,DL81:DL95,1)+COUNTIF(DK81:DK84,DK84)-1 -> 4 | DQ84: 000-00-000-000-000 | DR84: =COUNTIF(DQ81:DQ95, ">=" & DQ84) -> 15 | DS84: =RANK(DR84,DR81:DR95,1)+COUNTIF(DQ81:DQ84,DQ84)-1 -> 4 | DW84: 000-00-000-000-000 | DX84: =COUNTIF(DW81:DW95, ">=" & DW84) -> 15 | DY84: =RANK(DX84,DX81:DX95,1)+COUNTIF(DW81:DW84,DW84)-1 -> 4
A85: Gordon Central | J85: =IF(SUM(G85:I85)>0,SUM(G85:I85),"") ->  | O85: =IF(SUM(L85:N85)>0,SUM(L85:N85),"") ->  | T85: =IF(SUM(Q85:S85)>0,SUM(Q85:S85),"") ->  | Y85: =IF(SUM(V85:X85)>0,SUM(V85:X85),"") ->  | AK85: 235-02-072-082-081 | AL85: =COUNTIF(AK81:AK95, ">=" & AK85) -> 5 | AM85: =RANK(AL85,AL81:AL95,1)+COUNTIF(AK81:AK85,AK85)-1 -> 5 | AQ85: 000-00-000-000-000 | AR85: =COUNTIF(AQ81:AQ95, ">=" & AQ85) -> 15 | AS85: =RANK(AR85,AR81:AR95,1)+COUNTIF(AQ81:AR85,AR85)-1 -> 6 | AW85: 000-00-000-000-000 | AX85: =COUNTIF(AW81:AW95, ">=" & AW85) -> 15 | AY85: =RANK(AX85,AX81:AX95,1)+COUNTIF(AW81:AX85,AX85)-1 -> 6 | BC85: 257-00-080-095-082 | BD85: =COUNTIF(BC81:BC95, ">=" & BC85) -> 5 | BE85: =RANK(BD85,BD81:BD95,1)+COUNTIF(BC81:BC85,BC85)-1 -> 5 | BI85: 000-00-000-000-000 | BJ85: =COUNTIF(BI81:BI95, ">=" & BI85) -> 15 | BK85: =RANK(BJ85,BJ81:BJ95,1)+COUNTIF(BI81:BI85,BI85)-1 -> 6 | BO85: 000-00-000-000-000 | BP85: =COUNTIF(BO81:BO95, ">=" & BO85) -> 15 | BQ85: =RANK(BP85,BP81:BP95,1)+COUNTIF(BO81:BO85,BO85)-1 -> 6 | BU85: 000-00-000-000-000 | BV85: =COUNTIF(BU81:BU95, ">=" & BU85) -> 15 | BW85: =RANK(BV85,BV81:BV95,1)+COUNTIF(BU81:BU85,BU85)-1 -> 5 | CA85: 000-00-000-000-000 | CB85: =COUNTIF(CA81:CA95, ">=" & CA85) -> 15 | CC85: =RANK(CB85,CB81:CB95,1)+COUNTIF(CA81:CA85,CA85)-1 -> 6 | CG85: 000-00-000-000-000 | CH85: =COUNTIF(CG81:CG95, ">=" & CG85) -> 15 | CI85: =RANK(CH85,CH81:CH95,1)+COUNTIF(CG81:CG85,CG85)-1 -> 8 | CM85: 000-00-000-000-000 | CN85: =COUNTIF(CM81:CM95, ">=" & CM85) -> 15 | CO85: =RANK(CN85,CN81:CN95,1)+COUNTIF(CM81:CM85,CM85)-1 -> 5 | CS85: 273-12-081-098-094 | CT85: =COUNTIF(CS81:CS95, ">=" & CS85) -> 4 | CU85: =RANK(CT85,CT81:CT95,1)+COUNTIF(CS81:CS85,CS85)-1 -> 4 | CY85: 000-00-000-000-000 | CZ85: =COUNTIF(CY81:CY95, ">=" & CY85) -> 15 | DA85: =RANK(CZ85,CZ81:CZ95,1)+COUNTIF(CY81:CY85,CY85)-1 -> 6 | DE85: 000-00-000-000-000 | DF85: =COUNTIF(DE81:DE95, ">=" & DE85) -> 15 | DG85: =RANK(DF85,DF81:DF95,1)+COUNTIF(DE81:DE85,DE85)-1 -> 5 | DK85: 000-00-000-000-000 | DL85: =COUNTIF(DK81:DK95, ">=" & DK85) -> 15 | DM85: =RANK(DL85,DL81:DL95,1)+COUNTIF(DK81:DK85,DK85)-1 -> 5 | DQ85: 000-00-000-000-000 | DR85: =COUNTIF(DQ81:DQ95, ">=" & DQ85) -> 15 | DS85: =RANK(DR85,DR81:DR95,1)+COUNTIF(DQ81:DQ85,DQ85)-1 -> 5 | DW85: 000-00-000-000-000 | DX85: =COUNTIF(DW81:DW95, ">=" & DW85) -> 15 | DY85: =RANK(DX85,DX81:DX95,1)+COUNTIF(DW81:DW85,DW85)-1 -> 5
A86: @ Dalton | Q86: 83 | R86: 90 | S86: 84 | T86: 257 | U86: 5 | AK86: 000-00-000-000-000 | AL86: =COUNTIF(AK81:AK95, ">=" & AK86) -> 15 | AM86: =RANK(AL86,AL81:AL95,1)+COUNTIF(AK81:AK86,AK86)-1 -> 6 | AQ86: 000-00-000-000-000 | AR86: =COUNTIF(AQ81:AQ95, ">=" & AQ86) -> 15 | AS86: =RANK(AR86,AR81:AR95,1)+COUNTIF(AQ81:AR86,AR86)-1 -> 7 | AW86: 000-00-000-000-000 | AX86: =COUNTIF(AW81:AW95, ">=" & AW86) -> 15 | AY86: =RANK(AX86,AX81:AX95,1)+COUNTIF(AW81:AX86,AX86)-1 -> 7 | BC86: 000-00-000-000-000 | BD86: =COUNTIF(BC81:BC95, ">=" & BC86) -> 15 | BE86: =RANK(BD86,BD81:BD95,1)+COUNTIF(BC81:BC86,BC86)-1 -> 7 | BI86: 000-00-000-000-000 | BJ86: =COUNTIF(BI81:BI95, ">=" & BI86) -> 15 | BK86: =RANK(BJ86,BJ81:BJ95,1)+COUNTIF(BI81:BI86,BI86)-1 -> 7 | BO86: 000-00-000-000-000 | BP86: =COUNTIF(BO81:BO95, ">=" & BO86) -> 15 | BQ86: =RANK(BP86,BP81:BP95,1)+COUNTIF(BO81:BO86,BO86)-1 -> 7 | BU86: 000-00-000-000-000 | BV86: =COUNTIF(BU81:BU95, ">=" & BU86) -> 15 | BW86: =RANK(BV86,BV81:BV95,1)+COUNTIF(BU81:BU86,BU86)-1 -> 6 | CA86: 000-00-000-000-000 | CB86: =COUNTIF(CA81:CA95, ">=" & CA86) -> 15 | CC86: =RANK(CB86,CB81:CB95,1)+COUNTIF(CA81:CA86,CA86)-1 -> 7 | CG86: 270-06-083-093-094 | CH86: =COUNTIF(CG81:CG95, ">=" & CG86) -> 6 | CI86: =RANK(CH86,CH81:CH95,1)+COUNTIF(CG81:CG86,CG86)-1 -> 6 | CM86: 000-00-000-000-000 | CN86: =COUNTIF(CM81:CM95, ">=" & CM86) -> 15 | CO86: =RANK(CN86,CN81:CN95,1)+COUNTIF(CM81:CM86,CM86)-1 -> 6 | CS86: 000-00-000-000-000 | CT86: =COUNTIF(CS81:CS95, ">=" & CS86) -> 15 | CU86: =RANK(CT86,CT81:CT95,1)+COUNTIF(CS81:CS86,CS86)-1 -> 6 | CY86: 000-00-000-000-000 | CZ86: =COUNTIF(CY81:CY95, ">=" & CY86) -> 15 | DA86: =RANK(CZ86,CZ81:CZ95,1)+COUNTIF(CY81:CY86,CY86)-1 -> 7 | DE86: 000-00-000-000-000 | DF86: =COUNTIF(DE81:DE95, ">=" & DE86) -> 15 | DG86: =RANK(DF86,DF81:DF95,1)+COUNTIF(DE81:DE86,DE86)-1 -> 6 | DK86: 000-00-000-000-000 | DL86: =COUNTIF(DK81:DK95, ">=" & DK86) -> 15 | DM86: =RANK(DL86,DL81:DL95,1)+COUNTIF(DK81:DK86,DK86)-1 -> 6 | DQ86: 000-00-000-000-000 | DR86: =COUNTIF(DQ81:DQ95, ">=" & DQ86) -> 15 | DS86: =RANK(DR86,DR81:DR95,1)+COUNTIF(DQ81:DQ86,DQ86)-1 -> 6 | DW86: 000-00-000-000-000 | DX86: =COUNTIF(DW81:DW95, ">=" & DW86) -> 15 | DY86: =RANK(DX86,DX81:DX95,1)+COUNTIF(DW81:DW86,DW86)-1 -> 6
A87: Lafayette | L87: 93 | M87: 98 | N87: 76 | O87: 267 | P87: 9 | AA87: s | AK87: 000-00-000-000-000 | AL87: =COUNTIF(AK81:AK95, ">=" & AK87) -> 15 | AM87: =RANK(AL87,AL81:AL95,1)+COUNTIF(AK81:AK87,AK87)-1 -> 7 | AQ87: 000-00-000-000-000 | AR87: =COUNTIF(AQ81:AQ95, ">=" & AQ87) -> 15 | AS87: =RANK(AR87,AR81:AR95,1)+COUNTIF(AQ81:AR87,AR87)-1 -> 8 | AW87: 000-00-000-000-000 | AX87: =COUNTIF(AW81:AW95, ">=" & AW87) -> 15 | AY87: =RANK(AX87,AX81:AX95,1)+COUNTIF(AW81:AX87,AX87)-1 -> 8 | BC87: 000-00-000-000-000 | BD87: =COUNTIF(BC81:BC95, ">=" & BC87) -> 15 | BE87: =RANK(BD87,BD81:BD95,1)+COUNTIF(BC81:BC87,BC87)-1 -> 8 | BI87: 000-00-000-000-000 | BJ87: =COUNTIF(BI81:BI95, ">=" & BI87) -> 15 | BK87: =RANK(BJ87,BJ81:BJ95,1)+COUNTIF(BI81:BI87,BI87)-1 -> 8 | BO87: 000-00-000-000-000 | BP87: =COUNTIF(BO81:BO95, ">=" & BO87) -> 15 | BQ87: =RANK(BP87,BP81:BP95,1)+COUNTIF(BO81:BO87,BO87)-1 -> 8 | BU87: 000-00-000-000-000 | BV87: =COUNTIF(BU81:BU95, ">=" & BU87) -> 15 | BW87: =RANK(BV87,BV81:BV95,1)+COUNTIF(BU81:BU87,BU87)-1 -> 7 | CA87: 242-01-067-086-089 | CB87: =COUNTIF(CA81:CA95, ">=" & CA87) -> 5 | CC87: =RANK(CB87,CB81:CB95,1)+COUNTIF(CA81:CA87,CA87)-1 -> 5 | CG87: 000-00-000-000-000 | CH87: =COUNTIF(CG81:CG95, ">=" & CG87) -> 15 | CI87: =RANK(CH87,CH81:CH95,1)+COUNTIF(CG81:CG87,CG87)-1 -> 9 | CM87: 000-00-000-000-000 | CN87: =COUNTIF(CM81:CM95, ">=" & CM87) -> 15 | CO87: =RANK(CN87,CN81:CN95,1)+COUNTIF(CM81:CM87,CM87)-1 -> 7 | CS87: 000-00-000-000-000 | CT87: =COUNTIF(CS81:CS95, ">=" & CS87) -> 15 | CU87: =RANK(CT87,CT81:CT95,1)+COUNTIF(CS81:CS87,CS87)-1 -> 7 | CY87: 000-00-000-000-000 | CZ87: =COUNTIF(CY81:CY95, ">=" & CY87) -> 15 | DA87: =RANK(CZ87,CZ81:CZ95,1)+COUNTIF(CY81:CY87,CY87)-1 -> 8 | DE87: 000-00-000-000-000 | DF87: =COUNTIF(DE81:DE95, ">=" & DE87) -> 15 | DG87: =RANK(DF87,DF81:DF95,1)+COUNTIF(DE81:DE87,DE87)-1 -> 7 | DK87: 000-00-000-000-000 | DL87: =COUNTIF(DK81:DK95, ">=" & DK87) -> 15 | DM87: =RANK(DL87,DL81:DL95,1)+COUNTIF(DK81:DK87,DK87)-1 -> 7 | DQ87: 000-00-000-000-000 | DR87: =COUNTIF(DQ81:DQ95, ">=" & DQ87) -> 15 | DS87: =RANK(DR87,DR81:DR95,1)+COUNTIF(DQ81:DQ87,DQ87)-1 -> 7 | DW87: 000-00-000-000-000 | DX87: =COUNTIF(DW81:DW95, ">=" & DW87) -> 15 | DY87: =RANK(DX87,DX81:DX95,1)+COUNTIF(DW81:DW87,DW87)-1 -> 7
A88: @ Ridgeland | L88: 80 | M88: 92 | N88: 80 | O88: 252 | AA88: e | AK88: 000-00-000-000-000 | AL88: =COUNTIF(AK81:AK95, ">=" & AK88) -> 15 | AM88: =RANK(AL88,AL81:AL95,1)+COUNTIF(AK81:AK88,AK88)-1 -> 8 | AQ88: 000-00-000-000-000 | AR88: =COUNTIF(AQ81:AQ95, ">=" & AQ88) -> 15 | AS88: =RANK(AR88,AR81:AR95,1)+COUNTIF(AQ81:AR88,AR88)-1 -> 9 | AW88: 267-09-076-098-093 | AX88: =COUNTIF(AW81:AW95, ">=" & AW88) -> 5 | AY88: =RANK(AX88,AX81:AX95,1)+COUNTIF(AW81:AX88,AX88)-1 -> 5 | BC88: 252-00-080-092-080 | BD88: =COUNTIF(BC81:BC95, ">=" & BC88) -> 6 | BE88: =RANK(BD88,BD81:BD95,1)+COUNTIF(BC81:BC88,BC88)-1 -> 6 | BI88: 000-00-000-000-000 | BJ88: =COUNTIF(BI81:BI95, ">=" & BI88) -> 15 | BK88: =RANK(BJ88,BJ81:BJ95,1)+COUNTIF(BI81:BI88,BI88)-1 -> 9 | BO88: 000-00-000-000-000 | BP88: =COUNTIF(BO81:BO95, ">=" & BO88) -> 15 | BQ88: =RANK(BP88,BP81:BP95,1)+COUNTIF(BO81:BO88,BO88)-1 -> 9 | BU88: 000-00-000-000-000 | BV88: =COUNTIF(BU81:BU95, ">=" & BU88) -> 15 | BW88: =RANK(BV88,BV81:BV95,1)+COUNTIF(BU81:BU88,BU88)-1 -> 8 | CA88: 000-00-000-000-000 | CB88: =COUNTIF(CA81:CA95, ">=" & CA88) -> 15 | CC88: =RANK(CB88,CB81:CB95,1)+COUNTIF(CA81:CA88,CA88)-1 -> 8 | CG88: 271-07-082-094-095 | CH88: =COUNTIF(CG81:CG95, ">=" & CG88) -> 5 | CI88: =RANK(CH88,CH81:CH95,1)+COUNTIF(CG81:CG88,CG88)-1 -> 5 | CM88: 000-00-000-000-000 | CN88: =COUNTIF(CM81:CM95, ">=" & CM88) -> 15 | CO88: =RANK(CN88,CN81:CN95,1)+COUNTIF(CM81:CM88,CM88)-1 -> 8 | CS88: 000-00-000-000-000 | CT88: =COUNTIF(CS81:CS95, ">=" & CS88) -> 15 | CU88: =RANK(CT88,CT81:CT95,1)+COUNTIF(CS81:CS88,CS88)-1 -> 8 | CY88: 000-00-000-000-000 | CZ88: =COUNTIF(CY81:CY95, ">=" & CY88) -> 15 | DA88: =RANK(CZ88,CZ81:CZ95,1)+COUNTIF(CY81:CY88,CY88)-1 -> 9 | DE88: 000-00-000-000-000 | DF88: =COUNTIF(DE81:DE95, ">=" & DE88) -> 15 | DG88: =RANK(DF88,DF81:DF95,1)+COUNTIF(DE81:DE88,DE88)-1 -> 8 | DK88: 000-00-000-000-000 | DL88: =COUNTIF(DK81:DK95, ">=" & DK88) -> 15 | DM88: =RANK(DL88,DL81:DL95,1)+COUNTIF(DK81:DK88,DK88)-1 -> 8 | DQ88: 000-00-000-000-000 | DR88: =COUNTIF(DQ81:DQ95, ">=" & DQ88) -> 15 | DS88: =RANK(DR88,DR81:DR95,1)+COUNTIF(DQ81:DQ88,DQ88)-1 -> 8 | DW88: 000-00-000-000-000 | DX88: =COUNTIF(DW81:DW95, ">=" & DW88) -> 15 | DY88: =RANK(DX88,DX81:DX95,1)+COUNTIF(DW81:DW88,DW88)-1 -> 8
A89: Allatoona | Q89: 92 | R89: 95 | S89: 87 | T89: 274 | U89: 5 | AA89: e | AK89: 000-00-000-000-000 | AL89: =COUNTIF(AK81:AK95, ">=" & AK89) -> 15 | AM89: =RANK(AL89,AL81:AL95,1)+COUNTIF(AK81:AK89,AK89)-1 -> 9 | AQ89: 257-05-084-090-083 | AR89: =COUNTIF(AQ81:AQ95, ">=" & AQ89) -> 4 | AS89: =RANK(AR89,AR81:AR95,1)+COUNTIF(AQ81:AR89,AR89)-1 -> 4 | AW89: 000-00-000-000-000 | AX89: =COUNTIF(AW81:AW95, ">=" & AW89) -> 15 | AY89: =RANK(AX89,AX81:AX95,1)+COUNTIF(AW81:AX89,AX89)-1 -> 9 | BC89: 000-00-000-000-000 | BD89: =COUNTIF(BC81:BC95, ">=" & BC89) -> 15 | BE89: =RANK(BD89,BD81:BD95,1)+COUNTIF(BC81:BC89,BC89)-1 -> 9 | BI89: 274-05-087-095-092 | BJ89: =COUNTIF(BI81:BI95, ">=" & BI89) -> 4 | BK89: =RANK(BJ89,BJ81:BJ95,1)+COUNTIF(BI81:BI89,BI89)-1 -> 4 | BO89: 265-05-086-088-091 | BP89: =COUNTIF(BO81:BO95, ">=" & BO89) -> 5 | BQ89: =RANK(BP89,BP81:BP95,1)+COUNTIF(BO81:BO89,BO89)-1 -> 5 | BU89: 000-00-000-000-000 | BV89: =COUNTIF(BU81:BU95, ">=" & BU89) -> 15 | BW89: =RANK(BV89,BV81:BV95,1)+COUNTIF(BU81:BU89,BU89)-1 -> 9 | CA89: 000-00-000-000-000 | CB89: =COUNTIF(CA81:CA95, ">=" & CA89) -> 15 | CC89: =RANK(CB89,CB81:CB95,1)+COUNTIF(CA81:CA89,CA89)-1 -> 9 | CG89: 283-11-089-098-096 | CH89: =COUNTIF(CG81:CG95, ">=" & CG89) -> 3 | CI89: =RANK(CH89,CH81:CH95,1)+COUNTIF(CG81:CG89,CG89)-1 -> 3 | CM89: 000-00-000-000-000 | CN89: =COUNTIF(CM81:CM95, ">=" & CM89) -> 15 | CO89: =RANK(CN89,CN81:CN95,1)+COUNTIF(CM81:CM89,CM89)-1 -> 9 | CS89: 000-00-000-000-000 | CT89: =COUNTIF(CS81:CS95, ">=" & CS89) -> 15 | CU89: =RANK(CT89,CT81:CT95,1)+COUNTIF(CS81:CS89,CS89)-1 -> 9 | CY89: 276-05-091-096-089 | CZ89: =COUNTIF(CY81:CY95, ">=" & CY89) -> 4 | DA89: =RANK(CZ89,CZ81:CZ95,1)+COUNTIF(CY81:CY89,CY89)-1 -> 4 | DE89: 000-00-000-000-000 | DF89: =COUNTIF(DE81:DE95, ">=" & DE89) -> 15 | DG89: =RANK(DF89,DF81:DF95,1)+COUNTIF(DE81:DE89,DE89)-1 -> 9 | DK89: 000-00-000-000-000 | DL89: =COUNTIF(DK81:DK95, ">=" & DK89) -> 15 | DM89: =RANK(DL89,DL81:DL95,1)+COUNTIF(DK81:DK89,DK89)-1 -> 9 | DQ89: 000-00-000-000-000 | DR89: =COUNTIF(DQ81:DQ95, ">=" & DQ89) -> 15 | DS89: =RANK(DR89,DR81:DR95,1)+COUNTIF(DQ81:DQ89,DQ89)-1 -> 9 | DW89: 000-00-000-000-000 | DX89: =COUNTIF(DW81:DW95, ">=" & DW89) -> 15 | DY89: =RANK(DX89,DX81:DX95,1)+COUNTIF(DW81:DW89,DW89)-1 -> 9
A90: @ Etowah | E90: =IF(SUM(B90:D90)>0,SUM(B90:D90),"") ->  | Q90: 91 | R90: 88 | S90: 86 | T90: 265 | U90: 5 | AK90: 000-00-000-000-000 | AL90: =COUNTIF(AK81:AK95, ">=" & AK90) -> 15 | AM90: =RANK(AL90,AL81:AL95,1)+COUNTIF(AK81:AK90,AK90)-1 -> 10 | AQ90: 000-00-000-000-000 | AR90: =COUNTIF(AQ81:AQ95, ">=" & AQ90) -> 15 | AS90: =RANK(AR90,AR81:AR95,1)+COUNTIF(AQ81:AR90,AR90)-1 -> 10 | AW90: 000-00-000-000-000 | AX90: =COUNTIF(AW81:AW95, ">=" & AW90) -> 15 | AY90: =RANK(AX90,AX81:AX95,1)+COUNTIF(AW81:AX90,AX90)-1 -> 10 | BC90: 000-00-000-000-000 | BD90: =COUNTIF(BC81:BC95, ">=" & BC90) -> 15 | BE90: =RANK(BD90,BD81:BD95,1)+COUNTIF(BC81:BC90,BC90)-1 -> 10 | BI90: 000-00-000-000-000 | BJ90: =COUNTIF(BI81:BI95, ">=" & BI90) -> 15 | BK90: =RANK(BJ90,BJ81:BJ95,1)+COUNTIF(BI81:BI90,BI90)-1 -> 10 | BO90: 000-00-000-000-000 | BP90: =COUNTIF(BO81:BO95, ">=" & BO90) -> 15 | BQ90: =RANK(BP90,BP81:BP95,1)+COUNTIF(BO81:BO90,BO90)-1 -> 10 | BU90: 000-00-000-000-000 | BV90: =COUNTIF(BU81:BU95, ">=" & BU90) -> 15 | BW90: =RANK(BV90,BV81:BV95,1)+COUNTIF(BU81:BU90,BU90)-1 -> 10 | CA90: 000-00-000-000-000 | CB90: =COUNTIF(CA81:CA95, ">=" & CA90) -> 15 | CC90: =RANK(CB90,CB81:CB95,1)+COUNTIF(CA81:CA90,CA90)-1 -> 10 | CG90: 000-00-000-000-000 | CH90: =COUNTIF(CG81:CG95, ">=" & CG90) -> 15 | CI90: =RANK(CH90,CH81:CH95,1)+COUNTIF(CG81:CG90,CG90)-1 -> 10 | CM90: 000-00-000-000-000 | CN90: =COUNTIF(CM81:CM95, ">=" & CM90) -> 15 | CO90: =RANK(CN90,CN81:CN95,1)+COUNTIF(CM81:CM90,CM90)-1 -> 10 | CS90: 000-00-000-000-000 | CT90: =COUNTIF(CS81:CS95, ">=" & CS90) -> 15 | CU90: =RANK(CT90,CT81:CT95,1)+COUNTIF(CS81:CS90,CS90)-1 -> 10 | CY90: 000-00-000-000-000 | CZ90: =COUNTIF(CY81:CY95, ">=" & CY90) -> 15 | DA90: =RANK(CZ90,CZ81:CZ95,1)+COUNTIF(CY81:CY90,CY90)-1 -> 10 | DE90: 000-00-000-000-000 | DF90: =COUNTIF(DE81:DE95, ">=" & DE90) -> 15 | DG90: =RANK(DF90,DF81:DF95,1)+COUNTIF(DE81:DE90,DE90)-1 -> 10 | DK90: 000-00-000-000-000 | DL90: =COUNTIF(DK81:DK95, ">=" & DK90) -> 15 | DM90: =RANK(DL90,DL81:DL95,1)+COUNTIF(DK81:DK90,DK90)-1 -> 10 | DQ90: 000-00-000-000-000 | DR90: =COUNTIF(DQ81:DQ95, ">=" & DQ90) -> 15 | DS90: =RANK(DR90,DR81:DR95,1)+COUNTIF(DQ81:DQ90,DQ90)-1 -> 10 | DW90: 000-00-000-000-000 | DX90: =COUNTIF(DW81:DW95, ">=" & DW90) -> 15 | DY90: =RANK(DX90,DX81:DX95,1)+COUNTIF(DW81:DW90,DW90)-1 -> 10
A91: @ Cartersville | AA91: a | AK91: 000-00-000-000-000 | AL91: =COUNTIF(AK81:AK95, ">=" & AK91) -> 15 | AM91: =RANK(AL91,AL81:AL95,1)+COUNTIF(AK81:AK91,AK91)-1 -> 11 | AQ91: 000-00-000-000-000 | AR91: =COUNTIF(AQ81:AQ95, ">=" & AQ91) -> 15 | AS91: =RANK(AR91,AR81:AR95,1)+COUNTIF(AQ81:AR91,AR91)-1 -> 11 | AW91: 000-00-000-000-000 | AX91: =COUNTIF(AW81:AW95, ">=" & AW91) -> 15 | AY91: =RANK(AX91,AX81:AX95,1)+COUNTIF(AW81:AX91,AX91)-1 -> 11 | BC91: 000-00-000-000-000 | BD91: =COUNTIF(BC81:BC95, ">=" & BC91) -> 15 | BE91: =RANK(BD91,BD81:BD95,1)+COUNTIF(BC81:BC91,BC91)-1 -> 11 | BI91: 000-00-000-000-000 | BJ91: =COUNTIF(BI81:BI95, ">=" & BI91) -> 15 | BK91: =RANK(BJ91,BJ81:BJ95,1)+COUNTIF(BI81:BI91,BI91)-1 -> 11 | BO91: 000-00-000-000-000 | BP91: =COUNTIF(BO81:BO95, ">=" & BO91) -> 15 | BQ91: =RANK(BP91,BP81:BP95,1)+COUNTIF(BO81:BO91,BO91)-1 -> 11 | BU91: 000-00-000-000-000 | BV91: =COUNTIF(BU81:BU95, ">=" & BU91) -> 15 | BW91: =RANK(BV91,BV81:BV95,1)+COUNTIF(BU81:BU91,BU91)-1 -> 11 | CA91: 000-00-000-000-000 | CB91: =COUNTIF(CA81:CA95, ">=" & CA91) -> 15 | CC91: =RANK(CB91,CB81:CB95,1)+COUNTIF(CA81:CA91,CA91)-1 -> 11 | CG91: 000-00-000-000-000 | CH91: =COUNTIF(CG81:CG95, ">=" & CG91) -> 15 | CI91: =RANK(CH91,CH81:CH95,1)+COUNTIF(CG81:CG91,CG91)-1 -> 11 | CM91: 000-00-000-000-000 | CN91: =COUNTIF(CM81:CM95, ">=" & CM91) -> 15 | CO91: =RANK(CN91,CN81:CN95,1)+COUNTIF(CM81:CM91,CM91)-1 -> 11 | CS91: 000-00-000-000-000 | CT91: =COUNTIF(CS81:CS95, ">=" & CS91) -> 15 | CU91: =RANK(CT91,CT81:CT95,1)+COUNTIF(CS81:CS91,CS91)-1 -> 11 | CY91: 000-00-000-000-000 | CZ91: =COUNTIF(CY81:CY95, ">=" & CY91) -> 15 | DA91: =RANK(CZ91,CZ81:CZ95,1)+COUNTIF(CY81:CY91,CY91)-1 -> 11 | DE91: 000-00-000-000-000 | DF91: =COUNTIF(DE81:DE95, ">=" & DE91) -> 15 | DG91: =RANK(DF91,DF81:DF95,1)+COUNTIF(DE81:DE91,DE91)-1 -> 11 | DK91: 000-00-000-000-000 | DL91: =COUNTIF(DK81:DK95, ">=" & DK91) -> 15 | DM91: =RANK(DL91,DL81:DL95,1)+COUNTIF(DK81:DK91,DK91)-1 -> 11 | DQ91: 000-00-000-000-000 | DR91: =COUNTIF(DQ81:DQ95, ">=" & DQ91) -> 15 | DS91: =RANK(DR91,DR81:DR95,1)+COUNTIF(DQ81:DQ91,DQ91)-1 -> 11 | DW91: 000-00-000-000-000 | DX91: =COUNTIF(DW81:DW95, ">=" & DW91) -> 15 | DY91: =RANK(DX91,DX81:DX95,1)+COUNTIF(DW81:DW91,DW91)-1 -> 11
A92: Gordon Central | G92: 89 | H92: 86 | I92: 67 | J92: 242 | K92: 1 | AA92: b | AK92: 000-00-000-000-000 | AL92: =COUNTIF(AK81:AK95, ">=" & AK92) -> 15 | AM92: =RANK(AL92,AL81:AL95,1)+COUNTIF(AK81:AK92,AK92)-1 -> 12 | AQ92: 000-00-000-000-000 | AR92: =COUNTIF(AQ81:AQ95, ">=" & AQ92) -> 15 | AS92: =RANK(AR92,AR81:AR95,1)+COUNTIF(AQ81:AR92,AR92)-1 -> 12 | AW92: 000-00-000-000-000 | AX92: =COUNTIF(AW81:AW95, ">=" & AW92) -> 15 | AY92: =RANK(AX92,AX81:AX95,1)+COUNTIF(AW81:AX92,AX92)-1 -> 12 | BC92: 000-00-000-000-000 | BD92: =COUNTIF(BC81:BC95, ">=" & BC92) -> 15 | BE92: =RANK(BD92,BD81:BD95,1)+COUNTIF(BC81:BC92,BC92)-1 -> 12 | BI92: 000-00-000-000-000 | BJ92: =COUNTIF(BI81:BI95, ">=" & BI92) -> 15 | BK92: =RANK(BJ92,BJ81:BJ95,1)+COUNTIF(BI81:BI92,BI92)-1 -> 12 | BO92: 000-00-000-000-000 | BP92: =COUNTIF(BO81:BO95, ">=" & BO92) -> 15 | BQ92: =RANK(BP92,BP81:BP95,1)+COUNTIF(BO81:BO92,BO92)-1 -> 12 | BU92: 000-00-000-000-000 | BV92: =COUNTIF(BU81:BU95, ">=" & BU92) -> 15 | BW92: =RANK(BV92,BV81:BV95,1)+COUNTIF(BU81:BU92,BU92)-1 -> 12 | CA92: 000-00-000-000-000 | CB92: =COUNTIF(CA81:CA95, ">=" & CA92) -> 15 | CC92: =RANK(CB92,CB81:CB95,1)+COUNTIF(CA81:CA92,CA92)-1 -> 12 | CG92: 000-00-000-000-000 | CH92: =COUNTIF(CG81:CG95, ">=" & CG92) -> 15 | CI92: =RANK(CH92,CH81:CH95,1)+COUNTIF(CG81:CG92,CG92)-1 -> 12 | CM92: 000-00-000-000-000 | CN92: =COUNTIF(CM81:CM95, ">=" & CM92) -> 15 | CO92: =RANK(CN92,CN81:CN95,1)+COUNTIF(CM81:CM92,CM92)-1 -> 12 | CS92: 000-00-000-000-000 | CT92: =COUNTIF(CS81:CS95, ">=" & CS92) -> 15 | CU92: =RANK(CT92,CT81:CT95,1)+COUNTIF(CS81:CS92,CS92)-1 -> 12 | CY92: 000-00-000-000-000 | CZ92: =COUNTIF(CY81:CY95, ">=" & CY92) -> 15 | DA92: =RANK(CZ92,CZ81:CZ95,1)+COUNTIF(CY81:CY92,CY92)-1 -> 12 | DE92: 000-00-000-000-000 | DF92: =COUNTIF(DE81:DE95, ">=" & DE92) -> 15 | DG92: =RANK(DF92,DF81:DF95,1)+COUNTIF(DE81:DE92,DE92)-1 -> 12 | DK92: 000-00-000-000-000 | DL92: =COUNTIF(DK81:DK95, ">=" & DK92) -> 15 | DM92: =RANK(DL92,DL81:DL95,1)+COUNTIF(DK81:DK92,DK92)-1 -> 12 | DQ92: 000-00-000-000-000 | DR92: =COUNTIF(DQ81:DQ95, ">=" & DQ92) -> 15 | DS92: =RANK(DR92,DR81:DR95,1)+COUNTIF(DQ81:DQ92,DQ92)-1 -> 12 | DW92: 000-00-000-000-000 | DX92: =COUNTIF(DW81:DW95, ">=" & DW92) -> 15 | DY92: =RANK(DX92,DX81:DX95,1)+COUNTIF(DW81:DW92,DW92)-1 -> 12
A93: Dalton | B93: 94 | C93: 93 | D93: 83 | E93: 270 | F93: 6 | L93: 95 | M93: 94 | N93: 82 | O93: 271 | P93: 7 | Q93: 96 | R93: 98 | S93: 89 | T93: 283 | U93: 11 | AA93: o | AK93: 000-00-000-000-000 | AL93: =COUNTIF(AK81:AK95, ">=" & AK93) -> 15 | AM93: =RANK(AL93,AL81:AL95,1)+COUNTIF(AK81:AK93,AK93)-1 -> 13 | AQ93: 000-00-000-000-000 | AR93: =COUNTIF(AQ81:AQ95, ">=" & AQ93) -> 15 | AS93: =RANK(AR93,AR81:AR95,1)+COUNTIF(AQ81:AR93,AR93)-1 -> 13 | AW93: 000-00-000-000-000 | AX93: =COUNTIF(AW81:AW95, ">=" & AW93) -> 15 | AY93: =RANK(AX93,AX81:AX95,1)+COUNTIF(AW81:AX93,AX93)-1 -> 13 | BC93: 000-00-000-000-000 | BD93: =COUNTIF(BC81:BC95, ">=" & BC93) -> 15 | BE93: =RANK(BD93,BD81:BD95,1)+COUNTIF(BC81:BC93,BC93)-1 -> 13 | BI93: 000-00-000-000-000 | BJ93: =COUNTIF(BI81:BI95, ">=" & BI93) -> 15 | BK93: =RANK(BJ93,BJ81:BJ95,1)+COUNTIF(BI81:BI93,BI93)-1 -> 13 | BO93: 000-00-000-000-000 | BP93: =COUNTIF(BO81:BO95, ">=" & BO93) -> 15 | BQ93: =RANK(BP93,BP81:BP95,1)+COUNTIF(BO81:BO93,BO93)-1 -> 13 | BU93: 000-00-000-000-000 | BV93: =COUNTIF(BU81:BU95, ">=" & BU93) -> 15 | BW93: =RANK(BV93,BV81:BV95,1)+COUNTIF(BU81:BU93,BU93)-1 -> 13 | CA93: 000-00-000-000-000 | CB93: =COUNTIF(CA81:CA95, ">=" & CA93) -> 15 | CC93: =RANK(CB93,CB81:CB95,1)+COUNTIF(CA81:CA93,CA93)-1 -> 13 | CG93: 000-00-000-000-000 | CH93: =COUNTIF(CG81:CG95, ">=" & CG93) -> 15 | CI93: =RANK(CH93,CH81:CH95,1)+COUNTIF(CG81:CG93,CG93)-1 -> 13 | CM93: 000-00-000-000-000 | CN93: =COUNTIF(CM81:CM95, ">=" & CM93) -> 15 | CO93: =RANK(CN93,CN81:CN95,1)+COUNTIF(CM81:CM93,CM93)-1 -> 13 | CS93: 000-00-000-000-000 | CT93: =COUNTIF(CS81:CS95, ">=" & CS93) -> 15 | CU93: =RANK(CT93,CT81:CT95,1)+COUNTIF(CS81:CS93,CS93)-1 -> 13 | CY93: 000-00-000-000-000 | CZ93: =COUNTIF(CY81:CY95, ">=" & CY93) -> 15 | DA93: =RANK(CZ93,CZ81:CZ95,1)+COUNTIF(CY81:CY93,CY93)-1 -> 13 | DE93: 000-00-000-000-000 | DF93: =COUNTIF(DE81:DE95, ">=" & DE93) -> 15 | DG93: =RANK(DF93,DF81:DF95,1)+COUNTIF(DE81:DE93,DE93)-1 -> 13 | DK93: 000-00-000-000-000 | DL93: =COUNTIF(DK81:DK95, ">=" & DK93) -> 15 | DM93: =RANK(DL93,DL81:DL95,1)+COUNTIF(DK81:DK93,DK93)-1 -> 13 | DQ93: 000-00-000-000-000 | DR93: =COUNTIF(DQ81:DQ95, ">=" & DQ93) -> 15 | DS93: =RANK(DR93,DR81:DR95,1)+COUNTIF(DQ81:DQ93,DQ93)-1 -> 13 | DW93: 000-00-000-000-000 | DX93: =COUNTIF(DW81:DW95, ">=" & DW93) -> 15 | DY93: =RANK(DX93,DX81:DX95,1)+COUNTIF(DW81:DW93,DW93)-1 -> 13
A94: @ Lafayette | AA94: v | AK94: 000-00-000-000-000 | AL94: =COUNTIF(AK81:AK95, ">=" & AK94) -> 15 | AM94: =RANK(AL94,AL81:AL95,1)+COUNTIF(AK81:AK94,AK94)-1 -> 14 | AQ94: 000-00-000-000-000 | AR94: =COUNTIF(AQ81:AQ95, ">=" & AQ94) -> 15 | AS94: =RANK(AR94,AR81:AR95,1)+COUNTIF(AQ81:AR94,AR94)-1 -> 14 | AW94: 000-00-000-000-000 | AX94: =COUNTIF(AW81:AW95, ">=" & AW94) -> 15 | AY94: =RANK(AX94,AX81:AX95,1)+COUNTIF(AW81:AX94,AX94)-1 -> 14 | BC94: 000-00-000-000-000 | BD94: =COUNTIF(BC81:BC95, ">=" & BC94) -> 15 | BE94: =RANK(BD94,BD81:BD95,1)+COUNTIF(BC81:BC94,BC94)-1 -> 14 | BI94: 000-00-000-000-000 | BJ94: =COUNTIF(BI81:BI95, ">=" & BI94) -> 15 | BK94: =RANK(BJ94,BJ81:BJ95,1)+COUNTIF(BI81:BI94,BI94)-1 -> 14 | BO94: 000-00-000-000-000 | BP94: =COUNTIF(BO81:BO95, ">=" & BO94) -> 15 | BQ94: =RANK(BP94,BP81:BP95,1)+COUNTIF(BO81:BO94,BO94)-1 -> 14 | BU94: 000-00-000-000-000 | BV94: =COUNTIF(BU81:BU95, ">=" & BU94) -> 15 | BW94: =RANK(BV94,BV81:BV95,1)+COUNTIF(BU81:BU94,BU94)-1 -> 14 | CA94: 000-00-000-000-000 | CB94: =COUNTIF(CA81:CA95, ">=" & CA94) -> 15 | CC94: =RANK(CB94,CB81:CB95,1)+COUNTIF(CA81:CA94,CA94)-1 -> 14 | CG94: 000-00-000-000-000 | CH94: =COUNTIF(CG81:CG95, ">=" & CG94) -> 15 | CI94: =RANK(CH94,CH81:CH95,1)+COUNTIF(CG81:CG94,CG94)-1 -> 14 | CM94: 000-00-000-000-000 | CN94: =COUNTIF(CM81:CM95, ">=" & CM94) -> 15 | CO94: =RANK(CN94,CN81:CN95,1)+COUNTIF(CM81:CM94,CM94)-1 -> 14 | CS94: 000-00-000-000-000 | CT94: =COUNTIF(CS81:CS95, ">=" & CS94) -> 15 | CU94: =RANK(CT94,CT81:CT95,1)+COUNTIF(CS81:CS94,CS94)-1 -> 14 | CY94: 000-00-000-000-000 | CZ94: =COUNTIF(CY81:CY95, ">=" & CY94) -> 15 | DA94: =RANK(CZ94,CZ81:CZ95,1)+COUNTIF(CY81:CY94,CY94)-1 -> 14 | DE94: 000-00-000-000-000 | DF94: =COUNTIF(DE81:DE95, ">=" & DE94) -> 15 | DG94: =RANK(DF94,DF81:DF95,1)+COUNTIF(DE81:DE94,DE94)-1 -> 14 | DK94: 000-00-000-000-000 | DL94: =COUNTIF(DK81:DK95, ">=" & DK94) -> 15 | DM94: =RANK(DL94,DL81:DL95,1)+COUNTIF(DK81:DK94,DK94)-1 -> 14 | DQ94: 000-00-000-000-000 | DR94: =COUNTIF(DQ81:DQ95, ">=" & DQ94) -> 15 | DS94: =RANK(DR94,DR81:DR95,1)+COUNTIF(DQ81:DQ94,DQ94)-1 -> 14 | DW94: 000-00-000-000-000 | DX94: =COUNTIF(DW81:DW95, ">=" & DW94) -> 15 | DY94: =RANK(DX94,DX81:DX95,1)+COUNTIF(DW81:DW94,DW94)-1 -> 14
A95: Ridgeland | AA95: e | AK95: 000-00-000-000-000 | AL95: =COUNTIF(AK81:AK95, ">=" & AK95) -> 15 | AM95: =RANK(AL95,AL81:AL95,1)+COUNTIF(AK81:AK95,AK95)-1 -> 15 | AQ95: 000-00-000-000-000 | AR95: =COUNTIF(AQ81:AQ95, ">=" & AQ95) -> 15 | AS95: =RANK(AR95,AR81:AR95,1)+COUNTIF(AQ81:AR95,AR95)-1 -> 15 | AW95: 000-00-000-000-000 | AX95: =COUNTIF(AW81:AW95, ">=" & AW95) -> 15 | AY95: =RANK(AX95,AX81:AX95,1)+COUNTIF(AW81:AX95,AX95)-1 -> 15 | BC95: 000-00-000-000-000 | BD95: =COUNTIF(BC81:BC95, ">=" & BC95) -> 15 | BE95: =RANK(BD95,BD81:BD95,1)+COUNTIF(BC81:BC95,BC95)-1 -> 15 | BI95: 000-00-000-000-000 | BJ95: =COUNTIF(BI81:BI95, ">=" & BI95) -> 15 | BK95: =RANK(BJ95,BJ81:BJ95,1)+COUNTIF(BI81:BI95,BI95)-1 -> 15 | BO95: 000-00-000-000-000 | BP95: =COUNTIF(BO81:BO95, ">=" & BO95) -> 15 | BQ95: =RANK(BP95,BP81:BP95,1)+COUNTIF(BO81:BO95,BO95)-1 -> 15 | BU95: 000-00-000-000-000 | BV95: =COUNTIF(BU81:BU95, ">=" & BU95) -> 15 | BW95: =RANK(BV95,BV81:BV95,1)+COUNTIF(BU81:BU95,BU95)-1 -> 15 | CA95: 000-00-000-000-000 | CB95: =COUNTIF(CA81:CA95, ">=" & CA95) -> 15 | CC95: =RANK(CB95,CB81:CB95,1)+COUNTIF(CA81:CA95,CA95)-1 -> 15 | CG95: 000-00-000-000-000 | CH95: =COUNTIF(CG81:CG95, ">=" & CG95) -> 15 | CI95: =RANK(CH95,CH81:CH95,1)+COUNTIF(CG81:CG95,CG95)-1 -> 15 | CM95: 000-00-000-000-000 | CN95: =COUNTIF(CM81:CM95, ">=" & CM95) -> 15 | CO95: =RANK(CN95,CN81:CN95,1)+COUNTIF(CM81:CM95,CM95)-1 -> 15 | CS95: 000-00-000-000-000 | CT95: =COUNTIF(CS81:CS95, ">=" & CS95) -> 15 | CU95: =RANK(CT95,CT81:CT95,1)+COUNTIF(CS81:CS95,CS95)-1 -> 15 | CY95: 000-00-000-000-000 | CZ95: =COUNTIF(CY81:CY95, ">=" & CY95) -> 15 | DA95: =RANK(CZ95,CZ81:CZ95,1)+COUNTIF(CY81:CY95,CY95)-1 -> 15 | DE95: 000-00-000-000-000 | DF95: =COUNTIF(DE81:DE95, ">=" & DE95) -> 15 | DG95: =RANK(DF95,DF81:DF95,1)+COUNTIF(DE81:DE95,DE95)-1 -> 15 | DK95: 000-00-000-000-000 | DL95: =COUNTIF(DK81:DK95, ">=" & DK95) -> 15 | DM95: =RANK(DL95,DL81:DL95,1)+COUNTIF(DK81:DK95,DK95)-1 -> 15 | DQ95: 000-00-000-000-000 | DR95: =COUNTIF(DQ81:DQ95, ">=" & DQ95) -> 15 | DS95: =RANK(DR95,DR81:DR95,1)+COUNTIF(DQ81:DQ95,DQ95)-1 -> 15 | DW95: 000-00-000-000-000 | DX95: =COUNTIF(DW81:DW95, ">=" & DW95) -> 15 | DY95: =RANK(DX95,DX81:DX95,1)+COUNTIF(DW81:DW95,DW95)-1 -> 15
A96: @ Allatoona | Q96: 89 | R96: 96 | S96: 91 | T96: 276 | U96: 5 | AH96: =IF((OR(AA65="Forfeit",AA65="Win")),0,SUMIFS(AH65:AH79,AM81:AM95,"<=4")) -> 1079 | AI96: =IF((OR(AA65="Forfeit",AA65="Win")),0,SUMIFS(AI65:AI79,AM81:AM95,"<=4")) -> 34 | AJ96: =IF((OR(AA65="Forfeit",AA65="Win")),0,SUMIFS(AJ65:AJ79, AM81:AM95, "<=4")) -> 361 | AK96: =IF((OR(AA65="Forfeit",AA65="Win")),0,SUMIFS(AK65:AK79, AM81:AM95, "<=4")) -> 374 | AL96: =IF((OR(AA65="Forfeit",AA65="Win")),0,SUMIFS(AL65:AL79, AM81:AM95, "<=4")) -> 344 | AN96: =IF((OR(AA66="Forfeit",AA66="Win")),0,SUMIFS(AN65:AN79,AS81:AS95,"<=4")) -> 1070 | AO96: =IF((OR(AA66="Forfeit",AA66="Win")),0,SUMIFS(AO65:AO79,AS81:AS95,"<=4")) -> 32 | AP96: =IF((OR(AA66="Forfeit",AA66="Win")),0,SUMIFS(AP65:AP79, AS81:AS95, "<=4")) -> 356 | AQ96: =IF((OR(AA66="Forfeit",AA66="Win")),0,SUMIFS(AQ65:AQ79, AS81:AS95, "<=4")) -> 371 | AR96: =IF((OR(AA66="Forfeit",AA66="Win")),0,SUMIFS(AR65:AR79, AS81:AS95, "<=4")) -> 343 | AT96: =IF((OR(AA67="Forfeit",AA67="Win")),0,SUMIFS(AT65:AT79,AY81:AY95,"<=4")) -> 1118 | AU96: =IF((OR(AA67="Forfeit",AA67="Win")),0,SUMIFS(AU65:AU79,AY81:AY95,"<=4")) -> 47 | AV96: =IF((OR(AA67="Forfeit",AA67="Win")),0,SUMIFS(AV65:AV79, AY81:AY95, "<=4")) -> 371 | AW96: =IF((OR(AA67="Forfeit",AA67="Win")),0,SUMIFS(AW65:AW79, AY81:AY95, "<=4")) -> 387 | AX96: =IF((OR(AA67="Forfeit",AA67="Win")),0,SUMIFS(AX65:AX79, AY81:AY95, "<=4")) -> 360 | AZ96: =IF((OR(AA68="Forfeit",AA68="Win")),0,SUMIFS(AZ65:AZ79,BE81:BE95,"<=4")) -> 1100 | BA96: =IF((OR(AA68="Forfeit",AA68="Win")),0,SUMIFS(BA65:BA79,BE81:BE95,"<=4")) -> 0 | BB96: =IF((OR(AA68="Forfeit",AA68="Win")),0,SUMIFS(BB65:BB79, BE81:BE95, "<=4")) -> 369 | BC96: =IF((OR(AA68="Forfeit",AA68="Win")),0,SUMIFS(BC65:BC79, BE81:BE95, "<=4")) -> 384 | BD96: =IF((OR(AA68="Forfeit",AA68="Win")),0,SUMIFS(BD65:BD79, BE81:BE95, "<=4")) -> 347 | BF96: =IF((OR(AA69="Forfeit",AA69="Win")),0,SUMIFS(BF65:BF79,BK81:BK95,"<=4")) -> 1116 | BG96: =IF((OR(AA69="Forfeit",AA69="Win")),0,SUMIFS(BG65:BG79,BK81:BK95,"<=4")) -> 37 | BH96: =IF((OR(AA69="Forfeit",AA69="Win")),0,SUMIFS(BH65:BH79, BK81:BK95, "<=4")) -> 377 | BI96: =IF((OR(AA69="Forfeit",AA69="Win")),0,SUMIFS(BI65:BI79, BK81:BK95, "<=4")) -> 382 | BJ96: =IF((OR(AA69="Forfeit",AA69="Win")),0,SUMIFS(BJ65:BJ79, BK81:BK95, "<=4")) -> 357 | BL96: =IF((OR(AA70="Forfeit",AA70="Win")),0,SUMIFS(BL65:BL79,BQ81:BQ95,"<=4")) -> 1110 | BM96: =IF((OR(AA70="Forfeit",AA70="Win")),0,SUMIFS(BM65:BM79,BQ81:BQ95,"<=4")) -> 37 | BN96: =IF((OR(AA70="Forfeit",AA70="Win")),0,SUMIFS(BN65:BN79, BQ81:BQ95, "<=4")) -> 373 | BO96: =IF((OR(AA70="Forfeit",AA70="Win")),0,SUMIFS(BO65:BO79, BQ81:BQ95, "<=4")) -> 377 | BP96: =IF((OR(AA70="Forfeit",AA70="Win")),0,SUMIFS(BP65:BP79, BQ81:BQ95, "<=4")) -> 360 | BR96: =IF((OR(AA71="Forfeit",AA71="Win")),0,SUMIFS(BR65:BR79,BW81:BW95,"<=4")) -> 0 | BS96: =IF((OR(AA71="Forfeit",AA71="Win")),0,SUMIFS(BS65:BS79,BW81:BW95,"<=4")) -> 0 | BT96: =IF((OR(AA71="Forfeit",AA71="Win")),0,SUMIFS(BT65:BT79, BW81:BW95, "<=4")) -> 0 | BU96: =IF((OR(AA71="Forfeit",AA71="Win")),0,SUMIFS(BU65:BU79, BW81:BW95, "<=4")) -> 0 | BV96: =IF((OR(AA71="Forfeit",AA71="Win")),0,SUMIFS(BV65:BV79, BW81:BW95, "<=4")) -> 0 | BX96: =IF((OR(AA72="Forfeit",AA72="Win")),0,SUMIFS(BX65:BX79,CC81:CC95,"<=4")) -> 1129 | BY96: =IF((OR(AA72="Forfeit",AA72="Win")),0,SUMIFS(BY65:BY79,CC81:CC95,"<=4")) -> 49 | BZ96: =IF((OR(AA72="Forfeit",AA72="Win")),0,SUMIFS(BZ65:BZ79, CC81:CC95, "<=4")) -> 377 | CA96: =IF((OR(AA72="Forfeit",AA72="Win")),0,SUMIFS(CA65:CA79, CC81:CC95, "<=4")) -> 393 | CB96: =IF((OR(AA72="Forfeit",AA72="Win")),0,SUMIFS(CB65:CB79, CC81:CC95, "<=4")) -> 359 | CD96: =IF((OR(AA73="Forfeit",AA73="Win")),0,SUMIFS(CD65:CD79,CI81:CI95,"<=4")) -> 1134 | CE96: =IF((OR(AA73="Forfeit",AA73="Win")),0,SUMIFS(CE65:CE79,CI81:CI95,"<=4")) -> 56 | CF96: =IF((OR(AA73="Forfeit",AA73="Win")),0,SUMIFS(CF65:CF79, CI81:CI95, "<=4")) -> 383 | CG96: =IF((OR(AA73="Forfeit",AA73="Win")),0,SUMIFS(CG65:CG79, CI81:CI95, "<=4")) -> 394 | CH96: =IF((OR(AA73="Forfeit",AA73="Win")),0,SUMIFS(CH65:CH79, CI81:CI95, "<=4")) -> 357 | CJ96: =IF((OR(AA74="Forfeit",AA74="Win")),0,SUMIFS(CJ65:CJ79,CO81:CO95,"<=4")) -> 1116 | CK96: =IF((OR(AA74="Forfeit",AA74="Win")),0,SUMIFS(CK65:CK79,CO81:CO95,"<=4")) -> 38 | CL96: =IF((OR(AA74="Forfeit",AA74="Win")),0,SUMIFS(CL65:CL79, CO81:CO95, "<=4")) -> 377 | CM96: =IF((OR(AA74="Forfeit",AA74="Win")),0,SUMIFS(CM65:CM79, CO81:CO95, "<=4")) -> 387 | CN96: =IF((OR(AA74="Forfeit",AA74="Win")),0,SUMIFS(CN65:CN79, CO81:CO95, "<=4")) -> 352 | CP96: =IF((OR(AA75="Forfeit",AA75="Win")),0,SUMIFS(CP65:CP79,CU81:CU95,"<=4")) -> 1116 | CQ96: =IF((OR(AA75="Forfeit",AA75="Win")),0,SUMIFS(CQ65:CQ79,CU81:CU95,"<=4")) -> 53 | CR96: =IF((OR(AA75="Forfeit",AA75="Win")),0,SUMIFS(CR65:CR79, CU81:CU95, "<=4")) -> 375 | CS96: =IF((OR(AA75="Forfeit",AA75="Win")),0,SUMIFS(CS65:CS79, CU81:CU95, "<=4")) -> 397 | CT96: =IF((OR(AA75="Forfeit",AA75="Win")),0,SUMIFS(CT65:CT79, CU81:CU95, "<=4")) -> 344 | CV96: =IF((OR(AA76="Forfeit",AA76="Win")),0,SUMIFS(CV65:CV79,DA81:DA95,"<=4")) -> 1124 | CW96: =IF((OR(AA76="Forfeit",AA76="Win")),0,SUMIFS(CW65:CW79,DA81:DA95,"<=4")) -> 47 | CX96: =IF((OR(AA76="Forfeit",AA76="Win")),0,SUMIFS(CX65:CX79, DA81:DA95, "<=4")) -> 372 | CY96: =IF((OR(AA76="Forfeit",AA76="Win")),0,SUMIFS(CY65:CY79, DA81:DA95, "<=4")) -> 390 | CZ96: =IF((OR(AA76="Forfeit",AA76="Win")),0,SUMIFS(CZ65:CZ79, DA81:DA95, "<=4")) -> 362 | DB96: =IF((OR(AA77="Forfeit",AA77="Win")),0,SUMIFS(DB65:DB79,DG81:DG95,"<=4")) -> 0 | DC96: =IF((OR(AA77="Forfeit",AA77="Win")),0,SUMIFS(DC65:DC79,DG81:DG95,"<=4")) -> 0 | DD96: =IF((OR(AA77="Forfeit",AA77="Win")),0,SUMIFS(DD65:DD79, DG81:DG95, "<=4")) -> 0 | DE96: =IF((OR(AA77="Forfeit",AA77="Win")),0,SUMIFS(DE65:DE79, DG81:DG95, "<=4")) -> 0 | DF96: =IF((OR(AA77="Forfeit",AA77="Win")),0,SUMIFS(DF65:DF79, DG81:DG95, "<=4")) -> 0 | DH96: =IF((OR(AA78="Forfeit",AA78="Win")),0,SUMIFS(DH65:DH79,DM81:DM95,"<=4")) -> 0 | DI96: =IF((OR(AA78="Forfeit",AA78="Win")),0,SUMIFS(DI65:DI79,DM81:DM95,"<=4")) -> 0 | DJ96: =IF((OR(AA78="Forfeit",AA78="Win")),0,SUMIFS(DJ65:DJ79, DM81:DM95, "<=4")) -> 0 | DK96: =IF((OR(AA78="Forfeit",AA78="Win")),0,SUMIFS(DK65:DK79, DM81:DM95, "<=4")) -> 0 | DL96: =IF((OR(AA78="Forfeit",AA78="Win")),0,SUMIFS(DL65:DL79, DM81:DM95, "<=4")) -> 0 | DN96: =IF((OR(AA79="Forfeit",AA79="Win")),0,SUMIFS(DN65:DN79,DS81:DS95,"<=4")) -> 0 | DO96: =IF((OR(AA79="Forfeit",AA79="Win")),0,SUMIFS(DO65:DO79,DS81:DS95,"<=4")) -> 0 | DP96: =IF((OR(AA79="Forfeit",AA79="Win")),0,SUMIFS(DP65:DP79,DS81:DS95,"<=4")) -> 0 | DQ96: =IF((OR(AA79="Forfeit",AA79="Win")),0,SUMIFS(DQ65:DQ79,DS81:DS95,"<=4")) -> 0 | DR96: =IF((OR(AA79="Forfeit",AA79="Win")),0,SUMIFS(DR65:DR79,DS81:DS95,"<=4")) -> 0 | DT96: =IF((OR(AA80="Forfeit",AA80="Win")),0,SUMIFS(DT65:DT79,DY81:DY95,"<=4")) -> 0 | DU96: =IF((OR(AA80="Forfeit",AA80="Win")),0,SUMIFS(DU65:DU79,DY81:DY95,"<=4")) -> 0 | DV96: =IF((OR(AA80="Forfeit",AA80="Win")),0,SUMIFS(DV65:DV79,DY81:DY95,"<=4")) -> 0 | DW96: =IF((OR(AA80="Forfeit",AA80="Win")),0,SUMIFS(DW65:DW79,DY81:DY95,"<=4")) -> 0 | DX96: =IF((OR(AA80="Forfeit",AA80="Win")),0,SUMIFS(DX65:DX79,DY81:DY95,"<=4")) -> 0
A97: Etowah
A98: Cartersville
A99: Area Sectional/Playoff
A100: Area Championship
A101: Average | B101: =IF(SUM(B85:B100)=0,0,AVERAGE(B85:B100)) -> 94 | C101: =IF(SUM(C85:C100)=0,0,AVERAGE(C85:C100)) -> 93 | D101: =IF(SUM(D85:D100)=0,0,AVERAGE(D85:D100)) -> 83 | E101: =IF(SUM(E85:E100)=0,0,AVERAGE(E85:E100)) -> 270 | G101: =IF(SUM(G85:G100)=0,0,AVERAGE(G85:G100)) -> 89 | H101: =IF(SUM(H85:H100)=0,0,AVERAGE(H85:H100)) -> 86 | I101: =IF(SUM(I85:I100)=0,0,AVERAGE(I85:I100)) -> 67 | J101: =IF(SUM(J85:J100)=0,0,AVERAGE(J85:J100)) -> 242 | L101: =IF(SUM(L85:L100)=0,0,AVERAGE(L85:L100)) -> 89.33333333 | M101: =IF(SUM(M85:M100)=0,0,AVERAGE(M85:M100)) -> 94.66666667 | N101: =IF(SUM(N85:N100)=0,0,AVERAGE(N85:N100)) -> 79.33333333 | O101: =IF(SUM(O85:O100)=0,0,AVERAGE(O85:O100)) -> 263.3333333 | Q101: =IF(SUM(Q85:Q100)=0,0,AVERAGE(Q85:Q100)) -> 90.2 | R101: =IF(SUM(R85:R100)=0,0,AVERAGE(R85:R100)) -> 93.4 | S101: =IF(SUM(S85:S100)=0,0,AVERAGE(S85:S100)) -> 87.4 | T101: =IF(SUM(T85:T100)=0,0,AVERAGE(T85:T100)) -> 271 | V101: =IF(SUM(V85:V100)=0,0,AVERAGE(V85:V100)) -> 0 | W101: =IF(SUM(W85:W100)=0,0,AVERAGE(W85:W100)) -> 0 | X101: =IF(SUM(X85:X100)=0,0,AVERAGE(X85:X100)) -> 0 | Y101: =IF(SUM(Y85:Y100)=0,0,AVERAGE(Y85:Y100)) -> 0
AC102: =A82 -> CK
A103: Cherokee | B103: CK 11 | G103: CK 12 | L103: CK 13 | Q103: CK 14 | V103: CK 15 | AC103: =B103 -> CK 11 | AD103: =G103 -> CK 12 | AE103: =L103 -> CK 13 | AF103: =Q103 -> CK 14 | AG103: =V103 -> CK 15
A104: VS | B104: K | C104: P | D104: S | E104: AGGR | F104: *10 | G104: K | H104: P | I104: S | J104: AGGR | K104: *10 | L104: K | M104: P | N104: S | O104: AGGR | P104: *10 | Q104: K | R104: P | S104: S | T104: AGGR | U104: *10 | V104: K | W104: P | X104: S | Y104: AGGR | Z104: *10 | AC104: =IF(SUM(E105:E120)>0,LARGE(E105:E120,1),0) -> 0 | AD104: =IF(SUM(J105:J120)>0,LARGE(J105:J120,1),0) -> 0 | AE104: =IF(SUM(O105:O120)>0,LARGE(O105:O120,1),0) -> 0 | AF104: =IF(SUM(T105:T120)>0,LARGE(T105:T120,1),0) -> 0 | AG104: =IF(SUM(Y105:Y120)>0,LARGE(Y105:Y120,1),0) -> 0
A105: Gordon Central | E105: =IF(SUM(B105:D105)>0,SUM(B105:D105),"") ->  | J105: =IF(SUM(G105:I105)>0,SUM(G105:I105),"") ->  | O105: =IF(SUM(L105:N105)>0,SUM(L105:N105),"") ->  | T105: =IF(SUM(Q105:S105)>0,SUM(Q105:S105),"") ->  | Y105: =IF(SUM(V105:X105)>0,SUM(V105:X105),"") -> 
A106: @ Dalton
A107: Lafayette | AA107: s
A108: @ Ridgeland | AA108: e
A109: Allatoona | AA109: e
A110: @ Etowah
A111: @ Cartersville | AA111: a
A112: Gordon Central | AA112: b
A113: Dalton | AA113: o
A114: @ Lafayette | AA114: v
A115: Ridgeland | AA115: e
A116: @ Allatoona
A117: Etowah
A118: Cartersville
A119: Area Sectional/Playoff
A120: Area Championship
A121: Average | B121: =IF(SUM(B105:B120)=0,0,AVERAGE(B105:B120)) -> 0 | C121: =IF(SUM(C105:C120)=0,0,AVERAGE(C105:C120)) -> 0 | D121: =IF(SUM(D105:D120)=0,0,AVERAGE(D105:D120)) -> 0 | E121: =IF(SUM(E105:E120)=0,0,AVERAGE(E105:E120)) -> 0 | G121: =IF(SUM(G105:G120)=0,0,AVERAGE(G105:G120)) -> 0 | H121: =IF(SUM(H105:H120)=0,0,AVERAGE(H105:H120)) -> 0 | I121: =IF(SUM(I105:I120)=0,0,AVERAGE(I105:I120)) -> 0 | J121: =IF(SUM(J105:J120)=0,0,AVERAGE(J105:J120)) -> 0 | L121: =IF(SUM(L105:L120)=0,0,AVERAGE(L105:L120)) -> 0 | M121: =IF(SUM(M105:M120)=0,0,AVERAGE(M105:M120)) -> 0 | N121: =IF(SUM(N105:N120)=0,0,AVERAGE(N105:N120)) -> 0 | O121: =IF(SUM(O105:O120)=0,0,AVERAGE(O105:O120)) -> 0 | Q121: =IF(SUM(Q105:Q120)=0,0,AVERAGE(Q105:Q120)) -> 0 | R121: =IF(SUM(R105:R120)=0,0,AVERAGE(R105:R120)) -> 0 | S121: =IF(SUM(S105:S120)=0,0,AVERAGE(S105:S120)) -> 0 | T121: =IF(SUM(T105:T120)=0,0,AVERAGE(T105:T120)) -> 0 | V121: =IF(SUM(V105:V120)=0,0,AVERAGE(V105:V120)) -> 0 | W121: =IF(SUM(W105:W120)=0,0,AVERAGE(W105:W120)) -> 0 | X121: =IF(SUM(X105:X120)=0,0,AVERAGE(X105:X120)) -> 0 | Y121: =IF(SUM(Y105:Y120)=0,0,AVERAGE(Y105:Y120)) -> 0
AC123: =A143 -> DL
A124: Dalton | B124: Sparks, Harrison | G124: Cervantes, Nick | L124: Rivas, Jayson | Q124: Barrera, Zyril | V124: Barrera, Cesar | AA124: MATCH | AC124: =B124 -> Sparks, Harrison | AD124: =G124 -> Cervantes, Nick | AE124: =L124 -> Rivas, Jayson | AF124: =Q124 -> Barrera, Zyril | AG124: =V124 -> Barrera, Cesar | AH124: Match 1 | AM124: RK | AN124: Match 2 | AS124: RK | AT124: Match 3 | AY124: RK | AZ124: Match 4 | BE124: RK | BF124: Match 5 | BK124: RK | BL124: Match 6 | BQ124: RK | BR124: Match 7 | BW124: RK | BX124: Match 8 | CC124: RK | CD124: Match 9 | CI124: RK | CJ124: Match 10 | CO124: RK | CP124: Match 11 | CU124: RK | CV124: Match 12 | DA124: RK | DB124: Match 13 | DG124: RK | DH124: Match 14 | DM124: RK | DN124: Area Playoff | DS124: RK | DT124: Area Championship | DY124: RK | DZ124: AGGR | EA124: Kneeling | EB124: Prone | EC124: Standing
A125: VS | B125: K | C125: P | D125: S | E125: AGGR | F125: *10 | G125: K | H125: P | I125: S | J125: AGGR | K125: *10 | L125: K | M125: P | N125: S | O125: AGGR | P125: *10 | Q125: K | R125: P | S125: S | T125: AGGR | U125: *10 | V125: K | W125: P | X125: S | Y125: AGGR | Z125: *10 | AA125: SCORE | AB125: *10 | AC125: =IF(SUM(E126:E141)>0,LARGE(E126:E141,1),0) -> 275 | AD125: =IF(SUM(J126:J141)>0,LARGE(J126:J141,1),0) -> 264 | AE125: =IF(SUM(O126:O141)>0,LARGE(O126:O141,1),0) -> 203 | AF125: =IF(SUM(T126:T141)>0,LARGE(T126:T141,1),0) -> 241 | AG125: =IF(SUM(Y126:Y141)>0,LARGE(Y126:Y141,1),0) -> 170 | AH125: AGGR | AI125: *10 | AJ125: K | AK125: P | AL125: S | AN125: AGGR | AO125: *10 | AP125: K | AQ125: P | AR125: S | AT125: AGGR | AU125: *10 | AV125: K | AW125: P | AX125: S | AZ125: AGGR | BA125: *10 | BB125: K | BC125: P | BD125: S | BF125: AGGR | BG125: *10 | BH125: K | BI125: P | BJ125: S | BL125: AGGR | BM125: *10 | BN125: K | BO125: P | BP125: S | BR125: AGGR | BS125: *10 | BT125: K | BU125: P | BV125: S | BX125: AGGR | BY125: *10 | BZ125: K | CA125: P | CB125: S | CD125: AGGR | CE125: *10 | CF125: K | CG125: P | CH125: S | CJ125: AGGR | CK125: *10 | CL125: K | CM125: P | CN125: S | CP125: AGGR | CQ125: *10 | CR125: K | CS125: P | CT125: S | CV125: AGGR | CW125: *10 | CX125: K | CY125: P | CZ125: S | DB125: AGGR | DC125: *10 | DD125: K | DE125: P | DF125: S | DH125: AGGR | DI125: *10 | DJ125: K | DK125: P | DL125: S | DN125: AGGR | DO125: *10 | DP125: K | DQ125: P | DR125: S | DT125: AGGR | DU125: *10 | DV125: K | DW125: P | DX125: S | DZ125: Large | EA125: Large | EB125: Large | EC125: Large
A126: @ Etowah | B126: 92 | C126: 97 | D126: 74 | E126: =IF(SUM(B126:D126)>0,SUM(B126:D126),"") -> 263 | F126: 6 | G126: 85 | H126: 96 | I126: 83 | J126: =IF(SUM(G126:I126)>0,SUM(G126:I126),"") -> 264 | K126: 6 | O126: =IF(SUM(L126:N126)>0,SUM(L126:N126),"") ->  | Q126: 57 | R126: 93 | S126: 74 | T126: =IF(SUM(Q126:S126)>0,SUM(Q126:S126),"") -> 224 | U126: 2 | Y126: =IF(SUM(V126:X126)>0,SUM(V126:X126),"") ->  | AA126: =IF(SUM(E126,J126,O126,T126,Y126,Y146,T146,O146,J146,E146,E166,J166,O166,T166,Y166)>0,(LARGE((E126,J126,O126,T126,Y126,Y146,T146,O146,J146,E146,E166,J166,O166,T166,Y166),1)+LARGE((E126,J126,O126,T126,Y126,Y146,T146,O146,J146,E146,E166,J166,O166,T166,Y166),2)+LARGE((E126,J126,O126,T126,Y126,Y146,T146,O146,J146,E146,E166,J166,O166,T166,Y166),3)+LARGE((E126,J126,O126,T126,Y126,Y146,T146,O146,J146,E146,E166,J166,O166,T166,Y166),4)),"") -> 919 | AB126: =IF(SUM(AI157)>0,SUM(AI157),"") -> 15 | AH126: =IF(SUM(B126:D126)>0,SUM(B126:D126),0) -> 263 | AI126: =IF(SUM(F126)>0,SUM(F126),0) -> 6 | AJ126: =B126 -> 92 | AK126: =C126 -> 97 | AL126: =D126 -> 74 | AN126: =IF(SUM(B127:D127)>0,SUM(B127:D127),0) -> 256 | AO126: =IF(SUM(F127)>0,SUM(F127),0) -> 7 | AP126: =B127 -> 88 | AQ126: =C127 -> 93 | AR126: =D127 -> 75 | AT126: =IF(SUM(B128:D128)>0,SUM(B128:D128),0) -> 240 | AU126: =IF(SUM(F128)>0,SUM(F128),0) -> 8 | AV126: =B128 -> 90 | AW126: =C128 -> 96 | AX126: =D128 -> 54 | AZ126: =IF(SUM(B129:D129)>0,SUM(B129:D129),0) -> 262 | BA126: =IF(SUM(F129)>0,SUM(F129),0) -> 7 | BB126: =B129 -> 88 | BC126: =C129 -> 96 | BD126: =D129 -> 78 | BF126: =IF(SUM(B130:D130)>0,SUM(B130:D130),0) -> 266 | BG126: =IF(SUM(F130)>0,SUM(F130),0) -> 8 | BH126: =B130 -> 94 | BI126: =C130 -> 91 | BJ126: =D130 -> 81 | BL126: =IF(SUM(B131:D131)>0,SUM(B131:D131),0) -> 271 | BM126: =IF(SUM(F131)>0,SUM(F131),0) -> 4 | BN126: =B131 -> 91 | BO126: =C131 -> 95 | BP126: =D131 -> 85 | BR126: =IF(SUM(B132:D132)>0,SUM(B132:D132),0) -> 0 | BS126: =IF(SUM(F132)>0,SUM(F132),0) -> 0 | BT126: =B132 -> 0 | BU126: =C132 -> 0 | BV126: =D132 -> 0 | BX126: =IF(SUM(B133:D133)>0,SUM(B133:D133),0) -> 263 | BY126: =IF(SUM(F133)>0,SUM(F133),0) -> 6 | BZ126: =B133 -> 87 | CA126: =C133 -> 92 | CB126: =D133 -> 84 | CD126: =IF(SUM(B134:D134)>0,SUM(B134:D134),0) -> 272 | CE126: =IF(SUM(F134)>0,SUM(F134),0) -> 10 | CF126: =B134 -> 91 | CG126: =C134 -> 97 | CH126: =D134 -> 84 | CJ126: =IF(SUM(B135:D135)>0,SUM(B135:D135),0) -> 270 | CK126: =IF(SUM(F135)>0,SUM(F135),0) -> 6 | CL126: =B135 -> 91 | CM126: =C135 -> 95 | CN126: =D135 -> 84 | CP126: =IF(SUM(B136:D136)>0,SUM(B136:D136),0) -> 275 | CQ126: =IF(SUM(F136)>0,SUM(F136),0) -> 10 | CR126: =B136 -> 92 | CS126: =C136 -> 98 | CT126: =D136 -> 85 | CV126: =IF(SUM(B137:D137)>0,SUM(B137:D137),0) -> 268 | CW126: =IF(SUM(F137)>0,SUM(F137),0) -> 9 | CX126: =B137 -> 96 | CY126: =C137 -> 95 | CZ126: =D137 -> 77 | DB126: =IF(SUM(B138:D138)>0,SUM(B138:D138),0) -> 269 | DC126: =IF(SUM(F138)>0,SUM(F138),0) -> 7 | DD126: =B138 -> 94 | DE126: =C138 -> 95 | DF126: =D138 -> 80 | DH126: =IF(SUM(B139:D139)>0,SUM(B139:D139),0) -> 0 | DI126: =IF(SUM(F139)>0,SUM(F139),0) -> 0 | DJ126: =B139 -> 0 | DK126: =C139 -> 0 | DL126: =D139 -> 0 | DN126: =IF(SUM(B140:D140)>0,SUM(B140:D140),0) -> 0 | DO126: =IF(SUM(F140)>0,SUM(F140),0) -> 0 | DP126: =B140 -> 0 | DQ126: =C140 -> 0 | DR126: =D140 -> 0 | DT126: =IF(SUM(B141:D141)>0,SUM(B141:D141),0) -> 0 | DU126: =IF(SUM(F141)>0,SUM(F141),0) -> 0 | DV126: =B141 -> 0 | DW126: =C141 -> 0 | DX126: =D141 -> 0 | DZ126: =LARGE((DT126,DN126,DH126,DB126,CV126,CP126,CJ126,CD126,BX126,BR126,BL126,BF126,AZ126,AT126,AN126,AH126),1) -> 275 | EA126: =LARGE((AJ126,AP126,AV126,BB126,BH126,BN126,BT126,BZ126,CF126,CL126,CR126,CX126,DD126,DJ126,DP126,DV126),1) -> 96 | EB126: =LARGE((AK126,AQ126,AW126,BC126,BI126,BO126,BU126,CA126,CG126,CM126,CS126,CY126,DE126,DK126,DQ126,DW126),1) -> 98 | EC126: =LARGE((AL126,AR126,AX126,BD126,BJ126,BP126,BV126,CB126,CH126,CN126,CT126,CZ126,DF126,DL126,DR126,DX126),1) -> 85
A127: Cherokee | B127: 88 | C127: 93 | D127: 75 | E127: 256 | F127: 7 | G127: 85 | H127: 91 | I127: 52 | J127: 228 | K127: 3 | L127: 58 | M127: 63 | N127: 46 | O127: 167 | P127: 1 | Q127: 62 | R127: 78 | S127: 27 | T127: 167 | U127: 1 | AA127: =IF(SUM(E127,J127,O127,T127,Y127,Y147,T147,O147,J147,E147,E167,J167,O167,T167,Y167)>0,(LARGE((E127,J127,O127,T127,Y127,Y147,T147,O147,J147,E147,E167,J167,O167,T167,Y167),1)+LARGE((E127,J127,O127,T127,Y127,Y147,T147,O147,J147,E147,E167,J167,O167,T167,Y167),2)+LARGE((E127,J127,O127,T127,Y127,Y147,T147,O147,J147,E147,E167,J167,O167,T167,Y167),3)+LARGE((E127,J127,O127,T127,Y127,Y147,T147,O147,J147,E147,E167,J167,O167,T167,Y167),4)),"") -> 818 | AB127: =IF(SUM(AO157)>0,SUM(AO157),"") -> 12 | AH127: =IF(SUM(G126:I126)>0,SUM(G126:I126),0) -> 264 | AI127: =IF(SUM(K126)>0,SUM(K126),0) -> 6 | AJ127: =G126 -> 85 | AK127: =H126 -> 96 | AL127: =I126 -> 83 | AN127: =IF(SUM(G127:I127)>0,SUM(G127:I127),0) -> 228 | AO127: =IF(SUM(K127)>0,SUM(K127),0) -> 3 | AP127: =G127 -> 85 | AQ127: =H127 -> 91 | AR127: =I127 -> 52 | AT127: =IF(SUM(G128:I128)>0,SUM(G128:I128),0) -> 0 | AU127: =IF(SUM(K128)>0,SUM(K128),0) -> 0 | AV127: =G128 -> 0 | AW127: =H128 -> 0 | AX127: =I128 -> 0 | AZ127: =IF(SUM(G129:I129)>0,SUM(G129:I129),0) -> 234 | BA127: =IF(SUM(K129)>0,SUM(K129),0) -> 3 | BB127: =G129 -> 77 | BC127: =H129 -> 93 | BD127: =I129 -> 64 | BF127: =IF(SUM(G130:I130)>0,SUM(G130:I130),0) -> 245 | BG127: =IF(SUM(K130)>0,SUM(K130),0) -> 3 | BH127: =G130 -> 81 | BI127: =H130 -> 90 | BJ127: =I130 -> 74 | BL127: =IF(SUM(G131:I131)>0,SUM(G131:I131),0) -> 251 | BM127: =IF(SUM(K131)>0,SUM(K131),0) -> 4 | BN127: =G131 -> 85 | BO127: =H131 -> 92 | BP127: =I131 -> 74 | BR127: =IF(SUM(G132:I132)>0,SUM(G132:I132),0) -> 247 | BS127: =IF(SUM(K132)>0,SUM(K132),0) -> 4 | BT127: =G132 -> 78 | BU127: =H132 -> 96 | BV127: =I132 -> 73 | BX127: =IF(SUM(G133:I133)>0,SUM(G133:I133),0) -> 0 | BY127: =IF(SUM(K133)>0,SUM(K133),0) -> 0 | BZ127: =G133 -> 0 | CA127: =H133 -> 0 | CB127: =I133 -> 0 | CD127: =IF(SUM(G134:I134)>0,SUM(G134:I134),0) -> 0 | CE127: =IF(SUM(K134)>0,SUM(K134),0) -> 0 | CF127: =G134 -> 0 | CG127: =H134 -> 0 | CH127: =I134 -> 0 | CJ127: =IF(SUM(G135:I135)>0,SUM(G135:I135),0) -> 249 | CK127: =IF(SUM(K135)>0,SUM(K135),0) -> 5 | CL127: =G135 -> 88 | CM127: =H135 -> 93 | CN127: =I135 -> 68 | CP127: =IF(SUM(G136:I136)>0,SUM(G136:I136),0) -> 244 | CQ127: =IF(SUM(K136)>0,SUM(K136),0) -> 3 | CR127: =G136 -> 82 | CS127: =H136 -> 88 | CT127: =I136 -> 74 | CV127: =IF(SUM(G137:I137)>0,SUM(G137:I137),0) -> 241 | CW127: =IF(SUM(K137)>0,SUM(K137),0) -> 4 | CX127: =G137 -> 81 | CY127: =H137 -> 90 | CZ127: =I137 -> 70 | DB127: =IF(SUM(G138:I138)>0,SUM(G138:I138),0) -> 254 | DC127: =IF(SUM(K138)>0,SUM(K138),0) -> 7 | DD127: =G138 -> 89 | DE127: =H138 -> 93 | DF127: =I138 -> 72 | DH127: =IF(SUM(G139:I139)>0,SUM(G139:I139),0) -> 0 | DI127: =IF(SUM(K139)>0,SUM(K139),0) -> 0 | DJ127: =G139 -> 0 | DK127: =H139 -> 0 | DL127: =I139 -> 0 | DN127: =IF(SUM(G140:I140)>0,SUM(G140:I140),0) -> 0 | DO127: =IF(SUM(K140)>0,SUM(K140),0) -> 0 | DP127: =G140 -> 0 | DQ127: =H140 -> 0 | DR127: =I140 -> 0 | DT127: =IF(SUM(G141:I141)>0,SUM(G141:I141),0) -> 0 | DU127: =IF(SUM(K141)>0,SUM(K141),0) -> 0 | DV127: =G141 -> 0 | DW127: =H141 -> 0 | DX127: =I141 -> 0 | DZ127: =LARGE((DT127,DN127,DH127,DB127,CV127,CP127,CJ127,CD127,BX127,BR127,BL127,BF127,AZ127,AT127,AN127,AH127),1) -> 264 | EA127: =LARGE((AJ127,AP127,AV127,BB127,BH127,BN127,BT127,BZ127,CF127,CL127,CR127,CX127,DD127,DJ127,DP127,DV127),1) -> 89 | EB127: =LARGE((AK127,AQ127,AW127,BC127,BI127,BO127,BU127,CA127,CG127,CM127,CS127,CY127,DE127,DK127,DQ127,DW127),1) -> 96 | EC127: =LARGE((AL127,AR127,AX127,BD127,BJ127,BP127,BV127,CB127,CH127,CN127,CT127,CZ127,DF127,DL127,DR127,DX127),1) -> 83
A128: @ Cartersville | B128: 90 | C128: 96 | D128: 54 | E128: 240 | F128: 8 | L128: 64 | M128: 65 | N128: 56 | O128: 185 | P128: 1 | Q128: 72 | R128: 82 | S128: 58 | T128: 212 | U128: 0 | V128: 62 | W128: 68 | X128: 22 | Y128: 152 | Z128: 1 | AA128: =IF(SUM(E128,J128,O128,T128,Y128,Y148,T148,O148,J148,E148,E168,J168,O168,T168,Y168)>0,(LARGE((E128,J128,O128,T128,Y128,Y148,T148,O148,J148,E148,E168,J168,O168,T168,Y168),1)+LARGE((E128,J128,O128,T128,Y128,Y148,T148,O148,J148,E148,E168,J168,O168,T168,Y168),2)+LARGE((E128,J128,O128,T128,Y128,Y148,T148,O148,J148,E148,E168,J168,O168,T168,Y168),3)+LARGE((E128,J128,O128,T128,Y128,Y148,T148,O148,J148,E148,E168,J168,O168,T168,Y168),4)),"") -> 789 | AB128: =IF(SUM(AU157)>0, SUM(AU157),"") -> 10 | AH128: =IF(SUM(L126:N126)>0,SUM(L126:N126),0) -> 0 | AI128: =IF(SUM(P126)>0,SUM(P126),0) -> 0 | AJ128: =L126 -> 0 | AK128: =M126 -> 0 | AL128: =N126 -> 0 | AN128: =IF(SUM(L127:N127)>0,SUM(L127:N127),0) -> 167 | AO128: =IF(SUM(P127)>0,SUM(P127),0) -> 1 | AP128: =L127 -> 58 | AQ128: =M127 -> 63 | AR128: =N127 -> 46 | AT128: =IF(SUM(L128:N128)>0,SUM(L128:N128),0) -> 185 | AU128: =IF(SUM(P128)>0,SUM(P128),0) -> 1 | AV128: =L128 -> 64 | AW128: =M128 -> 65 | AX128: =N128 -> 56 | AZ128: =IF(SUM(L129:N129)>0,SUM(L129:N129),0) -> 0 | BA128: =IF(SUM(P129)>0,SUM(P129),0) -> 0 | BB128: =L129 -> 0 | BC128: =M129 -> 0 | BD128: =N129 -> 0 | BF128: =IF(SUM(L130:N130)>0,SUM(L130:N130),0) -> 0 | BG128: =IF(SUM(P130)>0,SUM(P130),0) -> 0 | BH128: =L130 -> 0 | BI128: =M130 -> 0 | BJ128: =N130 -> 0 | BL128: =IF(SUM(L131:N131)>0,SUM(L131:N131),0) -> 167 | BM128: =IF(SUM(P131)>0,SUM(P131),0) -> 0 | BN128: =L131 -> 64 | BO128: =M131 -> 66 | BP128: =N131 -> 37 | BR128: =IF(SUM(L132:N132)>0,SUM(L132:N132),0) -> 195 | BS128: =IF(SUM(P132)>0,SUM(P132),0) -> 0 | BT128: =L132 -> 58 | BU128: =M132 -> 76 | BV128: =N132 -> 61 | BX128: =IF(SUM(L133:N133)>0,SUM(L133:N133),0) -> 203 | BY128: =IF(SUM(P133)>0,SUM(P133),0) -> 0 | BZ128: =L133 -> 69 | CA128: =M133 -> 77 | CB128: =N133 -> 57 | CD128: =IF(SUM(L134:N134)>0,SUM(L134:N134),0) -> 196 | CE128: =IF(SUM(P134)>0,SUM(P134),0) -> 1 | CF128: =L134 -> 77 | CG128: =M134 -> 59 | CH128: =N134 -> 60 | CJ128: =IF(SUM(L135:N135)>0,SUM(L135:N135),0) -> 0 | CK128: =IF(SUM(P135)>0,SUM(P135),0) -> 0 | CL128: =L135 -> 0 | CM128: =M135 -> 0 | CN128: =N135 -> 0 | CP128: =IF(SUM(L136:N136)>0,SUM(L136:N136),0) -> 0 | CQ128: =IF(SUM(P136)>0,SUM(P136),0) -> 0 | CR128: =L136 -> 0 | CS128: =M136 -> 0 | CT128: =N136 -> 0 | CV128: =IF(SUM(L137:N137)>0,SUM(L137:N137),0) -> 0 | CW128: =IF(SUM(P137)>0,SUM(P137),0) -> 0 | CX128: =L137 -> 0 | CY128: =M137 -> 0 | CZ128: =N137 -> 0 | DB128: =IF(SUM(L138:N138)>0,SUM(L138:N138),0) -> 0 | DC128: =IF(SUM(P138)>0,SUM(P138),0) -> 0 | DD128: =L138 -> 0 | DE128: =M138 -> 0 | DF128: =N138 -> 0 | DH128: =IF(SUM(L139:N139)>0,SUM(L139:N139),0) -> 0 | DI128: =IF(SUM(P139)>0,SUM(P139),0) -> 0 | DJ128: =L139 -> 0 | DK128: =M139 -> 0 | DL128: =N139 -> 0 | DN128: =IF(SUM(L140:N140)>0,SUM(L140:N140),0) -> 0 | DO128: =IF(SUM(P140)>0,SUM(P140),0) -> 0 | DP128: =L140 -> 0 | DQ128: =M140 -> 0 | DR128: =N140 -> 0 | DT128: =IF(SUM(L141:N141)>0,SUM(L141:N141),0) -> 0 | DU128: =IF(SUM(P141)>0,SUM(P141),0) -> 0 | DV128: =L141 -> 0 | DW128: =M141 -> 0 | DX128: =N141 -> 0 | DZ128: =LARGE((DT128,DN128,DH128,DB128,CV128,CP128,CJ128,CD128,BX128,BR128,BL128,BF128,AZ128,AT128,AN128,AH128),1) -> 203 | EA128: =LARGE((AJ128,AP128,AV128,BB128,BH128,BN128,BT128,BZ128,CF128,CL128,CR128,CX128,DD128,DJ128,DP128,DV128),1) -> 77 | EB128: =LARGE((AK128,AQ128,AW128,BC128,BI128,BO128,BU128,CA128,CG128,CM128,CS128,CY128,DE128,DK128,DQ128,DW128),1) -> 77 | EC128: =LARGE((AL128,AR128,AX128,BD128,BJ128,BP128,BV128,CB128,CH128,CN128,CT128,CZ128,DF128,DL128,DR128,DX128),1) -> 61
A129: @ Allatoona | B129: 88 | C129: 96 | D129: 78 | E129: 262 | F129: 7 | G129: 77 | H129: 93 | I129: 64 | J129: 234 | K129: 3 | Q129: 68 | R129: 85 | S129: 68 | T129: 221 | U129: 0 | AA129: =IF(SUM(E129,J129,O129,T129,Y129,Y149,T149,O149,J149,E149,E169,J169,O169,T169,Y169)>0,(LARGE((E129,J129,O129,T129,Y129,Y149,T149,O149,J149,E149,E169,J169,O169,T169,Y169),1)+LARGE((E129,J129,O129,T129,Y129,Y149,T149,O149,J149,E149,E169,J169,O169,T169,Y169),2)+LARGE((E129,J129,O129,T129,Y129,Y149,T149,O149,J149,E149,E169,J169,O169,T169,Y169),3)+LARGE((E129,J129,O129,T129,Y129,Y149,T149,O149,J149,E149,E169,J169,O169,T169,Y169),4)),"") -> 889 | AB129: =IF(SUM(BA157)>0, SUM(BA157),"") -> 12 | AH129: =IF(SUM(Q126:S126)>0,SUM(Q126:S126),0) -> 224 | AI129: =IF(SUM(U126)>0,SUM(U126),0) -> 2 | AJ129: =Q126 -> 57 | AK129: =R126 -> 93 | AL129: =S126 -> 74 | AN129: =IF(SUM(Q127:S127)>0,SUM(Q127:S127),0) -> 167 | AO129: =IF(SUM(U127)>0,SUM(U127),0) -> 1 | AP129: =Q127 -> 62 | AQ129: =R127 -> 78 | AR129: =S127 -> 27 | AT129: =IF(SUM(Q128:S128)>0,SUM(Q128:S128),0) -> 212 | AU129: =IF(SUM(U128)>0,SUM(U128),0) -> 0 | AV129: =Q128 -> 72 | AW129: =R128 -> 82 | AX129: =S128 -> 58 | AZ129: =IF(SUM(Q129:S129)>0,SUM(Q129:S129),0) -> 221 | BA129: =IF(SUM(U129)>0,SUM(U129),0) -> 0 | BB129: =Q129 -> 68 | BC129: =R129 -> 85 | BD129: =S129 -> 68 | BF129: =IF(SUM(Q130:S130)>0,SUM(Q130:S130),0) -> 0 | BG129: =IF(SUM(U130)>0,SUM(U130),0) -> 0 | BH129: =Q130 -> 0 | BI129: =R130 -> 0 | BJ129: =S130 -> 0 | BL129: =IF(SUM(Q131:S131)>0,SUM(Q131:S131),0) -> 0 | BM129: =IF(SUM(U131)>0,SUM(U131),0) -> 0 | BN129: =Q131 -> 0 | BO129: =R131 -> 0 | BP129: =S131 -> 0 | BR129: =IF(SUM(Q132:S132)>0,SUM(Q132:S132),0) -> 218 | BS129: =IF(SUM(U132)>0,SUM(U132),0) -> 0 | BT129: =Q132 -> 72 | BU129: =R132 -> 80 | BV129: =S132 -> 66 | BX129: =IF(SUM(Q133:S133)>0,SUM(Q133:S133),0) -> 241 | BY129: =IF(SUM(U133)>0,SUM(U133),0) -> 3 | BZ129: =Q133 -> 83 | CA129: =R133 -> 91 | CB129: =S133 -> 67 | CD129: =IF(SUM(Q134:S134)>0,SUM(Q134:S134),0) -> 0 | CE129: =IF(SUM(U134)>0,SUM(U134),0) -> 0 | CF129: =Q134 -> 0 | CG129: =R134 -> 0 | CH129: =S134 -> 0 | CJ129: =IF(SUM(Q135:S135)>0,SUM(Q135:S135),0) -> 221 | CK129: =IF(SUM(U135)>0,SUM(U135),0) -> 1 | CL129: =Q135 -> 75 | CM129: =R135 -> 87 | CN129: =S135 -> 59 | CP129: =IF(SUM(Q136:S136)>0,SUM(Q136:S136),0) -> 240 | CQ129: =IF(SUM(U136)>0,SUM(U136),0) -> 4 | CR129: =Q136 -> 79 | CS129: =R136 -> 91 | CT129: =S136 -> 70 | CV129: =IF(SUM(Q137:S137)>0,SUM(Q137:S137),0) -> 241 | CW129: =IF(SUM(U137)>0,SUM(U137),0) -> 1 | CX129: =Q137 -> 82 | CY129: =R137 -> 87 | CZ129: =S137 -> 72 | DB129: =IF(SUM(Q138:S138)>0,SUM(Q138:S138),0) -> 0 | DC129: =IF(SUM(U138)>0,SUM(U138),0) -> 0 | DD129: =Q138 -> 0 | DE129: =R138 -> 0 | DF129: =S138 -> 0 | DH129: =IF(SUM(Q139:S139)>0,SUM(Q139:S139),0) -> 0 | DI129: =IF(SUM(U139)>0,SUM(U139),0) -> 0 | DJ129: =Q139 -> 0 | DK129: =R139 -> 0 | DL129: =S139 -> 0 | DN129: =IF(SUM(Q140:S140)>0,SUM(Q140:S140),0) -> 0 | DO129: =IF(SUM(U140)>0,SUM(U140),0) -> 0 | DP129: =Q140 -> 0 | DQ129: =R140 -> 0 | DR129: =S140 -> 0 | DT129: =IF(SUM(Q141:S141)>0,SUM(Q141:S141),0) -> 0 | DU129: =IF(SUM(U141)>0,SUM(U141),0) -> 0 | DV129: =Q141 -> 0 | DW129: =R141 -> 0 | DX129: =S141 -> 0 | DZ129: =LARGE((DT129,DN129,DH129,DB129,CV129,CP129,CJ129,CD129,BX129,BR129,BL129,BF129,AZ129,AT129,AN129,AH129),1) -> 241 | EA129: =LARGE((AJ129,AP129,AV129,BB129,BH129,BN129,BT129,BZ129,CF129,CL129,CR129,CX129,DD129,DJ129,DP129,DV129),1) -> 83 | EB129: =LARGE((AK129,AQ129,AW129,BC129,BI129,BO129,BU129,CA129,CG129,CM129,CS129,CY129,DE129,DK129,DQ129,DW129),1) -> 93 | EC129: =LARGE((AL129,AR129,AX129,BD129,BJ129,BP129,BV129,CB129,CH129,CN129,CT129,CZ129,DF129,DL129,DR129,DX129),1) -> 74
A130: Ridgeland | B130: 94 | C130: 91 | D130: 81 | E130: 266 | F130: 8 | G130: 81 | H130: 90 | I130: 74 | J130: 245 | K130: 3 | V130: 53 | W130: 44 | X130: 18 | Y130: =SUM(V130:X130) -> 115 | Z130: 1 | AA130: =IF(SUM(E130,J130,O130,T130,Y130,Y150,T150,O150,J150,E150,E170,J170,O170,T170,Y170)>0,(LARGE((E130,J130,O130,T130,Y130,Y150,T150,O150,J150,E150,E170,J170,O170,T170,Y170),1)+LARGE((E130,J130,O130,T130,Y130,Y150,T150,O150,J150,E150,E170,J170,O170,T170,Y170),2)+LARGE((E130,J130,O130,T130,Y130,Y150,T150,O150,J150,E150,E170,J170,O170,T170,Y170),3)+LARGE((E130,J130,O130,T130,Y130,Y150,T150,O150,J150,E150,E170,J170,O170,T170,Y170),4)),"") -> 840 | AB130: =IF(SUM(BG157)>0,SUM(BG157),"") -> 14 | AC130: =SUM(V130:X130) -> 115 | AH130: =IF(SUM(V126:X126)>0,SUM(V126:X126),0) -> 0 | AI130: =IF(SUM(Z126)>0,SUM(Z126),0) -> 0 | AJ130: =V126 -> 0 | AK130: =W126 -> 0 | AL130: =X126 -> 0 | AN130: =IF(SUM(V127:X127)>0,SUM(V127:X127),0) -> 0 | AO130: =IF(SUM(Z127)>0,SUM(Z127),0) -> 0 | AP130: =V127 -> 0 | AQ130: =W127 -> 0 | AR130: =X127 -> 0 | AT130: =IF(SUM(V128:X128)>0,SUM(V128:X128),0) -> 152 | AU130: =IF(SUM(Z128)>0,SUM(Z128),0) -> 1 | AV130: =V128 -> 62 | AW130: =W128 -> 68 | AX130: =X128 -> 22 | AZ130: =IF(SUM(V129:X129)>0,SUM(V129:X129),0) -> 0 | BA130: =IF(SUM(Z129)>0,SUM(Z129),0) -> 0 | BB130: =V129 -> 0 | BC130: =W129 -> 0 | BD130: =X129 -> 0 | BF130: =IF(SUM(V130:X130)>0,SUM(V130:X130),0) -> 115 | BG130: =IF(SUM(Z130)>0,SUM(Z130),0) -> 1 | BH130: =V130 -> 53 | BI130: =W130 -> 44 | BJ130: =X130 -> 18 | BL130: =IF(SUM(V131:X131)>0,SUM(V131:X131),0) -> 0 | BM130: =IF(SUM(Z131)>0,SUM(Z131),0) -> 0 | BN130: =V131 -> 0 | BO130: =W131 -> 0 | BP130: =X131 -> 0 | BR130: =IF(SUM(V132:X132)>0,SUM(V132:X132),0) -> 0 | BS130: =IF(SUM(Z132)>0,SUM(Z132),0) -> 0 | BT130: =V132 -> 0 | BU130: =W132 -> 0 | BV130: =X132 -> 0 | BX130: =IF(SUM(V133:X133)>0,SUM(V133:X133),0) -> 0 | BY130: =IF(SUM(Z133)>0,SUM(Z133),0) -> 0 | BZ130: =V133 -> 0 | CA130: =W133 -> 0 | CB130: =X133 -> 0 | CD130: =IF(SUM(V134:X134)>0,SUM(V134:X134),0) -> 146 | CE130: =IF(SUM(Z134)>0,SUM(Z134),0) -> 0 | CF130: =V134 -> 43 | CG130: =W134 -> 79 | CH130: =X134 -> 24 | CJ130: =IF(SUM(V135:X135)>0,SUM(V135:X135),0) -> 0 | CK130: =IF(SUM(Z135)>0,SUM(Z135),0) -> 0 | CL130: =V135 -> 0 | CM130: =W135 -> 0 | CN130: =X135 -> 0 | CP130: =IF(SUM(V136:X136)>0,SUM(V136:X136),0) -> 170 | CQ130: =IF(SUM(Z136)>0,SUM(Z136),0) -> 0 | CR130: =V136 -> 63 | CS130: =W136 -> 72 | CT130: =X136 -> 35 | CV130: =IF(SUM(V137:X137)>0,SUM(V137:X137),0) -> 0 | CW130: =IF(SUM(Z137)>0,SUM(Z137),0) -> 0 | CX130: =V137 -> 0 | CY130: =W137 -> 0 | CZ130: =X137 -> 0 | DB130: =IF(SUM(V138:X138)>0,SUM(V138:X138),0) -> 157 | DC130: =IF(SUM(Z138)>0,SUM(Z138),0) -> 2 | DD130: =V138 -> 53 | DE130: =W138 -> 79 | DF130: =X138 -> 25 | DH130: =IF(SUM(V139:X139)>0,SUM(V139:X139),0) -> 0 | DI130: =IF(SUM(Z139)>0,SUM(Z139),0) -> 0 | DJ130: =V139 -> 0 | DK130: =W139 -> 0 | DL130: =X139 -> 0 | DN130: =IF(SUM(V140:X140)>0,SUM(V140:X140),0) -> 0 | DO130: =IF(SUM(Z140)>0,SUM(Z140),0) -> 0 | DP130: =V140 -> 0 | DQ130: =W140 -> 0 | DR130: =X140 -> 0 | DT130: =IF(SUM(V141:X141)>0,SUM(V141:X141),0) -> 0 | DU130: =IF(SUM(Z141)>0,SUM(Z141),0) -> 0 | DV130: =V141 -> 0 | DW130: =W141 -> 0 | DX130: =X141 -> 0 | DZ130: =LARGE((DT130,DN130,DH130,DB130,CV130,CP130,CJ130,CD130,BX130,BR130,BL130,BF130,AZ130,AT130,AN130,AH130),1) -> 170 | EA130: =LARGE((AJ130,AP130,AV130,BB130,BH130,BN130,BT130,BZ130,CF130,CL130,CR130,CX130,DD130,DJ130,DP130,DV130),1) -> 63 | EB130: =LARGE((AK130,AQ130,AW130,BC130,BI130,BO130,BU130,CA130,CG130,CM130,CS130,CY130,DE130,DK130,DQ130,DW130),1) -> 79 | EC130: =LARGE((AL130,AR130,AX130,BD130,BJ130,BP130,BV130,CB130,CH130,CN130,CT130,CZ130,DF130,DL130,DR130,DX130),1) -> 35
A131: @ Lafayette | B131: 91 | C131: 95 | D131: 85 | E131: 271 | F131: 4 | G131: 85 | H131: 92 | I131: 74 | J131: 251 | K131: 4 | L131: 64 | M131: 66 | N131: 37 | O131: 167 | P131: 0 | AA131: =IF(SUM(E131,J131,O131,T131,Y131,Y151,T151,O151,J151,E151,E171,J171,O171,T171,Y171)>0,(LARGE((E131,J131,O131,T131,Y131,Y151,T151,O151,J151,E151,E171,J171,O171,T171,Y171),1)+LARGE((E131,J131,O131,T131,Y131,Y151,T151,O151,J151,E151,E171,J171,O171,T171,Y171),2)+LARGE((E131,J131,O131,T131,Y131,Y151,T151,O151,J151,E151,E171,J171,O171,T171,Y171),3)+LARGE((E131,J131,O131,T131,Y131,Y151,T151,O151,J151,E151,E171,J171,O171,T171,Y171),4)),"") -> 858 | AB131: =IF(SUM(BM157)>0,SUM(BM157),"") -> 8 | AH131: =IF(SUM(B146:D146)>0,SUM(B146:D146),0) -> 168 | AI131: =IF(SUM(F146)>0,SUM(F146),0) -> 1 | AJ131: =B146 -> 53 | AK131: =C146 -> 76 | AL131: =D146 -> 39 | AN131: =IF(SUM(B147:D147)>0,SUM(B147:D147),0) -> 0 | AO131: =IF(SUM(F147)>0,SUM(F147),0) -> 0 | AP131: =B147 -> 0 | AQ131: =C147 -> 0 | AR131: =D147 -> 0 | AT131: =IF(SUM(B148:D148)>0,SUM(B148:D148),0) -> 0 | AU131: =IF(SUM(F148)>0,SUM(F148),0) -> 0 | AV131: =B148 -> 0 | AW131: =C148 -> 0 | AX131: =D148 -> 0 | AZ131: =IF(SUM(B149:D149)>0,SUM(B149:D149),0) -> 172 | BA131: =IF(SUM(F149)>0,SUM(F149),0) -> 2 | BB131: =B149 -> 50 | BC131: =C149 -> 76 | BD131: =D149 -> 46 | BF131: =IF(SUM(B150:D150)>0,SUM(B150:D150),0) -> 214 | BG131: =IF(SUM(F150)>0,SUM(F150),0) -> 2 | BH131: =B150 -> 61 | BI131: =C150 -> 78 | BJ131: =D150 -> 75 | BL131: =IF(SUM(B151:D151)>0,SUM(B151:D151),0) -> 169 | BM131: =IF(SUM(F151)>0,SUM(F151),0) -> 0 | BN131: =B151 -> 49 | BO131: =C151 -> 52 | BP131: =D151 -> 68 | BR131: =IF(SUM(B152:D152)>0,SUM(B152:D152),0) -> 217 | BS131: =IF(SUM(F152)>0,SUM(F152),0) -> 2 | BT131: =B152 -> 70 | BU131: =C152 -> 91 | BV131: =D152 -> 56 | BX131: =IF(SUM(B153:D153)>0,SUM(B153:D153),0) -> 0 | BY131: =IF(SUM(F153)>0,SUM(F153),0) -> 0 | BZ131: =B153 -> 0 | CA131: =C153 -> 0 | CB131: =D153 -> 0 | CD131: =IF(SUM(B154:D154)>0,SUM(B154:D154),0) -> 0 | CE131: =IF(SUM(F154)>0,SUM(F154),0) -> 0 | CF131: =B154 -> 0 | CG131: =C154 -> 0 | CH131: =D154 -> 0 | CJ131: =IF(SUM(B155:D155)>0,SUM(B155:D155),0) -> 231 | CK131: =IF(SUM(F155)>0,SUM(F155),0) -> 2 | CL131: =B155 -> 80 | CM131: =C155 -> 90 | CN131: =D155 -> 61 | CP131: =IF(SUM(B156:D156)>0,SUM(B156:D156),0) -> 216 | CQ131: =IF(SUM(F156)>0,SUM(F156),0) -> 0 | CR131: =B156 -> 69 | CS131: =C156 -> 79 | CT131: =D156 -> 68 | CV131: =IF(SUM(B157:D157)>0,SUM(B157:D157),0) -> 242 | CW131: =IF(SUM(F157)>0,SUM(F157),0) -> 3 | CX131: =B157 -> 82 | CY131: =C157 -> 88 | CZ131: =D157 -> 72 | DB131: =IF(SUM(B158:D158)>0,SUM(B158:D158),0) -> 200 | DC131: =IF(SUM(F158)>0,SUM(F158),0) -> 1 | DD131: =B158 -> 63 | DE131: =C158 -> 80 | DF131: =D158 -> 57 | DH131: =IF(SUM(B159:D159)>0,SUM(B159:D159),0) -> 0 | DI131: =IF(SUM(F159)>0,SUM(F159),0) -> 0 | DJ131: =B159 -> 0 | DK131: =C159 -> 0 | DL131: =D159 -> 0 | DN131: =IF(SUM(B160:D160)>0,SUM(B160:D160),0) -> 0 | DO131: =IF(SUM(F160)>0,SUM(F159),0) -> 0 | DP131: =B160 -> 0 | DQ131: =C160 -> 0 | DR131: =D160 -> 0 | DT131: =IF(SUM(B161:D161)>0,SUM(B161:D161),0) -> 0 | DU131: =IF(SUM(F161)>0,SUM(F161),0) -> 0 | DV131: =B161 -> 0 | DW131: =C161 -> 0 | DX131: =D161 -> 0 | DZ131: =LARGE((DT131,DN131,DH131,DB131,CV131,CP131,CJ131,CD131,BX131,BR131,BL131,BF131,AZ131,AT131,AN131,AH131),1) -> 242 | EA131: =LARGE((AJ131,AP131,AV131,BB131,BH131,BN131,BT131,BZ131,CF131,CL131,CR131,CX131,DD131,DJ131,DP131,DV131),1) -> 82 | EB131: =LARGE((AK131,AQ131,AW131,BC131,BI131,BO131,BU131,CA131,CG131,CM131,CS131,CY131,DE131,DK131,DQ131,DW131),1) -> 91 | EC131: =LARGE((AL131,AR131,AX131,BD131,BJ131,BP131,BV131,CB131,CH131,CN131,CT131,CZ131,DF131,DL131,DR131,DX131),1) -> 75
A132: Gordon Central | G132: 78 | H132: 96 | I132: 73 | J132: 247 | K132: 4 | L132: 58 | M132: 76 | N132: 61 | O132: 195 | P132: 0 | Q132: 72 | R132: 80 | S132: 66 | T132: 218 | U132: 0 | AA132: =IF(SUM(E132,J132,O132,T132,Y132,Y152,T152,O152,J152,E152,E172,J172,O172,T172,Y172)>0,(LARGE((E132,J132,O132,T132,Y132,Y152,T152,O152,J152,E152,E172,J172,O172,T172,Y172),1)+LARGE((E132,J132,O132,T132,Y132,Y152,T152,O152,J152,E152,E172,J172,O172,T172,Y172),2)+LARGE((E132,J132,O132,T132,Y132,Y152,T152,O152,J152,E152,E172,J172,O172,T172,Y172),3)+LARGE((E132,J132,O132,T132,Y132,Y152,T152,O152,J152,E152,E172,J172,O172,T172,Y172),4)),"") -> 877 | AB132: =IF(SUM(BS157)>0,SUM(BS157),"") -> 6 | AH132: =IF(SUM(G146:I146)>0,SUM(G146:I146),0) -> 165 | AI132: =IF(SUM(K146)>0,SUM(K146),0) -> 1 | AJ132: =G146 -> 56 | AK132: =H146 -> 52 | AL132: =I146 -> 57 | AN132: =IF(SUM(G147:I147)>0,SUM(G147:I147),0) -> 0 | AO132: =IF(SUM(K147)>0,SUM(K147),0) -> 0 | AP132: =G147 -> 0 | AQ132: =H147 -> 0 | AR132: =I147 -> 0 | AT132: =IF(SUM(G148:I148)>0,SUM(G148:I148),0) -> 0 | AU132: =IF(SUM(K148)>0,SUM(K148),0) -> 0 | AV132: =G148 -> 0 | AW132: =H148 -> 0 | AX132: =I148 -> 0 | AZ132: =IF(SUM(G149:I149)>0,SUM(G149:I149),0) -> 0 | BA132: =IF(SUM(K149)>0,SUM(K149),0) -> 0 | BB132: =G149 -> 0 | BC132: =H149 -> 0 | BD132: =I149 -> 0 | BF132: =IF(SUM(G150:I150)>0,SUM(G150:I150),0) -> 0 | BG132: =IF(SUM(K150)>0,SUM(K150),0) -> 0 | BH132: =G150 -> 0 | BI132: =H150 -> 0 | BJ132: =I150 -> 0 | BL132: =IF(SUM(G151:I151)>0,SUM(G151:I151),0) -> 0 | BM132: =IF(SUM(K151)>0,SUM(K151),0) -> 0 | BN132: =G151 -> 0 | BO132: =H151 -> 0 | BP132: =I151 -> 0 | BR132: =IF(SUM(G152:I152)>0,SUM(G152:I152),0) -> 0 | BS132: =IF(SUM(K152)>0,SUM(K152),0) -> 0 | BT132: =G152 -> 0 | BU132: =H152 -> 0 | BV132: =I152 -> 0 | BX132: =IF(SUM(G153:I153)>0,SUM(G153:I153),0) -> 172 | BY132: =IF(SUM(K153)>0,SUM(K153),0) -> 1 | BZ132: =G153 -> 51 | CA132: =H153 -> 77 | CB132: =I153 -> 44 | CD132: =IF(SUM(G154:I154)>0,SUM(G154:I154),0) -> 235 | CE132: =IF(SUM(K154)>0,SUM(K154),0) -> 3 | CF132: =G154 -> 81 | CG132: =H154 -> 89 | CH132: =I154 -> 65 | CJ132: =IF(SUM(G155:I155)>0,SUM(G155:I155),0) -> 191 | CK132: =IF(SUM(K155)>0,SUM(K155),0) -> 0 | CL132: =G155 -> 71 | CM132: =H155 -> 61 | CN132: =I155 -> 59 | CP132: =IF(SUM(G156:I156)>0,SUM(G156:I156),0) -> 0 | CQ132: =IF(SUM(K156)>0,SUM(K156),0) -> 0 | CR132: =G156 -> 0 | CS132: =H156 -> 0 | CT132: =I156 -> 0 | CV132: =IF(SUM(G157:I157)>0,SUM(G157:I157),0) -> 213 | CW132: =IF(SUM(K157)>0,SUM(K157),0) -> 1 | CX132: =G157 -> 75 | CY132: =H157 -> 72 | CZ132: =I157 -> 66 | DB132: =IF(SUM(G158:I158)>0,SUM(G158:I158),0) -> 214 | DC132: =IF(SUM(K158)>0,SUM(K158),0) -> 1 | DD132: =G158 -> 77 | DE132: =H158 -> 71 | DF132: =I158 -> 66 | DH132: =IF(SUM(G159:I159)>0,SUM(G159:I159),0) -> 0 | DI132: =IF(SUM(K159)>0,SUM(K159),0) -> 0 | DJ132: =G159 -> 0 | DK132: =H159 -> 0 | DL132: =I159 -> 0 | DN132: =IF(SUM(G160:I160)>0,SUM(G160:I160),0) -> 0 | DO132: =IF(SUM(K160)>0,SUM(K159),0) -> 0 | DP132: =G160 -> 0 | DQ132: =H160 -> 0 | DR132: =I160 -> 0 | DT132: =IF(SUM(G161:I161)>0,SUM(G161:I161),0) -> 0 | DU132: =IF(SUM(K161)>0,SUM(K161),0) -> 0 | DV132: =G161 -> 0 | DW132: =H161 -> 0 | DX132: =I161 -> 0 | DZ132: =LARGE((DT132,DN132,DH132,DB132,CV132,CP132,CJ132,CD132,BX132,BR132,BL132,BF132,AZ132,AT132,AN132,AH132),1) -> 235 | EA132: =LARGE((AJ132,AP132,AV132,BB132,BH132,BN132,BT132,BZ132,CF132,CL132,CR132,CX132,DD132,DJ132,DP132,DV132),1) -> 81 | EB132: =LARGE((AK132,AQ132,AW132,BC132,BI132,BO132,BU132,CA132,CG132,CM132,CS132,CY132,DE132,DK132,DQ132,DW132),1) -> 89 | EC132: =LARGE((AL132,AR132,AX132,BD132,BJ132,BP132,BV132,CB132,CH132,CN132,CT132,CZ132,DF132,DL132,DR132,DX132),1) -> 66
